Workbook

Sheet Startseite
A2: Berechnung der Sanierungsdauer
A4: Pump-and-Treat
A6: Version 1.0
A33: Excelversion | B33: =INFO("VERSION") -> 16.0

Sheet Schadstoffbelastung (hidden)
B1: Schadstoff | D1: MB + 2 s [mg/m² OS] | E1: Inventar [kg] | H1: Geometrie des Schadensherdes | J1: Einheit | K1: Wert | M1: Schadstoffstatistik | O1: Einheit | P1: LCKW | Q1: AKW | R1: Oxigenate | S1: n-Alkane | U1: Mittl. Konz. (GW) [µg/L] | V1: Mittl. Konz. (GW) [µmol/L] | W1: Sättigungskonz. Ci [µg/L] | X1: Grenzkonz. Boden [mg/kg] | Y1: Mittlere Konz. Boden [mg/kg] | Z1: Residualphase [mg/kg]
B3: Tetrachlorethen | C3: PCE | D3: 12164.06532 | E3: 12.89013 | H3: Mittlere Länge (Schadensherd) | J3: m | K3: 55 | M3: Minimum | O3: mg/kg OS | P3: 49625.225 | Q3: 98007.6 | R3: 12872.375 | S3: 12872.375 | V3: =IF(U3<>"",U3/Stoffdatenbank!L4,"") ->  | W3: =IF(V3<>"",Stoffdatenbank!H4*1000*(Schadstoffbelastung!V3/Schadstoffbelastung!$V$16),"") ->  | X3: =IF(W3<>"",(W3/(1000)*Bodencharakterisierung!$E$10*((Stoffdatenbank!D4*foc)+n)),"") ->  | Y3: =IF(E3<>"",(E3/$K$11)*1000,"") -> 0.240212779 | Z3: =IF(Y3<>"",IF(Y3<X3,0,Y3-X3),0) -> 0
B4: Trichlorethen | C4: TCE | D4: 14143.67911 | E4: 16.01501 | H4: Mittlere Breite (Schadensherd) | J4: m | K4: 40 | M4: Maximum | O4: mg/kg OS | P4: 808038.9275 | Q4: 2201992.855 | R4: 124471.4275 | S4: 124471.4275 | U4: 136067 | V4: =IF(U4<>"",U4/Stoffdatenbank!L5,"") -> 1038.679389 | W4: =IF(V4<>"",Stoffdatenbank!H5*1000*(Schadstoffbelastung!V4/Schadstoffbelastung!$V$16),"") -> 94123.85421 | X4: =IF(W4<>"",(W4/(1000)*Bodencharakterisierung!$E$10*((Stoffdatenbank!D5*foc)+n)),"") -> 232.4341518 | Y4: =IF(E4<>"",(E4/$K$11)*1000,"") -> 0.29844618 | Z4: =IF(Y4<>"",IF(Y4<X4,0,Y4-X4),0) -> 0
B5: cis-1,2-Dichlorethen | C5: cDCE | D5: 16108.39943 | E5: 16.6438921 | H5: Fläche der Belastung | J5: m² | K5: =K3*K4 -> 2200 | M5: Median | O5: mg/kg OS | P5: 68179.2 | Q5: 123663.575 | R5: 28763.1 | S5: 17666.225 | U5: 136067 | V5: =IF(U5<>"",U5/Stoffdatenbank!L6,"") -> 1402.752577 | W5: =IF(V5<>"",Stoffdatenbank!H6*1000*(Schadstoffbelastung!V5/Schadstoffbelastung!$V$16),"") -> 444905.0222 | X5: =IF(W5<>"",(W5/(1000)*Bodencharakterisierung!$E$10*((Stoffdatenbank!D6*foc)+n)),"") -> 559.4458202 | Y5: 0.310165652 | Z5: 0
B6: trans-1,2-Dichlorethen | C6: tDCE | D6: 129519.5176 | E6: 66.01309 | H6: Oberkante der Belastung | J6: m u. GOK | K6: 3.9 | M6: Mittlere Konzentration (arithm.) | O6: mg/kg OS | P6: 218441.5405 | Q6: 534837.416 | R6: 45294.7805 | S6: 38636.6555 | U6: 136067 | V6: =IF(U6<>"",U6/Stoffdatenbank!L7,"") -> 1402.752577 | W6: =IF(V6<>"",Stoffdatenbank!H7*1000*(Schadstoffbelastung!V6/Schadstoffbelastung!$V$16),"") -> 800829.04 | X6: =IF(W6<>"",(W6/(1000)*Bodencharakterisierung!$E$10*((Stoffdatenbank!D7*foc)+n)),"") -> 1128.328076 | Y6: 1.230180596 | Z6: 0
B7: 1,1-Dichlorethen | C7: 11DCE | D7: 97059.33946 | E7: 55.85723 | H7: Unterkante der Belastung | J7: m u. GOK | K7: 20 | M7: Standardabweichung | O7: mg/kg OS | P7: 311312.4779 | Q7: 878807.943 | R7: 43279.02737 | S7: 45337.64287 | U7: 136067 | V7: =IF(U7<>"",U7/Stoffdatenbank!L8,"") -> 1402.752577 | W7: =IF(V7<>"",Stoffdatenbank!H8*1000*(Schadstoffbelastung!V7/Schadstoffbelastung!$V$16),"") -> 317789.3016 | X7: =IF(W7<>"",(W7/(1000)*Bodencharakterisierung!$E$10*((Stoffdatenbank!D8*foc)+n)),"") -> 498.3497147 | Y7: 1.040922043 | Z7: 0
B8: Vinylchlorid | C8: VC | D8: 305282.5201 | E8: 144.91631 | H8: Mittlere Mächtigkeit (Schadensherd) | J8: m | K8: =K7-K6 -> 16.1 | M8: MW + 2 s | O8: mg/kg OS | P8: 841066.4964 | Q8: 2292453.302 | R8: 131852.8352 | S8: 129311.9412 | U8: 136067 | V8: =IF(U8<>"",U8/Stoffdatenbank!L9,"") -> 2159.793651 | W8: =IF(V8<>"",Stoffdatenbank!H9*1000*(Schadstoffbelastung!V8/Schadstoffbelastung!$V$16),"") -> 215289.6411 | X8: =IF(W8<>"",(W8/(1000)*Bodencharakterisierung!$E$10*((Stoffdatenbank!D9*foc)+n)),"") -> 303.3323399 | Y8: 2.70057397 | Z8: 0
B9: Tetrachlormethan | C9: CT | D9: 305302.9063 | E9: 143.471053 | H9: Bodenlagerungsdichte | J9: kg/L | K9: 1.515 | M9: Schadstoffinventar (mittelwertbezogen) | O9: kg | P9: 2058.239079 | Q9: 2866.348613 | R9: 756.5028746 | S9: 1489.94071 | U9: 136067 | V9: =IF(U9<>"",U9/Stoffdatenbank!L10,"") -> 883.5519481 | W9: =IF(V9<>"",Stoffdatenbank!H10*1000*(Schadstoffbelastung!V9/Schadstoffbelastung!$V$16),"") -> 64053.11637 | X9: =IF(W9<>"",(W9/(1000)*Bodencharakterisierung!$E$10*((Stoffdatenbank!D10*foc)+n)),"") -> 309.1709416 | Y9: 2.673641022 | Z9: 0
B10: Trichlormethan | C10: CF | D10: 15899.55322 | E10: 9.76525 | H10: Volumen kontaminierter Boden | J10: m³ | K10: =K8*K5 -> 35420 | M10: Schadstoffinventar (flächengewichtet) | O10: kg | P10: 480.5713891 | Q10: 738.9794346 | R10: 208.6052705 | S10: 412.8161785 | U10: 136067 | V10: =IF(U10<>"",U10/Stoffdatenbank!L11,"") -> 1143.420168 | W10: =IF(V10<>"",Stoffdatenbank!H11*1000*(Schadstoffbelastung!V10/Schadstoffbelastung!$V$16),"") -> 849645.7495 | X10: =IF(W10<>"",(W10/(1000)*Bodencharakterisierung!$E$10*((Stoffdatenbank!D11*foc)+n)),"") -> 1083.962329 | Y10: 0.1819793781 | Z10: 0
B11: Dichlormethan | C11: DCM | D11: 13047.92867 | E11: 4.882625 | J11: t | K11: =K10*K9 -> 53661.3 | M11: Residualphase | O11: kg | P11: =Z16 -> 0 | Q11: =Z34 -> 0 | R11: =Z45 -> 0 | S11: =Z41 -> 0 | U11: 136067 | V11: =IF(U11<>"",U11/Stoffdatenbank!L12,"") -> 1600.788235 | W11: =IF(V11<>"",Stoffdatenbank!H12*1000*(Schadstoffbelastung!V11/Schadstoffbelastung!$V$16),"") -> 2581949.094 | X11: =IF(W11<>"",(W11/(1000)*Bodencharakterisierung!$E$10*((Stoffdatenbank!D12*foc)+n)),"") -> 1766.111274 | Y11: 0.09098968903 | Z11: 0
B12: 1,1,1-Trichlorethan | C12: 111TCA | D12: 6263.005761 | E12: 2.34366 | H12: Grundwasserstand | J12: m u. GOK | K12: 3.9 | U12: 100 | V12: =IF(U12<>"",U12/Stoffdatenbank!L13,"") -> 0.7496027106 | W12: =IF(V12<>"",Stoffdatenbank!H13*1000*(Schadstoffbelastung!V12/Schadstoffbelastung!$V$16),"") -> 88.30650349 | X12: =IF(W12<>"",(W12/(1000)*Bodencharakterisierung!$E$10*((Stoffdatenbank!D13*foc)+n)),"") -> 0.2367983044 | Y12: 0.04367505073 | Z12: 0
B13: 1,1,2-Trichlorethan | C13: 112TCA | D13: 7724.373772 | E13: 2.890514 | H13: Aquifermächtigkeit | J13: m | K13: 16.1 | V13: =IF(U13<>"",U13/Stoffdatenbank!L14,"") ->  | W13: =IF(V13<>"",Stoffdatenbank!H14*1000*(Schadstoffbelastung!V13/Schadstoffbelastung!$V$16),"") ->  | X13: =IF(W13<>"",(W13/(1000)*Bodencharakterisierung!$E$10*((Stoffdatenbank!D14*foc)+n)),"") ->  | Y13: 0.05386589591 | Z13: 0
B14: 1,1-Dichlorethan | C14: 11DCA | D14: 13047.92867 | E14: 4.882625 | V14: =IF(U14<>"",U14/Stoffdatenbank!L15,"") ->  | W14: =IF(V14<>"",Stoffdatenbank!H15*1000*(Schadstoffbelastung!V14/Schadstoffbelastung!$V$16),"") ->  | X14: =IF(W14<>"",(W14/(1000)*Bodencharakterisierung!$E$10*((Stoffdatenbank!D15*foc)+n)),"") ->  | Y14: 0.09098968903 | Z14: 0
B15: 1,2-Dichlorethan | C15: 12DCA | E15: 0 | V15: =IF(U15<>"",U15/Stoffdatenbank!L16,"") ->  | W15: =IF(V15<>"",Stoffdatenbank!H16*1000*(Schadstoffbelastung!V15/Schadstoffbelastung!$V$16),"") ->  | X15: =IF(W15<>"",(W15/(1000)*Bodencharakterisierung!$E$10*((Stoffdatenbank!D16*foc)+n)),"") ->  | Y15: 0 | Z15: 0
B16: LCKW | D16: 803766.7314 | E16: 480.5713891 | U16: 1088636 | V16: =SUM(V3:V15) -> 11035.24073 | W16: =SUM(W3:W15) -> 5368673.126 | Y16: =SUM(Y3:Y15) -> 8.955641945 | Z16: =SUM(Z3:Z15) -> 0
B17: Benzol | C17: B | E17: 0 | V17: =IF(U17<>"",U17/Stoffdatenbank!L18,"") ->  | W17: =IF(V17<>"",Stoffdatenbank!H18*1000*(Schadstoffbelastung!V17/Schadstoffbelastung!$V$34),"") ->  | X17: =IF(W17<>"",(W17/(1000)*Bodencharakterisierung!$E$10*((Stoffdatenbank!D18*foc)+n)),"") ->  | Y17: =IF(E17<>"",(E17/$K$11)*1000,"") -> 0 | Z17: =IF(Y17<>"",IF(Y17<X17,0,Y17-X17),0) -> 0
B18: Toluol | C18: T | D18: 843.1157897 | E18: 0.4023283 | U18: 136067 | V18: =IF(U18<>"",U18/Stoffdatenbank!L19,"") -> 1478.98913 | W18: =IF(V18<>"",Stoffdatenbank!H19*1000*(Schadstoffbelastung!V18/Schadstoffbelastung!$V$34),"") -> 86594.05111 | X18: =IF(W18<>"",(W18/(1000)*Bodencharakterisierung!$E$10*((Stoffdatenbank!D19*foc)+n)),"") -> 436.8626581 | Y18: =IF(E18<>"",(E18/$K$11)*1000,"") -> 0.007497550376 | Z18: =IF(Y18<>"",IF(Y18<X18,0,Y18-X18),0) -> 0
B19: Ethylbenzol | C19: ETBE | D19: 157810.3228 | E19: 89.44969 | U19: 136067 | V19: =IF(U19<>"",U19/Stoffdatenbank!L20,"") -> 1283.650943 | W19: =IF(V19<>"",Stoffdatenbank!H20*1000*(Schadstoffbelastung!V19/Schadstoffbelastung!$V$34),"") -> 24570.5907 | X19: =IF(W19<>"",(W19/(1000)*Bodencharakterisierung!$E$10*((Stoffdatenbank!D20*foc)+n)),"") -> 421.7529608 | Y19: =IF(E19<>"",(E19/$K$11)*1000,"") -> 1.666931103 | Z19: 0
B20: o-Xylol | C20: oX | D20: 122811.3304 | E20: 83.8444365 | U20: 136067 | V20: =IF(U20<>"",U20/Stoffdatenbank!L21,"") -> 1283.650943 | W20: =IF(V20<>"",Stoffdatenbank!H21*1000*(Schadstoffbelastung!V20/Schadstoffbelastung!$V$34),"") -> 26015.91956 | X20: =IF(W20<>"",(W20/(1000)*Bodencharakterisierung!$E$10*((Stoffdatenbank!D21*foc)+n)),"") -> 340.1438395 | Y20: 1.56247494 | Z20: 0
B21: m-Xylol | C21: mX | D21: 327263.102 | E21: 201.6524125 | U21: 136067 | V21: =IF(U21<>"",U21/Stoffdatenbank!L22,"") -> 1283.650943 | W21: =IF(V21<>"",Stoffdatenbank!H22*1000*(Schadstoffbelastung!V21/Schadstoffbelastung!$V$34),"") -> 25148.72225 | X21: =IF(W21<>"",(W21/(1000)*Bodencharakterisierung!$E$10*((Stoffdatenbank!D22*foc)+n)),"") -> 385.9561829 | Y21: 3.757874157 | Z21: 0
B22: p-Xylol | C22: pX | D22: 327263.102 | E22: 201.6524125 | U22: 136067 | V22: =IF(U22<>"",U22/Stoffdatenbank!L23,"") -> 1283.650943 | W22: =IF(V22<>"",Stoffdatenbank!H23*1000*(Schadstoffbelastung!V22/Schadstoffbelastung!$V$34),"") -> 28906.57729 | X22: =IF(W22<>"",(W22/(1000)*Bodencharakterisierung!$E$10*((Stoffdatenbank!D23*foc)+n)),"") -> 399.8343318 | Y22: 3.757874157 | Z22: 0
B23: n-Propylbenzol | C23: nPB | D23: 6117.732248 | E23: 2.5584955 | U23: 136067 | V23: =IF(U23<>"",U23/Stoffdatenbank!L24,"") -> 1133.891667 | W23: =IF(V23<>"",Stoffdatenbank!H24*1000*(Schadstoffbelastung!V23/Schadstoffbelastung!$V$34),"") -> 7660.242983 | X23: =IF(W23<>"",(W23/(1000)*Bodencharakterisierung!$E$10*((Stoffdatenbank!D24*foc)+n)),"") -> 117.561366 | Y23: 0.04767859705 | Z23: 0
B24: Isopropylbenzol | C24: iPB | D24: 10484.10876 | E24: 4.3943625 | U24: 136067 | V24: =IF(U24<>"",U24/Stoffdatenbank!L25,"") -> 1133.891667 | W24: =IF(V24<>"",Stoffdatenbank!H25*1000*(Schadstoffbelastung!V24/Schadstoffbelastung!$V$34),"") -> 6383.535819 | X24: =IF(W24<>"",(W24/(1000)*Bodencharakterisierung!$E$10*((Stoffdatenbank!D25*foc)+n)),"") -> 94.09938233 | Y24: 0.08189072013 | Z24: 0
B25: o-Ethyltoluol | C25: oET | D25: 10484.10876 | E25: 4.3943625 | V25: =IF(U25<>"",U25/Stoffdatenbank!L26,"") ->  | W25: =IF(V25<>"",Stoffdatenbank!H26*1000*(Schadstoffbelastung!V25/Schadstoffbelastung!$V$34),"") ->  | X25: =IF(W25<>"",(W25/(1000)*Bodencharakterisierung!$E$10*((Stoffdatenbank!D26*foc)+n)),"") ->  | Y25: 0.08189072013 | Z25: 0
B26: m-Ethyltoluol | C26: oET | D26: 6117.732248 | E26: 2.5584955 | V26: =IF(U26<>"",U26/Stoffdatenbank!L27,"") ->  | W26: =IF(V26<>"",Stoffdatenbank!H27*1000*(Schadstoffbelastung!V26/Schadstoffbelastung!$V$34),"") ->  | X26: =IF(W26<>"",(W26/(1000)*Bodencharakterisierung!$E$10*((Stoffdatenbank!D27*foc)+n)),"") ->  | Y26: 0.04767859705 | Z26: 0
B27: p-Ethyltoluol | C27: pET | D27: 10484.10876 | E27: 4.3943625 | V27: =IF(U27<>"",U27/Stoffdatenbank!L28,"") ->  | W27: =IF(V27<>"",Stoffdatenbank!H28*1000*(Schadstoffbelastung!V27/Schadstoffbelastung!$V$34),"") ->  | X27: =IF(W27<>"",(W27/(1000)*Bodencharakterisierung!$E$10*((Stoffdatenbank!D28*foc)+n)),"") ->  | Y27: 0.08189072013 | Z27: 0
B28: 1,2-Diethylbenzol | C28: 12DEB | D28: 10484.10876 | E28: 4.3943625 | V28: =IF(U28<>"",U28/Stoffdatenbank!L29,"") ->  | W28: =IF(V28<>"",Stoffdatenbank!H29*1000*(Schadstoffbelastung!V28/Schadstoffbelastung!$V$34),"") ->  | X28: =IF(W28<>"",(W28/(1000)*Bodencharakterisierung!$E$10*((Stoffdatenbank!D29*foc)+n)),"") ->  | Y28: 0.08189072013 | Z28: 0
B29: 1,3-Diethylbenzol | C29: 13DEB | E29: 0 | V29: =IF(U29<>"",U29/Stoffdatenbank!L30,"") ->  | W29: =IF(V29<>"",Stoffdatenbank!H30*1000*(Schadstoffbelastung!V29/Schadstoffbelastung!$V$34),"") ->  | X29: =IF(W29<>"",(W29/(1000)*Bodencharakterisierung!$E$10*((Stoffdatenbank!D30*foc)+n)),"") ->  | Y29: 0 | Z29: 0
B30: 1,4-Diethylbenzol | C30: 14DEB | E30: 0 | V30: =IF(U30<>"",U30/Stoffdatenbank!L31,"") ->  | W30: =IF(V30<>"",Stoffdatenbank!H31*1000*(Schadstoffbelastung!V30/Schadstoffbelastung!$V$34),"") ->  | X30: =IF(W30<>"",(W30/(1000)*Bodencharakterisierung!$E$10*((Stoffdatenbank!D31*foc)+n)),"") ->  | Y30: 0 | Z30: 0
B31: 1,2,3-Trimethylbenzol | C31: 123TMB | D31: 40071.72192 | E31: 19.0461436 | V31: =IF(U31<>"",U31/Stoffdatenbank!L32,"") ->  | W31: =IF(V31<>"",Stoffdatenbank!H32*1000*(Schadstoffbelastung!V31/Schadstoffbelastung!$V$34),"") ->  | X31: =IF(W31<>"",(W31/(1000)*Bodencharakterisierung!$E$10*((Stoffdatenbank!D32*foc)+n)),"") ->  | Y31: 0.354932579 | Z31: 0
B32: 1,2,4-Trimethylbenzol | C32: 124TMB | D32: 208177.4889 | E32: 92.2855186 | V32: =IF(U32<>"",U32/Stoffdatenbank!L33,"") ->  | W32: =IF(V32<>"",Stoffdatenbank!H33*1000*(Schadstoffbelastung!V32/Schadstoffbelastung!$V$34),"") ->  | X32: =IF(W32<>"",(W32/(1000)*Bodencharakterisierung!$E$10*((Stoffdatenbank!D33*foc)+n)),"") ->  | Y32: 1.719777914 | Z32: 0
B33: 1,3,5-Trimethylbenzol | C33: 135TMB | D33: 64473.65009 | E33: 27.9520516 | V33: =IF(U33<>"",U33/Stoffdatenbank!L34,"") ->  | W33: =IF(V33<>"",Stoffdatenbank!H34*1000*(Schadstoffbelastung!V33/Schadstoffbelastung!$V$34),"") ->  | X33: =IF(W33<>"",(W33/(1000)*Bodencharakterisierung!$E$10*((Stoffdatenbank!D34*foc)+n)),"") ->  | Y33: 0.5208977718 | Z33: 0
B34: AKW | D34: 1183508.576 | E34: 738.9794346 | U34: 680335 | V34: =SUM(V17:V33) -> 8881.376237 | W34: =SUM(W17:W33) -> 205279.6397 | Y34: =SUM(Y17:Y33) -> 13.77118025 | Z34: =SUM(Z17:Z33) -> 0
B35: n-Pentan | C35: nC5 | D35: 327263.102 | E35: 201.6524125 | V35: =IF(U35<>"",U35/Stoffdatenbank!L36,"") ->  | W35: =IF(V35<>"",Stoffdatenbank!H36*1000*(Schadstoffbelastung!V35/Schadstoffbelastung!$V$41),"") ->  | X35: =IF(W35<>"",(W35/(1000)*Bodencharakterisierung!$E$10*((Stoffdatenbank!D36*foc)+n)),"") ->  | Y35: =IF(E35<>"",(E35/$K$11)*1000,"") -> 3.757874157 | Z35: =IF(Y35<>"",IF(Y35<X35,0,Y35-X35),0) -> 0
B36: n-Hexan | C36: nC6 | D36: 6117.732248 | E36: 2.5584955 | U36: 136067 | V36: =IF(U36<>"",U36/Stoffdatenbank!L37,"") -> 1582.174419 | W36: =IF(V36<>"",Stoffdatenbank!H37*1000*(Schadstoffbelastung!V36/Schadstoffbelastung!$V$41),"") -> 2569.442546 | X36: =IF(W36<>"",(W36/(1000)*Bodencharakterisierung!$E$10*((Stoffdatenbank!D37*foc)+n)),"") -> 80.69578412 | Y36: 0.04767859705 | Z36: 0
B37: n-Heptan | C37: nC7 | D37: 10484.10876 | E37: 4.3943625 | U37: 136067 | V37: =IF(U37<>"",U37/Stoffdatenbank!L38,"") -> 1360.67 | W37: =IF(V37<>"",Stoffdatenbank!H38*1000*(Schadstoffbelastung!V37/Schadstoffbelastung!$V$41),"") -> 486.1385297 | X37: =IF(W37<>"",(W37/(1000)*Bodencharakterisierung!$E$10*((Stoffdatenbank!D38*foc)+n)),"") -> 38.90928826 | Y37: 0.08189072013 | Z37: 0
B38: n-Octan | C38: nC8 | D38: 327263.102 | E38: 201.6524125 | U38: 136067 | V38: =IF(U38<>"",U38/Stoffdatenbank!L39,"") -> 1193.570175 | W38: =IF(V38<>"",Stoffdatenbank!H39*1000*(Schadstoffbelastung!V38/Schadstoffbelastung!$V$41),"") -> 135.6845976 | X38: =IF(W38<>"",(W38/(1000)*Bodencharakterisierung!$E$10*((Stoffdatenbank!D39*foc)+n)),"") -> 35.79453985 | Y38: 3.757874157 | Z38: 0
B39: n-Nonan | C39: nC9 | D39: 6117.732248 | E39: 2.5584955 | U39: 136067 | V39: =IF(U39<>"",U39/Stoffdatenbank!L40,"") -> 1063.023438 | W39: =IF(V39<>"",Stoffdatenbank!H40*1000*(Schadstoffbelastung!V39/Schadstoffbelastung!$V$41),"") -> 20.71613053 | X39: =IF(W39<>"",(W39/(1000)*Bodencharakterisierung!$E$10*((Stoffdatenbank!D40*foc)+n)),"") -> 8.653768885 | Y39: 0.04767859705 | Z39: 0
B40: n-Decan | C40: nC10 | E40: 0 | U40: 136067 | V40: =IF(U40<>"",U40/Stoffdatenbank!L41,"") -> 958.2183099 | W40: =IF(V40<>"",Stoffdatenbank!H41*1000*(Schadstoffbelastung!V40/Schadstoffbelastung!$V$41),"") -> 7.780706301 | X40: =IF(W40<>"",(W40/(1000)*Bodencharakterisierung!$E$10*((Stoffdatenbank!D41*foc)+n)),"") -> 25.79317327 | Y40: 0 | Z40: 0
B41: n-Alkane | D41: 652516.0791 | E41: 412.8161785 | U41: 680335 | V41: =SUM(V35:V40) -> 6157.656341 | W41: =SUM(W35:W40) -> 3219.76251 | Y41: =SUM(Y35:Y40) -> 7.692996228 | Z41: =SUM(Z35:Z40) -> 0
B42: MTBE (Methyl-tert-butylether) | D42: 327263.102 | E42: 201.6524125 | U42: 136067 | V42: =IF(U42<>"",U42/Stoffdatenbank!L43,"") -> 1543.619821 | W42: =IF(V42<>"",Stoffdatenbank!H43*1000*(V42/$V$45),"") -> 27518395.45 | X42: =IF(W42<>"",(W42/(1000)*Bodencharakterisierung!$E$10*((Stoffdatenbank!D43*foc)+n)),"") -> 18343.76241 | Y42: =IF(E42<>"",(E42/$K$11)*1000,"") -> 3.757874157 | Z42: =IF(Y42<>"",IF(Y42<X42,0,Y42-X42),0) -> 0
B43: ETBE (Ethyl-tert-butylether) | D43: 6117.732248 | E43: 2.5584955 | U43: 136067 | V43: =IF(U43<>"",U43/Stoffdatenbank!L44,"") -> 1331.708014 | W43: =IF(V43<>"",Stoffdatenbank!H44*1000*(V43/$V$45),"") -> 5557799.696 | X43: =IF(W43<>"",(W43/(1000)*Bodencharakterisierung!$E$10*((Stoffdatenbank!D44*foc)+n)),"") -> 3536.427947 | Y43: =IF(E43<>"",(E43/$K$11)*1000,"") -> 0.04767859705 | Z43: =IF(Y43<>"",IF(Y43<X43,0,Y43-X43),0) -> 0
B44: TBA (tert-Butylalkohol) | D44: 10484.10876 | E44: 4.3943625 | V44: =IF(U44<>"",U44/Stoffdatenbank!L45,"") ->  | X44: =IF(W44<>"",(W44/(1000)*Bodencharakterisierung!$E$10*((Stoffdatenbank!D45*foc)+n)),"") ->  | Y44: =IF(E44<>"",(E44/$K$11)*1000,"") -> 0.08189072013 | Z44: =IF(Y44<>"",IF(Y44<X44,0,Y44-X44),0) -> 0
B45: Oxigenate | D45: 325902.1196 | E45: 208.6052705 | U45: 272134 | V45: =SUM(V42:V44) -> 2875.327835 | W45: =SUM(W42:W43) -> 33076195.14 | Y45: =SUM(Y42:Y44) -> 3.887443474 | Z45: =SUM(Z42:Z44) -> 0

Sheet y (hidden)
A21: Mittlere Schadstoffmasse im gesättigten Boden (Einheitsfläche) (MB) [mg/m²]
A23: Sondierung | B23: 1 | C23: 2 | D23: 3 | E23: 4 | F23: 5 | G23: 6 | H23: 7 | I23: 8 | J23: 9 | K23: 10 | L23: 11 | M23: 12 | N23: 13 | O23: 14 | P23: 15 | Q23: 16 | R23: 17 | S23: 18 | T23: 19 | U23: 20 | V23: Summe | W23: Mittlere Flächen-Konz. (MB) [mg/m²] | X23: Standard-abweich. (MB) [mg/m²] | Y23: MB + 2 s [mg/m²] | Z23: Inventar (MB-bezogen) [kg] | AA23: Inventar (flächenbezogen) [kg]
A25: Flächenrepräsentanz [m²] | B25: 220 | C25: 220 | D25: 220 | E25: 220 | F25: 220 | G25: 220 | H25: 220 | I25: 220 | J25: 220 | K25: 220 | V25: =IF(SUM(B25:U25)=Sanierungsfläche,SUM(y!B25:U25),"Σ ≠ "&Schadstoffbelastung!$K$5&"!") -> 2200
A26: Leichtflüchtige chlorierte Kohlenwasserstoffe (LCKW) | V26: kg
A27: Tetrachlorethen | C27: 5060.175 | D27: 6569.35 | E27: 6569.35 | G27: 5060.175 | H27: 6569.35 | I27: 6569.35 | J27: 11096.875 | K27: 11096.875 | V27: =SUMPRODUCT($B$25:$U$25,B27:U27)/1000/1000 -> 12.89013 | W27: =IF(SUM($B27:$U27)>0,AVERAGE($B27:$U27),"") -> 7323.9375 | X27: =IF(SUM($B27:$U27)>0,_xlfn.STDEV.S(B27:U27),"") -> 2420.063909 | Y27: =IF(SUM($B27:$U27)>0,W27+X27*2,"") -> 12164.06532 | Z27: =IF(Y27<>"",Y27*$V$25/1000/1000,"") -> 26.7609437 | AA27: =V27 -> 12.89013
A28: Trichlorethen | C28: 8877.5 | D28: 11096.875 | E28: 11096.875 | G28: 8877.5 | H28: 11096.875 | I28: 11096.875 | J28: 5326.5 | K28: 5326.5 | V28: =SUMPRODUCT($B$25:$U$25,B28:U28)/1000/1000 -> 16.01501 | W28: =IF(SUM($B28:$U28)>0,AVERAGE($B28:$U28),"") -> 9099.4375 | X28: 2522.120806 | Y28: 14143.67911 | Z28: =IF(Y28<>"",Y28*$V$25/1000/1000,"") -> 31.11609405 | AA28: 16.01501
A29: cis-1,2-Dichlorethen | B29: 186.4275 | C29: 8877.5 | D29: 11096.875 | E29: 11096.875 | F29: 186.4275 | G29: 8877.5 | H29: 11096.875 | I29: 11096.875 | J29: 6569.35 | K29: 6569.35 | V29: =SUMPRODUCT($B$25:$U$25,B29:U29)/1000/1000 -> 16.6438921 | W29: =IF(SUM($B29:$U29)>0,AVERAGE($B29:$U29),"") -> 7565.4055 | X29: 4271.496967 | Y29: 16108.39943 | Z29: 35.43847875 | AA29: 16.6438921
A30: trans-1,2-Dichlorethen | B30: 124285 | C30: 3994.875 | D30: 5326.5 | E30: 5326.5 | F30: 124285 | G30: 3994.875 | H30: 5326.5 | I30: 5326.5 | J30: 11096.875 | K30: 11096.875 | V30: 66.01309 | W30: 30005.95 | X30: 49756.78382 | Y30: 129519.5176 | Z30: 284.9429388 | AA30: 66.01309
A31: 1,1-Dichlorethen | B31: 97652.5 | C31: 5060.175 | D31: 6569.35 | E31: 6569.35 | F31: 97652.5 | G31: 5060.175 | H31: 6569.35 | I31: 6569.35 | J31: 11096.875 | K31: 11096.875 | L31: 2 | V31: 55.85723 | W31: 23081.68182 | X31: 36988.82882 | Y31: 97059.33946 | Z31: 213.5305468 | AA31: 55.85723
A32: Vinylchlorid | B32: 292957.5 | C32: 8877.5 | D32: 11096.875 | E32: 11096.875 | F32: 292957.5 | G32: 8877.5 | H32: 11096.875 | I32: 11096.875 | J32: 5326.5 | K32: 5326.5 | V32: 144.91631 | W32: 65871.05 | X32: 119705.7351 | Y32: 305282.5201 | Z32: 671.6215443 | AA32: 144.91631
A33: Tetrachlormethan | B33: 292957.5 | C33: 8877.5 | D33: 11096.875 | E33: 6569.35 | F33: 292957.5 | G33: 8877.5 | H33: 11096.875 | I33: 6569.35 | J33: 6569.35 | K33: 6569.35 | V33: 143.471053 | W33: 65214.115 | X33: 120044.3957 | Y33: 305302.9063 | Z33: 671.6663939 | AA33: 143.471053
A34: Trichlormethan | B34: 0 | C34: 0 | D34: 0 | E34: 11096.875 | F34: 0 | G34: 0 | H34: 0 | I34: 11096.875 | J34: 11096.875 | K34: 11096.875 | V34: 9.76525 | W34: 4438.75 | X34: 5730.401609 | Y34: 15899.55322 | Z34: 34.97901708 | AA34: 9.76525
A35: Dichlormethan | B35: 0 | C35: 0 | D35: 0 | E35: 11096.875 | F35: 0 | G35: 0 | H35: 0 | I35: 11096.875 | V35: 4.882625 | W35: 2774.21875 | X35: 5136.85496 | Y35: 13047.92867 | Z35: 28.70544307 | AA35: 4.882625
A36: 1,1,1-Trichlorethan | B36: 0 | C36: 0 | D36: 0 | E36: 5326.5 | F36: 0 | G36: 0 | H36: 0 | I36: 5326.5 | V36: 2.34366 | W36: 1331.625 | X36: 2465.690381 | Y36: 6263.005761 | Z36: 13.77861268 | AA36: 2.34366
A37: 1,1,2-Trichlorethan | B37: 0 | C37: 0 | D37: 0 | E37: 6569.35 | F37: 0 | G37: 0 | H37: 0 | I37: 6569.35 | V37: 2.890514 | W37: 1642.3375 | X37: 3041.018136 | Y37: 7724.373772 | Z37: 16.9936223 | AA37: 2.890514
A38: 1,1-Dichlorethan | B38: 0 | C38: 0 | D38: 0 | E38: 11096.875 | F38: 0 | G38: 0 | H38: 0 | I38: 11096.875 | V38: 4.882625 | W38: 2774.21875 | X38: 5136.85496 | Y38: 13047.92867 | Z38: 28.70544307 | AA38: 4.882625
A39: 1,2-Dichlorethan | V39: 0 | W39: =IF(SUM($B39:$U39)>0,AVERAGE($B39:$U39),"") ->  | AA39: 0
A40: LCKW | B40: =IF(SUM(B27:B39)>0,SUM(B27:B39),"") -> 808038.9275 | C40: =IF(SUM(C27:C39)>0,SUM(C27:C39),"") -> 49625.225 | D40: 62852.7 | E40: 103511.65 | F40: 808038.9275 | G40: 49625.225 | H40: 62852.7 | I40: 103511.65 | J40: 68179.2 | K40: 68179.2 | L40: 2 | V40: =SUM(V27:V39) -> 480.5713891 | W40: 198583.4005 | X40: 302591.6655 | Y40: 803766.7314 | Z40: =SUM(Z27:Z39) -> 2058.239079 | AA40: 480.5713891
A41: (Mono)aromatische Kohlenwasserstoffe (AKW)
A42: Benzol | B42: 0 | C42: 0 | D42: 0 | E42: 0 | F42: 0 | G42: 0 | H42: 0 | I42: 0 | V42: =SUMPRODUCT($B$25:$U$25,B42:U42)/1000/1000 -> 0 | W42: =IF(SUM($B42:$U42)>0,AVERAGE($B42:$U42),"") ->  | X42: =IF(SUM($B42:$U42)>0,_xlfn.STDEV.S(B42:U42),"") ->  | Y42: =IF(SUM($B42:$U42)>0,W42+X42*2,"") ->  | Z42: =IF(Y42<>"",Y42*$V$25/1000/1000,"") ->  | AA42: =V42 -> 0
A43: Toluol | B43: 186.4275 | C43: 17.755 | D43: 0 | E43: 710.2 | F43: 186.4275 | G43: 17.755 | H43: 0 | I43: 710.2 | V43: 0.4023283 | W43: 228.595625 | X43: 307.2600823 | Y43: 843.1157897 | Z43: =IF(Y43<>"",Y43*$V$25/1000/1000,"") -> 1.854854737 | AA43: 0.4023283
A44: Ethylbenzol | B44: 124285 | C44: 3994.875 | D44: 5326.5 | E44: 69688.375 | F44: 124285 | G44: 3994.875 | H44: 5326.5 | I44: 69688.375 | V44: 89.44969 | W44: 50823.6875 | X44: 53493.31766 | Y44: 157810.3228 | Z44: 347.1827102 | AA44: 89.44969
A45: o-Xylol | B45: 97652.5 | C45: 5060.175 | D45: 6569.35 | E45: 75458.75 | F45: 97652.5 | G45: 5060.175 | H45: 6569.35 | I45: 75458.75 | J45: 5060.175 | K45: 6569.35 | V45: 83.8444365 | W45: 38111.1075 | X45: 42350.11145 | Y45: 122811.3304 | Z45: 270.1849269 | AA45: 83.8444365
A46: m-Xylol | B46: 292957.5 | C46: 8877.5 | D46: 11096.875 | E46: 135381.875 | F46: 292957.5 | G46: 8877.5 | H46: 11096.875 | I46: 135381.875 | J46: 8877.5 | K46: 11096.875 | V46: 201.6524125 | W46: 91660.1875 | X46: 117801.4572 | Y46: 327263.102 | Z46: 719.9788244 | AA46: 201.6524125
A47: p-Xylol | B47: 292957.5 | C47: 8877.5 | D47: 11096.875 | E47: 135381.875 | F47: 292957.5 | G47: 8877.5 | H47: 11096.875 | I47: 135381.875 | J47: 8877.5 | K47: 11096.875 | V47: 201.6524125 | W47: 91660.1875 | X47: 117801.4572 | Y47: 327263.102 | Z47: 719.9788244 | AA47: 201.6524125
A48: n-Propylbenzol | B48: 0 | C48: 0 | D48: 0 | E48: 0 | F48: 0 | G48: 0 | H48: 0 | I48: 0 | J48: 5060.175 | K48: 6569.35 | V48: 2.5584955 | W48: 1162.9525 | X48: 2477.389874 | Y48: 6117.732248 | Z48: 13.45901094 | AA48: 2.5584955
A49: Isopropylbenzol | B49: 0 | C49: 0 | D49: 0 | E49: 0 | F49: 0 | G49: 0 | H49: 0 | I49: 0 | J49: 8877.5 | K49: 11096.875 | V49: 4.3943625 | W49: 1997.4375 | X49: 4243.335629 | Y49: 10484.10876 | Z49: 23.06503927 | AA49: 4.3943625
A50: o-Ethyltoluol | B50: 0 | C50: 0 | D50: 0 | E50: 0 | F50: 0 | G50: 0 | H50: 0 | I50: 0 | J50: 8877.5 | K50: 11096.875 | V50: 4.3943625 | W50: 1997.4375 | X50: 4243.335629 | Y50: 10484.10876 | Z50: 23.06503927 | AA50: 4.3943625
A51: m-Ethyltoluol | B51: 0 | C51: 0 | D51: 0 | E51: 0 | F51: 0 | G51: 0 | H51: 0 | I51: 0 | J51: 5060.175 | K51: 6569.35 | V51: 2.5584955 | W51: 1162.9525 | X51: 2477.389874 | Y51: 6117.732248 | Z51: 13.45901094 | AA51: 2.5584955
A52: p-Ethyltoluol | B52: 0 | C52: 0 | D52: 0 | E52: 0 | F52: 0 | G52: 0 | H52: 0 | I52: 0 | J52: 8877.5 | K52: 11096.875 | V52: 4.3943625 | W52: 1997.4375 | X52: 4243.335629 | Y52: 10484.10876 | Z52: 23.06503927 | AA52: 4.3943625
A53: 1,2-Diethylbenzol | B53: 0 | C53: 0 | D53: 0 | E53: 0 | F53: 0 | G53: 0 | H53: 0 | I53: 0 | J53: 8877.5 | K53: 11096.875 | V53: 4.3943625 | W53: 1997.4375 | X53: 4243.335629 | Y53: 10484.10876 | Z53: 23.06503927 | AA53: 4.3943625
A54: 1,3-Diethylbenzol | B54: 0 | C54: 0 | D54: 0 | E54: 0 | F54: 0 | G54: 0 | H54: 0 | I54: 0 | V54: 0 | AA54: 0
A55: 1,4-Diethylbenzol | B55: 0 | C55: 0 | D55: 0 | E55: 0 | F55: 0 | G55: 0 | H55: 0 | I55: 0 | V55: 0 | AA55: 0
A56: 1,2,3-Trimethylbenzol | B56: 33734.5 | C56: 337.345 | D56: 337.345 | E56: 8877.5 | F56: 33734.5 | G56: 337.345 | H56: 337.345 | I56: 8877.5 | V56: 19.0461436 | W56: 10821.6725 | X56: 14625.02471 | Y56: 40071.72192 | Z56: 88.15778822 | AA56: 19.0461436
A57: 1,2,4-Trimethylbenzol | B57: 177550 | C57: 585.915 | D57: 5859.15 | E57: 25744.75 | F57: 177550 | G57: 585.915 | H57: 5859.15 | I57: 25744.75 | V57: 92.2855186 | W57: 52434.95375 | X57: 77871.26756 | Y57: 208177.4889 | Z57: 457.9904755 | AA57: 92.2855186
A58: 1,3,5-Trimethylbenzol | B58: 55040.5 | C58: 142.04 | D58: 1864.275 | E58: 6480.575 | F58: 55040.5 | G58: 142.04 | H58: 1864.275 | I58: 6480.575 | V58: 27.9520516 | W58: 15881.8475 | X58: 24295.9013 | Y58: 64473.65009 | Z58: 141.8420302 | AA58: 27.9520516
A59: BTEX | B59: =IF(SUM(B42:B47)>0,SUM(B42:B47),"") -> 808038.9275 | C59: =IF(SUM(C42:C47)>0,SUM(C42:C47),"") -> 26827.805 | D59: 34089.6 | E59: 416621.075 | F59: 808038.9275 | G59: 26827.805 | H59: 34089.6 | I59: 416621.075 | J59: 22815.175 | K59: 28763.1 | V59: =SUM(V42:V47) -> 577.0012798 | W59: 262273.309 | X59: 328335.6485 | Y59: 918944.6061 | Z59: =SUM(Z42:Z47) -> 2059.180141 | AA59: 577.0012798
A60: AKW | B60: =IF(SUM(B42:B58)>0,SUM(B42:B58),"") -> 1074363.927 | C60: =IF(SUM(C42:C58)>0,SUM(C42:C58),"") -> 27893.105 | D60: 42150.37 | E60: 457723.9 | F60: 1074363.927 | G60: 27893.105 | H60: 42150.37 | I60: 457723.9 | J60: 68445.525 | K60: 86289.3 | V60: =SUM(V42:V58) -> 738.9794346 | W60: 335899.743 | X60: 423804.4167 | Y60: 1183508.576 | Z60: =SUM(Z42:Z58) -> 2866.348613 | AA60: 738.9794346
A61: Oxigenate
A62: MTBE (Methyl-tert-butylether) | B62: 292957.5 | C62: 8877.5 | D62: 11096.875 | E62: 135381.875 | F62: 292957.5 | G62: 8877.5 | H62: 11096.875 | I62: 135381.875 | J62: 8877.5 | K62: 11096.875 | V62: =SUMPRODUCT($B$25:$U$25,B62:U62)/1000/1000 -> 201.6524125 | W62: =IF(SUM($B62:$U62)>0,AVERAGE($B62:$U62),"") -> 91660.1875 | X62: =IF(SUM($B62:$U62)>0,_xlfn.STDEV.S(B62:U62),"") -> 117801.4572 | Y62: =IF(SUM($B62:$U62)>0,W62+X62*2,"") -> 327263.102 | Z62: =IF(Y62<>"",Y62*$V$25/1000/1000,"") -> 719.9788244 | AA62: =V62 -> 201.6524125
A63: ETBE (Ethyl-tert-butylether) | B63: 0 | C63: 0 | D63: 0 | E63: 0 | F63: 0 | G63: 0 | H63: 0 | I63: 0 | J63: 5060.175 | K63: 6569.35 | V63: 2.5584955 | W63: =IF(SUM($B63:$U63)>0,AVERAGE($B63:$U63),"") -> 1162.9525 | X63: =IF(SUM($B63:$U63)>0,_xlfn.STDEV.S(B63:U63),"") -> 2477.389874 | Y63: =IF(SUM($B63:$U63)>0,W63+X63*2,"") -> 6117.732248 | Z63: =IF(Y63<>"",Y63*$V$25/1000/1000,"") -> 13.45901094 | AA63: =V63 -> 2.5584955
A64: TBA (tert-Butylalkohol) | B64: 0 | C64: 0 | D64: 0 | E64: 0 | F64: 0 | G64: 0 | H64: 0 | I64: 0 | J64: 8877.5 | K64: 11096.875 | V64: 4.3943625 | W64: =IF(SUM($B64:$U64)>0,AVERAGE($B64:$U64),"") -> 1997.4375 | X64: =IF(SUM($B64:$U64)>0,_xlfn.STDEV.S(B64:U64),"") -> 4243.335629 | Y64: =IF(SUM($B64:$U64)>0,W64+X64*2,"") -> 10484.10876 | Z64: =IF(Y64<>"",Y64*$V$25/1000/1000,"") -> 23.06503927 | AA64: =V64 -> 4.3943625
A65: Oxigenate | B65: =IF(SUM(B62:B64)>0,SUM(B62:B64),"") -> 292957.5 | C65: =IF(SUM(C62:C64)>0,SUM(C62:C64),"") -> 8877.5 | D65: 11096.875 | E65: 135381.875 | F65: 292957.5 | G65: 8877.5 | H65: 11096.875 | I65: 135381.875 | J65: 22815.175 | K65: 28763.1 | V65: =SUM(V62:V64) -> 208.6052705 | W65: =IF(SUM($B65:$U65)>0,AVERAGE($B65:$U65),"") -> 94820.5775 | X65: =IF(SUM($B65:$U65)>0,_xlfn.STDEV.S(B65:U65),"") -> 115540.7711 | Y65: =IF(SUM($B65:$U65)>0,W65+X65*2,"") -> 325902.1196 | Z65: =SUM(Z62:Z64) -> 756.5028746 | AA65: =V65 -> 208.6052705
A66: =Stoffdatenbank!A35 -> n-Alkane
A67: =Stoffdatenbank!A36 -> n-Pentan | B67: 292957.5 | C67: 8877.5 | D67: 11096.875 | E67: 135381.875 | F67: 292957.5 | G67: 8877.5 | H67: 11096.875 | I67: 135381.875 | J67: 8877.5 | K67: 11096.875 | V67: =SUMPRODUCT($B$25:$U$25,B67:U67)/1000/1000 -> 201.6524125 | W67: =IF(SUM($B67:$U67)>0,AVERAGE($B67:$U67),"") -> 91660.1875 | X67: =IF(SUM($B67:$U67)>0,_xlfn.STDEV.S(B67:U67),"") -> 117801.4572 | Y67: =IF(SUM($B67:$U67)>0,W67+X67*2,"") -> 327263.102 | Z67: =IF(Y67<>"",Y67*$V$25/1000/1000,"") -> 719.9788244 | AA67: =V67 -> 201.6524125
A68: =Stoffdatenbank!A37 -> n-Hexan | B68: 0 | C68: 0 | D68: 0 | E68: 0 | F68: 0 | G68: 0 | H68: 0 | I68: 0 | J68: 5060.175 | K68: 6569.35 | V68: 2.5584955 | W68: 1162.9525 | X68: 2477.389874 | Y68: 6117.732248 | Z68: 13.45901094 | AA68: 2.5584955
A69: =Stoffdatenbank!A38 -> n-Heptan | B69: 0 | C69: 0 | D69: 0 | E69: 0 | F69: 0 | G69: 0 | H69: 0 | I69: 0 | J69: 8877.5 | K69: 11096.875 | V69: 4.3943625 | W69: 1997.4375 | X69: 4243.335629 | Y69: 10484.10876 | Z69: 23.06503927 | AA69: 4.3943625
A70: =Stoffdatenbank!A39 -> n-Octan | B70: 292957.5 | C70: 8877.5 | D70: 11096.875 | E70: 135381.875 | F70: 292957.5 | G70: 8877.5 | H70: 11096.875 | I70: 135381.875 | J70: 8877.5 | K70: 11096.875 | V70: 201.6524125 | W70: 91660.1875 | X70: 117801.4572 | Y70: 327263.102 | Z70: 719.9788244 | AA70: 201.6524125
A71: =Stoffdatenbank!A40 -> n-Nonan | B71: 0 | C71: 0 | D71: 0 | E71: 0 | F71: 0 | G71: 0 | H71: 0 | I71: 0 | J71: 5060.175 | K71: 6569.35 | V71: 2.5584955 | W71: 1162.9525 | X71: 2477.389874 | Y71: 6117.732248 | Z71: 13.45901094 | AA71: 2.5584955
A72: =Stoffdatenbank!A41 -> n-Decan | V72: 0 | AA72: 0
A73: =A66 -> n-Alkane | B73: =IF(SUM(B67:B72)>0,SUM(B67:B72),"") -> 585915 | C73: =IF(SUM(C67:C72)>0,SUM(C67:C72),"") -> 17755 | D73: 22193.75 | E73: 270763.75 | F73: 585915 | G73: 17755 | H73: 22193.75 | I73: 270763.75 | J73: 36752.85 | K73: 46429.325 | V73: =SUM(V67:V71) -> 412.8161785 | W73: 187643.7175 | X73: 232436.1808 | Y73: 652516.0791 | Z73: =SUM(Z67:Z72) -> 1489.94071 | AA73: 412.8161785
A75: Analysierte Schadstoffkonzentrationen im gesättigten Boden [mg/kg]
A76: Sondierung | B76: 1 | C76: 2 | D76: 3 | E76: 4 | F76: 5 | G76: 6 | H76: 7 | I76: 8 | J76: 9 | K76: 10 | L76: 11 | M76: 12 | N76: 13 | O76: 14 | P76: 15 | Q76: 16 | R76: 17 | S76: 18 | T76: 19 | U76: 20 | W76: Minimum [mg/kg OS] | X76: Maximum [mg/kg OS] | Y76: Median [mg/kg OS] | Z76: Mittlere Konz. (MW) [mg/kg OS] | AA76: Standard-abweich. [mg/kg OS] | AB76: MW + 2 s [mg/kg OS]
A78: Flächenrepräsentanz [m²]
A79: Leichtflüchtige chlorierte Kohlenwasserstoffe (LCKW) | Y79: =IFERROR(MEDIAN($B79:$U79),"") ->  | Z79: =IF(SUM($B79:$U79)>0,AVERAGE($B79:$U79),"") ->  | AA79: =IF(SUM($B79:$U79)>0,_xlfn.STDEV.S(B79:U79),"") ->  | AB79: =IF(SUM($B79:$U79)>0,Z79+AA79*2,"") -> 
A80: Tetrachlorethen | C80: 5060.175 | D80: 6569.35 | E80: 6569.35 | G80: 5060.175 | H80: 6569.35 | I80: 6569.35 | J80: 11096.875 | K80: 11096.875 | W80: =MIN(B80:U80) -> 5060.175 | X80: =MAX($B80:$U80) -> 11096.875 | Y80: =IFERROR(MEDIAN($B80:$U80),"") -> 6569.35 | Z80: =IF(SUM($B80:$U80)>0,AVERAGE($B80:$U80),"") -> 7323.9375 | AA80: =IF(SUM($B80:$U80)>0,_xlfn.STDEV.S(B80:U80),"") -> 2420.063909 | AB80: =IF(SUM($B80:$U80)>0,Z80+AA80*2,"") -> 12164.06532
A81: Trichlorethen | C81: 8877.5 | D81: 11096.875 | E81: 11096.875 | G81: 8877.5 | H81: 11096.875 | I81: 11096.875 | J81: 5326.5 | K81: 5326.5 | W81: 5326.5 | X81: 11096.875 | Y81: 9987.1875 | Z81: =IF(SUM($B81:$U81)>0,AVERAGE($B81:$U81),"") -> 9099.4375 | AA81: 2522.120806 | AB81: =IF(SUM($B81:$U81)>0,Z81+AA81*2,"") -> 14143.67911
A82: cis-1,2-Dichlorethen | B82: 186.4275 | C82: 8877.5 | D82: 11096.875 | E82: 11096.875 | F82: 186.4275 | G82: 8877.5 | H82: 11096.875 | I82: 11096.875 | J82: 6569.35 | K82: 6569.35 | W82: 186.4275 | X82: 11096.875 | Y82: 8877.5 | Z82: 7565.4055 | AA82: 4271.496967 | AB82: 16108.39943
A83: trans-1,2-Dichlorethen | B83: 124285 | C83: 3994.875 | D83: 5326.5 | E83: 5326.5 | F83: 124285 | G83: 3994.875 | H83: 5326.5 | I83: 5326.5 | J83: 11096.875 | K83: 11096.875 | W83: 3994.875 | X83: 124285 | Y83: 5326.5 | Z83: 30005.95 | AA83: 49756.78382 | AB83: 129519.5176
A84: 1,1-Dichlorethen | B84: 97652.5 | C84: 5060.175 | D84: 6569.35 | E84: 6569.35 | F84: 97652.5 | G84: 5060.175 | H84: 6569.35 | I84: 6569.35 | J84: 11096.875 | K84: 11096.875 | W84: 5060.175 | X84: 97652.5 | Y84: 6569.35 | Z84: 25389.65 | AA84: 38145.62111 | AB84: 101680.8922
A85: Vinylchlorid | B85: 292957.5 | C85: 8877.5 | D85: 11096.875 | E85: 11096.875 | F85: 292957.5 | G85: 8877.5 | H85: 11096.875 | I85: 11096.875 | J85: 5326.5 | K85: 5326.5 | W85: 5326.5 | X85: 292957.5 | Y85: 11096.875 | Z85: 65871.05 | AA85: 119705.7351 | AB85: 305282.5201
A86: Tetrachlormethan | B86: 292957.5 | C86: 8877.5 | D86: 11096.875 | E86: 6569.35 | F86: 292957.5 | G86: 8877.5 | H86: 11096.875 | I86: 6569.35 | J86: 6569.35 | K86: 6569.35 | W86: 6569.35 | X86: 292957.5 | Y86: 8877.5 | Z86: 65214.115 | AA86: 120044.3957 | AB86: 305302.9063
A87: Trichlormethan | B87: 0 | C87: 0 | D87: 0 | E87: 11096.875 | F87: 0 | G87: 0 | H87: 0 | I87: 11096.875 | J87: 11096.875 | K87: 11096.875 | W87: 0 | X87: 11096.875 | Y87: 0 | Z87: 4438.75 | AA87: 5730.401609 | AB87: 15899.55322
A88: Dichlormethan | B88: 0 | C88: 0 | D88: 0 | E88: 11096.875 | F88: 0 | G88: 0 | H88: 0 | I88: 11096.875 | W88: 0 | X88: 11096.875 | Y88: 0 | Z88: 2774.21875 | AA88: 5136.85496 | AB88: 13047.92867
A89: 1,1,1-Trichlorethan | B89: 0 | C89: 0 | D89: 0 | E89: 5326.5 | F89: 0 | G89: 0 | H89: 0 | I89: 5326.5 | W89: 0 | X89: 5326.5 | Y89: 0 | Z89: 1331.625 | AA89: 2465.690381 | AB89: 6263.005761
A90: 1,1,2-Trichlorethan | B90: 0 | C90: 0 | D90: 0 | E90: 6569.35 | F90: 0 | G90: 0 | H90: 0 | I90: 6569.35 | W90: 0 | X90: 6569.35 | Y90: 0 | Z90: 1642.3375 | AA90: 3041.018136 | AB90: 7724.373772
A91: 1,1-Dichlorethan | B91: 0 | C91: 0 | D91: 0 | E91: 11096.875 | F91: 0 | G91: 0 | H91: 0 | I91: 11096.875 | W91: 0 | X91: 11096.875 | Y91: 0 | Z91: 2774.21875 | AA91: 5136.85496 | AB91: 13047.92867
A92: 1,2-Dichlorethan | W92: 0 | X92: 0 | AA92: =IF(SUM($B92:$U92)>0,_xlfn.STDEV.S(B92:U92),"") -> 
A93: LCKW | B93: =IF(SUM(B80:B92)>0,SUM(B80:B92),"") -> 808038.9275 | C93: =IF(SUM(C80:C92)>0,SUM(C80:C92),"") -> 49625.225 | D93: 62852.7 | E93: 103511.65 | F93: 808038.9275 | G93: 49625.225 | H93: 62852.7 | I93: 103511.65 | J93: 68179.2 | K93: 68179.2 | W93: 49625.225 | X93: 808038.9275 | Y93: 68179.2 | Z93: 218441.5405 | AA93: =IF(SUM($B93:$U93)>0,_xlfn.STDEV.S(B93:U93),"") -> 311312.4779 | AB93: 841066.4964
A94: (Mono)aromatische Kohlenwasserstoffe (AKW) | Z94: =IF(SUM($B94:$U94)>0,AVERAGE($B94:$U94),"") ->  | AA94: =IF(SUM($B94:$U94)>0,_xlfn.STDEV.S(B94:U94),"") -> 
A95: Benzol | B95: 292957.5 | C95: 8877.5 | D95: 11096.875 | E95: 11096.875 | F95: 292957.5 | G95: 8877.5 | H95: 11096.875 | I95: 11096.875 | J95: 5326.5 | K95: 5326.5 | W95: =MIN(B95:U95) -> 5326.5 | X95: =MAX($B95:$U95) -> 292957.5 | Y95: 11096.875 | Z95: =IF(SUM($B95:$U95)>0,AVERAGE($B95:$U95),"") -> 65871.05 | AA95: =IF(SUM($B95:$U95)>0,_xlfn.STDEV.S(B95:U95),"") -> 119705.7351 | AB95: =IF(SUM($B95:$U95)>0,Z95+AA95*2,"") -> 305282.5201
A96: Toluol | B96: 292957.5 | C96: 8877.5 | D96: 11096.875 | E96: 11096.875 | F96: 292957.5 | G96: 8877.5 | H96: 11096.875 | I96: 11096.875 | J96: 5326.5 | K96: 5326.5 | W96: 5326.5 | X96: 292957.5 | Y96: 11096.875 | Z96: =IF(SUM($B96:$U96)>0,AVERAGE($B96:$U96),"") -> 65871.05 | AA96: 119705.7351 | AB96: =IF(SUM($B96:$U96)>0,Z96+AA96*2,"") -> 305282.5201
A97: Ethylbenzol | C97: 8877.5 | D97: 11096.875 | E97: 11096.875 | G97: 8877.5 | H97: 11096.875 | I97: 11096.875 | J97: 5326.5 | K97: 5326.5 | W97: 5326.5 | X97: 11096.875 | Y97: 9987.1875 | Z97: 9099.4375 | AA97: 2522.120806 | AB97: 14143.67911
A98: o-Xylol | B98: 186.4275 | C98: 8877.5 | D98: 11096.875 | E98: 11096.875 | F98: 186.4275 | G98: 8877.5 | H98: 11096.875 | I98: 11096.875 | J98: 6569.35 | K98: 6569.35 | W98: 186.4275 | X98: 11096.875 | Y98: 8877.5 | Z98: 7565.4055 | AA98: 4271.496967 | AB98: 16108.39943
A99: m-Xylol | B99: 124285 | C99: 3994.875 | D99: 5326.5 | E99: 5326.5 | F99: 124285 | G99: 3994.875 | H99: 5326.5 | I99: 5326.5 | J99: 11096.875 | K99: 11096.875 | W99: 3994.875 | X99: 124285 | Y99: 5326.5 | Z99: 30005.95 | AA99: 49756.78382 | AB99: 129519.5176
A100: p-Xylol | B100: 97652.5 | C100: 5060.175 | D100: 6569.35 | E100: 6569.35 | F100: 97652.5 | G100: 5060.175 | H100: 6569.35 | I100: 6569.35 | J100: 11096.875 | K100: 11096.875 | W100: 5060.175 | X100: 97652.5 | Y100: 6569.35 | Z100: 25389.65 | AA100: 38145.62111 | AB100: 101680.8922
A101: n-Propylbenzol | B101: 292957.5 | C101: 8877.5 | D101: 11096.875 | E101: 11096.875 | F101: 292957.5 | G101: 8877.5 | H101: 11096.875 | I101: 11096.875 | J101: 5326.5 | K101: 5326.5 | W101: 5326.5 | X101: 292957.5 | Y101: 11096.875 | Z101: 65871.05 | AA101: 119705.7351 | AB101: 305282.5201
A102: Isopropylbenzol | B102: 292957.5 | C102: 8877.5 | D102: 11096.875 | E102: 6569.35 | F102: 292957.5 | G102: 8877.5 | H102: 11096.875 | I102: 6569.35 | J102: 6569.35 | K102: 6569.35 | W102: 6569.35 | X102: 292957.5 | Y102: 8877.5 | Z102: 65214.115 | AA102: 120044.3957 | AB102: 305302.9063
A103: o-Ethyltoluol | B103: 0 | C103: 0 | D103: 0 | E103: 11096.875 | F103: 0 | G103: 0 | H103: 0 | I103: 11096.875 | J103: 11096.875 | K103: 11096.875 | W103: 0 | X103: 11096.875 | Y103: 0 | Z103: 4438.75 | AA103: 5730.401609 | AB103: 15899.55322
A104: m-Ethyltoluol | B104: 0 | C104: 0 | D104: 0 | E104: 11096.875 | F104: 0 | G104: 0 | H104: 0 | I104: 11096.875 | W104: 0 | X104: 11096.875 | Y104: 0 | Z104: 2774.21875 | AA104: 5136.85496 | AB104: 13047.92867
A105: p-Ethyltoluol | B105: 0 | C105: 0 | D105: 0 | E105: 5326.5 | F105: 0 | G105: 0 | H105: 0 | I105: 5326.5 | W105: 0 | X105: 5326.5 | Y105: 0 | Z105: 1331.625 | AA105: 2465.690381 | AB105: 6263.005761
A106: 1,2-Diethylbenzol | B106: 186.4275 | C106: 8877.5 | D106: 11096.875 | E106: 11096.875 | F106: 186.4275 | G106: 8877.5 | H106: 11096.875 | I106: 11096.875 | J106: 6569.35 | K106: 6569.35 | W106: 186.4275 | X106: 11096.875 | Y106: 8877.5 | Z106: 7565.4055 | AA106: =IF(SUM($B106:$U106)>0,_xlfn.STDEV.S(B106:U106),"") -> 4271.496967 | AB106: 16108.39943
A107: 1,3-Diethylbenzol | B107: 124285 | C107: 3994.875 | D107: 5326.5 | E107: 5326.5 | F107: 124285 | G107: 3994.875 | H107: 5326.5 | I107: 5326.5 | J107: 11096.875 | K107: 11096.875 | W107: 3994.875 | X107: 124285 | Y107: 5326.5 | Z107: 30005.95 | AA107: 49756.78382 | AB107: 129519.5176
A108: 1,4-Diethylbenzol | B108: 97652.5 | C108: 5060.175 | D108: 6569.35 | E108: 6569.35 | F108: 97652.5 | G108: 5060.175 | H108: 6569.35 | I108: 6569.35 | J108: 11096.875 | K108: 11096.875 | W108: 5060.175 | X108: 97652.5 | Y108: 6569.35 | Z108: 25389.65 | AA108: 38145.62111 | AB108: 101680.8922
A109: 1,2,3-Trimethylbenzol | B109: 292957.5 | C109: 8877.5 | D109: 11096.875 | E109: 11096.875 | F109: 292957.5 | G109: 8877.5 | H109: 11096.875 | I109: 11096.875 | J109: 5326.5 | K109: 5326.5 | W109: 5326.5 | X109: 292957.5 | Y109: 11096.875 | Z109: 65871.05 | AA109: 119705.7351 | AB109: 305282.5201
A110: 1,2,4-Trimethylbenzol | B110: 292957.5 | C110: 8877.5 | D110: 11096.875 | E110: 6569.35 | F110: 292957.5 | G110: 8877.5 | H110: 11096.875 | I110: 6569.35 | J110: 6569.35 | K110: 6569.35 | W110: 6569.35 | X110: 292957.5 | Y110: 8877.5 | Z110: 65214.115 | AA110: 120044.3957 | AB110: 305302.9063
A111: 1,3,5-Trimethylbenzol | W111: 0 | X111: 0 | AA111: =IF(SUM($B111:$U111)>0,_xlfn.STDEV.S(B111:U111),"") -> 
A112: BTEX | B112: =IF(SUM(B95:B100)>0,SUM(B95:B100),"") -> 808038.9275 | C112: =IF(SUM(C95:C100)>0,SUM(C95:C100),"") -> 44565.05 | D112: 56283.35 | E112: 56283.35 | F112: 808038.9275 | G112: 44565.05 | H112: 56283.35 | I112: 56283.35 | J112: 44742.6 | K112: 44742.6 | W112: 44565.05 | X112: 808038.9275 | Y112: 56283.35 | Z112: 201982.6555 | AA112: =IF(SUM($B112:$U112)>0,_xlfn.STDEV.S(B112:U112),"") -> 319466.7493 | AB112: 840916.1541
A113: AKW | B113: =IF(SUM(B95:B111)>0,SUM(B95:B111),"") -> 2201992.855 | C113: =IF(SUM(C95:C111)>0,SUM(C95:C111),"") -> 98007.6 | D113: 123663.575 | E113: 142128.775 | F113: 2201992.855 | G113: 98007.6 | H113: 123663.575 | I113: 142128.775 | J113: 108394.275 | K113: 108394.275 | W113: 98007.6 | X113: 2201992.855 | Y113: 123663.575 | Z113: 534837.416 | AA113: =IF(SUM($B113:$U113)>0,_xlfn.STDEV.S(B113:U113),"") -> 878807.943 | AB113: 2292453.302
A114: =A66 -> n-Alkane | AA114: =IF(SUM($B114:$U114)>0,_xlfn.STDEV.S(B114:U114),"") -> 
A115: =A67 -> n-Pentan | B115: 0 | C115: 0 | D115: 0 | E115: 11096.875 | F115: 0 | G115: 0 | H115: 0 | I115: 11096.875 | J115: 11096.875 | K115: 11096.875 | W115: =MIN(B115:U115) -> 0 | X115: =MAX($B115:$U115) -> 11096.875 | Y115: 0 | Z115: 4438.75 | AA115: 5730.401609 | AB115: 15899.55322
A116: =A68 -> n-Hexan | B116: 0 | C116: 0 | D116: 0 | E116: 11096.875 | F116: 0 | G116: 0 | H116: 0 | I116: 11096.875 | W116: 0 | X116: 11096.875 | Y116: 0 | Z116: 2774.21875 | AA116: 5136.85496 | AB116: 13047.92867
A117: n-Heptan | B117: 0 | C117: 0 | D117: 0 | E117: 5326.5 | F117: 0 | G117: 0 | H117: 0 | I117: 5326.5 | W117: 0 | X117: 5326.5 | Y117: 0 | Z117: 1331.625 | AA117: 2465.690381 | AB117: 6263.005761
A118: n-Octan | B118: 186.4275 | C118: 8877.5 | D118: 11096.875 | E118: 11096.875 | F118: 186.4275 | G118: 8877.5 | H118: 11096.875 | I118: 11096.875 | J118: 6569.35 | K118: 6569.35 | W118: 186.4275 | X118: 11096.875 | Y118: 8877.5 | Z118: 7565.4055 | AA118: 4271.496967 | AB118: 16108.39943
A119: n-Nonan | B119: 124285 | C119: 3994.875 | D119: 5326.5 | E119: 5326.5 | F119: 124285 | G119: 3994.875 | H119: 5326.5 | I119: 5326.5 | J119: 11096.875 | K119: 11096.875 | W119: 3994.875 | X119: 124285 | Y119: 5326.5 | Z119: 30005.95 | AA119: 49756.78382 | AB119: 129519.5176
A120: n-Decan | W120: 0 | X120: 0 | AA120: =IF(SUM($B120:$U120)>0,_xlfn.STDEV.S(B120:U120),"") -> 
A121: =A114 -> n-Alkane | B121: =IF(SUM(B115:B120)>0,SUM(B115:B120),"") -> 124471.4275 | C121: =IF(SUM(C115:C120)>0,SUM(C115:C120),"") -> 12872.375 | D121: 16423.375 | E121: 43943.625 | F121: 124471.4275 | G121: 12872.375 | H121: 16423.375 | I121: 43943.625 | J121: 28763.1 | K121: 28763.1 | W121: 12872.375 | X121: 124471.4275 | Y121: 28763.1 | Z121: 45294.7805 | AA121: 43279.02737 | AB121: 131852.8352
A122: Oxigenate
A123: MTBE (Methyl-tert-butylether) | B123: 0 | C123: 0 | D123: 0 | E123: 5326.5 | F123: 0 | G123: 0 | H123: 0 | I123: 5326.5 | W123: =MIN(B123:U123) -> 0 | X123: =MAX($B123:$U123) -> 5326.5 | Y123: 0 | Z123: 1331.625 | AA123: 2465.690381 | AB123: 6263.005761
A124: ETBE (Ethyl-tert-butylether) | B124: 186.4275 | C124: 8877.5 | D124: 11096.875 | E124: 11096.875 | F124: 186.4275 | G124: 8877.5 | H124: 11096.875 | I124: 11096.875 | J124: 6569.35 | K124: 6569.35 | W124: =MIN(B124:U124) -> 186.4275 | X124: =MAX($B124:$U124) -> 11096.875 | Y124: 8877.5 | Z124: 7565.4055 | AA124: 4271.496967 | AB124: 16108.39943
A125: TBA (tert-Butylalkohol) | B125: 124285 | C125: 3994.875 | D125: 5326.5 | E125: 5326.5 | F125: 124285 | G125: 3994.875 | H125: 5326.5 | I125: 5326.5 | J125: 11096.875 | K125: 11096.875 | W125: =MIN(B125:U125) -> 3994.875 | X125: =MAX($B125:$U125) -> 124285 | Y125: 5326.5 | Z125: 30005.95 | AA125: 49756.78382 | AB125: 129519.5176
A126: Oxigenate | B126: =IF(SUM(B123:B125)>0,SUM(B123:B125),"") -> 124471.4275 | C126: =IF(SUM(C123:C125)>0,SUM(C123:C125),"") -> 12872.375 | D126: 16423.375 | E126: 21749.875 | F126: 124471.4275 | G126: 12872.375 | H126: 16423.375 | I126: 21749.875 | J126: 17666.225 | K126: 17666.225 | W126: =MIN(B126:U126) -> 12872.375 | X126: =MAX($B126:$U126) -> 124471.4275 | Y126: 17666.225 | Z126: =IF(SUM($B126:$U126)>0,AVERAGE($B126:$U126),"") -> 38636.6555 | AA126: 45337.64287 | AB126: 129311.9412

Sheet z (hidden)
A1: Schadstoffkonzentrationen im Grundwasser (gelöst) [µg/L]
I2: Korrekturfaktor | K2: 10
A5: Messstelle | B5: 1 | C5: 2 | D5: 3 | E5: 4 | F5: 5 | G5: 6 | H5: 7 | I5: 8 | J5: 9 | K5: 10 | L5: 11 | M5: 12 | N5: 13 | O5: 14 | P5: 15 | Q5: 16 | R5: 17 | S5: 18 | T5: 19 | U5: 20 | V5: Summe | X5: Inventar (MW-bezogen) [kg] | Y5: Mittlere Konz. (MW) [µg/L] | Z5: Inventar (flächenbezogen) (gelöst)[kg] | AA5: Inventar (flächenbezogen) (sorbiert)[kg] | AB5: Mittl. Konz. (GW) [µmol/L]
A8: Leichtflüchtige chlorierte Kohlenwasserstoffe (LCKW) | V8: kg
A9: Tetrachlorethen | V9: =IF(SUM(B9:U9)>0,(Z9+AA9)*$K$2,"") ->  | X9: =V9 ->  | Y9: =IF(SUM($B9:$U9)>0,AVERAGE($B9:$U9),"") ->  | Z9: =IF(SUM(B9:U9)>0,Schadstoffbelastung!$K$5*Schadstoffbelastung!$K$8*Bodencharakterisierung!$E$7*Y9/1000/1000,"") ->  | AA9: =IF(SUM(B9:U9)>0,Schadstoffbelastung!$K$5*Schadstoffbelastung!$K$8*Bodencharakterisierung!$E$10*Y9*Stoffdatenbank!$D4*Bodencharakterisierung!$E$8/1000/1000,"") ->  | AB9: =IF(Y9<>"",Y9/Stoffdatenbank!L4,"") -> 
A10: Trichlorethen | B10: 136067 | V10: =IF(SUM(B10:U10)>0,(Z10+AA10)*$K$2,"") -> 110824.2448 | X10: =V10 -> 110824.2448 | Y10: =IF(SUM($B10:$U10)>0,AVERAGE($B10:$U10),"") -> 136067 | Z10: =IF(SUM(B10:U10)>0,Schadstoffbelastung!$K$5*Schadstoffbelastung!$K$8*Bodencharakterisierung!$E$7*Y10/1000/1000,"") -> 1590.432736 | AA10: =IF(SUM(B10:U10)>0,Schadstoffbelastung!$K$5*Schadstoffbelastung!$K$8*Bodencharakterisierung!$E$10*Y10*Stoffdatenbank!$D5*Bodencharakterisierung!$E$8/1000/1000,"") -> 9491.991739 | AB10: =IF(Y10<>"",Y10/Stoffdatenbank!L5,"") -> 1038.679389
A11: cis-1,2-Dichlorethen | B11: 136067 | V11: 52411.9879 | X11: 52411.9879 | Y11: =IF(SUM($B11:$U11)>0,AVERAGE($B11:$U11),"") -> 136067 | Z11: =IF(SUM(B11:U11)>0,Schadstoffbelastung!$K$5*Schadstoffbelastung!$K$8*Bodencharakterisierung!$E$7*Y11/1000/1000,"") -> 1590.432736 | AA11: =IF(SUM(B11:U11)>0,Schadstoffbelastung!$K$5*Schadstoffbelastung!$K$8*Bodencharakterisierung!$E$10*Y11*Stoffdatenbank!$D6*Bodencharakterisierung!$E$8/1000/1000,"") -> 3650.766054 | AB11: =IF(Y11<>"",Y11/Stoffdatenbank!L6,"") -> 1402.752577
A12: trans-1,2-Dichlorethen | B12: 136067 | V12: 59713.52 | X12: 59713.52 | Y12: 136067 | Z12: =IF(SUM(B12:U12)>0,Schadstoffbelastung!$K$5*Schadstoffbelastung!$K$8*Bodencharakterisierung!$E$7*Y12/1000/1000,"") -> 1590.432736 | AA12: =IF(SUM(B12:U12)>0,Schadstoffbelastung!$K$5*Schadstoffbelastung!$K$8*Bodencharakterisierung!$E$10*Y12*Stoffdatenbank!$D7*Bodencharakterisierung!$E$8/1000/1000,"") -> 4380.919264 | AB12: =IF(Y12<>"",Y12/Stoffdatenbank!L7,"") -> 1402.752577
A13: 1,1-Dichlorethen | B13: 136067 | V13: 67387.43025 | X13: 67387.43025 | Y13: 136067 | Z13: =IF(SUM(B13:U13)>0,Schadstoffbelastung!$K$5*Schadstoffbelastung!$K$8*Bodencharakterisierung!$E$7*Y13/1000/1000,"") -> 1590.432736 | AA13: =IF(SUM(B13:U13)>0,Schadstoffbelastung!$K$5*Schadstoffbelastung!$K$8*Bodencharakterisierung!$E$10*Y13*Stoffdatenbank!$D8*Bodencharakterisierung!$E$8/1000/1000,"") -> 5148.310289 | AB13: =IF(Y13<>"",Y13/Stoffdatenbank!L8,"") -> 1402.752577
A14: Vinylchlorid | B14: 136067 | V14: 59713.52 | X14: 59713.52 | Y14: 136067 | Z14: =IF(SUM(B14:U14)>0,Schadstoffbelastung!$K$5*Schadstoffbelastung!$K$8*Bodencharakterisierung!$E$7*Y14/1000/1000,"") -> 1590.432736 | AA14: =IF(SUM(B14:U14)>0,Schadstoffbelastung!$K$5*Schadstoffbelastung!$K$8*Bodencharakterisierung!$E$10*Y14*Stoffdatenbank!$D9*Bodencharakterisierung!$E$8/1000/1000,"") -> 4380.919264 | AB14: =IF(Y14<>"",Y14/Stoffdatenbank!L9,"") -> 2159.793651
A15: Tetrachlormethan | B15: 136067 | V15: 224436.0843 | X15: 224436.0843 | Y15: 136067 | Z15: =IF(SUM(B15:U15)>0,Schadstoffbelastung!$K$5*Schadstoffbelastung!$K$8*Bodencharakterisierung!$E$7*Y15/1000/1000,"") -> 1590.432736 | AA15: =IF(SUM(B15:U15)>0,Schadstoffbelastung!$K$5*Schadstoffbelastung!$K$8*Bodencharakterisierung!$E$10*Y15*Stoffdatenbank!$D10*Bodencharakterisierung!$E$8/1000/1000,"") -> 20853.1757 | AB15: =IF(Y15<>"",Y15/Stoffdatenbank!L10,"") -> 883.5519481
A16: Trichlormethan | B16: 136067 | V16: 53295.47328 | X16: 53295.47328 | Y16: 136067 | Z16: =IF(SUM(B16:U16)>0,Schadstoffbelastung!$K$5*Schadstoffbelastung!$K$8*Bodencharakterisierung!$E$7*Y16/1000/1000,"") -> 1590.432736 | AA16: =IF(SUM(B16:U16)>0,Schadstoffbelastung!$K$5*Schadstoffbelastung!$K$8*Bodencharakterisierung!$E$10*Y16*Stoffdatenbank!$D11*Bodencharakterisierung!$E$8/1000/1000,"") -> 3739.114592 | AB16: =IF(Y16<>"",Y16/Stoffdatenbank!L11,"") -> 1143.420168
A17: Dichlormethan | B17: 136067 | V17: 24775.68887 | X17: 24775.68887 | Y17: 136067 | Z17: =IF(SUM(B17:U17)>0,Schadstoffbelastung!$K$5*Schadstoffbelastung!$K$8*Bodencharakterisierung!$E$7*Y17/1000/1000,"") -> 1590.432736 | AA17: =IF(SUM(B17:U17)>0,Schadstoffbelastung!$K$5*Schadstoffbelastung!$K$8*Bodencharakterisierung!$E$10*Y17*Stoffdatenbank!$D12*Bodencharakterisierung!$E$8/1000/1000,"") -> 887.136151 | AB17: =IF(Y17<>"",Y17/Stoffdatenbank!L12,"") -> 1600.788235
A18: 1,1,1-Trichlorethan | B18: 100 | V18: 88.960872 | X18: 88.960872 | Y18: 100 | Z18: =IF(SUM(B18:U18)>0,Schadstoffbelastung!$K$5*Schadstoffbelastung!$K$8*Bodencharakterisierung!$E$7*Y18/1000/1000,"") -> 1.16886 | AA18: =IF(SUM(B18:U18)>0,Schadstoffbelastung!$K$5*Schadstoffbelastung!$K$8*Bodencharakterisierung!$E$10*Y18*Stoffdatenbank!$D13*Bodencharakterisierung!$E$8/1000/1000,"") -> 7.7272272 | AB18: =IF(Y18<>"",Y18/Stoffdatenbank!L13,"") -> 0.7496027106
A19: 1,1,2-Trichlorethan | Z19: =IF(SUM(B19:U19)>0,Schadstoffbelastung!$K$5*Schadstoffbelastung!$K$8*Bodencharakterisierung!$E$7*Y19/1000/1000,"") ->  | AA19: =IF(SUM(B19:U19)>0,Schadstoffbelastung!$K$5*Schadstoffbelastung!$K$8*Bodencharakterisierung!$E$10*Y19*Stoffdatenbank!$D14*Bodencharakterisierung!$E$8/1000/1000,"") ->  | AB19: =IF(Y19<>"",Y19/Stoffdatenbank!L14,"") -> 
A20: 1,1-Dichlorethan | Z20: =IF(SUM(B20:U20)>0,Schadstoffbelastung!$K$5*Schadstoffbelastung!$K$8*Bodencharakterisierung!$E$7*Y20/1000/1000,"") ->  | AA20: =IF(SUM(B20:U20)>0,Schadstoffbelastung!$K$5*Schadstoffbelastung!$K$8*Bodencharakterisierung!$E$10*Y20*Stoffdatenbank!$D15*Bodencharakterisierung!$E$8/1000/1000,"") ->  | AB20: =IF(Y20<>"",Y20/Stoffdatenbank!L15,"") -> 
A21: 1,2-Dichlorethan | Z21: =IF(SUM(B21:U21)>0,Schadstoffbelastung!$K$5*Schadstoffbelastung!$K$8*Bodencharakterisierung!$E$7*Y21/1000/1000,"") ->  | AA21: =IF(SUM(B21:U21)>0,Schadstoffbelastung!$K$5*Schadstoffbelastung!$K$8*Bodencharakterisierung!$E$10*Y21*Stoffdatenbank!$D16*Bodencharakterisierung!$E$8/1000/1000,"") ->  | AB21: =IF(Y21<>"",Y21/Stoffdatenbank!L16,"") -> 
A22: LCKW | B22: =IF(SUM(B9:B21)>0,SUM(B9:B21),"") -> 1088636 | C22: =IF(SUM(C9:C21)>0,SUM(C9:C21),"") ->  | V22: =SUM(V9:V21) -> 652646.9103 | X22: 652646.9103 | Y22: 1088636 | AB22: =SUM(AB9:AB21) -> 11035.24073
A23: (Mono)aromatische Kohlenwasserstoffe (AKW) | Z23: =IF(SUM(B23:U23)>0,Schadstoffbelastung!$K$5*Schadstoffbelastung!$K$8*Bodencharakterisierung!$E$7*Y23/1000/1000,"") -> 
A24: Benzol | V24: =IF(SUM(B24:U24)>0,(Z24+AA24)*$K$2,"") ->  | X24: =V24 ->  | Y24: =IF(SUM($B24:$U24)>0,AVERAGE($B24:$U24),"") ->  | Z24: =IF(SUM(B24:U24)>0,Schadstoffbelastung!$K$5*Schadstoffbelastung!$K$8*Bodencharakterisierung!$E$7*Y24/1000/1000,"") ->  | AA24: =IF(SUM(B24:U24)>0,Schadstoffbelastung!$K$5*Schadstoffbelastung!$K$8*Bodencharakterisierung!$E$10*Y24*Stoffdatenbank!$D18*Bodencharakterisierung!$E$8/1000/1000,"") ->  | AB24: =IF(Y24<>"",Y24/Stoffdatenbank!L18,"") -> 
A25: Toluol | B25: 136067 | V25: =IF(SUM(B25:U25)>0,(Z25+AA25)*$K$2,"") -> 234950.2906 | X25: 234950.2906 | Y25: =IF(SUM($B25:$U25)>0,AVERAGE($B25:$U25),"") -> 136067 | Z25: =IF(SUM(B25:U25)>0,Schadstoffbelastung!$K$5*Schadstoffbelastung!$K$8*Bodencharakterisierung!$E$7*Y25/1000/1000,"") -> 1590.432736 | AA25: =IF(SUM(B25:U25)>0,Schadstoffbelastung!$K$5*Schadstoffbelastung!$K$8*Bodencharakterisierung!$E$10*Y25*Stoffdatenbank!$D19*Bodencharakterisierung!$E$8/1000/1000,"") -> 21904.59632 | AB25: =IF(Y25<>"",Y25/Stoffdatenbank!L19,"") -> 1478.98913
A26: Ethylbenzol | B26: 136067 | V26: 819072.8591 | X26: 819072.8591 | Y26: =IF(SUM($B26:$U26)>0,AVERAGE($B26:$U26),"") -> 136067 | Z26: =IF(SUM(B26:U26)>0,Schadstoffbelastung!$K$5*Schadstoffbelastung!$K$8*Bodencharakterisierung!$E$7*Y26/1000/1000,"") -> 1590.432736 | AA26: =IF(SUM(B26:U26)>0,Schadstoffbelastung!$K$5*Schadstoffbelastung!$K$8*Bodencharakterisierung!$E$10*Y26*Stoffdatenbank!$D20*Bodencharakterisierung!$E$8/1000/1000,"") -> 80316.85318 | AB26: =IF(Y26<>"",Y26/Stoffdatenbank!L20,"") -> 1283.650943
A27: o-Xylol | B27: 136067 | C27: 136067 | D27: 136067 | E27: 136067 | F27: 136067 | G27: 136067 | H27: 136067 | I27: 136067 | J27: 136067 | K27: 136067 | V27: 621931.4923 | X27: 621931.4923 | Y27: 136067 | Z27: =IF(SUM(B27:U27)>0,Schadstoffbelastung!$K$5*Schadstoffbelastung!$K$8*Bodencharakterisierung!$E$7*Y27/1000/1000,"") -> 1590.432736 | AA27: =IF(SUM(B27:U27)>0,Schadstoffbelastung!$K$5*Schadstoffbelastung!$K$8*Bodencharakterisierung!$E$10*Y27*Stoffdatenbank!$D21*Bodencharakterisierung!$E$8/1000/1000,"") -> 60602.71649 | AB27: =IF(Y27<>"",Y27/Stoffdatenbank!L21,"") -> 1283.650943
A28: m-Xylol | B28: 136067 | C28: 136067 | D28: 136067 | E28: 136067 | F28: 136067 | G28: 136067 | H28: 136067 | I28: 136067 | J28: 136067 | K28: 136067 | V28: 731454.4739 | X28: 731454.4739 | Y28: 136067 | Z28: =IF(SUM(B28:U28)>0,Schadstoffbelastung!$K$5*Schadstoffbelastung!$K$8*Bodencharakterisierung!$E$7*Y28/1000/1000,"") -> 1590.432736 | AA28: =IF(SUM(B28:U28)>0,Schadstoffbelastung!$K$5*Schadstoffbelastung!$K$8*Bodencharakterisierung!$E$10*Y28*Stoffdatenbank!$D22*Bodencharakterisierung!$E$8/1000/1000,"") -> 71555.01465 | AB28: =IF(Y28<>"",Y28/Stoffdatenbank!L22,"") -> 1283.650943
A29: p-Xylol | B29: 136067 | C29: 136067 | D29: 136067 | E29: 136067 | F29: 136067 | G29: 136067 | H29: 136067 | I29: 136067 | J29: 136067 | K29: 136067 | V29: 658439.1528 | X29: 658439.1528 | Y29: 136067 | Z29: =IF(SUM(B29:U29)>0,Schadstoffbelastung!$K$5*Schadstoffbelastung!$K$8*Bodencharakterisierung!$E$7*Y29/1000/1000,"") -> 1590.432736 | AA29: =IF(SUM(B29:U29)>0,Schadstoffbelastung!$K$5*Schadstoffbelastung!$K$8*Bodencharakterisierung!$E$10*Y29*Stoffdatenbank!$D23*Bodencharakterisierung!$E$8/1000/1000,"") -> 64253.48254 | AB29: =IF(Y29<>"",Y29/Stoffdatenbank!L23,"") -> 1283.650943
A30: n-Propylbenzol | C30: 136067 | D30: 136067 | E30: 136067 | F30: 136067 | G30: 136067 | H30: 136067 | I30: 136067 | J30: 136067 | K30: 136067 | V30: 731454.4739 | X30: 731454.4739 | Y30: 136067 | Z30: =IF(SUM(B30:U30)>0,Schadstoffbelastung!$K$5*Schadstoffbelastung!$K$8*Bodencharakterisierung!$E$7*Y30/1000/1000,"") -> 1590.432736 | AA30: =IF(SUM(B30:U30)>0,Schadstoffbelastung!$K$5*Schadstoffbelastung!$K$8*Bodencharakterisierung!$E$10*Y30*Stoffdatenbank!$D24*Bodencharakterisierung!$E$8/1000/1000,"") -> 71555.01465 | AB30: =IF(Y30<>"",Y30/Stoffdatenbank!L24,"") -> 1133.891667
A31: Isopropylbenzol | C31: 136067 | D31: 136067 | E31: 136067 | F31: 136067 | G31: 136067 | H31: 136067 | I31: 136067 | J31: 136067 | K31: 136067 | V31: 702248.3454 | X31: 702248.3454 | Y31: 136067 | Z31: =IF(SUM(B31:U31)>0,Schadstoffbelastung!$K$5*Schadstoffbelastung!$K$8*Bodencharakterisierung!$E$7*Y31/1000/1000,"") -> 1590.432736 | AA31: =IF(SUM(B31:U31)>0,Schadstoffbelastung!$K$5*Schadstoffbelastung!$K$8*Bodencharakterisierung!$E$10*Y31*Stoffdatenbank!$D25*Bodencharakterisierung!$E$8/1000/1000,"") -> 68634.40181 | AB31: =IF(Y31<>"",Y31/Stoffdatenbank!L25,"") -> 1133.891667
A32: o-Ethyltoluol | Z32: =IF(SUM(B32:U32)>0,Schadstoffbelastung!$K$5*Schadstoffbelastung!$K$8*Bodencharakterisierung!$E$7*Y32/1000/1000,"") ->  | AA32: =IF(SUM(B32:U32)>0,Schadstoffbelastung!$K$5*Schadstoffbelastung!$K$8*Bodencharakterisierung!$E$10*Y32*Stoffdatenbank!$D26*Bodencharakterisierung!$E$8/1000/1000,"") ->  | AB32: =IF(Y32<>"",Y32/Stoffdatenbank!L26,"") -> 
A33: m-Ethyltoluol | Z33: =IF(SUM(B33:U33)>0,Schadstoffbelastung!$K$5*Schadstoffbelastung!$K$8*Bodencharakterisierung!$E$7*Y33/1000/1000,"") ->  | AA33: =IF(SUM(B33:U33)>0,Schadstoffbelastung!$K$5*Schadstoffbelastung!$K$8*Bodencharakterisierung!$E$10*Y33*Stoffdatenbank!$D27*Bodencharakterisierung!$E$8/1000/1000,"") ->  | AB33: =IF(Y33<>"",Y33/Stoffdatenbank!L27,"") -> 
A34: p-Ethyltoluol | Z34: =IF(SUM(B34:U34)>0,Schadstoffbelastung!$K$5*Schadstoffbelastung!$K$8*Bodencharakterisierung!$E$7*Y34/1000/1000,"") ->  | AA34: =IF(SUM(B34:U34)>0,Schadstoffbelastung!$K$5*Schadstoffbelastung!$K$8*Bodencharakterisierung!$E$10*Y34*Stoffdatenbank!$D28*Bodencharakterisierung!$E$8/1000/1000,"") ->  | AB34: =IF(Y34<>"",Y34/Stoffdatenbank!L28,"") -> 
A35: 1,2-Diethylbenzol | Z35: =IF(SUM(B35:U35)>0,Schadstoffbelastung!$K$5*Schadstoffbelastung!$K$8*Bodencharakterisierung!$E$7*Y35/1000/1000,"") ->  | AA35: =IF(SUM(B35:U35)>0,Schadstoffbelastung!$K$5*Schadstoffbelastung!$K$8*Bodencharakterisierung!$E$10*Y35*Stoffdatenbank!$D29*Bodencharakterisierung!$E$8/1000/1000,"") ->  | AB35: =IF(Y35<>"",Y35/Stoffdatenbank!L29,"") -> 
A36: 1,3-Diethylbenzol | Z36: =IF(SUM(B36:U36)>0,Schadstoffbelastung!$K$5*Schadstoffbelastung!$K$8*Bodencharakterisierung!$E$7*Y36/1000/1000,"") ->  | AA36: =IF(SUM(B36:U36)>0,Schadstoffbelastung!$K$5*Schadstoffbelastung!$K$8*Bodencharakterisierung!$E$10*Y36*Stoffdatenbank!$D30*Bodencharakterisierung!$E$8/1000/1000,"") ->  | AB36: =IF(Y36<>"",Y36/Stoffdatenbank!L30,"") -> 
A37: 1,4-Diethylbenzol | Z37: =IF(SUM(B37:U37)>0,Schadstoffbelastung!$K$5*Schadstoffbelastung!$K$8*Bodencharakterisierung!$E$7*Y37/1000/1000,"") ->  | AA37: =IF(SUM(B37:U37)>0,Schadstoffbelastung!$K$5*Schadstoffbelastung!$K$8*Bodencharakterisierung!$E$10*Y37*Stoffdatenbank!$D31*Bodencharakterisierung!$E$8/1000/1000,"") ->  | AB37: =IF(Y37<>"",Y37/Stoffdatenbank!L31,"") -> 
A38: 1,2,3-Trimethylbenzol | Z38: =IF(SUM(B38:U38)>0,Schadstoffbelastung!$K$5*Schadstoffbelastung!$K$8*Bodencharakterisierung!$E$7*Y38/1000/1000,"") ->  | AA38: =IF(SUM(B38:U38)>0,Schadstoffbelastung!$K$5*Schadstoffbelastung!$K$8*Bodencharakterisierung!$E$10*Y38*Stoffdatenbank!$D32*Bodencharakterisierung!$E$8/1000/1000,"") ->  | AB38: =IF(Y38<>"",Y38/Stoffdatenbank!L32,"") -> 
A39: 1,2,4-Trimethylbenzol | Z39: =IF(SUM(B39:U39)>0,Schadstoffbelastung!$K$5*Schadstoffbelastung!$K$8*Bodencharakterisierung!$E$7*Y39/1000/1000,"") ->  | AA39: =IF(SUM(B39:U39)>0,Schadstoffbelastung!$K$5*Schadstoffbelastung!$K$8*Bodencharakterisierung!$E$10*Y39*Stoffdatenbank!$D33*Bodencharakterisierung!$E$8/1000/1000,"") ->  | AB39: =IF(Y39<>"",Y39/Stoffdatenbank!L33,"") -> 
A40: 1,3,5-Trimethylbenzol | Z40: =IF(SUM(B40:U40)>0,Schadstoffbelastung!$K$5*Schadstoffbelastung!$K$8*Bodencharakterisierung!$E$7*Y40/1000/1000,"") ->  | AA40: =IF(SUM(B40:U40)>0,Schadstoffbelastung!$K$5*Schadstoffbelastung!$K$8*Bodencharakterisierung!$E$10*Y40*Stoffdatenbank!$D34*Bodencharakterisierung!$E$8/1000/1000,"") ->  | AB40: =IF(Y40<>"",Y40/Stoffdatenbank!L34,"") -> 
A41: BTEX | B41: =IF(SUM(B24:B29)>0,SUM(B24:B29),"") -> 680335 | C41: =IF(SUM(C24:C29)>0,SUM(C24:C29),"") -> 408201 | D41: 408201 | E41: 408201 | F41: 408201 | G41: 408201 | H41: 408201 | I41: 408201 | J41: 408201 | K41: 408201 | V41: =SUM(V24:V29) -> 3065848.269 | X41: 3065848.269 | Y41: =IF(SUM($B41:$U41)>0,AVERAGE($B41:$U41),"") -> 435414.4
A42: AKW | B42: =IF(SUM(B24:B40)>0,SUM(B24:B40),"") -> 680335 | C42: =IF(SUM(C24:C40)>0,SUM(C24:C40),"") -> 680335 | D42: 680335 | E42: 680335 | F42: 680335 | G42: 680335 | H42: 680335 | I42: 680335 | J42: 680335 | K42: 680335 | V42: =SUM(V24:V40) -> 4499551.088 | X42: 4499551.088 | Y42: 680335 | AB42: =SUM(AB24:AB40) -> 8881.376237
A43: =Stoffdatenbank!A35 -> n-Alkane | Z43: =IF(SUM(B43:U43)>0,Schadstoffbelastung!$K$5*Schadstoffbelastung!$K$8*Bodencharakterisierung!$E$7*Y43/1000/1000,"") -> 
A44: =Stoffdatenbank!A36 -> n-Pentan | V44: =IF(SUM(B44:U44)>0,(Z44+AA44)*$K$2,"") ->  | X44: =V44 ->  | Y44: =IF(SUM($B44:$U44)>0,AVERAGE($B44:$U44),"") ->  | Z44: =IF(SUM(B44:U44)>0,Schadstoffbelastung!$K$5*Schadstoffbelastung!$K$8*Bodencharakterisierung!$E$7*Y44/1000/1000,"") ->  | AA44: =IF(SUM(B44:U44)>0,Schadstoffbelastung!$K$5*Schadstoffbelastung!$K$8*Bodencharakterisierung!$E$10*Y44*Stoffdatenbank!$D36*Bodencharakterisierung!$E$8/1000/1000,"") ->  | AB44: =IF(Y44<>"",Y44/Stoffdatenbank!L36,"") -> 
A45: =Stoffdatenbank!A37 -> n-Hexan | C45: 136067 | D45: 136067 | E45: 136067 | F45: 136067 | G45: 136067 | H45: 136067 | I45: 136067 | V45: 1505416.877 | X45: 1505416.877 | Y45: =IF(SUM($B45:$U45)>0,AVERAGE($B45:$U45),"") -> 136067 | Z45: =IF(SUM(B45:U45)>0,Schadstoffbelastung!$K$5*Schadstoffbelastung!$K$8*Bodencharakterisierung!$E$7*Y45/1000/1000,"") -> 1590.432736 | AA45: =IF(SUM(B45:U45)>0,Schadstoffbelastung!$K$5*Schadstoffbelastung!$K$8*Bodencharakterisierung!$E$10*Y45*Stoffdatenbank!$D37*Bodencharakterisierung!$E$8/1000/1000,"") -> 148951.255 | AB45: =IF(Y45<>"",Y45/Stoffdatenbank!L37,"") -> 1582.174419
A46: =Stoffdatenbank!A38 -> n-Heptan | C46: 136067 | D46: 136067 | E46: 136067 | F46: 136067 | G46: 136067 | H46: 136067 | I46: 136067 | V46: 3849208.684 | X46: 3849208.684 | Y46: 136067 | Z46: =IF(SUM(B46:U46)>0,Schadstoffbelastung!$K$5*Schadstoffbelastung!$K$8*Bodencharakterisierung!$E$7*Y46/1000/1000,"") -> 1590.432736 | AA46: =IF(SUM(B46:U46)>0,Schadstoffbelastung!$K$5*Schadstoffbelastung!$K$8*Bodencharakterisierung!$E$10*Y46*Stoffdatenbank!$D38*Bodencharakterisierung!$E$8/1000/1000,"") -> 383330.4356 | AB46: =IF(Y46<>"",Y46/Stoffdatenbank!L38,"") -> 1360.67
A47: =Stoffdatenbank!A39 -> n-Octan | C47: 136067 | D47: 136067 | E47: 136067 | F47: 136067 | G47: 136067 | H47: 136067 | I47: 136067 | V47: 12705967.13 | X47: 12705967.13 | Y47: 136067 | Z47: =IF(SUM(B47:U47)>0,Schadstoffbelastung!$K$5*Schadstoffbelastung!$K$8*Bodencharakterisierung!$E$7*Y47/1000/1000,"") -> 1590.432736 | AA47: =IF(SUM(B47:U47)>0,Schadstoffbelastung!$K$5*Schadstoffbelastung!$K$8*Bodencharakterisierung!$E$10*Y47*Stoffdatenbank!$D39*Bodencharakterisierung!$E$8/1000/1000,"") -> 1269006.28 | AB47: =IF(Y47<>"",Y47/Stoffdatenbank!L39,"") -> 1193.570175
A48: =Stoffdatenbank!A40 -> n-Nonan | C48: 136067 | D48: 136067 | E48: 136067 | F48: 136067 | G48: 136067 | H48: 136067 | I48: 136067 | V48: 20124323.75 | X48: 20124323.75 | Y48: 136067 | Z48: =IF(SUM(B48:U48)>0,Schadstoffbelastung!$K$5*Schadstoffbelastung!$K$8*Bodencharakterisierung!$E$7*Y48/1000/1000,"") -> 1590.432736 | AA48: =IF(SUM(B48:U48)>0,Schadstoffbelastung!$K$5*Schadstoffbelastung!$K$8*Bodencharakterisierung!$E$10*Y48*Stoffdatenbank!$D40*Bodencharakterisierung!$E$8/1000/1000,"") -> 2010841.942 | AB48: =IF(Y48<>"",Y48/Stoffdatenbank!L40,"") -> 1063.023438
A49: =Stoffdatenbank!A41 -> n-Decan | C49: 136067 | D49: 136067 | E49: 136067 | F49: 136067 | G49: 136067 | H49: 136067 | I49: 136067 | V49: 159758823.8 | X49: 159758823.8 | Y49: 136067 | Z49: =IF(SUM(B49:U49)>0,Schadstoffbelastung!$K$5*Schadstoffbelastung!$K$8*Bodencharakterisierung!$E$7*Y49/1000/1000,"") -> 1590.432736 | AA49: =IF(SUM(B49:U49)>0,Schadstoffbelastung!$K$5*Schadstoffbelastung!$K$8*Bodencharakterisierung!$E$10*Y49*Stoffdatenbank!$D41*Bodencharakterisierung!$E$8/1000/1000,"") -> 15974291.94 | AB49: =IF(Y49<>"",Y49/Stoffdatenbank!L41,"") -> 958.2183099
A50: =A43 -> n-Alkane | B50: =IF(SUM(B44:B49)>0,SUM(B44:B49),"") ->  | C50: =IF(SUM(C44:C49)>0,SUM(C44:C49),"") -> 680335 | D50: 680335 | E50: 680335 | F50: 680335 | G50: 680335 | H50: =IF(SUM(H44:H49)>0,SUM(H44:H49),"") -> 680335 | I50: 680335 | T50: =IF(SUM(T44:T49)>0,SUM(T44:T49),"") ->  | V50: =SUM(V44:V49) -> 197943740.2 | X50: 197943740.2 | Y50: 680335 | AB50: =SUM(AB44:AB49) -> 6157.656341
A51: Oxigenate | Z51: =IF(SUM(B51:U51)>0,Schadstoffbelastung!$K$5*Schadstoffbelastung!$K$8*Bodencharakterisierung!$E$7*Y51/1000/1000,"") -> 
A52: MTBE (Methyl-tert-butylether) | C52: 136067 | D52: 136067 | E52: 136067 | F52: 136067 | G52: 136067 | H52: 136067 | I52: 136067 | J52: 136067 | K52: 136067 | V52: =IF(SUM(B52:U52)>0,(Z52+AA52)*$K$2,"") -> 23936.01268 | X52: =V52 -> 23936.01268 | Y52: =IF(SUM($B52:$U52)>0,AVERAGE($B52:$U52),"") -> 136067 | Z52: =IF(SUM(B52:U52)>0,Schadstoffbelastung!$K$5*Schadstoffbelastung!$K$8*Bodencharakterisierung!$E$7*Y52/1000/1000,"") -> 1590.432736 | AA52: =IF(SUM(B52:U52)>0,Schadstoffbelastung!$K$5*Schadstoffbelastung!$K$8*Bodencharakterisierung!$E$10*Y52*Stoffdatenbank!$D43*Bodencharakterisierung!$E$8/1000/1000,"") -> 803.1685318 | AB52: =IF(Y52<>"",Y52/Stoffdatenbank!L43,"") -> 1543.619821
A53: ETBE (Ethyl-tert-butylether) | C53: 136067 | D53: 136067 | E53: 136067 | F53: 136067 | G53: 136067 | H53: 136067 | I53: 136067 | J53: 136067 | K53: 136067 | V53: =IF(SUM(B53:U53)>0,(Z53+AA53)*$K$2,"") -> 22475.70626 | X53: =V53 -> 22475.70626 | Y53: =IF(SUM($B53:$U53)>0,AVERAGE($B53:$U53),"") -> 136067 | Z53: =IF(SUM(B53:U53)>0,Schadstoffbelastung!$K$5*Schadstoffbelastung!$K$8*Bodencharakterisierung!$E$7*Y53/1000/1000,"") -> 1590.432736 | AA53: =IF(SUM(B53:U53)>0,Schadstoffbelastung!$K$5*Schadstoffbelastung!$K$8*Bodencharakterisierung!$E$10*Y53*Stoffdatenbank!$D44*Bodencharakterisierung!$E$8/1000/1000,"") -> 657.1378896 | AB53: =IF(Y53<>"",Y53/Stoffdatenbank!L44,"") -> 1331.708014
A54: TBA (tert-Butylalkohol) | V54: =IF(SUM(B54:U54)>0,(Z54+AA54)*$K$2,"") ->  | X54: =V54 ->  | Y54: =IF(SUM($B54:$U54)>0,AVERAGE($B54:$U54),"") ->  | Z54: =IF(SUM(B54:U54)>0,Schadstoffbelastung!$K$5*Schadstoffbelastung!$K$8*Bodencharakterisierung!$E$7*Y54/1000/1000,"") ->  | AA54: =IF(SUM(B54:U54)>0,Schadstoffbelastung!$K$5*Schadstoffbelastung!$K$8*Bodencharakterisierung!$E$10*Y54*Stoffdatenbank!$D45*Bodencharakterisierung!$E$8/1000/1000,"") ->  | AB54: =IF(Y54<>"",Y54/Stoffdatenbank!L45,"") -> 
A55: Oxigenate | B55: =IF(SUM(B52:B54)>0,SUM(B52:B54),"") ->  | C55: 272134 | D55: 272134 | E55: 272134 | F55: 272134 | G55: 272134 | H55: 272134 | I55: 272134 | J55: 272134 | K55: 272134 | T55: =IF(SUM(T52:T54)>0,SUM(T52:T54),"") ->  | U55: =IF(SUM(U52:U54)>0,SUM(U52:U54),"") ->  | V55: =SUM(V52:V54) -> 46411.71894 | X55: =V55 -> 46411.71894 | Y55: =IF(SUM($B55:$U55)>0,AVERAGE($B55:$U55),"") -> 272134 | AB55: =SUM(AB52:AB54) -> 2875.327835

Sheet Tabelle2 (hidden)
A5: LCKW | B5: =y!B40 -> 808038.9275 | C5: =y!C40 -> 49625.225 | D5: =y!D40 -> 62852.7 | E5: =y!E40 -> 103511.65 | F5: =y!F40 -> 808038.9275 | G5: =y!G40 -> 49625.225 | H5: =y!H40 -> 62852.7 | I5: =y!I40 -> 103511.65 | J5: =y!J40 -> 68179.2 | K5: =y!K40 -> 68179.2 | L5: =y!L40 -> 2 | M5: =y!M40 ->  | N5: =y!N40 ->  | O5: =y!O40 ->  | P5: =y!P40 ->  | Q5: =y!Q40 ->  | R5: =y!R40 ->  | S5: =y!S40 ->  | T5: =y!T40 ->  | U5: =y!U40 -> 
B6: =IFERROR(_xlfn.RANK.EQ(B5,$B5:$U5),#N/A) -> 1 | C6: =IFERROR(_xlfn.RANK.EQ(C5,$B5:$U5),#N/A) -> 9 | D6: 7 | E6: 3 | F6: 1 | G6: 9 | H6: 7 | I6: 3 | J6: 5 | K6: 5 | L6: 11
A7: AKW | B7: =y!B60 -> 1074363.927 | C7: =y!C60 -> 27893.105 | D7: =y!D60 -> 42150.37 | E7: =y!E60 -> 457723.9 | F7: =y!F60 -> 1074363.927 | G7: =y!G60 -> 27893.105 | H7: =y!H60 -> 42150.37 | I7: =y!I60 -> 457723.9 | J7: =y!J60 -> 68445.525 | K7: =y!K60 -> 86289.3 | L7: =y!L60 ->  | M7: =y!M60 ->  | N7: =y!N60 ->  | O7: =y!O60 ->  | P7: =y!P60 ->  | Q7: =y!Q60 ->  | R7: =y!R60 ->  | S7: =y!S60 ->  | T7: =y!T60 ->  | U7: =y!U60 -> 
B8: =IFERROR(_xlfn.RANK.EQ(B7,$B7:$U7),#N/A) -> 1 | C8: =IFERROR(_xlfn.RANK.EQ(C7,$B7:$U7),#N/A) -> 9 | D8: 7 | E8: 3 | F8: 1 | G8: 9 | H8: 7 | I8: 3 | J8: 6 | K8: 5
A9: n-Alkane | B9: =y!B65 -> 292957.5 | C9: =y!C65 -> 8877.5 | D9: =y!D65 -> 11096.875 | E9: =y!E65 -> 135381.875 | F9: =y!F65 -> 292957.5 | G9: =y!G65 -> 8877.5 | H9: =y!H65 -> 11096.875 | I9: =y!I65 -> 135381.875 | J9: =y!J65 -> 22815.175 | K9: =y!K65 -> 28763.1 | L9: =y!L65 ->  | M9: =y!M65 ->  | N9: =y!N65 ->  | O9: =y!O65 ->  | P9: =y!P65 ->  | Q9: =y!Q65 ->  | R9: =y!R65 ->  | S9: =y!S65 ->  | T9: =y!T65 ->  | U9: =y!U65 -> 
B10: =IFERROR(_xlfn.RANK.EQ(B9,$B9:$U9),#N/A) -> 1 | C10: =IFERROR(_xlfn.RANK.EQ(C9,$B9:$U9),#N/A) -> 9 | D10: 7 | E10: 3 | F10: 1 | G10: 9 | H10: 7 | I10: 3 | J10: 6 | K10: 5
A11: Oxigenate | B11: =y!B73 -> 585915 | C11: =y!C73 -> 17755 | D11: =y!D73 -> 22193.75 | E11: =y!E73 -> 270763.75 | F11: =y!F73 -> 585915 | G11: =y!G73 -> 17755 | H11: =y!H73 -> 22193.75 | I11: =y!I73 -> 270763.75 | J11: =y!J73 -> 36752.85 | K11: =y!K73 -> 46429.325 | L11: =y!L73 ->  | M11: =y!M73 ->  | N11: =y!N73 ->  | O11: =y!O73 ->  | P11: =y!P73 ->  | Q11: =y!Q73 ->  | R11: =y!R73 ->  | S11: =y!S73 ->  | T11: =y!T73 ->  | U11: =y!U73 -> 
B12: =IFERROR(_xlfn.RANK.EQ(B11,$B11:$U11),#N/A) -> 1 | C12: =IFERROR(_xlfn.RANK.EQ(C11,$B11:$U11),#N/A) -> 9 | D12: 7 | E12: 3 | F12: 1 | G12: 9 | H12: 7 | I12: 3 | J12: 6 | K12: 5

Sheet Sanierungsdesign (hidden)
B1: Parameter | D1: Einheit | E1: Wert
A3: Sanierungszielwert
B4: Sanierungszielwert | C4: LCKW | D4: μg/L | E4: 10
B5: Sanierungszielwert | C5: AKW | D5: μg/L | E5: 20
B6: Sanierungszielwert | C6: Oxigenate | D6: μg/L | E6: 100
B7: Sanierungszielwert | C7: n-Alkane | D7: μg/L | E7: 100
A8: Sanierungsdesign
B9: Sanierungsfläche | C9: A | D9: m² | E9: =Sanierungsfläche -> 2200
B10: Mächtigkeit Aquifer | C10: M | D10: m | E10: =Mächtigkeit -> 16.1
B11: Maximal zulässige Absenkung | C11: s | D11: m | E11: =0.2*E10 -> 3.22
B12: Reichweite Absenkung | C12: R | D12: m | E12: =3000*Absenkung*SQRT(kf) -> 30.5476022
B13: Brunnenradius | C13: r | D13: m | E13: 0.1
B14: Anzahl benötigter Sanierungsbrunnen | C14: NB | D14: [-] | E14: =ROUNDUP(Schadstoffbelastung!$K$4/(2*RadiusInfluence),0) -> 1
B15: Maximale Ergiebigkeit des Brunnens | C15: Q | D15: m³/d | E15: =(PI()*kf*(Unterkante^2-Oberkante^2))/LN((ReichweiteAbsenkung^2)/(Brunnenradius^2))*86400 -> 91.26816361
A17: Auswahl Schadstoff | D17: Summe n-Alkane
E18: 100

Sheet Bodencharakterisierung (hidden)
B1: Parameter | D1: Einheit | M1: Parameter | N1: Einheit | O1: Datenbank
E2: Feinsand | F2: Feinsand | O2: Grobsand | P2: Mittelsand | Q2: Feinsand | R2: Schluff | S2: Ton
B3: Relativer Anteil (geschätzt) | D3: % | E3: 80 | F3: =100-E3 -> 20
B4: Wassersättigung (ungesättigter Boden) | C4: SW | D4: - | E4: 0.26 | F4: 0.26 | M4: Wassersättigung (ungesättigter Boden) | N4: - | O4: 0.26 | P4: 0.26 | Q4: 0.26 | R4: 0.27 | S4: 0.2916
B5: Durchlässigkeitsbeiwert | C5: kf | D5: m/s | E5: 1e-05 | F5: 1e-05 | M5: Durchlässigkeitsbeiwert (kf) | N5: m/s | O5: 0.0002 | P5: 0.0001 | Q5: 1e-05 | R5: 1e-07 | S5: 1e-11
B6: Nutzbare Porosität | C6: neff | D6: - | E6: 0.1 | F6: 0.1 | M6: Nutzbare Porosität (neff) | N6: L/L | O6: 0.2 | P6: 0.125 | Q6: 0.1 | R6: 0.075 | S6: 0.035
B7: Gesamtporosität (Hohlraumvolumen) | C7: n | D7: - | E7: 0.33 | F7: 0.33 | M7: Gesamtporosität (Hohlraumvolumen) | N7: L/L | O7: 0.33 | P7: 0.33 | Q7: 0.33 | R7: 0.34 | S7: 0.35
B8: Organischer Kohlenstoffgehalt | C8: fOC | D8: - | E8: 0.01 | F8: 0.01 | M8: Organische Kohlenstoffgehalt | N8: g/g | O8: 0.01 | P8: 0.01 | Q8: 0.01 | R8: 0.01 | S8: 0.01
B9: Korndichte | C9: ρs | D9: kg/m³ | E9: 2650 | F9: 2650 | M9: Korndichte | N9: kg/m³ | O9: 2650 | P9: 2650 | Q9: 2650 | R9: 2690 | S9: 2700
B10: Schüttdichte | C10: d | D10: kg/L | E10: 1.515 | F10: 1.515 | M10: Schüttdichte | N10: kg/dm³ | O10: 1.515 | P10: 1.515 | Q10: 1.515 | R10: 1.43 | S10: 1.64
B11: Anteil (Bodenkorn) | C11: nM | D11: kg/m³ | E11: 1015.05 | F11: 1015.05 | M11: Anteil (Bodenkorn) | N11: kg/m³ | O11: =1000*(1-O7)*O10 -> 1015.05 | P11: =1000*(1-P7)*P10 -> 1015.05 | Q11: =1000*(1-Q7)*Q10 -> 1015.05 | R11: =1000*(1-R7)*R10 -> 943.8 | S11: =1000*(1-S7)*S10 -> 1066
B12: Mittlerer Kornradius | C12: d50 | D12: m | E12: 0.0001315 | F12: 0.0001315 | M12: Mittlerer Kornradius (d50) | N12: m | O12: 0.001315 | P12: 0.000415 | Q12: 0.0001315 | R12: 3.25e-05 | S12: 2e-06
B13: Tortouistät in der Wasserphase | C13: tw | D13: - | E13: 10 | F13: 10 | M13: Tortuoistät in der Wasserphase (tw) | N13: - | O13: =1/O6 -> 5 | P13: =1/P6 -> 8 | Q13: =1/Q6 -> 10 | R13: =1/R6 -> 13.33333333 | S13: =1/S6 -> 28.57142857
B14: Wärmeleitfähigkeit | C14: l | D14: W/(m·K) | E14: 2.75 | F14: 2.75 | M14: Wärmeleitfähigkeit (l) | N14: W/(m·K) | O14: 3.72 | P14: 3.34 | Q14: 2.75 | R14: 1.5 | S14: 1.5
B15: Temperaturleitfähigkeit | C15: a | D15: m²/s | E15: 0.0011 | F15: 0.0011 | M15: Temperaturleitfähigkeit (a) | N15: m²/s | O15: =O14/(O17) -> 0.001488 | P15: =P14/(P17) -> 0.001336 | Q15: =Q14/(Q17) -> 0.0011 | R15: =R14/(R17) -> 0.000625 | S15: =S14/(S17) -> 0.000625
B16: Untergrundtemperatur | C16: T0 | D16: K | E16: 283.15 | F16: 283.15 | M16: Untergrundtemperatur (T0) | N16: K | O16: 283.15 | P16: 283.15 | Q16: 283.15 | R16: 283.15 | S16: 283.15
B17: Spezifische Wärmekapazität (Bodenkorn) | C17: cM | D17: kJ/(kg·K) | E17: 2500 | F17: 2500 | M17: Spezifische Wärmekapazität | N17: kJ/(kg·K) | O17: 2500 | P17: 2500 | Q17: 2500 | R17: 2400 | S17: 2400

Sheet Grundwassercharakterisierung (hidden)
B1: Parameter | C1: Einheit | D1: Wert
B2: Mittlerer hydraulischer Gradient (I) | C2: % | D2: 0.9
B3: Grundwasserabstandsgeschwindigkeit (va) | C3: m/d | D3: =kf*(Grundwassercharakterisierung!D2/100)/neff*3600*24 -> 0.07776
A4: Redoxmilieu (charakteristische Mittelwerte)
B5: pH-Wert | C5: -- | D5: 7
B6: Redoxspannung (korr.) | C6: mV | D6: 200
B7: Temperatur | C7: °C | D7: 1
B8: Gelöster Sauerstoff | C8: mg/L | D8: 3
B9: Nitrat | C9: mg/L | D9: 20
B10: Mangan (gelöst) | C10: mg/L | D10: 0
B11: Eisen (gelöst) | C11: mg/L | D11: 0
B12: Sulfat | C12: mg/L | D12: 200
B13: Methan | C13: mg/L | D13: 0
B14: DOC | C14: mg/L | D14: 2

Sheet Stoffdatenbank (hidden)
B1: Ver-dampfungs-enthalpie | C1: Gemisch-siedetemp. mit Wasser | D1: Sorptions-koeffizient | E1: Henry-Koeffizient | F1: Diffusions-koeffizient (in Wasser) | G1: Diffusions-koeffizient (in Luft) | H1: Löslichkeit | I1: Dampf-druck | J1: Siede-punkt | K1: Dichte | L1: Molekular-gewicht
A2: Verbindung | B2: ΔHv [kJ/kg] | C2: °C | D2: KOC [L/kg] | E2: H (15°C) [-] | F2: Dw (15°C) [m²/s] | G2: Da (15°C) [m²/s] | H2: Lw (20°C) [mg/L] | I2: Po (15°C) [Pa] | J2: °C | K2: [kg/L] | L2: Mm [g/mol] | M2: Bemerkung
A3: Leichtflüchtige chlorierte Kohlenwasserstoffe (LCKW)
A4: Tetrachlorethen | B4: 239.22 | C4: 88.7 | D4: =0.36*1000 -> 360 | E4: 0.64 | F4: 7.49e-10 | G4: 6.62e-06 | H4: 160 | I4: 1479 | J4: 121.075 | K4: 1.624 | L4: 166
A5: Trichlorethen | B5: 263.15 | C5: 73.5 | D5: 130 | E5: 0.33 | F5: 8.08e-10 | G5: 7.12e-06 | H5: 1000 | I5: 6064 | J5: 86.975 | K5: 1.4642 | L5: 131
A6: cis-1,2-Dichlorethen | B6: 319.07 | C6: 55.3 | D6: 50 | E6: 0.2 | F6: 8.95e-10 | G6: 7.88e-06 | H6: 3500 | I6: 17284 | J6: 60.1875 | K6: 1.2837 | L6: 97 | M6: LW (cDCE) bei 25 °C
A7: trans-1,2-Dichlorethen | B7: 306.55 | C7: 45.3 | D7: 60 | E7: 0.19 | F7: 8.86e-10 | G7: 8.83e-06 | H7: 6300 | I7: 29294 | J7: 48.066 | K7: 1.2565 | L7: 97
A8: 1,1-Dichlorethen | B8: 274.33 | C8: =C6 -> 55.3 | D8: 70.51 | E8: 0.8 | F8: 1.173e-09 | G8: 9.865e-06 | H8: 2500 | I8: 6792.77 | J8: 31.4 | K8: 1.218 | L8: 97
A9: Vinylchlorid | B9: 364.6 | C9: -13 | D9: 60 | E9: 6.78 | F9: 5.78e-10 | G9: 5.94e-06 | H9: 1100 | I9: 285916 | J9: -13.758 | K9: 0.9121 | L9: 63
A10: Tetrachlormethan | B10: 201.95 | C10: 66 | D10: 285.6 | E10: 1.153 | F10: 7.293e-10 | G10: 6.323e-06 | H10: 800 | I10: 11940 | J10: 76.76 | K10: 1.594 | L10: 154
A11: Trichlormethan | B11: 273.11 | C11: 56.1 | D11: 51.21 | E11: 0.185 | F11: 8.245e-10 | G11: 7.141e-06 | H11: 8200 | I11: 20900 | J11: 61.12 | K11: 1.485 | L11: 119
A12: Dichlormethan | B12: 343.36 | C12: 43.5 | D12: 12.15 | E12: 0.1159 | F12: 9.83e-10 | G12: 8.441e-06 | H12: 17799 | I12: 39156.78 | J12: 39.95 | K12: 1.328 | L12: 85
A13: 1,1,1-Trichlorethan | B13: 243.62 | C13: 86 | D13: 144 | E13: 1 | F13: 7.61e-10 | G13: 6.77e-06 | H13: 1300 | I13: 1369.81 | J13: 74.05 | K13: 1.339 | L13: 133.404
A14: 1,1,2-Trichlorethan | B14: 301.34 | C14: 86 | D14: 43.64 | E14: 0.038 | F14: 6.8e-10 | G14: 7.6e-06 | H14: 4500 | I14: 2500 | J14: 13.65 | K14: 1.441 | L14: 133.404 | M14: D abgeschätzt
A15: 1,1-Dichlorethan | B15: 310.28 | C15: 72.8 | D15: 35.74 | E15: 0.257 | F15: 1.14e-09 | G15: 8.7e-06 | H15: 8690 | I15: 29100 | J15: 57.4 | K15: 1.235 | L15: 98.96 | M15: D abgeschätzt
A16: 1,2-Dichlorethan | B16: 354.69 | C16: 72.845 | D16: 39.6 | E16: 0.0508 | F16: 9.2e-10 | G16: 7.83e-06 | H16: 8690 | I16: 10000 | J16: 83.6 | L16: 98.96
A17: (Mono)aromatische Kohlenwasserstoffe (AKW)
A18: Benzol | B18: 434.62 | C18: 69.3 | D18: 80 | E18: 0.15 | F18: 8.15e-10 | G18: 7.59e-06 | H18: 1770 | I18: 7941 | J18: 80.15 | K18: 0.877 | L18: 78
A19: Toluol | B19: 390.22 | C19: 84.6 | D19: 300 | E19: 0.16 | F19: 7.34e-10 | G19: 6.9e-06 | H19: 520 | I19: 2215 | J19: 110.7 | K19: 0.87 | L19: 92
A20: Ethylbenzol | B20: 386.76 | C20: 91.5 | D20: 1100 | E20: 0.19 | F20: 6.76e-10 | G20: 6.39e-06 | H20: 170 | I20: 728 | J20: 136.2 | K20: 0.866 | L20: 106
A21: o-Xylol | B21: 396.23 | C21: 93.3 | D21: 830 | E21: 0.12 | F21: 6.8e-10 | G21: 6.42e-06 | H21: 180 | I21: 492 | J21: 143.9 | K21: 0.88 | L21: 106
A22: m-Xylol | B22: 386.79 | C22: 93.3 | D22: 980 | E22: 0.16 | F22: 6.71e-10 | G22: 6.36e-06 | H22: 174 | I22: 615 | J22: 139.2 | K22: 0.864 | L22: 106
A23: p-Xylol | B23: 396.23 | C23: 93.3 | D23: 880 | E23: 0.15 | F23: 6.71e-10 | G23: 6.36e-06 | H23: 200 | I23: 657 | J23: 138.3 | K23: 0.861 | L23: 106
A24: n-Propylbenzol | B24: 383.33 | C24: 96.5 | D24: 980 | E24: 0.2 | F24: 6.2e-10 | G24: 6e-06 | H24: 60 | I24: 237 | J24: 158.9 | K24: 0.86 | L24: 120 | M24: LW bei 25 °C
A25: Isopropylbenzol | B25: 366.67 | C25: 95 | D25: 940 | E25: 0.43 | F25: 6.2e-10 | G25: 6e-06 | H25: 50 | I25: 427 | J25: 151.9 | K25: 0.862 | L25: 120 | M25: LW bei 25 °C
A26: o-Ethyltoluol | B26: 395.25 | C26: 96.5 | D26: 790 | E26: 0.11 | F26: 6.3e-10 | G26: 6e-06 | H26: 93 | I26: 202 | J26: 165.2 | K26: 0.88 | L26: 120
A27: m-Ethyltoluol | B27: 390 | C27: 96.5 | D27: 760 | E27: 0.1 | F27: 6.2e-10 | G27: 6e-06 | H27: 97 | I27: 202 | J27: 161.4 | K27: 0.864 | L27: 120
A28: p-Ethyltoluol | B28: 388.92 | C28: 96.5 | D28: 900 | E28: 0.12 | F28: 6.2e-10 | G28: 6e-06 | H28: 95 | I28: 230 | J28: 162 | K28: 0.861 | L28: 120
A29: 1,2-Diethylbenzol | B29: 394.03 | C29: 96.5 | D29: 500 | E29: 0.16 | F29: 5.9e-10 | G29: 5.7e-06 | H29: 24 | I29: 67 | J29: 182.9 | K29: 0.88 | L29: 134
A30: 1,3-Diethylbenzol | B30: 391.79 | C30: 96.5 | D30: 420 | E30: 0.23 | F30: 5.8e-10 | G30: 5.6e-06 | H30: 27 | I30: 109 | J30: 180.9 | K30: 0.86 | L30: 134
A31: 1,4-Diethylbenzol | B31: 391.79 | C31: 96.5 | D31: 460 | E31: 0.23 | F31: 5.8e-10 | G31: 5.6e-06 | H31: 25 | I31: 101 | J31: 183.7 | K31: 0.862 | L31: 134
A32: 1,2,3-Trimethylbenzol | B32: 408.33 | C32: 96.5 | D32: 650 | E32: 0.08 | F32: 6.4e-10 | G32: 6e-06 | H32: 75 | I32: 125 | J32: 176.1 | K32: 0.894 | L32: 120
A33: 1,2,4-Trimethylbenzol | B33: 391.67 | C33: 96.5 | D33: 650 | E33: 0.12 | F33: 6.3e-10 | G33: 6e-06 | H33: 60 | I33: 147 | J33: 169.3 | K33: 0.876 | L33: 120 | M33: LW bei 25 °C
A34: 1,3,5-Trimethylbenzol | B34: 395.92 | C34: 96.5 | D34: 670 | E34: 0.48 | F34: 6.3e-10 | G34: 6e-06 | H34: 20 | I34: 193 | J34: 164.7 | K34: 0.865 | L34: 120
A35: n-Alkane
A36: n-Pentan | B36: 368.06 | C36: 34.6 | D36: 870 | E36: 35.69 | F36: 7.01e-10 | G36: 6.89e-06 | H36: 40 | I36: 46219 | J36: 36.05 | K36: 0.626 | L36: 72
A37: n-Hexan | B37: 360.47 | C37: 61.6 | D37: 2040 | E37: 46.48 | F37: 6.49e-10 | G37: 6.36e-06 | H37: 10 | I37: 12922 | J37: 68.75 | K37: 0.66 | L37: 86
A38: n-Heptan | B38: 360 | C38: 79.6 | D38: 5250 | E38: 69.3 | F38: 6.05e-10 | G38: 5.92e-06 | H38: 2.2 | I38: 3645 | J38: 98.35 | K38: 0.684 | L38: 100 | M38: LW bei 25 °C
A39: n-Octan | B39: 359.65 | C39: 89.5 | D39: 17380 | E39: 70.89 | F39: 5.69e-10 | G39: 5.58e-06 | H39: 0.7 | I39: 1041 | J39: 125.6 | K39: 0.7025 | L39: 114
A40: n-Nonan | B40: 363.28 | C40: 94.8 | D40: 27540 | E40: 156.63 | F40: 5.41e-10 | G40: 5.31e-06 | H40: 0.12 | I40: 351 | J40: 150.7 | K40: 0.72 | L40: 128 | M40: LW bei 25 °C
A41: n-Decan | B41: 361.27 | C41: 97.2 | D41: 218780 | E41: 140.3 | F41: 5.13e-10 | G41: 5.05e-06 | H41: 0.05 | I41: 118 | J41: 174.1 | K41: 0.73 | L41: 142
A42: Oxigenate
A43: MTBE (Methyl-tert-butylether) | B43: 340.34 | C43: 52.4 | D43: 11 | E43: 0.027 | F43: 9.513e-10 | G43: 8.286e-06 | H43: 51259 | I43: 33300 | J43: 55.65 | K43: 0.74 | L43: 88.148
A44: ETBE (Ethyl-tert-butylether) | B44: 323.37 | C44: 65.2 | D44: 9 | E44: 0.081 | F44: 7.337962963e-10 | G44: 6.944444444e-06 | H44: 12000 | I44: 16500 | J44: 72.825 | K44: 0.75 | L44: 102.1748
A45: TBA (tert-Butylalkohol) | B45: 620.6 | C45: 79.9 | D45: 37 | E45: 0.00061 | F45: 7e-10 | G45: =G43/(F43/F45) -> 6.097130243e-06 | H45: mischbar | I45: 5430 | J45: 82.35 | K45: 0.79 | L45: 74.1216
A46: blau = berechnet, grau = abgeschätzt
A53: n-Alkane
A54: n-Pentan | B54: 368.06 | C54: 34.6 | D54: 870 | E54: 35.69 | F54: 7.01e-10 | G54: 6.89e-06 | H54: 40 | I54: 46219 | J54: 36.05 | K54: 0.626 | L54: 72
A55: n-Hexan | B55: 360.47 | C55: 61.6 | D55: 2040 | E55: 46.48 | F55: 6.49e-10 | G55: 6.36e-06 | H55: 10 | I55: 12922 | J55: 68.75 | K55: 0.66 | L55: 86
A56: n-Heptan | B56: 360 | C56: 79.6 | D56: 5250 | E56: 69.3 | F56: 6.05e-10 | G56: 5.92e-06 | H56: 2.2 | I56: 3645 | J56: 98.35 | K56: 0.684 | L56: 100 | M56: LW bei 25 °C
A57: n-Octan | B57: 359.65 | C57: 89.5 | D57: 17380 | E57: 70.89 | F57: 5.69e-10 | G57: 5.58e-06 | H57: 0.7 | I57: 1041 | J57: 125.6 | K57: 0.7025 | L57: 114
A58: n-Nonan | B58: 363.28 | C58: 94.8 | D58: 27540 | E58: 156.63 | F58: 5.41e-10 | G58: 5.31e-06 | H58: 0.12 | I58: 351 | J58: 150.7 | K58: 0.72 | L58: 128 | M58: LW bei 25 °C
A59: n-Decan | B59: 361.27 | C59: 97.2 | D59: 218780 | E59: 140.3 | F59: 5.13e-10 | G59: 5.05e-06 | H59: 0.05 | I59: 118 | J59: 174.1 | K59: 0.73 | L59: 142

Sheet Heterogenität (hidden)
F1: Sondierung | G1: Gini-Koeffizient
A15: Heterogenität (Gini-Koeffizient) | C15: Gering | D15: 0.2
A16: Korrekturfaktor | D16: =1/(1-GINI+(2.451*(Sanierungsfläche^-0.458))*GINI) -> 1.227838709

Sheet Sanierungsdauer
B1: Ergebnisparameter | D1: Einheit | E1: Wert
A2: Sanierungserfolg
B3: Gesamtdauer der Sanierung | D3: a | E3: =Ergebnisse!E3 -> 10.57773973
B4: Sanierungszielwert | D4: μg/L | E4: =Sanierungszielwert -> 100
B5: Residualer Schadstoffgehalt im Boden | D5: mg/kg | E5: =Ergebnisse!E5 -> 0.2932025916
B6: Anzahl der Sanierungsbrunnen | D6: [-] | E6: =Sanierungsdesign!E14 -> 1
B7: Betrachterer Schadstoff | D7: =Ergebnisse!D9 -> n-Alkane
O38: aus Gesamtkonz. Berechnet

Sheet Ergebnisse (hidden)
B1: Ergebnisparameter | D1: Einheit | E1: Wert | Q1: 17 | R1: =Q1+1 -> 18 | S1: =R1+1 -> 19 | T1: 20 | U1: 21 | V1: 22 | W1: 23 | X1: 24 | Y1: 25 | Z1: 26 | AA1: 27 | AB1: 28 | AC1: 29 | AD1: 30 | AE1: 31 | AF1: 32 | AG1: 33 | AH1: 34 | AI1: 35 | AJ1: 36 | AK1: 37 | AL1: 38 | AM1: 39 | AN1: 40 | AO1: 41 | AP1: 42 | AQ1: 43 | AR1: 44 | AS1: 45 | AT1: 46 | AU1: 47 | AV1: 48 | AW1: 49 | AX1: 50 | AY1: 51 | AZ1: 52 | BA1: 53 | BB1: 54 | BC1: 55 | BD1: 56 | BE1: 57 | BF1: 58 | BG1: 59 | BH1: 60 | BI1: 61 | BJ1: 62 | BK1: 63 | BL1: 64 | BM1: 65 | BN1: 66 | BO1: 67 | BP1: 68 | BQ1: 69 | BR1: 70 | BS1: 71
A2: Sanierungserfolg | V2: Schadstoffphase | AM2: Reichweite/Unterteilung | AU2: Parameter Residualphase | BA2: Berechnung der Sanierungsdauer
B3: Gesamtdauer der Sanierung | D3: a | E3: =S4 -> 10.57773973 | Q3: Sanierungszielwert | R3: [μg/L] | S3: =Sanierungszielwert -> 100 | AM3: Stofftransferkoeffizient | AQ3: Retardationsfaktor noch nicht eingebunden | AR3: R | AS3: =1+(n+S10*ps)/neff -> 77.07406756 | AU3: Stoffübertragungskoeff. [m/s] | AV3: k | AW3: =(S18*S36)/(A0*((d_50*2)^2)) -> 1.913382815e-09
B4: Sanierungszielwert | D4: μg/L | E4: =Sanierungszielwert -> 100 | Q4: Sanierungsdauer | R4: [a] | S4: =MAX(BO11:BO1024560) -> 10.57773973 | AM4: Feststoff/Wasser [1/s] | AN4: λSW | AO4: =(10^(0.301-0.668*LOG((S10*1000000))))/(60*60) -> 2.803014479e-06 | AQ4: Reichweite Absenkung [m] | AR4: ROI | AS4: =ReichweiteAbsenkung -> 30.5476022 | AU4: Sättigungslänge [m] | AV4: Xs | AW4: =(AS7*S30*d_50*S19)/(6*S36*Theta_w*n) -> 0.1622492786 | BA4: Zeitintervall [s] | BB4: z | BC4: =60*60 -> 3600
B5: max. Schadstoffkonzentration im Boden | D5: kg/kg | E5: =MIN(BS11:BS1048576) -> 0.2932025916 | Q5: Sanierungsdauer | R5: [d] | S5: =S4*365 -> 3860.875 | AQ5: maximale Absenkung [m] | AR5: S | AS5: =Absenkung -> 3.22 | AU5: Retardationsfaktor [-] | AV5: R | BA5: Anzahl Intervalle | BB5: n | BC5: 92661
A6: Dimensionierung der Brunnen | AM6: Massentransferrate | AQ6: Länge Schadensherd [m] | AR6: Lschaden | AS6: =Schadstoffbelastung!K3 -> 55 | BR6: Ausgabe Grafik | BS6: Ausgabe Grafik | BT6: Ausgabe Grafik
B7: Anzahl der Sanierungsbrunnen | D7: [-] | AM7: Boden/Wasser[kg/(m3*s) | AN7: JSW | AO7: =Theta_w*AO4*((S37/S10)-S40) -> -6.267151039e-07 | AQ7: Grundwasserabstandsgeschw. | AR7: Va | AS7: =va -> 0.07776
B8: Gesamtförderrate | D8: m3/d | E8: =Forderrate -> 91.26816361 | Q8: Parameter | AZ8: Erstes Zeitintervall | BE8: Zweites Zeitintervall | BJ8: Letztes Zeitintervall
B9: Betrachterer Schadstoff | D9: n-Alkane | V9: Schadstoffname | W9: Henry Koeffizient | X9: Verteilungkoeff. Kohlenstoff/Wasser | Y9: Verteilungkoeff. Boden/Wasser | Z9: Diffusionskoeff. Gas | AA9: Diffusionskoeff. Wasser | AB9: Wasserlöslich-keit | AC9: Sättigung-dampfdruck | AD9: Molare Masse | AE9: Molfraktion/Anteil | AF9: Inventar Konz. Boden | AG9: Grenz-konzentration | AH9: Residual-konzentration | AI9: wässrige Konzentration | AJ9: Sättigunskonzentration | AL9: Durchflusszeit [s] | AM9: Hydraulischer Gradient i [-] | AN9: Radius [m] | AO9: Spiegelfläche des Absenktrichters H [m] | AP9: Absenkung [m] | AQ9: durchströmte Fläche A [m2] | AR9: Darcy [m3/s] | AS9: Filtergeschw. vf [m/s] | AT9: Abstandsgeschw. Va [m/s] | AU9: Stofftransferkoeffizient k [1/s] | AV9: Freisetzungsrate Residualphase Fres [] | AW9: Re' | AX9: Sh' | AZ9: Cges/Cs [kg/m3] | BA9: Cres [kg/m3] | BB9: Cw [kg/m3] | BC9: Jsw [kg/m3*s] | BD9: Jrw [kg/m3*s] | BE9: Cges/Cs [kg/m3] | BF9: Cres [kg/m3] | BG9: Cw [kg/m3] | BH9: Jsw [kg/m3*s] | BI9: Jrw [kg/m3*s] | BJ9: Cges/Cs [kg/m3] | BK9: Cres [kg/m3] | BL9: Cw [kg/m3] | BM9: Jsw [kg/m3*s] | BN9: Jrw [kg/m3*s] | BO9: Zeit [a] | BP9: Konzentration Grundwasser[kg/m3] | BQ9: Konzentration im Boden [kg/m3] | BR9: Konzentration im Grundwasser [μg/L] | BS9: Konzentration im Boden [mg/kg]
Q10: Boden-Wasserverteilungskoeffizient [m3/kg] | R10: Kd | S10: =S35*foc -> 0.002746191229 | W10: H [-] | X10: KOC [m3/kg] | Y10: Kd | Z10: Da [m2/s] | AA10: Dw [m2/s] | AB10: Lw [kg/m3] | AC10: P [kg/(m*s2) | AD10: Mm [kg/mol] | AF10: Cs [kg/kg] | AG10: Cgrenz [kg/m3] | AH10: Cres [kg/m3] | AI10: Cw [kg/m3] | AJ10: Ci [kg/m3]
Q11: Kapazitätsfaktor [-] | R11: α | S11: =n*S10*((1-n)*ps) -> 1.609034634 | V11: Tetrachlorethen | W11: =VLOOKUP(V11,Stoffdatenbank!$A$4:$M$45,5,FALSE) -> 0.64 | X11: =VLOOKUP(V11,Stoffdatenbank!$A$4:$M$45,4,FALSE)/1000 -> 0.36 | Y11: =X11*foc -> 0.0036 | Z11: =VLOOKUP(V11,Stoffdatenbank!$A$4:$M$45,7,FALSE) -> 6.62e-06 | AA11: =VLOOKUP(V11,Stoffdatenbank!$A$4:$M$45,6,FALSE) -> 7.49e-10 | AB11: =VLOOKUP(V11,Stoffdatenbank!$A$4:$M$45,8,FALSE)*1000*(1*10^-6) -> 0.16 | AC11: =VLOOKUP(V11,Stoffdatenbank!$A$4:$M$45,9,FALSE) -> 1479 | AD11: =VLOOKUP(V11,Stoffdatenbank!$A$4:$M$45,12,FALSE)/1000 -> 0.166 | AE11: =IF(AF11<>"",AF11/$AF$24,"") -> 0.02682250815 | AF11: =IF(Schadstoffbelastung!Y3<>"",Schadstoffbelastung!Y3*(1*10^-6),"") -> 2.40212779e-07 | AG11: =IF(Schadstoffbelastung!X3<>"",Schadstoffbelastung!X3/1000000,"") ->  | AH11: =IF(Schadstoffbelastung!Z3<>"",Schadstoffbelastung!Z3/1000000,"") -> 0 | AI11: =IF(Schadstoffbelastung!U3<>"",Schadstoffbelastung!U3/1000000,"") ->  | AJ11: =IF(Schadstoffbelastung!W3<>"",Schadstoffbelastung!W3/1000000,"") ->  | AL11: =IF(AN11<>"",IF(((AN12-AN11)/AT11)<0,((AN12-AN11)/AT11)*(-1),((AN12-AN11)/AT11)),"") -> 222.8209687 | AM11: =IF(AN11<>"",(AO12-AO11)/(AN12-AN11),"") -> 4.487907964 | AN11: =IF(AN10>=$AS$6+0.1,"",AN10+0.1) -> 0.1 | AO11: =IF(AN11="","",SQRT(($S$29^2)+(($S$28^2)-($S$29^2))*(LN(AN11)-LN(Brunnenradius))/(LN(ReichweiteAbsenkung)-LN(Brunnenradius)))) -> 8.98 | AP11: =IF(AN11<>"",$S$28-AO11,"") -> 3.22 | AQ11: =IF(AN11<>"",Schadstoffbelastung!$K$4*Ergebnisse!AO11,"") -> 359.2 | AR11: =IF(AN11<>"",kf*Ergebnisse!AQ11*Ergebnisse!AM11,"") -> 0.01612056541 | AS11: =IF(AN11<>"",AR11/AQ11,"") -> 4.487907964e-05 | AT11: =IF(AS11<>"",AS11/$S$30,"") -> 0.0004487907964 | AU11: =IF(AN11<>"",(AX11*$S$36)/A0*(d_50*2)*1000000,"") -> 7.740274466e-12 | AV11: =IF(AU11<>"",AU11*($S$41-$S$40),"") -> -5.241057783e-12 | AW11: =IF(AN11<>"",((d_50*2)*kf*AM11)/($S$13*neff),"") -> 0.09079383035 | AX11: =IF(AN11<>"",150*(AW11^0.87)*(0.016^0.79),"") -> 0.7093409947 | AZ11: =IF(AN11<>"",$S$37,"") -> 7.692996228e-06 | BA11: =IF(AN12<>"",IF($S$39<>0,$S$39,0),"") -> 0 | BB11: =IF(AN11<>"",IF(AZ11<Lw,(AZ11*pb)/(Kd*pb+Theta_w),(Sättigungskonz*pb)/(Kd*pb+Theta_w)),"") -> 0.002623756339 | BC11: =IF(AN11<>"",IF(BA11=0,n*$AO$4*((AZ11/$S$10)-BB11),0),"") -> 1.64257523e-10 | BD11: =IF(AN11<>"",IF(BA11<>0,IF(AU11*(Sättigungskonz-BB11)<0,AU11*((Sättigungskonz-BB11)*(-1)),AU11*(Sättigungskonz-BB11)),0),"") -> 0 | BE11: =IF(AN11<>"",IF(Sättigungskonz>=AZ11,IF(AZ11-(BC11+BD11)*$BC$4/pb>0,AZ11-(BC11+BD11)*$BC$4/pb,0),IF(AZ11-(BC11+BD11)*$BC$4/pb>Sättigungskonz,AZ11-(BC11+BD11)*$BC$4/pb,Sättigungskonz)),"") -> 7.69266318e-06 | BF11: =IF(AN11<>"",IF(BA11<>0,BA11-((BH11+BD11)*$BC$4),0),"") -> 0 | BG11: =IF(AN11<>"",IF(BE11<Lw,(BE11*pb)/(Kd*pb+Theta_w),(Sättigungskonz*pb)/(Kd*pb+Theta_w)),"") -> 0.00262364275 | BH11: =IF(AN11<>"",IF(BF10=0,n*$AO$4*(BE11-(BG11/$S$10))*(-1),0),"") -> 8.837098731e-07 | BI11: =IF(AN11<>"",IF(BF11<>0,AU11*(Sättigungskonz-BG11),0),"") -> 0 | BJ11: 2.932025916e-07 | BK11: 0 | BL11: 9.999902969e-05 | BM11: 5.098662127e-12 | BN11: 0 | BO11: 0 | BP11: 0.002623756339 | BQ11: 7.692996228e-06 | BR11: =IF(BP11<>"",BP11/(1*10^-6),"") -> 2623.756339 | BS11: =IF(BQ11<>"",BQ11/(1*10^-6),"") -> 7.692996228 | BT11: =IF(BO11<>"",BO11*(0.1*Retardation),"") -> 0
Q12: Effektiver Diffusionskoeffizient [m2/s] | R12: De | S12: =(S36*neff)/tw -> 6.341848417e-12 | V12: Trichlorethen | W12: =VLOOKUP(V12,Stoffdatenbank!$A$4:$M$45,5,FALSE) -> 0.33 | X12: =VLOOKUP(V12,Stoffdatenbank!$A$4:$M$45,4,FALSE)/1000 -> 0.13 | Y12: 0.0013 | Z12: =VLOOKUP(V12,Stoffdatenbank!$A$4:$M$45,7,FALSE) -> 7.12e-06 | AA12: =VLOOKUP(V12,Stoffdatenbank!$A$4:$M$45,6,FALSE) -> 8.08e-10 | AB12: =VLOOKUP(V12,Stoffdatenbank!$A$4:$M$45,8,FALSE)*1000*(1*10^-6) -> 1 | AC12: =VLOOKUP(V12,Stoffdatenbank!$A$4:$M$45,9,FALSE) -> 6064 | AD12: =VLOOKUP(V12,Stoffdatenbank!$A$4:$M$45,12,FALSE)/1000 -> 0.131 | AE12: 0.03332493437 | AF12: =IF(Schadstoffbelastung!Y4<>"",Schadstoffbelastung!Y4*(1*10^-6),"") -> 2.9844618e-07 | AG12: =IF(Schadstoffbelastung!X4<>"",Schadstoffbelastung!X4/1000000,"") -> 0.0002324341518 | AH12: =IF(Schadstoffbelastung!Z4<>"",Schadstoffbelastung!Z4/1000000,"") -> 0 | AI12: =IF(Schadstoffbelastung!U4<>"",Schadstoffbelastung!U4/1000000,"") -> 0.136067 | AJ12: =IF(Schadstoffbelastung!W4<>"",Schadstoffbelastung!W4/1000000,"") -> 0.09412385421 | AL12: =IF(AN12<>"",IF(((AN13-AN12)/AT12)<0,((AN13-AN12)/AT12)*(-1),((AN13-AN12)/AT12)),"") -> 395.4340817 | AM12: =IF(AN12<>"",(AO13-AO12)/(AN13-AN12),"") -> 2.528866495 | AN12: =IF(AN11>=$AS$6+0.1,"",AN11+0.1) -> 0.2 | AO12: =IF(AN12="","",SQRT(($S$29^2)+(($S$28^2)-($S$29^2))*(LN(AN12)-LN(Brunnenradius))/(LN(ReichweiteAbsenkung)-LN(Brunnenradius)))) -> 9.428790796 | AP12: =IF(AN12<>"",$S$28-AO12,"") -> 2.771209204 | AQ12: =IF(AN12<>"",Schadstoffbelastung!$K$4*Ergebnisse!AO12,"") -> 377.1516319 | AR12: =IF(AN12<>"",kf*Ergebnisse!AQ12*Ergebnisse!AM12,"") -> 0.009537661252 | AS12: =IF(AN12<>"",AR12/AQ12,"") -> 2.528866495e-05 | AT12: =IF(AS12<>"",AS12/$S$30,"") -> 0.0002528866495 | AU12: 4.699197156e-12 | AV12: -3.181897998e-12 | AW12: =IF(AN12<>"",((d_50*2)*kf*AM12)/($S$13*neff),"") -> 0.05116091447 | AX12: =IF(AN12<>"",150*(AW12^0.87)*(0.016^0.79),"") -> 0.4306479311 | AZ12: 7.692996228e-06 | BA12: 0 | BB12: 0.002623756339 | BC12: 1.64257523e-10 | BD12: 0 | BE12: 7.69266318e-06 | BF12: =IF(AN12<>"",IF(BA12<>0,BA12-((BH12+BD12)*$BC$4),0),"") -> 0 | BG12: 0.00262364275 | BH12: 8.837098731e-07 | BI12: =IF(AN12<>"",IF(BF12<>0,AU12*(Sättigungskonz-BG12),0),"") -> 0 | BJ12: 2.932025916e-07 | BK12: 0 | BL12: 9.999902969e-05 | BM12: 5.098662127e-12 | BN12: 0 | BO12: 0.0001141552511 | BP12: 0.00262364275 | BQ12: 7.69266318e-06 | BR12: =IF(BP12<>"",BP12/(1*10^-6),"") -> 2623.64275 | BS12: =IF(BQ12<>"",BQ12/(1*10^-6),"") -> 7.69266318 | BT12: 0.0008798409539
Q13: kinematische Viskosität von Wasser [m2/s] | R13: ν | S13: =1.3*10^-6 -> 1.3e-06 | V13: cis-1,2-Dichlorethen | W13: =VLOOKUP(V13,Stoffdatenbank!$A$4:$M$45,5,FALSE) -> 0.2 | X13: =VLOOKUP(V13,Stoffdatenbank!$A$4:$M$45,4,FALSE)/1000 -> 0.05 | Y13: 0.0005 | Z13: =VLOOKUP(V13,Stoffdatenbank!$A$4:$M$45,7,FALSE) -> 7.88e-06 | AA13: =VLOOKUP(V13,Stoffdatenbank!$A$4:$M$45,6,FALSE) -> 8.95e-10 | AB13: =VLOOKUP(V13,Stoffdatenbank!$A$4:$M$45,8,FALSE)*1000*(1*10^-6) -> 3.5 | AC13: =VLOOKUP(V13,Stoffdatenbank!$A$4:$M$45,9,FALSE) -> 17284 | AD13: =VLOOKUP(V13,Stoffdatenbank!$A$4:$M$45,12,FALSE)/1000 -> 0.097 | AE13: 0.03463354764 | AF13: =IF(Schadstoffbelastung!Y5<>"",Schadstoffbelastung!Y5*(1*10^-6),"") -> 3.10165652e-07 | AG13: =IF(Schadstoffbelastung!X5<>"",Schadstoffbelastung!X5/1000000,"") -> 0.0005594458202 | AH13: =IF(Schadstoffbelastung!Z5<>"",Schadstoffbelastung!Z5/1000000,"") -> 0 | AI13: =IF(Schadstoffbelastung!U5<>"",Schadstoffbelastung!U5/1000000,"") -> 0.136067 | AJ13: =IF(Schadstoffbelastung!W5<>"",Schadstoffbelastung!W5/1000000,"") -> 0.4449050222 | AL13: 569.8261693 | AM13: =IF(AN13<>"",(AO14-AO13)/(AN14-AN13),"") -> 1.754921157 | AN13: 0.3 | AO13: =IF(AN13="","",SQRT(($S$29^2)+(($S$28^2)-($S$29^2))*(LN(AN13)-LN(Brunnenradius))/(LN(ReichweiteAbsenkung)-LN(Brunnenradius)))) -> 9.681677446 | AP13: =IF(AN13<>"",$S$28-AO13,"") -> 2.518322554 | AQ13: =IF(AN13<>"",Schadstoffbelastung!$K$4*Ergebnisse!AO13,"") -> 387.2670978 | AR13: =IF(AN13<>"",kf*Ergebnisse!AQ13*Ergebnisse!AM13,"") -> 0.006796232232 | AS13: =IF(AN13<>"",AR13/AQ13,"") -> 1.754921157e-05 | AT13: =IF(AS13<>"",AS13/$S$30,"") -> 0.0001754921157 | AU13: 3.419654671e-12 | AV13: -2.315500285e-12 | AW13: =IF(AN13<>"",((d_50*2)*kf*AM13)/($S$13*neff),"") -> 0.03550340494 | AX13: =IF(AN13<>"",150*(AW13^0.87)*(0.016^0.79),"") -> 0.3133869808 | AZ13: 7.692996228e-06 | BA13: 0 | BB13: 0.002623756339 | BC13: 1.64257523e-10 | BD13: 0 | BE13: 7.69266318e-06 | BF13: 0 | BG13: 0.00262364275 | BH13: 8.837098731e-07 | BI13: 0 | BJ13: 2.932025916e-07 | BK13: 0 | BL13: 9.999902969e-05 | BM13: 5.098662127e-12 | BN13: 0 | BO13: 0.0002283105023 | BP13: 0.002623550243 | BQ13: 7.692391944e-06 | BR13: 2623.550243 | BS13: 7.692391944 | BT13: 0.001759681908
Q14: Reynolds-Zahl [-] | R14: Re | S14: =(d_50*2)*(va/86400)/S13 -> 0.0001820769231 | V14: trans-1,2-Dichlorethen | W14: =VLOOKUP(V14,Stoffdatenbank!$A$4:$M$45,5,FALSE) -> 0.19 | X14: =VLOOKUP(V14,Stoffdatenbank!$A$4:$M$45,4,FALSE)/1000 -> 0.06 | Y14: 0.0006 | Z14: =VLOOKUP(V14,Stoffdatenbank!$A$4:$M$45,7,FALSE) -> 8.83e-06 | AA14: =VLOOKUP(V14,Stoffdatenbank!$A$4:$M$45,6,FALSE) -> 8.86e-10 | AB14: =VLOOKUP(V14,Stoffdatenbank!$A$4:$M$45,8,FALSE)*1000*(1*10^-6) -> 6.3 | AC14: =VLOOKUP(V14,Stoffdatenbank!$A$4:$M$45,9,FALSE) -> 29294 | AD14: =VLOOKUP(V14,Stoffdatenbank!$A$4:$M$45,12,FALSE)/1000 -> 0.097 | AE14: 0.1373637539 | AF14: =IF(Schadstoffbelastung!Y6<>"",Schadstoffbelastung!Y6*(1*10^-6),"") -> 1.230180596e-06 | AG14: =IF(Schadstoffbelastung!X6<>"",Schadstoffbelastung!X6/1000000,"") -> 0.001128328076 | AH14: =IF(Schadstoffbelastung!Z6<>"",Schadstoffbelastung!Z6/1000000,"") -> 0 | AI14: =IF(Schadstoffbelastung!U6<>"",Schadstoffbelastung!U6/1000000,"") -> 0.136067 | AJ14: =IF(Schadstoffbelastung!W6<>"",Schadstoffbelastung!W6/1000000,"") -> 0.80082904 | AL14: 746.2701691 | AM14: =IF(AN14<>"",(AO15-AO14)/(AN15-AN14),"") -> 1.339997284 | AN14: 0.4 | AO14: 9.857169561 | AP14: =IF(AN14<>"",$S$28-AO14,"") -> 2.342830439 | AQ14: =IF(AN14<>"",Schadstoffbelastung!$K$4*Ergebnisse!AO14,"") -> 394.2867825 | AR14: =IF(AN14<>"",kf*Ergebnisse!AQ14*Ergebnisse!AM14,"") -> 0.005283432177 | AS14: =IF(AN14<>"",AR14/AQ14,"") -> 1.339997284e-05 | AT14: =IF(AS14<>"",AS14/$S$30,"") -> 0.0001339997284 | AU14: 2.704322865e-12 | AV14: -1.831138219e-12 | AW14: 0.02710917583 | AX14: 0.2478319185 | AZ14: 7.692996228e-06 | BA14: 0 | BB14: 0.002623756339 | BC14: 1.64257523e-10 | BD14: 0 | BE14: 7.69266318e-06 | BF14: 0 | BG14: 0.00262364275 | BH14: 8.837098731e-07 | BI14: 0 | BJ14: 2.932025916e-07 | BK14: 0 | BL14: 9.999902969e-05 | BM14: 5.098662127e-12 | BN14: 0 | BO14: 0.0003424657534 | BP14: 0.002623457739 | BQ14: 7.692120718e-06 | BR14: 2623.457739 | BS14: 7.692120718 | BT14: 0.002639522862
Q15: Volumen des Wassers im Boden [-] | R15: ϴw | S15: =n -> 0.33 | V15: 1,1-Dichlorethen | W15: =VLOOKUP(V15,Stoffdatenbank!$A$4:$M$45,5,FALSE) -> 0.8 | X15: =VLOOKUP(V15,Stoffdatenbank!$A$4:$M$45,4,FALSE)/1000 -> 0.07051 | Y15: 0.0007051 | Z15: =VLOOKUP(V15,Stoffdatenbank!$A$4:$M$45,7,FALSE) -> 9.865e-06 | AA15: =VLOOKUP(V15,Stoffdatenbank!$A$4:$M$45,6,FALSE) -> 1.173e-09 | AB15: =VLOOKUP(V15,Stoffdatenbank!$A$4:$M$45,8,FALSE)*1000*(1*10^-6) -> 2.5 | AC15: =VLOOKUP(V15,Stoffdatenbank!$A$4:$M$45,9,FALSE) -> 6792.77 | AD15: =VLOOKUP(V15,Stoffdatenbank!$A$4:$M$45,12,FALSE)/1000 -> 0.097 | AE15: 0.1162308686 | AF15: =IF(Schadstoffbelastung!Y7<>"",Schadstoffbelastung!Y7*(1*10^-6),"") -> 1.040922043e-06 | AG15: =IF(Schadstoffbelastung!X7<>"",Schadstoffbelastung!X7/1000000,"") -> 0.0004983497147 | AH15: =IF(Schadstoffbelastung!Z7<>"",Schadstoffbelastung!Z7/1000000,"") -> 0 | AI15: =IF(Schadstoffbelastung!U7<>"",Schadstoffbelastung!U7/1000000,"") -> 0.136067 | AJ15: =IF(Schadstoffbelastung!W7<>"",Schadstoffbelastung!W7/1000000,"") -> 0.3177893016 | AL15: 924.5046106 | AM15: 1.081660371 | AN15: 0.5 | AO15: 9.99116929 | AP15: 2.20883071 | AQ15: =IF(AN15<>"",Schadstoffbelastung!$K$4*Ergebnisse!AO15,"") -> 399.6467716 | AR15: =IF(AN15<>"",kf*Ergebnisse!AQ15*Ergebnisse!AM15,"") -> 0.004322820752 | AS15: 1.081660371e-05 | AT15: 0.0001081660371 | AU15: 2.244591068e-12 | AV15: -1.519846814e-12 | AW15: 0.02188282135 | AX15: 0.2057007756 | AZ15: 7.692996228e-06 | BA15: 0 | BB15: 0.002623756339 | BC15: 1.64257523e-10 | BD15: 0 | BE15: 7.69266318e-06 | BF15: 0 | BG15: 0.00262364275 | BH15: 8.837098731e-07 | BI15: 0 | BJ15: 2.932025916e-07 | BK15: 0 | BL15: 9.999902969e-05 | BM15: 5.098662127e-12 | BN15: 0 | BO15: 0.0004566210046 | BP15: 0.002623365239 | BQ15: 7.691849501e-06 | BR15: 2623.365239 | BS15: 7.691849501 | BT15: 0.003519363815
Q16: Luftanteil im Boden [-] | R16: ϴa | S16: 0.2442 | V16: Vinylchlorid | W16: =VLOOKUP(V16,Stoffdatenbank!$A$4:$M$45,5,FALSE) -> 6.78 | X16: =VLOOKUP(V16,Stoffdatenbank!$A$4:$M$45,4,FALSE)/1000 -> 0.06 | Y16: 0.0006 | Z16: =VLOOKUP(V16,Stoffdatenbank!$A$4:$M$45,7,FALSE) -> 5.94e-06 | AA16: =VLOOKUP(V16,Stoffdatenbank!$A$4:$M$45,6,FALSE) -> 5.78e-10 | AB16: =VLOOKUP(V16,Stoffdatenbank!$A$4:$M$45,8,FALSE)*1000*(1*10^-6) -> 1.1 | AC16: =VLOOKUP(V16,Stoffdatenbank!$A$4:$M$45,9,FALSE) -> 285916 | AD16: =VLOOKUP(V16,Stoffdatenbank!$A$4:$M$45,12,FALSE)/1000 -> 0.063 | AE16: 0.3015500158 | AF16: =IF(Schadstoffbelastung!Y8<>"",Schadstoffbelastung!Y8*(1*10^-6),"") -> 2.70057397e-06 | AG16: =IF(Schadstoffbelastung!X8<>"",Schadstoffbelastung!X8/1000000,"") -> 0.0003033323399 | AH16: =IF(Schadstoffbelastung!Z8<>"",Schadstoffbelastung!Z8/1000000,"") -> 0 | AI16: =IF(Schadstoffbelastung!U8<>"",Schadstoffbelastung!U8/1000000,"") -> 0.136067 | AJ16: =IF(Schadstoffbelastung!W8<>"",Schadstoffbelastung!W8/1000000,"") -> 0.2152896411 | AL16: 1104.272698 | AM16: 0.9055734166 | AN16: 0.6 | AO16: 10.09933533 | AP16: 2.100664673 | AQ16: =IF(AN16<>"",Schadstoffbelastung!$K$4*Ergebnisse!AO16,"") -> 403.9734131 | AR16: =IF(AN16<>"",kf*Ergebnisse!AQ16*Ergebnisse!AM16,"") -> 0.003658275839 | AS16: 9.055734166e-06 | AT16: 9.055734166e-05 | AU16: 1.923099345e-12 | AV16: -1.30215987e-12 | AW16: 0.01832044681 | AX16: 0.1762383502 | AZ16: 7.692996228e-06 | BA16: 0 | BB16: 0.002623756339 | BC16: 1.64257523e-10 | BD16: 0 | BE16: 7.69266318e-06 | BF16: 0 | BG16: 0.00262364275 | BH16: 8.837098731e-07 | BI16: 0 | BJ16: 2.932025916e-07 | BK16: 0 | BL16: 9.999902969e-05 | BM16: 5.098662127e-12 | BN16: 0 | BO16: 0.0005707762557 | BP16: 0.002623272741 | BQ16: 7.691578294e-06 | BR16: 2623.272741 | BS16: 7.691578294 | BT16: 0.004399204769
Q17: spezifische Oberfläche Phase [m2/m3] | R17: A0 | S17: =(1-n)*(3/d_50) -> 15285.1711 | V17: Tetrachlormethan | W17: =VLOOKUP(V17,Stoffdatenbank!$A$4:$M$45,5,FALSE) -> 1.153 | X17: =VLOOKUP(V17,Stoffdatenbank!$A$4:$M$45,4,FALSE)/1000 -> 0.2856 | Y17: 0.002856 | Z17: =VLOOKUP(V17,Stoffdatenbank!$A$4:$M$45,7,FALSE) -> 6.323e-06 | AA17: =VLOOKUP(V17,Stoffdatenbank!$A$4:$M$45,6,FALSE) -> 7.293e-10 | AB17: =VLOOKUP(V17,Stoffdatenbank!$A$4:$M$45,8,FALSE)*1000*(1*10^-6) -> 0.8 | AC17: =VLOOKUP(V17,Stoffdatenbank!$A$4:$M$45,9,FALSE) -> 11940 | AD17: =VLOOKUP(V17,Stoffdatenbank!$A$4:$M$45,12,FALSE)/1000 -> 0.154 | AE17: 0.2985426437 | AF17: =IF(Schadstoffbelastung!Y9<>"",Schadstoffbelastung!Y9*(1*10^-6),"") -> 2.673641022e-06 | AG17: =IF(Schadstoffbelastung!X9<>"",Schadstoffbelastung!X9/1000000,"") -> 0.0003091709416 | AH17: =IF(Schadstoffbelastung!Z9<>"",Schadstoffbelastung!Z9/1000000,"") -> 0 | AI17: =IF(Schadstoffbelastung!U9<>"",Schadstoffbelastung!U9/1000000,"") -> 0.136067 | AJ17: =IF(Schadstoffbelastung!W9<>"",Schadstoffbelastung!W9/1000000,"") -> 0.06405311637 | AL17: 1285.367231 | AM17: 0.777987781 | AN17: 0.7 | AO17: 10.18989267 | AP17: 2.010107331 | AQ17: =IF(AN17<>"",Schadstoffbelastung!$K$4*Ergebnisse!AO17,"") -> 407.5957067 | AR17: =IF(AN17<>"",kf*Ergebnisse!AQ17*Ergebnisse!AM17,"") -> 0.003171044795 | AS17: 7.77987781e-06 | AT17: 7.77987781e-05 | AU17: 1.685095219e-12 | AV17: -1.14100365e-12 | AW17: 0.01573929126 | AX17: 0.1544269682 | AZ17: 7.692996228e-06 | BA17: 0 | BB17: 0.002623756339 | BC17: 1.64257523e-10 | BD17: 0 | BE17: 7.69266318e-06 | BF17: 0 | BG17: 0.00262364275 | BH17: 8.837098731e-07 | BI17: 0 | BJ17: 2.932025916e-07 | BK17: 0 | BL17: 9.999902969e-05 | BM17: 5.098662127e-12 | BN17: 0 | BO17: 0.0006849315068 | BP17: 0.002623180247 | BQ17: 7.691307097e-06 | BR17: 2623.180247 | BS17: 7.691307097 | BT17: 0.005279045723
Q18: Modifizierte Sherwood-Zahl [-] | R18: Sh' | S18: =150*(S14^0.87)*(0.016^0.79) -> 0.00318983202 | V18: Trichlormethan | W18: =VLOOKUP(V18,Stoffdatenbank!$A$4:$M$45,5,FALSE) -> 0.185 | X18: =VLOOKUP(V18,Stoffdatenbank!$A$4:$M$45,4,FALSE)/1000 -> 0.05121 | Y18: 0.0005121 | Z18: =VLOOKUP(V18,Stoffdatenbank!$A$4:$M$45,7,FALSE) -> 7.141e-06 | AA18: =VLOOKUP(V18,Stoffdatenbank!$A$4:$M$45,6,FALSE) -> 8.245e-10 | AB18: =VLOOKUP(V18,Stoffdatenbank!$A$4:$M$45,8,FALSE)*1000*(1*10^-6) -> 8.2 | AC18: =VLOOKUP(V18,Stoffdatenbank!$A$4:$M$45,9,FALSE) -> 20900 | AD18: =VLOOKUP(V18,Stoffdatenbank!$A$4:$M$45,12,FALSE)/1000 -> 0.119 | AE18: 0.02032008193 | AF18: =IF(Schadstoffbelastung!Y10<>"",Schadstoffbelastung!Y10*(1*10^-6),"") -> 1.819793781e-07 | AG18: =IF(Schadstoffbelastung!X10<>"",Schadstoffbelastung!X10/1000000,"") -> 0.001083962329 | AH18: =IF(Schadstoffbelastung!Z10<>"",Schadstoffbelastung!Z10/1000000,"") -> 0 | AI18: =IF(Schadstoffbelastung!U10<>"",Schadstoffbelastung!U10/1000000,"") -> 0.136067 | AJ18: =IF(Schadstoffbelastung!W10<>"",Schadstoffbelastung!W10/1000000,"") -> 0.8496457495 | AL18: 1467.624461 | AM18: 0.6813732168 | AN18: 0.8 | AO18: 10.26769145 | AP18: 1.932308553 | AQ18: =IF(AN18<>"",Schadstoffbelastung!$K$4*Ergebnisse!AO18,"") -> 410.7076579 | AR18: =IF(AN18<>"",kf*Ergebnisse!AQ18*Ergebnisse!AM18,"") -> 0.00279845198 | AS18: 6.813732168e-06 | AT18: 6.813732168e-05 | AU18: 1.501492379e-12 | AV18: -1.016683369e-12 | AW18: 0.01378470431 | AX18: 0.1376010763 | AZ18: 7.692996228e-06 | BA18: 0 | BB18: 0.002623756339 | BC18: 1.64257523e-10 | BD18: 0 | BE18: 7.69266318e-06 | BF18: 0 | BG18: 0.00262364275 | BH18: 8.837098731e-07 | BI18: 0 | BJ18: 2.932025916e-07 | BK18: 0 | BL18: 9.999902969e-05 | BM18: 5.098662127e-12 | BN18: 0 | BO18: 0.000799086758 | BP18: 0.002623087757 | BQ18: 7.691035909e-06 | BR18: 2623.087757 | BS18: 7.691035909 | BT18: 0.006158886677
Q19: mittlerer Radius der Residualtröpchen [m] | R19: rb | S19: =d_50/2 -> 6.575e-05 | V19: Dichlormethan | W19: =VLOOKUP(V19,Stoffdatenbank!$A$4:$M$45,5,FALSE) -> 0.1159 | X19: =VLOOKUP(V19,Stoffdatenbank!$A$4:$M$45,4,FALSE)/1000 -> 0.01215 | Y19: 0.0001215 | Z19: =VLOOKUP(V19,Stoffdatenbank!$A$4:$M$45,7,FALSE) -> 8.441e-06 | AA19: =VLOOKUP(V19,Stoffdatenbank!$A$4:$M$45,6,FALSE) -> 9.83e-10 | AB19: =VLOOKUP(V19,Stoffdatenbank!$A$4:$M$45,8,FALSE)*1000*(1*10^-6) -> 17.799 | AC19: =VLOOKUP(V19,Stoffdatenbank!$A$4:$M$45,9,FALSE) -> 39156.78 | AD19: =VLOOKUP(V19,Stoffdatenbank!$A$4:$M$45,12,FALSE)/1000 -> 0.085 | AE19: 0.01016004097 | AF19: =IF(Schadstoffbelastung!Y11<>"",Schadstoffbelastung!Y11*(1*10^-6),"") -> 9.098968903e-08 | AG19: =IF(Schadstoffbelastung!X11<>"",Schadstoffbelastung!X11/1000000,"") -> 0.001766111274 | AH19: =IF(Schadstoffbelastung!Z11<>"",Schadstoffbelastung!Z11/1000000,"") -> 0 | AI19: =IF(Schadstoffbelastung!U11<>"",Schadstoffbelastung!U11/1000000,"") -> 0.136067 | AJ19: =IF(Schadstoffbelastung!W11<>"",Schadstoffbelastung!W11/1000000,"") -> 2.581949094 | AL19: 1650.913765 | AM19: 0.6057251574 | AN19: 0.9 | AO19: 10.33582877 | AP19: 1.864171232 | AQ19: =IF(AN19<>"",Schadstoffbelastung!$K$4*Ergebnisse!AO19,"") -> 413.4331507 | AR19: =IF(AN19<>"",kf*Ergebnisse!AQ19*Ergebnisse!AM19,"") -> 0.002504268603 | AS19: 6.057251574e-06 | AT19: 6.057251574e-05 | AU19: 1.355370139e-12 | AV19: -9.177417736e-13 | AW19: 0.01225428588 | AX19: 0.1242100144 | AZ19: 7.692996228e-06 | BA19: 0 | BB19: 0.002623756339 | BC19: 1.64257523e-10 | BD19: 0 | BE19: 7.69266318e-06 | BF19: 0 | BG19: 0.00262364275 | BH19: 8.837098731e-07 | BI19: 0 | BJ19: 2.932025916e-07 | BK19: 0 | BL19: 9.999902969e-05 | BM19: 5.098662127e-12 | BN19: 0 | BO19: 0.0009132420091 | BP19: 0.002622995269 | BQ19: 7.69076473e-06 | BR19: 2622.995269 | BS19: 7.69076473 | BT19: 0.007038727631
Q20: von der Schadstoffmasse eingenommene Porosität | R20: ϴ | V20: 1,1,1-Trichlorethan | W20: =VLOOKUP(V20,Stoffdatenbank!$A$4:$M$45,5,FALSE) -> 1 | X20: =VLOOKUP(V20,Stoffdatenbank!$A$4:$M$45,4,FALSE)/1000 -> 0.144 | Y20: 0.00144 | Z20: =VLOOKUP(V20,Stoffdatenbank!$A$4:$M$45,7,FALSE) -> 6.77e-06 | AA20: =VLOOKUP(V20,Stoffdatenbank!$A$4:$M$45,6,FALSE) -> 7.61e-10 | AB20: =VLOOKUP(V20,Stoffdatenbank!$A$4:$M$45,8,FALSE)*1000*(1*10^-6) -> 1.3 | AC20: =VLOOKUP(V20,Stoffdatenbank!$A$4:$M$45,9,FALSE) -> 1369.81 | AD20: =VLOOKUP(V20,Stoffdatenbank!$A$4:$M$45,12,FALSE)/1000 -> 0.133404 | AE20: 0.004876819663 | AF20: =IF(Schadstoffbelastung!Y12<>"",Schadstoffbelastung!Y12*(1*10^-6),"") -> 4.367505073e-08 | AG20: =IF(Schadstoffbelastung!X12<>"",Schadstoffbelastung!X12/1000000,"") -> 2.367983044e-07 | AH20: =IF(Schadstoffbelastung!Z12<>"",Schadstoffbelastung!Z12/1000000,"") -> 0 | AI20: =IF(Schadstoffbelastung!U12<>"",Schadstoffbelastung!U12/1000000,"") -> 0.0001 | AJ20: =IF(Schadstoffbelastung!W12<>"",Schadstoffbelastung!W12/1000000,"") -> 8.830650349e-05 | AL20: 1835.129313 | AM20: 0.5449207274 | AN20: 1 | AO20: 10.39640128 | AP20: 1.803598716 | AQ20: =IF(AN20<>"",Schadstoffbelastung!$K$4*Ergebnisse!AO20,"") -> 415.8560514 | AR20: =IF(AN20<>"",kf*Ergebnisse!AQ20*Ergebnisse!AM20,"") -> 0.00226608582 | AS20: 5.449207274e-06 | AT20: 5.449207274e-05 | AU20: 1.236198255e-12 | AV20: -8.370486752e-13 | AW20: 0.01102416548 | AX20: 0.1132887605 | AZ20: 7.692996228e-06 | BA20: 0 | BB20: 0.002623756339 | BC20: 1.64257523e-10 | BD20: 0 | BE20: 7.69266318e-06 | BF20: 0 | BG20: 0.00262364275 | BH20: 8.837098731e-07 | BI20: 0 | BJ20: 2.932025916e-07 | BK20: 0 | BL20: 9.999902969e-05 | BM20: 5.098662127e-12 | BN20: 0 | BO20: 0.00102739726 | BP20: 0.002622902785 | BQ20: 7.690493562e-06 | BR20: 2622.902785 | BS20: 7.690493562 | BT20: 0.007918568585
Q21: Schüttdichte/Lagerungsdichte [kg/m3] | R21: ρb | S21: =ps*(1-n) -> 1775.5 | V21: 1,1,2-Trichlorethan | W21: =VLOOKUP(V21,Stoffdatenbank!$A$4:$M$45,5,FALSE) -> 0.038 | X21: =VLOOKUP(V21,Stoffdatenbank!$A$4:$M$45,4,FALSE)/1000 -> 0.04364 | Y21: 0.0004364 | Z21: =VLOOKUP(V21,Stoffdatenbank!$A$4:$M$45,7,FALSE) -> 7.6e-06 | AA21: =VLOOKUP(V21,Stoffdatenbank!$A$4:$M$45,6,FALSE) -> 6.8e-10 | AB21: =VLOOKUP(V21,Stoffdatenbank!$A$4:$M$45,8,FALSE)*1000*(1*10^-6) -> 4.5 | AC21: =VLOOKUP(V21,Stoffdatenbank!$A$4:$M$45,9,FALSE) -> 2500 | AD21: =VLOOKUP(V21,Stoffdatenbank!$A$4:$M$45,12,FALSE)/1000 -> 0.133404 | AE21: 0.006014744251 | AF21: =IF(Schadstoffbelastung!Y13<>"",Schadstoffbelastung!Y13*(1*10^-6),"") -> 5.386589591e-08 | AG21: =IF(Schadstoffbelastung!X13<>"",Schadstoffbelastung!X13/1000000,"") ->  | AH21: =IF(Schadstoffbelastung!Z13<>"",Schadstoffbelastung!Z13/1000000,"") -> 0 | AI21: =IF(Schadstoffbelastung!U13<>"",Schadstoffbelastung!U13/1000000,"") ->  | AJ21: =IF(Schadstoffbelastung!W13<>"",Schadstoffbelastung!W13/1000000,"") ->  | AL21: 2020.183987 | AM21: 0.4950044185 | AN21: 1.1 | AO21: 10.45089336 | AP21: 1.749106643 | AQ21: =IF(AN21<>"",Schadstoffbelastung!$K$4*Ergebnisse!AO21,"") -> 418.0357343 | AR21: =IF(AN21<>"",kf*Ergebnisse!AQ21*Ergebnisse!AM21,"") -> 0.002069295356 | AS21: 4.950044185e-06 | AT21: 4.950044185e-05 | AU21: 1.137072162e-12 | AV21: -7.699288867e-13 | AW21: 0.01001432016 | AX21: 0.1042045604 | AZ21: 7.692996228e-06 | BA21: 0 | BB21: 0.002623756339 | BC21: 1.64257523e-10 | BD21: 0 | BE21: 7.69266318e-06 | BF21: 0 | BG21: 0.00262364275 | BH21: 8.837098731e-07 | BI21: =IF(AN21<>"",IF(BF21<>0,AU21*(Sättigungskonz-BG21),0),"") -> 0 | BJ21: 2.932025916e-07 | BK21: 0 | BL21: 9.999902969e-05 | BM21: 5.098662127e-12 | BN21: 0 | BO21: 0.001141552511 | BP21: 0.002622810304 | BQ21: 7.690222402e-06 | BR21: 2622.810304 | BS21: 7.690222402 | BT21: 0.008798409539
Q22: Sanierungszielwert Umrechnung in [kg/m3] | S22: =Sanierungszielwert*(1*10^-6) -> 0.0001 | V22: 1,1-Dichlorethan | W22: =VLOOKUP(V22,Stoffdatenbank!$A$4:$M$45,5,FALSE) -> 0.257 | X22: =VLOOKUP(V22,Stoffdatenbank!$A$4:$M$45,4,FALSE)/1000 -> 0.03574 | Y22: 0.0003574 | Z22: =VLOOKUP(V22,Stoffdatenbank!$A$4:$M$45,7,FALSE) -> 8.7e-06 | AA22: =VLOOKUP(V22,Stoffdatenbank!$A$4:$M$45,6,FALSE) -> 1.14e-09 | AB22: =VLOOKUP(V22,Stoffdatenbank!$A$4:$M$45,8,FALSE)*1000*(1*10^-6) -> 8.69 | AC22: =VLOOKUP(V22,Stoffdatenbank!$A$4:$M$45,9,FALSE) -> 29100 | AD22: =VLOOKUP(V22,Stoffdatenbank!$A$4:$M$45,12,FALSE)/1000 -> 0.09896 | AE22: 0.01016004097 | AF22: =IF(Schadstoffbelastung!Y14<>"",Schadstoffbelastung!Y14*(1*10^-6),"") -> 9.098968903e-08 | AG22: =IF(Schadstoffbelastung!X14<>"",Schadstoffbelastung!X14/1000000,"") ->  | AH22: =IF(Schadstoffbelastung!Z14<>"",Schadstoffbelastung!Z14/1000000,"") -> 0 | AI22: =IF(Schadstoffbelastung!U14<>"",Schadstoffbelastung!U14/1000000,"") ->  | AJ22: =IF(Schadstoffbelastung!W14<>"",Schadstoffbelastung!W14/1000000,"") ->  | AL22: 2206.005012 | AM22: 0.453308127 | AN22: 1.2 | AO22: 10.5003938 | AP22: 1.699606201 | AQ22: =IF(AN22<>"",Schadstoffbelastung!$K$4*Ergebnisse!AO22,"") -> 420.015752 | AR22: =IF(AN22<>"",kf*Ergebnisse!AQ22*Ergebnisse!AM22,"") -> 0.001903965538 | AS22: 4.53308127e-06 | AT22: 4.53308127e-05 | AU22: 1.053271859e-12 | AV22: -7.131864246e-13 | AW22: 0.009170772107 | AX22: 0.09652485982 | AZ22: 7.692996228e-06 | BA22: 0 | BB22: 0.002623756339 | BC22: 1.64257523e-10 | BD22: 0 | BE22: 7.69266318e-06 | BF22: 0 | BG22: 0.00262364275 | BH22: 8.837098731e-07 | BI22: =IF(AN22<>"",IF(BF22<>0,AU22*(Sättigungskonz-BG22),0),"") -> 0 | BJ22: 2.932025916e-07 | BK22: 0 | BL22: 9.999902969e-05 | BM22: 5.098662127e-12 | BN22: 0 | BO22: 0.001255707763 | BP22: 0.002622717826 | BQ22: 7.689951253e-06 | BR22: 2622.717826 | BS22: 7.689951253 | BT22: 0.009678250493
V23: 1,2-Dichlorethan | W23: =VLOOKUP(V23,Stoffdatenbank!$A$4:$M$45,5,FALSE) -> 0.0508 | X23: =VLOOKUP(V23,Stoffdatenbank!$A$4:$M$45,4,FALSE)/1000 -> 0.0396 | Y23: 0.000396 | Z23: =VLOOKUP(V23,Stoffdatenbank!$A$4:$M$45,7,FALSE) -> 7.83e-06 | AA23: =VLOOKUP(V23,Stoffdatenbank!$A$4:$M$45,6,FALSE) -> 9.2e-10 | AB23: =VLOOKUP(V23,Stoffdatenbank!$A$4:$M$45,8,FALSE)*1000*(1*10^-6) -> 8.69 | AC23: =VLOOKUP(V23,Stoffdatenbank!$A$4:$M$45,9,FALSE) -> 10000 | AD23: =VLOOKUP(V23,Stoffdatenbank!$A$4:$M$45,12,FALSE)/1000 -> 0.09896 | AE23: 0 | AF23: =IF(Schadstoffbelastung!Y15<>"",Schadstoffbelastung!Y15*(1*10^-6),"") -> 0 | AG23: =IF(Schadstoffbelastung!X15<>"",Schadstoffbelastung!X15/1000000,"") ->  | AH23: =IF(Schadstoffbelastung!Z15<>"",Schadstoffbelastung!Z15/1000000,"") -> 0 | AI23: =IF(Schadstoffbelastung!U15<>"",Schadstoffbelastung!U15/1000000,"") ->  | AJ23: =IF(Schadstoffbelastung!W15<>"",Schadstoffbelastung!W15/1000000,"") ->  | AL23: 2392.530787 | AM23: 0.4179674534 | AN23: 1.3 | AO23: 10.54572461 | AP23: 1.654275389 | AQ23: =IF(AN23<>"",Schadstoffbelastung!$K$4*Ergebnisse!AO23,"") -> 421.8289845 | AR23: =IF(AN23<>"",kf*Ergebnisse!AQ23*Ergebnisse!AM23,"") -> 0.001763107864 | AS23: 4.179674534e-06 | AT23: 4.179674534e-05 | AU23: 9.814588058e-13 | AV23: -6.645607123e-13 | AW23: 0.008455803096 | AX23: 0.0899437053 | AZ23: 7.692996228e-06 | BA23: 0 | BB23: 0.002623756339 | BC23: 1.64257523e-10 | BD23: 0 | BE23: 7.69266318e-06 | BF23: 0 | BG23: 0.00262364275 | BH23: 8.837098731e-07 | BI23: 0 | BJ23: 2.932025916e-07 | BK23: 0 | BL23: 9.999902969e-05 | BM23: 5.098662127e-12 | BN23: 0 | BO23: 0.001369863014 | BP23: 0.002622625352 | BQ23: 7.689680112e-06 | BR23: 2622.625352 | BS23: 7.689680112 | BT23: 0.01055809145
V24: Summe LCKW | W24: =SUM(IF($AE$11:$AE$23<>"",W11:W23*$AE$11:$AE$23,0)) -> 2.555556201 | X24: =SUM(IF($AE$11:$AE$23<>"",X11:X23*$AE$11:$AE$23,0)) -> 0.1380059668 | Y24: =SUM(IF($AE$11:$AE$23<>"",Y11:Y23*$AE$11:$AE$23,0)) -> 0.001380059668 | Z24: =SUM(IF($AE$11:$AE$23<>"",Z11:Z23*$AE$11:$AE$23,0)) -> 7.124169681e-06 | AA24: =SUM(IF($AE$11:$AE$23<>"",AA11:AA23*$AE$11:$AE$23,0)) -> 7.742047451e-10 | AB24: =SUM(IF($AE$11:$AE$23<>"",AB11:AB23*$AE$11:$AE$23,0)) -> 2.354502117 | AC24: =SUM(IF($AE$11:$AE$23<>"",AC11:AC23*$AE$11:$AE$23,0)) -> 96576.29456 | AD24: =SUM(IF($AE$11:$AE$23<>"",AD11:AD23*$AE$11:$AE$23,0)) -> 0.1074895625 | AE24: =IF(SUM(AE11:AE23)<>0,SUM(AE11:AE23),"") -> 1 | AF24: =IF(SUM(AF11:AF23)<>0,SUM(AF11:AF23),"") -> 8.955641945e-06 | AG24: =IF(SUM(AG11:AG23)<>0,SUM(AG11:AG23),"") -> 0.005881371446 | AH24: =IF(SUM(AH11:AH23)<>0,SUM(AH11:AH23),0) -> 0 | AI24: =IF(SUM(AI11:AI23)<>0,SUM(AI11:AI23),"") -> 1.088636 | AJ24: =IF(SUM(AJ11:AJ23)<>0,SUM(AJ11:AJ23),"") -> 5.368673126 | AL24: 2579.708561 | AM24: 0.3876406874 | AN24: 1.4 | AO24: 10.58752136 | AP24: 1.612478643 | AQ24: =IF(AN24<>"",Schadstoffbelastung!$K$4*Ergebnisse!AO24,"") -> 423.5008543 | AR24: =IF(AN24<>"",kf*Ergebnisse!AQ24*Ergebnisse!AM24,"") -> 0.001641661623 | AS24: 3.876406874e-06 | AT24: 3.876406874e-05 | AU24: 9.192035017e-13 | AV24: -6.224066973e-13 | AW24: 0.007842269291 | AX24: 0.08423845033 | AZ24: 7.692996228e-06 | BA24: 0 | BB24: 0.002623756339 | BC24: 1.64257523e-10 | BD24: 0 | BE24: 7.69266318e-06 | BF24: 0 | BG24: 0.00262364275 | BH24: 8.837098731e-07 | BI24: 0 | BJ24: 2.932025916e-07 | BK24: 0 | BL24: 9.999902969e-05 | BM24: 5.098662127e-12 | BN24: 0 | BO24: 0.001484018265 | BP24: 0.002622532881 | BQ24: 7.689408982e-06 | BR24: 2622.532881 | BS24: 7.689408982 | BT24: 0.0114379324
V25: Mittelwert | W25: =AVERAGE(W11:W23) -> 0.9030538462 | X25: =AVERAGE(X11:X23) -> 0.1032653846 | Y25: 0.001032653846 | Z25: 7.62e-06 | AA25: 8.559076923e-10 | AB25: 4.964538462 | AC25: 35522.79692 | AD25: 0.1133636923 | AF25: =AVERAGE(AF11:AF23) -> 6.888955342e-07 | AL25: 2767.492699 | AM25: 0.3613379 | AN25: 1.5 | AO25: 10.62628543 | AP25: 1.573714574 | AQ25: =IF(AN25<>"",Schadstoffbelastung!$K$4*Ergebnisse!AO25,"") -> 425.051417 | AR25: =IF(AN25<>"",kf*Ergebnisse!AQ25*Ergebnisse!AM25,"") -> 0.001535871864 | AS25: 3.613379e-06 | AT25: 3.613379e-05 | AU25: 8.646948858e-13 | AV25: -5.854980829e-13 | AW25: 0.007310143669 | AX25: 0.07924312414 | AZ25: 7.692996228e-06 | BA25: 0 | BB25: 0.002623756339 | BC25: 1.64257523e-10 | BD25: 0 | BE25: 7.69266318e-06 | BF25: 0 | BG25: 0.00262364275 | BH25: 8.837098731e-07 | BI25: 0 | BJ25: 2.932025916e-07 | BK25: 0 | BL25: 9.999902969e-05 | BM25: 5.098662127e-12 | BN25: 0 | BO25: 0.001598173516 | BP25: 0.002622440413 | BQ25: 7.689137861e-06 | BR25: 2622.440413 | BS25: 7.689137861 | BT25: 0.01231777335
Q26: Parameter Sanierungsdesign | AL26: 2955.843352 | AM26: 0.3383129215 | AN26: 1.6 | AO26: 10.66241922 | AP26: 1.537580784 | AQ26: =IF(AN26<>"",Schadstoffbelastung!$K$4*Ergebnisse!AO26,"") -> 426.4967686 | AR26: =IF(AN26<>"",kf*Ergebnisse!AQ26*Ergebnisse!AM26,"") -> 0.001442893678 | AS26: 3.383129215e-06 | AT26: 3.383129215e-05 | AU26: 8.165547334e-13 | AV26: -5.529016523e-13 | AW26: 0.006844330643 | AX26: 0.07483142224 | AZ26: 7.692996228e-06 | BA26: 0 | BB26: 0.002623756339 | BC26: 1.64257523e-10 | BD26: 0 | BE26: 7.69266318e-06 | BF26: 0 | BG26: 0.00262364275 | BH26: 8.837098731e-07 | BI26: 0 | BJ26: 2.932025916e-07 | BK26: 0 | BL26: 9.999902969e-05 | BM26: 5.098662127e-12 | BN26: 0 | BO26: 0.001712328767 | BP26: 0.002622347948 | BQ26: 7.688866749e-06 | BR26: 2622.347948 | BS26: 7.688866749 | BT26: 0.01319761431
AL27: 3144.725449 | AM27: 0.3179927839 | AN27: 1.7 | AO27: 10.69625051 | AP27: 1.503749492 | AQ27: =IF(AN27<>"",Schadstoffbelastung!$K$4*Ergebnisse!AO27,"") -> 427.8500203 | AR27: =IF(AN27<>"",kf*Ergebnisse!AQ27*Ergebnisse!AM27,"") -> 0.00136053219 | AS27: 3.179927839e-06 | AT27: 3.179927839e-05 | AU27: 7.737152405e-13 | AV27: -5.238943788e-13 | AW27: 0.006433238627 | AX27: 0.070905488 | AZ27: 7.692996228e-06 | BA27: 0 | BB27: 0.002623756339 | BC27: 1.64257523e-10 | BD27: 0 | BE27: 7.69266318e-06 | BF27: 0 | BG27: 0.00262364275 | BH27: 8.837098731e-07 | BI27: 0 | BJ27: 2.932025916e-07 | BK27: 0 | BL27: 9.999902969e-05 | BM27: 5.098662127e-12 | BN27: 0 | BO27: 0.001826484018 | BP27: 0.002622255486 | BQ27: 7.688595647e-06 | BR27: 2622.255486 | BS27: 7.688595647 | BT27: 0.01407745526
Q28: Höhe Grundwasserspiegel [m] | R28: HR | S28: =Aquifermächtigkeit-Gruundwasserstand -> 12.2 | V28: Benzol | W28: =VLOOKUP(V28,Stoffdatenbank!$A$4:$M$45,5,FALSE) -> 0.15 | X28: =VLOOKUP(V28,Stoffdatenbank!$A$4:$M$45,4,FALSE)/1000 -> 0.08 | Y28: =X28*foc -> 0.0008 | Z28: =VLOOKUP(V28,Stoffdatenbank!$A$4:$M$45,7,FALSE) -> 7.59e-06 | AA28: =VLOOKUP(V28,Stoffdatenbank!$A$4:$M$45,6,FALSE) -> 8.15e-10 | AB28: =VLOOKUP(V28,Stoffdatenbank!$A$4:$M$45,8,FALSE)*1000*(1*10^-6) -> 1.77 | AC28: =VLOOKUP(V28,Stoffdatenbank!$A$4:$M$45,9,FALSE) -> 7941 | AD28: =VLOOKUP(V28,Stoffdatenbank!$A$4:$M$45,12,FALSE)/1000 -> 0.078 | AE28: =IF(AF28<>"",AF28/$AF$45,"") -> 0 | AF28: =IF(Schadstoffbelastung!Y17<>"",Schadstoffbelastung!Y17/1000000,"") -> 0 | AG28: =IF(Schadstoffbelastung!X17<>"",Schadstoffbelastung!X17,"") ->  | AH28: =IF(Schadstoffbelastung!Z17<>"",Schadstoffbelastung!Z17/1000000,"") -> 0 | AI28: =IF(Schadstoffbelastung!U17<>"",Schadstoffbelastung!U17/1000000,"") ->  | AJ28: =IF(Schadstoffbelastung!W17<>"",Schadstoffbelastung!W17/1000000,"") ->  | AL28: 3334.107895 | AM28: 0.2999303057 | AN28: 1.8 | AO28: 10.72804979 | AP28: 1.471950214 | AQ28: =IF(AN28<>"",Schadstoffbelastung!$K$4*Ergebnisse!AO28,"") -> 429.1219914 | AR28: =IF(AN28<>"",kf*Ergebnisse!AQ28*Ergebnisse!AM28,"") -> 0.001287066901 | AS28: 2.999303057e-06 | AT28: 2.999303057e-05 | AU28: 7.353360127e-13 | AV28: -4.979072189e-13 | AW28: 0.006067820799 | AX28: 0.06738830528 | AZ28: 7.692996228e-06 | BA28: 0 | BB28: 0.002623756339 | BC28: 1.64257523e-10 | BD28: 0 | BE28: 7.69266318e-06 | BF28: 0 | BG28: 0.00262364275 | BH28: 8.837098731e-07 | BI28: 0 | BJ28: 2.932025916e-07 | BK28: 0 | BL28: 9.999902969e-05 | BM28: 5.098662127e-12 | BN28: 0 | BO28: 0.001940639269 | BP28: 0.002622163028 | BQ28: 7.688324555e-06 | BR28: 2622.163028 | BS28: 7.688324555 | BT28: 0.01495729622
Q29: Höhe Grundwasserspiegel-Absenkung [m] | R29: H0 | S29: =S28-Absenkung -> 8.98 | V29: Toluol | W29: =VLOOKUP(V29,Stoffdatenbank!$A$4:$M$45,5,FALSE) -> 0.16 | X29: =VLOOKUP(V29,Stoffdatenbank!$A$4:$M$45,4,FALSE)/1000 -> 0.3 | Y29: 0.003 | Z29: =VLOOKUP(V29,Stoffdatenbank!$A$4:$M$45,7,FALSE) -> 6.9e-06 | AA29: =VLOOKUP(V29,Stoffdatenbank!$A$4:$M$45,6,FALSE) -> 7.34e-10 | AB29: =VLOOKUP(V29,Stoffdatenbank!$A$4:$M$45,8,FALSE)*1000*(1*10^-6) -> 0.52 | AC29: =VLOOKUP(V29,Stoffdatenbank!$A$4:$M$45,9,FALSE) -> 2215 | AD29: =VLOOKUP(V29,Stoffdatenbank!$A$4:$M$45,12,FALSE)/1000 -> 0.092 | AE29: =IF(AF29<>"",AF29/$AF$45,"") -> 0.0005444377491 | AF29: =IF(Schadstoffbelastung!Y18<>"",Schadstoffbelastung!Y18/1000000,"") -> 7.497550376e-09 | AG29: =IF(Schadstoffbelastung!X18<>"",Schadstoffbelastung!X18/1000000,"") -> 0.0004368626581 | AH29: =IF(Schadstoffbelastung!Z18<>"",Schadstoffbelastung!Z18/1000000,"") -> 0 | AI29: =IF(Schadstoffbelastung!U18<>"",Schadstoffbelastung!U18/1000000,"") -> 0.136067 | AJ29: =IF(Schadstoffbelastung!W18<>"",Schadstoffbelastung!W18/1000000,"") -> 0.08659405111 | AL29: 3523.962942 | AM29: 0.283771429 | AN29: 1.9 | AO29: 10.75804282 | AP29: 1.441957183 | AQ29: =IF(AN29<>"",Schadstoffbelastung!$K$4*Ergebnisse!AO29,"") -> 430.3217127 | AR29: =IF(AN29<>"",kf*Ergebnisse!AQ29*Ergebnisse!AM29,"") -> 0.001221130073 | AS29: 2.83771429e-06 | AT29: 2.83771429e-05 | AU29: 7.007463943e-13 | AV29: -4.744860612e-13 | AW29: 0.005740914295 | AX29: 0.06421841325 | AZ29: 7.692996228e-06 | BA29: 0 | BB29: 0.002623756339 | BC29: 1.64257523e-10 | BD29: 0 | BE29: 7.69266318e-06 | BF29: 0 | BG29: 0.00262364275 | BH29: 8.837098731e-07 | BI29: 0 | BJ29: 2.932025916e-07 | BK29: 0 | BL29: 9.999902969e-05 | BM29: 5.098662127e-12 | BN29: 0 | BO29: 0.002054794521 | BP29: 0.002622070573 | BQ29: 7.688053472e-06 | BR29: 2622.070573 | BS29: 7.688053472 | BT29: 0.01583713717
Q30: nutzbare Porenanteil [-] | R30: npeff | S30: =neff -> 0.1 | V30: Ethylbenzol | W30: =VLOOKUP(V30,Stoffdatenbank!$A$4:$M$45,5,FALSE) -> 0.19 | X30: =VLOOKUP(V30,Stoffdatenbank!$A$4:$M$45,4,FALSE)/1000 -> 1.1 | Y30: 0.011 | Z30: =VLOOKUP(V30,Stoffdatenbank!$A$4:$M$45,7,FALSE) -> 6.39e-06 | AA30: =VLOOKUP(V30,Stoffdatenbank!$A$4:$M$45,6,FALSE) -> 6.76e-10 | AB30: =VLOOKUP(V30,Stoffdatenbank!$A$4:$M$45,8,FALSE)*1000*(1*10^-6) -> 0.17 | AC30: =VLOOKUP(V30,Stoffdatenbank!$A$4:$M$45,9,FALSE) -> 728 | AD30: =VLOOKUP(V30,Stoffdatenbank!$A$4:$M$45,12,FALSE)/1000 -> 0.106 | AE30: 0.1210448976 | AF30: =IF(Schadstoffbelastung!Y19<>"",Schadstoffbelastung!Y19/1000000,"") -> 1.666931103e-06 | AG30: =IF(Schadstoffbelastung!X19<>"",Schadstoffbelastung!X19/1000000,"") -> 0.0004217529608 | AH30: =IF(Schadstoffbelastung!Z19<>"",Schadstoffbelastung!Z19/1000000,"") -> 0 | AI30: =IF(Schadstoffbelastung!U19<>"",Schadstoffbelastung!U19/1000000,"") -> 0.136067 | AJ30: =IF(Schadstoffbelastung!W19<>"",Schadstoffbelastung!W19/1000000,"") -> 0.0245705907 | AL30: 3714.265686 | AM30: 0.269232221 | AN30: 2 | AO30: 10.78641996 | AP30: 1.41358004 | AQ30: =IF(AN30<>"",Schadstoffbelastung!$K$4*Ergebnisse!AO30,"") -> 431.4567984 | AR30: =IF(AN30<>"",kf*Ergebnisse!AQ30*Ergebnisse!AM30,"") -> 0.001161620721 | AS30: 2.69232221e-06 | AT30: 2.69232221e-05 | AU30: 6.694045358e-13 | AV30: -4.532640112e-13 | AW30: 0.005446774933 | AX30: 0.06134615527 | AZ30: 7.692996228e-06 | BA30: 0 | BB30: 0.002623756339 | BC30: 1.64257523e-10 | BD30: 0 | BE30: 7.69266318e-06 | BF30: 0 | BG30: 0.00262364275 | BH30: 8.837098731e-07 | BI30: 0 | BJ30: 2.932025916e-07 | BK30: 0 | BL30: 9.999902969e-05 | BM30: 5.098662127e-12 | BN30: 0 | BO30: 0.002168949772 | BP30: 0.002621978122 | BQ30: 7.687782399e-06 | BR30: 2621.978122 | BS30: 7.687782399 | BT30: 0.01671697812
V31: o-Xylol | W31: =VLOOKUP(V31,Stoffdatenbank!$A$4:$M$45,5,FALSE) -> 0.12 | X31: =VLOOKUP(V31,Stoffdatenbank!$A$4:$M$45,4,FALSE)/1000 -> 0.83 | Y31: 0.0083 | Z31: =VLOOKUP(V31,Stoffdatenbank!$A$4:$M$45,7,FALSE) -> 6.42e-06 | AA31: =VLOOKUP(V31,Stoffdatenbank!$A$4:$M$45,6,FALSE) -> 6.8e-10 | AB31: =VLOOKUP(V31,Stoffdatenbank!$A$4:$M$45,8,FALSE)*1000*(1*10^-6) -> 0.18 | AC31: =VLOOKUP(V31,Stoffdatenbank!$A$4:$M$45,9,FALSE) -> 492 | AD31: =VLOOKUP(V31,Stoffdatenbank!$A$4:$M$45,12,FALSE)/1000 -> 0.106 | AE31: 0.1134597698 | AF31: =IF(Schadstoffbelastung!Y20<>"",Schadstoffbelastung!Y20/1000000,"") -> 1.56247494e-06 | AG31: =IF(Schadstoffbelastung!X20<>"",Schadstoffbelastung!X20/1000000,"") -> 0.0003401438395 | AH31: =IF(Schadstoffbelastung!Z20<>"",Schadstoffbelastung!Z20/1000000,"") -> 0 | AI31: =IF(Schadstoffbelastung!U20<>"",Schadstoffbelastung!U20/1000000,"") -> 0.136067 | AJ31: =IF(Schadstoffbelastung!W20<>"",Schadstoffbelastung!W20/1000000,"") -> 0.02601591956 | AL31: 3904.993652 | AM31: 0.2560823625 | AN31: 2.1 | AO31: 10.81334318 | AP31: 1.386656818 | AQ31: =IF(AN31<>"",Schadstoffbelastung!$K$4*Ergebnisse!AO31,"") -> 432.5337273 | AR31: =IF(AN31<>"",kf*Ergebnisse!AQ31*Ergebnisse!AM31,"") -> 0.001107642588 | AS31: 2.560823625e-06 | AT31: 2.560823625e-05 | AU31: 6.408677867e-13 | AV31: -4.339413436e-13 | AW31: 0.005180743181 | AX31: 0.05873096558 | AZ31: 7.692996228e-06 | BA31: 0 | BB31: 0.002623756339 | BC31: 1.64257523e-10 | BD31: 0 | BE31: 7.69266318e-06 | BF31: 0 | BG31: 0.00262364275 | BH31: 8.837098731e-07 | BI31: 0 | BJ31: 2.932025916e-07 | BK31: 0 | BL31: 9.999902969e-05 | BM31: 5.098662127e-12 | BN31: 0 | BO31: 0.002283105023 | BP31: 0.002621885673 | BQ31: 7.687511335e-06 | BR31: 2621.885673 | BS31: 7.687511335 | BT31: 0.01759681908
V32: m-Xylol | W32: =VLOOKUP(V32,Stoffdatenbank!$A$4:$M$45,5,FALSE) -> 0.16 | X32: =VLOOKUP(V32,Stoffdatenbank!$A$4:$M$45,4,FALSE)/1000 -> 0.98 | Y32: 0.0098 | Z32: =VLOOKUP(V32,Stoffdatenbank!$A$4:$M$45,7,FALSE) -> 6.36e-06 | AA32: =VLOOKUP(V32,Stoffdatenbank!$A$4:$M$45,6,FALSE) -> 6.71e-10 | AB32: =VLOOKUP(V32,Stoffdatenbank!$A$4:$M$45,8,FALSE)*1000*(1*10^-6) -> 0.174 | AC32: =VLOOKUP(V32,Stoffdatenbank!$A$4:$M$45,9,FALSE) -> 615 | AD32: =VLOOKUP(V32,Stoffdatenbank!$A$4:$M$45,12,FALSE)/1000 -> 0.106 | AE32: 0.2728796 | AF32: =IF(Schadstoffbelastung!Y21<>"",Schadstoffbelastung!Y21/1000000,"") -> 3.757874157e-06 | AG32: =IF(Schadstoffbelastung!X21<>"",Schadstoffbelastung!X21/1000000,"") -> 0.0003859561829 | AH32: =IF(Schadstoffbelastung!Z21<>"",Schadstoffbelastung!Z21/1000000,"") -> 0 | AI32: =IF(Schadstoffbelastung!U21<>"",Schadstoffbelastung!U21/1000000,"") -> 0.136067 | AJ32: =IF(Schadstoffbelastung!W21<>"",Schadstoffbelastung!W21/1000000,"") -> 0.02514872225 | AL32: 4096.126463 | AM32: 0.2441330875 | AN32: 2.2 | AO32: 10.83895142 | AP32: 1.361048582 | AQ32: =IF(AN32<>"",Schadstoffbelastung!$K$4*Ergebnisse!AO32,"") -> 433.5580567 | AR32: =IF(AN32<>"",kf*Ergebnisse!AQ32*Ergebnisse!AM32,"") -> 0.00105845867 | AS32: 2.441330875e-06 | AT32: 2.441330875e-05 | AU32: 6.147709128e-13 | AV32: -4.162707526e-13 | AW32: 0.004939000154 | AX32: 0.05633937306 | AZ32: 7.692996228e-06 | BA32: 0 | BB32: 0.002623756339 | BC32: 1.64257523e-10 | BD32: 0 | BE32: 7.69266318e-06 | BF32: 0 | BG32: 0.00262364275 | BH32: 8.837098731e-07 | BI32: 0 | BJ32: 2.932025916e-07 | BK32: 0 | BL32: 9.999902969e-05 | BM32: 5.098662127e-12 | BN32: 0 | BO32: 0.002397260274 | BP32: 0.002621793228 | BQ32: 7.687240281e-06 | BR32: 2621.793228 | BS32: 7.687240281 | BT32: 0.01847666003
Q33: Parameter nach Schadstoffauswahl | S33: n-Alkane | V33: p-Xylol | W33: =VLOOKUP(V33,Stoffdatenbank!$A$4:$M$45,5,FALSE) -> 0.15 | X33: =VLOOKUP(V33,Stoffdatenbank!$A$4:$M$45,4,FALSE)/1000 -> 0.88 | Y33: 0.0088 | Z33: =VLOOKUP(V33,Stoffdatenbank!$A$4:$M$45,7,FALSE) -> 6.36e-06 | AA33: =VLOOKUP(V33,Stoffdatenbank!$A$4:$M$45,6,FALSE) -> 6.71e-10 | AB33: =VLOOKUP(V33,Stoffdatenbank!$A$4:$M$45,8,FALSE)*1000*(1*10^-6) -> 0.2 | AC33: =VLOOKUP(V33,Stoffdatenbank!$A$4:$M$45,9,FALSE) -> 657 | AD33: =VLOOKUP(V33,Stoffdatenbank!$A$4:$M$45,12,FALSE)/1000 -> 0.106 | AE33: 0.2728796 | AF33: =IF(Schadstoffbelastung!Y22<>"",Schadstoffbelastung!Y22/1000000,"") -> 3.757874157e-06 | AG33: =IF(Schadstoffbelastung!X22<>"",Schadstoffbelastung!X22/1000000,"") -> 0.0003998343318 | AH33: =IF(Schadstoffbelastung!Z22<>"",Schadstoffbelastung!Z22/1000000,"") -> 0 | AI33: =IF(Schadstoffbelastung!U22<>"",Schadstoffbelastung!U22/1000000,"") -> 0.136067 | AJ33: =IF(Schadstoffbelastung!W22<>"",Schadstoffbelastung!W22/1000000,"") -> 0.02890657729 | AL33: 4287.645562 | AM33: 0.2332282335 | AN33: 2.3 | AO33: 10.86336473 | AP33: 1.336635273 | AQ33: =IF(AN33<>"",Schadstoffbelastung!$K$4*Ergebnisse!AO33,"") -> 434.5345891 | AR33: =IF(AN33<>"",kf*Ergebnisse!AQ33*Ergebnisse!AM33,"") -> 0.001013457346 | AS33: 2.332282335e-06 | AT33: 2.332282335e-05 | AU33: 5.908098239e-13 | AV33: -4.000463342e-13 | AW33: 0.004718386569 | AX33: 0.05414351003 | AZ33: 7.692996228e-06 | BA33: 0 | BB33: 0.002623756339 | BC33: 1.64257523e-10 | BD33: 0 | BE33: 7.69266318e-06 | BF33: 0 | BG33: 0.00262364275 | BH33: 8.837098731e-07 | BI33: 0 | BJ33: 2.932025916e-07 | BK33: 0 | BL33: 9.999902969e-05 | BM33: 5.098662127e-12 | BN33: 0 | BO33: 0.002511415525 | BP33: 0.002621700786 | BQ33: 7.686969237e-06 | BR33: 2621.700786 | BS33: 7.686969237 | BT33: 0.01935650099
V34: n-Propylbenzol | W34: =VLOOKUP(V34,Stoffdatenbank!$A$4:$M$45,5,FALSE) -> 0.2 | X34: =VLOOKUP(V34,Stoffdatenbank!$A$4:$M$45,4,FALSE)/1000 -> 0.98 | Y34: 0.0098 | Z34: =VLOOKUP(V34,Stoffdatenbank!$A$4:$M$45,7,FALSE) -> 6e-06 | AA34: =VLOOKUP(V34,Stoffdatenbank!$A$4:$M$45,6,FALSE) -> 6.2e-10 | AB34: =VLOOKUP(V34,Stoffdatenbank!$A$4:$M$45,8,FALSE)*1000*(1*10^-6) -> 0.06 | AC34: =VLOOKUP(V34,Stoffdatenbank!$A$4:$M$45,9,FALSE) -> 237 | AD34: =VLOOKUP(V34,Stoffdatenbank!$A$4:$M$45,12,FALSE)/1000 -> 0.12 | AE34: 0.00346220122 | AF34: =IF(Schadstoffbelastung!Y23<>"",Schadstoffbelastung!Y23/1000000,"") -> 4.767859705e-08 | AG34: =IF(Schadstoffbelastung!X23<>"",Schadstoffbelastung!X23/1000000,"") -> 0.000117561366 | AH34: =IF(Schadstoffbelastung!Z23<>"",Schadstoffbelastung!Z23/1000000,"") -> 0 | AI34: =IF(Schadstoffbelastung!U23<>"",Schadstoffbelastung!U23/1000000,"") -> 0.136067 | AJ34: =IF(Schadstoffbelastung!W23<>"",Schadstoffbelastung!W23/1000000,"") -> 0.007660242983 | AL34: 4479.53398 | AM34: 0.2232375074 | AN34: 2.4 | AO34: 10.88668755 | AP34: 1.31331245 | AQ34: =IF(AN34<>"",Schadstoffbelastung!$K$4*Ergebnisse!AO34,"") -> 435.467502 | AR34: =IF(AN34<>"",kf*Ergebnisse!AQ34*Ergebnisse!AM34,"") -> 0.000972126797 | AS34: 2.232375074e-06 | AT34: 2.232375074e-05 | AU34: 5.687292496e-13 | AV34: -3.850952409e-13 | AW34: 0.004516266496 | AX34: 0.05211998275 | AZ34: 7.692996228e-06 | BA34: 0 | BB34: 0.002623756339 | BC34: 1.64257523e-10 | BD34: 0 | BE34: 7.69266318e-06 | BF34: 0 | BG34: 0.00262364275 | BH34: 8.837098731e-07 | BI34: 0 | BJ34: 2.932025916e-07 | BK34: 0 | BL34: 9.999902969e-05 | BM34: 5.098662127e-12 | BN34: 0 | BO34: 0.002625570776 | BP34: 0.002621608348 | BQ34: 7.686698202e-06 | BR34: 2621.608348 | BS34: 7.686698202 | BT34: 0.02023634194
Q35: Verteilungskoeffizient Kohlenstoff/Wasser | R35: Koc | S35: 0.2746191229 | V35: Isopropylbenzol | W35: =VLOOKUP(V35,Stoffdatenbank!$A$4:$M$45,5,FALSE) -> 0.43 | X35: =VLOOKUP(V35,Stoffdatenbank!$A$4:$M$45,4,FALSE)/1000 -> 0.94 | Y35: 0.0094 | Z35: =VLOOKUP(V35,Stoffdatenbank!$A$4:$M$45,7,FALSE) -> 6e-06 | AA35: =VLOOKUP(V35,Stoffdatenbank!$A$4:$M$45,6,FALSE) -> 6.2e-10 | AB35: =VLOOKUP(V35,Stoffdatenbank!$A$4:$M$45,8,FALSE)*1000*(1*10^-6) -> 0.05 | AC35: =VLOOKUP(V35,Stoffdatenbank!$A$4:$M$45,9,FALSE) -> 427 | AD35: =VLOOKUP(V35,Stoffdatenbank!$A$4:$M$45,12,FALSE)/1000 -> 0.12 | AE35: 0.005946528813 | AF35: =IF(Schadstoffbelastung!Y24<>"",Schadstoffbelastung!Y24/1000000,"") -> 8.189072013e-08 | AG35: =IF(Schadstoffbelastung!X24<>"",Schadstoffbelastung!X24/1000000,"") -> 9.409938233e-05 | AH35: =IF(Schadstoffbelastung!Z24<>"",Schadstoffbelastung!Z24/1000000,"") -> 0 | AI35: =IF(Schadstoffbelastung!U24<>"",Schadstoffbelastung!U24/1000000,"") -> 0.136067 | AJ35: =IF(Schadstoffbelastung!W24<>"",Schadstoffbelastung!W24/1000000,"") -> 0.006383535819 | AL35: 4671.776146 | AM35: 0.214051352 | AN35: 2.5 | AO35: 10.9090113 | AP35: 1.290988699 | AQ35: =IF(AN35<>"",Schadstoffbelastung!$K$4*Ergebnisse!AO35,"") -> 436.360452 | AR35: =IF(AN35<>"",kf*Ergebnisse!AQ35*Ergebnisse!AM35,"") -> 0.000934035447 | AS35: 2.14051352e-06 | AT35: 2.14051352e-05 | AU35: 5.483132865e-13 | AV35: -3.712712812e-13 | AW35: 0.004330423505 | AX35: 0.05024900522 | AZ35: 7.692996228e-06 | BA35: 0 | BB35: 0.002623756339 | BC35: 1.64257523e-10 | BD35: 0 | BE35: 7.69266318e-06 | BF35: 0 | BG35: 0.00262364275 | BH35: 8.837098731e-07 | BI35: 0 | BJ35: 2.932025916e-07 | BK35: 0 | BL35: 9.999902969e-05 | BM35: 5.098662127e-12 | BN35: 0 | BO35: 0.002739726027 | BP35: 0.002621515912 | BQ35: 7.686427176e-06 | BR35: 2621.515912 | BS35: 7.686427176 | BT35: 0.02111618289
Q36: Diffusionskoeffizient in Wasser [m2/s] | R36: Dw | S36: 6.341848417e-10 | V36: o-Ethyltoluol | W36: =VLOOKUP(V36,Stoffdatenbank!$A$4:$M$45,5,FALSE) -> 0.11 | X36: =VLOOKUP(V36,Stoffdatenbank!$A$4:$M$45,4,FALSE)/1000 -> 0.79 | Y36: 0.0079 | Z36: =VLOOKUP(V36,Stoffdatenbank!$A$4:$M$45,7,FALSE) -> 6e-06 | AA36: =VLOOKUP(V36,Stoffdatenbank!$A$4:$M$45,6,FALSE) -> 6.3e-10 | AB36: =VLOOKUP(V36,Stoffdatenbank!$A$4:$M$45,8,FALSE)*1000*(1*10^-6) -> 0.093 | AC36: =VLOOKUP(V36,Stoffdatenbank!$A$4:$M$45,9,FALSE) -> 202 | AD36: =VLOOKUP(V36,Stoffdatenbank!$A$4:$M$45,12,FALSE)/1000 -> 0.12 | AE36: 0.005946528813 | AF36: =IF(Schadstoffbelastung!Y25<>"",Schadstoffbelastung!Y25/1000000,"") -> 8.189072013e-08 | AG36: =IF(Schadstoffbelastung!X25<>"",Schadstoffbelastung!X25/1000000,"") ->  | AH36: =IF(Schadstoffbelastung!Z25<>"",Schadstoffbelastung!Z25/1000000,"") -> 0 | AI36: =IF(Schadstoffbelastung!U25<>"",Schadstoffbelastung!U25/1000000,"") ->  | AJ36: =IF(Schadstoffbelastung!W25<>"",Schadstoffbelastung!W25/1000000,"") ->  | AL36: 4864.357717 | AM36: 0.2055769863 | AN36: 2.6 | AO36: =IF(AN36="","",SQRT(($S$29^2)+(($S$28^2)-($S$29^2))*(LN(AN36)-LN(Brunnenradius))/(LN(ReichweiteAbsenkung)-LN(Brunnenradius)))) -> 10.93041644 | AP36: 1.269583564 | AQ36: =IF(AN36<>"",Schadstoffbelastung!$K$4*Ergebnisse!AO36,"") -> 437.2166574 | AR36: =IF(AN36<>"",kf*Ergebnisse!AQ36*Ergebnisse!AM36,"") -> 0.0008988168281 | AS36: 2.055769863e-06 | AT36: 2.055769863e-05 | AU36: 5.293780649e-13 | AV36: -3.584499542e-13 | AW36: =IF(AN36<>"",((d_50*2)*kf*AM36)/($S$13*neff),"") -> 0.00415898057 | AX36: =IF(AN36<>"",150*(AW36^0.87)*(0.016^0.79),"") -> 0.0485137271 | AZ36: 7.692996228e-06 | BA36: 0 | BB36: 0.002623756339 | BC36: 1.64257523e-10 | BD36: 0 | BE36: 7.69266318e-06 | BF36: 0 | BG36: 0.00262364275 | BH36: 8.837098731e-07 | BI36: 0 | BJ36: 2.932025916e-07 | BK36: 0 | BL36: 9.999902969e-05 | BM36: 5.098662127e-12 | BN36: 0 | BO36: 0.002853881279 | BP36: 0.00262142348 | BQ36: 7.68615616e-06 | BR36: 2621.42348 | BS36: 7.68615616 | BT36: 0.02199602385
Q37: Sorbierte/Gesamte Konz. im Boden [kg/m3] | R37: Cges | S37: 7.692996228e-06 | V37: m-Ethyltoluol | W37: =VLOOKUP(V37,Stoffdatenbank!$A$4:$M$45,5,FALSE) -> 0.1 | X37: =VLOOKUP(V37,Stoffdatenbank!$A$4:$M$45,4,FALSE)/1000 -> 0.76 | Y37: 0.0076 | Z37: =VLOOKUP(V37,Stoffdatenbank!$A$4:$M$45,7,FALSE) -> 6e-06 | AA37: =VLOOKUP(V37,Stoffdatenbank!$A$4:$M$45,6,FALSE) -> 6.2e-10 | AB37: =VLOOKUP(V37,Stoffdatenbank!$A$4:$M$45,8,FALSE)*1000*(1*10^-6) -> 0.097 | AC37: =VLOOKUP(V37,Stoffdatenbank!$A$4:$M$45,9,FALSE) -> 202 | AD37: =VLOOKUP(V37,Stoffdatenbank!$A$4:$M$45,12,FALSE)/1000 -> 0.12 | AE37: 0.00346220122 | AF37: =IF(Schadstoffbelastung!Y26<>"",Schadstoffbelastung!Y26/1000000,"") -> 4.767859705e-08 | AG37: =IF(Schadstoffbelastung!X26<>"",Schadstoffbelastung!X26/1000000,"") ->  | AH37: =IF(Schadstoffbelastung!Z26<>"",Schadstoffbelastung!Z26/1000000,"") -> 0 | AI37: =IF(Schadstoffbelastung!U26<>"",Schadstoffbelastung!U26/1000000,"") ->  | AJ37: =IF(Schadstoffbelastung!W26<>"",Schadstoffbelastung!W26/1000000,"") ->  | AL37: 5057.265447 | AM37: =IF(AN37<>"",(AO38-AO37)/(AN38-AN37),"") -> 0.1977353197 | AN37: 2.7 | AO37: 10.95097413 | AP37: =IF(AN37<>"",$S$28-AO37,"") -> 1.249025865 | AQ37: =IF(AN37<>"",Schadstoffbelastung!$K$4*Ergebnisse!AO37,"") -> 438.0389654 | AR37: =IF(AN37<>"",kf*Ergebnisse!AQ37*Ergebnisse!AM37,"") -> 0.0008661577486 | AS37: =IF(AN37<>"",AR37/AQ37,"") -> 1.977353197e-06 | AT37: =IF(AS37<>"",AS37/$S$30,"") -> 1.977353197e-05 | AU37: 5.117659996e-13 | AV37: -3.465245564e-13 | AW37: 0.004000337622 | AX37: 0.04689970682 | AZ37: 7.692996228e-06 | BA37: 0 | BB37: 0.002623756339 | BC37: 1.64257523e-10 | BD37: 0 | BE37: 7.69266318e-06 | BF37: 0 | BG37: 0.00262364275 | BH37: 8.837098731e-07 | BI37: 0 | BJ37: 2.932025916e-07 | BK37: 0 | BL37: 9.999902969e-05 | BM37: 5.098662127e-12 | BN37: 0 | BO37: 0.00296803653 | BP37: 0.002621331052 | BQ37: 7.685885154e-06 | BR37: 2621.331052 | BS37: 7.685885154 | BT37: 0.0228758648
Q38: Grenzkonzentration [kg/m3] | R38: Cgrenz | S38: 0.0001898465544 | V38: p-Ethyltoluol | W38: =VLOOKUP(V38,Stoffdatenbank!$A$4:$M$45,5,FALSE) -> 0.12 | X38: =VLOOKUP(V38,Stoffdatenbank!$A$4:$M$45,4,FALSE)/1000 -> 0.9 | Y38: 0.009 | Z38: =VLOOKUP(V38,Stoffdatenbank!$A$4:$M$45,7,FALSE) -> 6e-06 | AA38: =VLOOKUP(V38,Stoffdatenbank!$A$4:$M$45,6,FALSE) -> 6.2e-10 | AB38: =VLOOKUP(V38,Stoffdatenbank!$A$4:$M$45,8,FALSE)*1000*(1*10^-6) -> 0.095 | AC38: =VLOOKUP(V38,Stoffdatenbank!$A$4:$M$45,9,FALSE) -> 230 | AD38: =VLOOKUP(V38,Stoffdatenbank!$A$4:$M$45,12,FALSE)/1000 -> 0.12 | AE38: 0.005946528813 | AF38: =IF(Schadstoffbelastung!Y27<>"",Schadstoffbelastung!Y27/1000000,"") -> 8.189072013e-08 | AG38: =IF(Schadstoffbelastung!X27<>"",Schadstoffbelastung!X27/1000000,"") ->  | AH38: =IF(Schadstoffbelastung!Z27<>"",Schadstoffbelastung!Z27/1000000,"") -> 0 | AI38: =IF(Schadstoffbelastung!U27<>"",Schadstoffbelastung!U27/1000000,"") ->  | AJ38: =IF(Schadstoffbelastung!W27<>"",Schadstoffbelastung!W27/1000000,"") ->  | AL38: 5250.487061 | AM38: 0.190458521 | AN38: 2.8 | AO38: 10.97074767 | AP38: 1.229252333 | AQ38: =IF(AN38<>"",Schadstoffbelastung!$K$4*Ergebnisse!AO38,"") -> 438.8299067 | AR38: =IF(AN38<>"",kf*Ergebnisse!AQ38*Ergebnisse!AM38,"") -> 0.0008357889498 | AS38: 1.90458521e-06 | AT38: 1.90458521e-05 | AU38: 4.953412386e-13 | AV38: -3.354031004e-13 | AW38: 0.003853122386 | AX38: 0.04539449453 | AZ38: 7.692996228e-06 | BA38: 0 | BB38: 0.002623756339 | BC38: 1.64257523e-10 | BD38: 0 | BE38: 7.69266318e-06 | BF38: 0 | BG38: 0.00262364275 | BH38: 8.837098731e-07 | BI38: 0 | BJ38: 2.932025916e-07 | BK38: 0 | BL38: 9.999902969e-05 | BM38: 5.098662127e-12 | BN38: 0 | BO38: 0.003082191781 | BP38: 0.002621238626 | BQ38: 7.685614157e-06 | BR38: 2621.238626 | BS38: 7.685614157 | BT38: 0.02375570575
Q39: Residualkonzentration [kg/m3] | R39: Cres | S39: 0 | V39: 1,2-Diethylbenzol | W39: =VLOOKUP(V39,Stoffdatenbank!$A$4:$M$45,5,FALSE) -> 0.16 | X39: =VLOOKUP(V39,Stoffdatenbank!$A$4:$M$45,4,FALSE)/1000 -> 0.5 | Y39: 0.005 | Z39: =VLOOKUP(V39,Stoffdatenbank!$A$4:$M$45,7,FALSE) -> 5.7e-06 | AA39: =VLOOKUP(V39,Stoffdatenbank!$A$4:$M$45,6,FALSE) -> 5.9e-10 | AB39: =VLOOKUP(V39,Stoffdatenbank!$A$4:$M$45,8,FALSE)*1000*(1*10^-6) -> 0.024 | AC39: =VLOOKUP(V39,Stoffdatenbank!$A$4:$M$45,9,FALSE) -> 67 | AD39: =VLOOKUP(V39,Stoffdatenbank!$A$4:$M$45,12,FALSE)/1000 -> 0.134 | AE39: 0.005946528813 | AF39: =IF(Schadstoffbelastung!Y28<>"",Schadstoffbelastung!Y28/1000000,"") -> 8.189072013e-08 | AG39: =IF(Schadstoffbelastung!X28<>"",Schadstoffbelastung!X28/1000000,"") ->  | AH39: =IF(Schadstoffbelastung!Z28<>"",Schadstoffbelastung!Z28/1000000,"") -> 0 | AI39: =IF(Schadstoffbelastung!U28<>"",Schadstoffbelastung!U28/1000000,"") ->  | AJ39: =IF(Schadstoffbelastung!W28<>"",Schadstoffbelastung!W28/1000000,"") ->  | AL39: 5444.011155 | AM39: 0.183688088 | AN39: 2.9 | AO39: 10.98979352 | AP39: 1.210206481 | AQ39: =IF(AN39<>"",Schadstoffbelastung!$K$4*Ergebnisse!AO39,"") -> 439.5917407 | AR39: =IF(AN39<>"",kf*Ergebnisse!AQ39*Ergebnisse!AM39,"") -> 0.0008074776635 | AS39: 1.83688088e-06 | AT39: 1.83688088e-05 | AU39: 4.799860281e-13 | AV39: -3.250058534e-13 | AW39: 0.003716151318 | AX39: 0.04398729891 | AZ39: 7.692996228e-06 | BA39: 0 | BB39: 0.002623756339 | BC39: 1.64257523e-10 | BD39: 0 | BE39: 7.69266318e-06 | BF39: 0 | BG39: 0.00262364275 | BH39: 8.837098731e-07 | BI39: 0 | BJ39: 2.932025916e-07 | BK39: 0 | BL39: 9.999902969e-05 | BM39: 5.098662127e-12 | BN39: 0 | BO39: 0.003196347032 | BP39: 0.002621146204 | BQ39: 7.68534317e-06 | BR39: 2621.146204 | BS39: 7.68534317 | BT39: 0.02463554671
O40: aus Gesamtkonz. Berechnet | Q40: Konzentration in der Wasserphase [kg/m3] | R40: Cw | S40: =VLOOKUP(Sanierungsdesign!D17,Ergebnisse!V11:AJ63,14,0) -> 0.680335 | V40: 1,3-Diethylbenzol | W40: =VLOOKUP(V40,Stoffdatenbank!$A$4:$M$45,5,FALSE) -> 0.23 | X40: =VLOOKUP(V40,Stoffdatenbank!$A$4:$M$45,4,FALSE)/1000 -> 0.42 | Y40: 0.0042 | Z40: =VLOOKUP(V40,Stoffdatenbank!$A$4:$M$45,7,FALSE) -> 5.6e-06 | AA40: =VLOOKUP(V40,Stoffdatenbank!$A$4:$M$45,6,FALSE) -> 5.8e-10 | AB40: =VLOOKUP(V40,Stoffdatenbank!$A$4:$M$45,8,FALSE)*1000*(1*10^-6) -> 0.027 | AC40: =VLOOKUP(V40,Stoffdatenbank!$A$4:$M$45,9,FALSE) -> 109 | AD40: =VLOOKUP(V40,Stoffdatenbank!$A$4:$M$45,12,FALSE)/1000 -> 0.134 | AE40: 0 | AF40: =IF(Schadstoffbelastung!Y29<>"",Schadstoffbelastung!Y29/1000000,"") -> 0 | AG40: =IF(Schadstoffbelastung!X29<>"",Schadstoffbelastung!X29/1000000,"") ->  | AH40: =IF(Schadstoffbelastung!Z29<>"",Schadstoffbelastung!Z29/1000000,"") -> 0 | AI40: =IF(Schadstoffbelastung!U29<>"",Schadstoffbelastung!U29/1000000,"") ->  | AJ40: =IF(Schadstoffbelastung!W29<>"",Schadstoffbelastung!W29/1000000,"") ->  | AL40: 5637.827109 | AM40: 0.1773733001 | AN40: 3 | AO40: 11.00816233 | AP40: 1.191837673 | AQ40: =IF(AN40<>"",Schadstoffbelastung!$K$4*Ergebnisse!AO40,"") -> 440.3264931 | AR40: =IF(AN40<>"",kf*Ergebnisse!AQ40*Ergebnisse!AM40,"") -> 0.0007810216322 | AS40: 1.773733001e-06 | AT40: 1.773733001e-05 | AU40: 4.655977851e-13 | AV40: -3.152633548e-13 | AW40: 0.003588398303 | AX40: 0.04266871898 | AZ40: 7.692996228e-06 | BA40: 0 | BB40: 0.002623756339 | BC40: 1.64257523e-10 | BD40: 0 | BE40: =IF(AN40<>"",IF(Sättigungskonz>=AZ40,IF(AZ40-(BC40+BD40)*$BC$4/pb>0,AZ40-(BC40+BD40)*$BC$4/pb,0),IF(AZ40-(BC40+BD40)*$BC$4/pb>Sättigungskonz,AZ40-(BC40+BD40)*$BC$4/pb,Sättigungskonz)),"") -> 7.69266318e-06 | BF40: 0 | BG40: 0.00262364275 | BH40: 8.837098731e-07 | BI40: 0 | BJ40: 2.932025916e-07 | BK40: 0 | BL40: 9.999902969e-05 | BM40: 5.098662127e-12 | BN40: 0 | BO40: 0.003310502283 | BP40: 0.002621053785 | BQ40: 7.685072192e-06 | BR40: 2621.053785 | BS40: 7.685072192 | BT40: 0.02551538766
Q41: Sättigungskonzentration [kg/m3] | R41: C0 | S41: 0.00321976251 | V41: 1,4-Diethylbenzol | W41: =VLOOKUP(V41,Stoffdatenbank!$A$4:$M$45,5,FALSE) -> 0.23 | X41: =VLOOKUP(V41,Stoffdatenbank!$A$4:$M$45,4,FALSE)/1000 -> 0.46 | Y41: 0.0046 | Z41: =VLOOKUP(V41,Stoffdatenbank!$A$4:$M$45,7,FALSE) -> 5.6e-06 | AA41: =VLOOKUP(V41,Stoffdatenbank!$A$4:$M$45,6,FALSE) -> 5.8e-10 | AB41: =VLOOKUP(V41,Stoffdatenbank!$A$4:$M$45,8,FALSE)*1000*(1*10^-6) -> 0.025 | AC41: =VLOOKUP(V41,Stoffdatenbank!$A$4:$M$45,9,FALSE) -> 101 | AD41: =VLOOKUP(V41,Stoffdatenbank!$A$4:$M$45,12,FALSE)/1000 -> 0.134 | AE41: 0 | AF41: =IF(Schadstoffbelastung!Y30<>"",Schadstoffbelastung!Y30/1000000,"") -> 0 | AG41: =IF(Schadstoffbelastung!X30<>"",Schadstoffbelastung!X30/1000000,"") ->  | AH41: =IF(Schadstoffbelastung!Z30<>"",Schadstoffbelastung!Z30/1000000,"") -> 0 | AI41: =IF(Schadstoffbelastung!U30<>"",Schadstoffbelastung!U30/1000000,"") ->  | AJ41: =IF(Schadstoffbelastung!W30<>"",Schadstoffbelastung!W30/1000000,"") ->  | AL41: 5831.925008 | AM41: 0.1714699689 | AN41: 3.1 | AO41: 11.02589966 | AP41: 1.174100343 | AQ41: =IF(AN41<>"",Schadstoffbelastung!$K$4*Ergebnisse!AO41,"") -> 441.0359863 | AR41: =IF(AN41<>"",kf*Ergebnisse!AQ41*Ergebnisse!AM41,"") -> 0.0007562442687 | AS41: 1.714699689e-06 | AT41: 1.714699689e-05 | AU41: 4.520867216e-13 | AV41: -3.061148079e-13 | AW41: 0.003468969372 | AX41: 0.0414305263 | AZ41: 7.692996228e-06 | BA41: 0 | BB41: 0.002623756339 | BC41: 1.64257523e-10 | BD41: 0 | BE41: 7.69266318e-06 | BF41: 0 | BG41: 0.00262364275 | BH41: 8.837098731e-07 | BI41: 0 | BJ41: 2.932025916e-07 | BK41: 0 | BL41: 9.999902969e-05 | BM41: 5.098662127e-12 | BN41: 0 | BO41: 0.003424657534 | BP41: 0.002620961369 | BQ41: 7.684801224e-06 | BR41: 2620.961369 | BS41: 7.684801224 | BT41: 0.02639522862
Q42: Wasserlöslichkeit [kg/m3] | R42: Lw | S42: 0.01996727161 | V42: 1,2,3-Trimethylbenzol | W42: =VLOOKUP(V42,Stoffdatenbank!$A$4:$M$45,5,FALSE) -> 0.08 | X42: =VLOOKUP(V42,Stoffdatenbank!$A$4:$M$45,4,FALSE)/1000 -> 0.65 | Y42: 0.0065 | Z42: =VLOOKUP(V42,Stoffdatenbank!$A$4:$M$45,7,FALSE) -> 6e-06 | AA42: =VLOOKUP(V42,Stoffdatenbank!$A$4:$M$45,6,FALSE) -> 6.4e-10 | AB42: =VLOOKUP(V42,Stoffdatenbank!$A$4:$M$45,8,FALSE)*1000*(1*10^-6) -> 0.075 | AC42: =VLOOKUP(V42,Stoffdatenbank!$A$4:$M$45,9,FALSE) -> 125 | AD42: =VLOOKUP(V42,Stoffdatenbank!$A$4:$M$45,12,FALSE)/1000 -> 0.12 | AE42: 0.02577357733 | AF42: =IF(Schadstoffbelastung!Y31<>"",Schadstoffbelastung!Y31/1000000,"") -> 3.54932579e-07 | AG42: =IF(Schadstoffbelastung!X31<>"",Schadstoffbelastung!X31/1000000,"") ->  | AH42: =IF(Schadstoffbelastung!Z31<>"",Schadstoffbelastung!Z31/1000000,"") -> 0 | AI42: =IF(Schadstoffbelastung!U31<>"",Schadstoffbelastung!U31/1000000,"") ->  | AJ42: =IF(Schadstoffbelastung!W31<>"",Schadstoffbelastung!W31/1000000,"") ->  | AL42: 6026.295574 | AM42: 0.1659394213 | AN42: 3.2 | AO42: 11.04304665 | AP42: 1.156953346 | AQ42: =IF(AN42<>"",Schadstoffbelastung!$K$4*Ergebnisse!AO42,"") -> 441.7218662 | AR42: =IF(AN42<>"",kf*Ergebnisse!AQ42*Ergebnisse!AM42,"") -> 0.0007329907084 | AS42: 1.659394213e-06 | AT42: 1.659394213e-05 | AU42: 4.393739031e-13 | AV42: -2.975067647e-13 | AW42: 0.003357082138 | AX42: 0.04026548707 | AZ42: 7.692996228e-06 | BA42: 0 | BB42: 0.002623756339 | BC42: 1.64257523e-10 | BD42: 0 | BE42: 7.69266318e-06 | BF42: 0 | BG42: 0.00262364275 | BH42: 8.837098731e-07 | BI42: 0 | BJ42: 2.932025916e-07 | BK42: 0 | BL42: 9.999902969e-05 | BM42: 5.098662127e-12 | BN42: 0 | BO42: 0.003538812785 | BP42: 0.002620868956 | BQ42: 7.684530266e-06 | BR42: 2620.868956 | BS42: 7.684530266 | BT42: 0.02727506957
V43: 1,2,4-Trimethylbenzol | W43: =VLOOKUP(V43,Stoffdatenbank!$A$4:$M$45,5,FALSE) -> 0.12 | X43: =VLOOKUP(V43,Stoffdatenbank!$A$4:$M$45,4,FALSE)/1000 -> 0.65 | Y43: 0.0065 | Z43: =VLOOKUP(V43,Stoffdatenbank!$A$4:$M$45,7,FALSE) -> 6e-06 | AA43: =VLOOKUP(V43,Stoffdatenbank!$A$4:$M$45,6,FALSE) -> 6.3e-10 | AB43: =VLOOKUP(V43,Stoffdatenbank!$A$4:$M$45,8,FALSE)*1000*(1*10^-6) -> 0.06 | AC43: =VLOOKUP(V43,Stoffdatenbank!$A$4:$M$45,9,FALSE) -> 147 | AD43: =VLOOKUP(V43,Stoffdatenbank!$A$4:$M$45,12,FALSE)/1000 -> 0.12 | AE43: 0.1248823909 | AF43: =IF(Schadstoffbelastung!Y32<>"",Schadstoffbelastung!Y32/1000000,"") -> 1.719777914e-06 | AG43: =IF(Schadstoffbelastung!X32<>"",Schadstoffbelastung!X32/1000000,"") ->  | AH43: =IF(Schadstoffbelastung!Z32<>"",Schadstoffbelastung!Z32/1000000,"") -> 0 | AI43: =IF(Schadstoffbelastung!U32<>"",Schadstoffbelastung!U32/1000000,"") ->  | AJ43: =IF(Schadstoffbelastung!W32<>"",Schadstoffbelastung!W32/1000000,"") ->  | AL43: 6220.930109 | AM43: 0.1607476667 | AN43: 3.3 | AO43: 11.0596406 | AP43: 1.140359404 | AQ43: =IF(AN43<>"",Schadstoffbelastung!$K$4*Ergebnisse!AO43,"") -> 442.3856239 | AR43: =IF(AN43<>"",kf*Ergebnisse!AQ43*Ergebnisse!AM43,"") -> 0.0007111245684 | AS43: 1.607476667e-06 | AT43: 1.607476667e-05 | AU43: 4.273896502e-13 | AV43: -2.893920445e-13 | AW43: 0.00325204895 | AX43: 0.0391672157 | AZ43: =IF(AN43<>"",$S$37,"") -> 7.692996228e-06 | BA43: =IF(AN44<>"",IF($S$39<>0,$S$39,0),"") -> 0 | BB43: 0.002623756339 | BC43: 1.64257523e-10 | BD43: 0 | BE43: 7.69266318e-06 | BF43: 0 | BG43: 0.00262364275 | BH43: 8.837098731e-07 | BI43: 0 | BJ43: 2.932025916e-07 | BK43: 0 | BL43: 9.999902969e-05 | BM43: 5.098662127e-12 | BN43: 0 | BO43: 0.003652968037 | BP43: 0.002620776547 | BQ43: 7.684259316e-06 | BR43: 2620.776547 | BS43: 7.684259316 | BT43: 0.02815491052
S44: =IF(((S37*pb)/(Kd*pb+Theta_w))>Lw,Lw,(S37*pb)/(Kd*pb+Theta_w)) -> 0.002623756339 | V44: 1,3,5-Trimethylbenzol | W44: =VLOOKUP(V44,Stoffdatenbank!$A$4:$M$45,5,FALSE) -> 0.48 | X44: =VLOOKUP(V44,Stoffdatenbank!$A$4:$M$45,4,FALSE)/1000 -> 0.67 | Y44: 0.0067 | Z44: =VLOOKUP(V44,Stoffdatenbank!$A$4:$M$45,7,FALSE) -> 6e-06 | AA44: =VLOOKUP(V44,Stoffdatenbank!$A$4:$M$45,6,FALSE) -> 6.3e-10 | AB44: =VLOOKUP(V44,Stoffdatenbank!$A$4:$M$45,8,FALSE)*1000*(1*10^-6) -> 0.02 | AC44: =VLOOKUP(V44,Stoffdatenbank!$A$4:$M$45,9,FALSE) -> 193 | AD44: =VLOOKUP(V44,Stoffdatenbank!$A$4:$M$45,12,FALSE)/1000 -> 0.12 | AE44: 0.03782520905 | AF44: =IF(Schadstoffbelastung!Y33<>"",Schadstoffbelastung!Y33/1000000,"") -> 5.208977718e-07 | AG44: =IF(Schadstoffbelastung!X33<>"",Schadstoffbelastung!X33/1000000,"") ->  | AH44: =IF(Schadstoffbelastung!Z33<>"",Schadstoffbelastung!Z33/1000000,"") -> 0 | AI44: =IF(Schadstoffbelastung!U33<>"",Schadstoffbelastung!U33/1000000,"") ->  | AJ44: =IF(Schadstoffbelastung!W33<>"",Schadstoffbelastung!W33/1000000,"") ->  | AL44: 6415.820441 | AM44: 0.1558647112 | AN44: 3.4 | AO44: 11.07571536 | AP44: 1.124284637 | AQ44: =IF(AN44<>"",Schadstoffbelastung!$K$4*Ergebnisse!AO44,"") -> 443.0286145 | AR44: =IF(AN44<>"",kf*Ergebnisse!AQ44*Ergebnisse!AM44,"") -> 0.0006905252705 | AS44: 1.558647112e-06 | AT44: 1.558647112e-05 | AU44: 4.160722165e-13 | AV44: -2.817288377e-13 | AW44: 0.003153263003 | AX44: 0.03813005356 | AZ44: 7.692996228e-06 | BA44: 0 | BB44: 0.002623756339 | BC44: 1.64257523e-10 | BD44: 0 | BE44: 7.69266318e-06 | BF44: 0 | BG44: 0.00262364275 | BH44: 8.837098731e-07 | BI44: 0 | BJ44: 2.932025916e-07 | BK44: 0 | BL44: 9.999902969e-05 | BM44: 5.098662127e-12 | BN44: 0 | BO44: 0.003767123288 | BP44: 0.002620684141 | BQ44: 7.683988377e-06 | BR44: 2620.684141 | BS44: 7.683988377 | BT44: 0.02903475148
V45: Summe AKW | W45: =SUM(IF($AE$28:$AE$44<>"",W28:W44*$AE$28:$AE$44,0)) -> 0.1624121764 | X45: =SUMPRODUCT(X28:X44,AE28:AE44)*0.33 -> 0.291372351 | Y45: =SUM(IF($AE$28:$AE$44<>"",Y28:Y44*$AE$28:$AE$44,0)) -> 0.008829465182 | Z45: =SUM(IF($AE$28:$AE$44<>"",Z28:Z44*$AE$28:$AE$44,0)) -> 6.290039961e-06 | AA45: =SUM(IF($AE$28:$AE$44<>"",AA28:AA44*$AE$28:$AE$44,0)) -> 6.635055025e-10 | AB45: =SUM(IF($AE$28:$AE$44<>"",AB28:AB44*$AE$28:$AE$44,0)) -> 0.1556244912 | AC45: =SUM(IF($AE$28:$AE$44<>"",AC28:AC44*$AE$28:$AE$44,0)) -> 528.1577389 | AD45: =SUM(IF($AE$28:$AE$44<>"",AD28:AD44*$AE$28:$AE$44,0)) -> 0.109144313 | AE45: =IF(SUM(AE28:AE44)<>0,SUM(AE28:AE44),"") -> 1 | AF45: =IF(SUM(AF28:AF44)<>0,SUM(AF28:AF44),"") -> 1.377118025e-05 | AG45: =IF(SUM(AG28:AG44)<>0,SUM(AG28:AG44),"") -> 0.002196210722 | AH45: =IF(SUM(AH28:AH44)<>0,SUM(AH28:AH44),0) -> 0 | AI45: =IF(SUM(AI28:AI44)<>0,SUM(AI28:AI44),"") -> 0.952469 | AJ45: =IF(SUM(AJ28:AJ44)<>0,SUM(AJ28:AJ44),"") -> 0.2052796397 | AL45: 6610.958878 | AM45: 0.1512639873 | AN45: 3.5 | AO45: 11.09130183 | AP45: 1.108698166 | AQ45: =IF(AN45<>"",Schadstoffbelastung!$K$4*Ergebnisse!AO45,"") -> 443.6520734 | AR45: =IF(AN45<>"",kf*Ergebnisse!AQ45*Ergebnisse!AM45,"") -> 0.000671085816 | AS45: 1.512639873e-06 | AT45: 1.512639873e-05 | AU45: 4.053666863e-13 | AV45: -2.7447996e-13 | AW45: 0.003060186821 | AX45: 0.037148968 | AZ45: 7.692996228e-06 | BA45: 0 | BB45: 0.002623756339 | BC45: 1.64257523e-10 | BD45: 0 | BE45: 7.69266318e-06 | BF45: 0 | BG45: 0.00262364275 | BH45: 8.837098731e-07 | BI45: 0 | BJ45: 2.932025916e-07 | BK45: 0 | BL45: 9.999902969e-05 | BM45: 5.098662127e-12 | BN45: 0 | BO45: 0.003881278539 | BP45: 0.002620591738 | BQ45: 7.683717447e-06 | BR45: 2620.591738 | BS45: 7.683717447 | BT45: 0.02991459243
V46: Mittelwert | W46: =AVERAGE(W28:W44) -> 0.1876470588 | X46: =AVERAGE(X28:X44) -> 0.6994117647 | Y46: 0.006994117647 | Z46: 6.171764706e-06 | AA46: 6.474705882e-10 | AB46: 0.2141176471 | AC46: 864 | AD46: 0.1150588235 | AF46: =AVERAGE(AF28:AF44) -> 8.100694263e-07 | AL46: 6806.338171 | AM46: 0.14692188 | AN46: 3.6 | AO46: 11.10642823 | AP46: 1.093571767 | AQ46: =IF(AN46<>"",Schadstoffbelastung!$K$4*Ergebnisse!AO46,"") -> 444.2571293 | AR46: =IF(AN46<>"",kf*Ergebnisse!AQ46*Ergebnisse!AM46,"") -> 0.0006527109265 | AS46: 1.4692188e-06 | AT46: 1.4692188e-05 | AU46: 3.952240518e-13 | AV46: -2.676122277e-13 | AW46: 0.002972342649 | AX46: 0.03621946783 | AZ46: 7.692996228e-06 | BA46: 0 | BB46: 0.002623756339 | BC46: 1.64257523e-10 | BD46: 0 | BE46: 7.69266318e-06 | BF46: 0 | BG46: 0.00262364275 | BH46: 8.837098731e-07 | BI46: 0 | BJ46: 2.932025916e-07 | BK46: 0 | BL46: 9.999902969e-05 | BM46: 5.098662127e-12 | BN46: 0 | BO46: 0.00399543379 | BP46: 0.002620499339 | BQ46: 7.683446527e-06 | BR46: 2620.499339 | BS46: 7.683446527 | BT46: 0.03079443339
AL47: 7001.95147 | AM47: 0.142817328 | AN47: 3.7 | AO47: 11.12112042 | AP47: 1.078879579 | AQ47: =IF(AN47<>"",Schadstoffbelastung!$K$4*Ergebnisse!AO47,"") -> 444.8448168 | AR47: =IF(AN47<>"",kf*Ergebnisse!AQ47*Ergebnisse!AM47,"") -> 0.0006353154813 | AS47: 1.42817328e-06 | AT47: 1.42817328e-05 | AU47: 3.85600437e-13 | AV47: -2.610959315e-13 | AW47: 0.002889304406 | AX47: 0.03533753212 | AZ47: 7.692996228e-06 | BA47: 0 | BB47: 0.002623756339 | BC47: 1.64257523e-10 | BD47: 0 | BE47: 7.69266318e-06 | BF47: 0 | BG47: 0.00262364275 | BH47: 8.837098731e-07 | BI47: 0 | BJ47: 2.932025916e-07 | BK47: 0 | BL47: 9.999902969e-05 | BM47: 5.098662127e-12 | BN47: 0 | BO47: 0.004109589041 | BP47: 0.002620406943 | BQ47: 7.683175616e-06 | BR47: 2620.406943 | BS47: 7.683175616 | BT47: 0.03167427434
AL48: 7197.792299 | AM48: 0.1389314888 | AN48: 3.8 | AO48: 11.13540215 | AP48: 1.064597846 | AQ48: =IF(AN48<>"",Schadstoffbelastung!$K$4*Ergebnisse!AO48,"") -> 445.4160862 | AR48: =IF(AN48<>"",kf*Ergebnisse!AQ48*Ergebnisse!AM48,"") -> 0.0006188231997 | AS48: 1.389314888e-06 | AT48: 1.389314888e-05 | AU48: 3.764564402e-13 | AV48: -2.549043919e-13 | AW48: 0.002810690888 | AX48: 0.03449954997 | AZ48: 7.692996228e-06 | BA48: 0 | BB48: 0.002623756339 | BC48: 1.64257523e-10 | BD48: 0 | BE48: 7.69266318e-06 | BF48: 0 | BG48: 0.00262364275 | BH48: 8.837098731e-07 | BI48: 0 | BJ48: 2.932025916e-07 | BK48: 0 | BL48: 9.999902969e-05 | BM48: 5.098662127e-12 | BN48: 0 | BO48: 0.004223744292 | BP48: 0.00262031455 | BQ48: 7.682904715e-06 | BR48: 2620.31455 | BS48: 7.682904715 | BT48: 0.03255411529
V49: n-Pentan | W49: =VLOOKUP(V49,Stoffdatenbank!$A$4:$M$45,5,FALSE) -> 35.69 | X49: =VLOOKUP(V49,Stoffdatenbank!$A$4:$M$45,4,FALSE)/1000 -> 0.87 | Y49: =X49*foc -> 0.0087 | Z49: =VLOOKUP(V49,Stoffdatenbank!$A$4:$M$45,7,FALSE) -> 6.89e-06 | AA49: =VLOOKUP(V49,Stoffdatenbank!$A$4:$M$45,6,FALSE) -> 7.01e-10 | AB49: =VLOOKUP(V49,Stoffdatenbank!$A$4:$M$45,8,FALSE)*1000*(1*10^-6) -> 0.04 | AC49: =VLOOKUP(V49,Stoffdatenbank!$A$4:$M$45,9,FALSE) -> 46219 | AD49: =VLOOKUP(V49,Stoffdatenbank!$A$4:$M$45,12,FALSE)/1000 -> 0.072 | AE49: =IF(AF49<>"",AF49/$AF$55,"") -> 0.4884799167 | AF49: =IF(Schadstoffbelastung!Y35<>"",Schadstoffbelastung!Y35/1000000,"") -> 3.757874157e-06 | AG49: =IF(Schadstoffbelastung!X35<>"",Schadstoffbelastung!X35,"") ->  | AH49: =IF(Schadstoffbelastung!Z35<>"",Schadstoffbelastung!Z35/1000000,"") -> 0 | AI49: =IF(Schadstoffbelastung!U35<>"",Schadstoffbelastung!U35/1000000,"") ->  | AJ49: =IF(Schadstoffbelastung!W35<>"",Schadstoffbelastung!W35/1000000,"") ->  | AL49: 7393.854525 | AM49: 0.135247454 | AN49: 3.9 | AO49: 11.1492953 | AP49: 1.050704697 | AQ49: =IF(AN49<>"",Schadstoffbelastung!$K$4*Ergebnisse!AO49,"") -> 445.9718121 | AR49: =IF(AN49<>"",kf*Ergebnisse!AQ49*Ergebnisse!AM49,"") -> 0.0006031655216 | AS49: 1.35247454e-06 | AT49: 1.35247454e-05 | AU49: 3.677565757e-13 | AV49: -2.490135811e-13 | AW49: 0.002736160032 | AX49: 0.03370226939 | AZ49: 7.692996228e-06 | BA49: 0 | BB49: 0.002623756339 | BC49: 1.64257523e-10 | BD49: 0 | BE49: 7.69266318e-06 | BF49: 0 | BG49: 0.00262364275 | BH49: 8.837098731e-07 | BI49: 0 | BJ49: 2.932025916e-07 | BK49: 0 | BL49: 9.999902969e-05 | BM49: 5.098662127e-12 | BN49: 0 | BO49: 0.004337899543 | BP49: 0.00262022216 | BQ49: 7.682633823e-06 | BR49: 2620.22216 | BS49: 7.682633823 | BT49: 0.03343395625
V50: n-Hexan | W50: =VLOOKUP(V50,Stoffdatenbank!$A$4:$M$45,5,FALSE) -> 46.48 | X50: =VLOOKUP(V50,Stoffdatenbank!$A$4:$M$45,4,FALSE)/1000 -> 2.04 | Y50: 0.0204 | Z50: =VLOOKUP(V50,Stoffdatenbank!$A$4:$M$45,7,FALSE) -> 6.36e-06 | AA50: =VLOOKUP(V50,Stoffdatenbank!$A$4:$M$45,6,FALSE) -> 6.49e-10 | AB50: =VLOOKUP(V50,Stoffdatenbank!$A$4:$M$45,8,FALSE)*1000*(1*10^-6) -> 0.01 | AC50: =VLOOKUP(V50,Stoffdatenbank!$A$4:$M$45,9,FALSE) -> 12922 | AD50: =VLOOKUP(V50,Stoffdatenbank!$A$4:$M$45,12,FALSE)/1000 -> 0.086 | AE50: 0.006197662866 | AF50: =IF(Schadstoffbelastung!Y36<>"",Schadstoffbelastung!Y36/1000000,"") -> 4.767859705e-08 | AG50: =IF(Schadstoffbelastung!X36<>"",Schadstoffbelastung!X36/1000000,"") -> 8.069578412e-05 | AH50: =IF(Schadstoffbelastung!Z36<>"",Schadstoffbelastung!Z36/1000000,"") -> 0 | AI50: =IF(Schadstoffbelastung!U36<>"",Schadstoffbelastung!U36/1000000,"") -> 0.136067 | AJ50: =IF(Schadstoffbelastung!W36<>"",Schadstoffbelastung!W36/1000000,"") -> 0.002569442546 | AL50: 7590.132326 | AM50: 0.1317500087 | AN50: 4 | AO50: 11.16282005 | AP50: 1.037179952 | AQ50: =IF(AN50<>"",Schadstoffbelastung!$K$4*Ergebnisse!AO50,"") -> 446.5128019 | AR50: =IF(AN50<>"",kf*Ergebnisse!AQ50*Ergebnisse!AM50,"") -> 0.0005882806554 | AS50: 1.317500087e-06 | AT50: 1.317500087e-05 | AU50: 3.594687976e-13 | AV50: -2.434018003e-13 | AW50: 0.002665404022 | AX50: 0.03294275359 | AZ50: 7.692996228e-06 | BA50: 0 | BB50: 0.002623756339 | BC50: 1.64257523e-10 | BD50: 0 | BE50: 7.69266318e-06 | BF50: 0 | BG50: 0.00262364275 | BH50: 8.837098731e-07 | BI50: 0 | BJ50: 2.932025916e-07 | BK50: 0 | BL50: 9.999902969e-05 | BM50: 5.098662127e-12 | BN50: 0 | BO50: 0.004452054795 | BP50: 0.002620129773 | BQ50: 7.682362941e-06 | BR50: 2620.129773 | BS50: 7.682362941 | BT50: 0.0343137972
V51: n-Heptan | W51: =VLOOKUP(V51,Stoffdatenbank!$A$4:$M$45,5,FALSE) -> 69.3 | X51: =VLOOKUP(V51,Stoffdatenbank!$A$4:$M$45,4,FALSE)/1000 -> 5.25 | Y51: 0.0525 | Z51: =VLOOKUP(V51,Stoffdatenbank!$A$4:$M$45,7,FALSE) -> 5.92e-06 | AA51: =VLOOKUP(V51,Stoffdatenbank!$A$4:$M$45,6,FALSE) -> 6.05e-10 | AB51: =VLOOKUP(V51,Stoffdatenbank!$A$4:$M$45,8,FALSE)*1000*(1*10^-6) -> 0.0022 | AC51: =VLOOKUP(V51,Stoffdatenbank!$A$4:$M$45,9,FALSE) -> 3645 | AD51: =VLOOKUP(V51,Stoffdatenbank!$A$4:$M$45,12,FALSE)/1000 -> 0.1 | AE51: 0.0106448408 | AF51: =IF(Schadstoffbelastung!Y37<>"",Schadstoffbelastung!Y37/1000000,"") -> 8.189072013e-08 | AG51: =IF(Schadstoffbelastung!X37<>"",Schadstoffbelastung!X37/1000000,"") -> 3.890928826e-05 | AH51: =IF(Schadstoffbelastung!Z37<>"",Schadstoffbelastung!Z37/1000000,"") -> 0 | AI51: =IF(Schadstoffbelastung!U37<>"",Schadstoffbelastung!U37/1000000,"") -> 0.136067 | AJ51: =IF(Schadstoffbelastung!W37<>"",Schadstoffbelastung!W37/1000000,"") -> 0.0004861385297 | AL51: 7786.620178 | AM51: 0.1284254243 | AN51: 4.1 | AO51: 11.17599505 | AP51: 1.024004951 | AQ51: =IF(AN51<>"",Schadstoffbelastung!$K$4*Ergebnisse!AO51,"") -> 447.039802 | AR51: =IF(AN51<>"",kf*Ergebnisse!AQ51*Ergebnisse!AM51,"") -> 0.0005741127623 | AS51: 1.284254243e-06 | AT51: 1.284254243e-05 | AU51: 3.515640907e-13 | AV51: -2.380494028e-13 | AW51: 0.002598145122 | AX51: 0.03221834354 | AZ51: 7.692996228e-06 | BA51: 0 | BB51: 0.002623756339 | BC51: 1.64257523e-10 | BD51: 0 | BE51: 7.69266318e-06 | BF51: 0 | BG51: 0.00262364275 | BH51: 8.837098731e-07 | BI51: 0 | BJ51: 2.932025916e-07 | BK51: 0 | BL51: 9.999902969e-05 | BM51: 5.098662127e-12 | BN51: 0 | BO51: 0.004566210046 | BP51: 0.00262003739 | BQ51: 7.682092068e-06 | BR51: 2620.03739 | BS51: 7.682092068 | BT51: 0.03519363815
V52: n-Octan | W52: =VLOOKUP(V52,Stoffdatenbank!$A$4:$M$45,5,FALSE) -> 70.89 | X52: =VLOOKUP(V52,Stoffdatenbank!$A$4:$M$45,4,FALSE)/1000 -> 17.38 | Y52: 0.1738 | Z52: =VLOOKUP(V52,Stoffdatenbank!$A$4:$M$45,7,FALSE) -> 5.58e-06 | AA52: =VLOOKUP(V52,Stoffdatenbank!$A$4:$M$45,6,FALSE) -> 5.69e-10 | AB52: =VLOOKUP(V52,Stoffdatenbank!$A$4:$M$45,8,FALSE)*1000*(1*10^-6) -> 0.0007 | AC52: =VLOOKUP(V52,Stoffdatenbank!$A$4:$M$45,9,FALSE) -> 1041 | AD52: =VLOOKUP(V52,Stoffdatenbank!$A$4:$M$45,12,FALSE)/1000 -> 0.114 | AE52: 0.4884799167 | AF52: =IF(Schadstoffbelastung!Y38<>"",Schadstoffbelastung!Y38/1000000,"") -> 3.757874157e-06 | AG52: =IF(Schadstoffbelastung!X38<>"",Schadstoffbelastung!X38/1000000,"") -> 3.579453985e-05 | AH52: =IF(Schadstoffbelastung!Z38<>"",Schadstoffbelastung!Z38/1000000,"") -> 0 | AI52: =IF(Schadstoffbelastung!U38<>"",Schadstoffbelastung!U38/1000000,"") -> 0.136067 | AJ52: =IF(Schadstoffbelastung!W38<>"",Schadstoffbelastung!W38/1000000,"") -> 0.0001356845976 | AL52: 7983.312824 | AM52: 0.1252612821 | AN52: 4.2 | AO52: 11.18883759 | AP52: 1.011162409 | AQ52: =IF(AN52<>"",Schadstoffbelastung!$K$4*Ergebnisse!AO52,"") -> 447.5535037 | AR52: =IF(AN52<>"",kf*Ergebnisse!AQ52*Ergebnisse!AM52,"") -> 0.0005606112569 | AS52: 1.252612821e-06 | AT52: 1.252612821e-05 | AU52: 3.440161198e-13 | AV52: -2.329385567e-13 | AW52: 0.002534132093 | AX52: 0.03152662579 | AZ52: 7.692996228e-06 | BA52: 0 | BB52: 0.002623756339 | BC52: 1.64257523e-10 | BD52: 0 | BE52: 7.69266318e-06 | BF52: 0 | BG52: 0.00262364275 | BH52: 8.837098731e-07 | BI52: 0 | BJ52: 2.932025916e-07 | BK52: 0 | BL52: 9.999902969e-05 | BM52: 5.098662127e-12 | BN52: 0 | BO52: 0.004680365297 | BP52: 0.00261994501 | BQ52: 7.681821205e-06 | BR52: 2619.94501 | BS52: 7.681821205 | BT52: 0.03607347911
V53: n-Nonan | W53: =VLOOKUP(V53,Stoffdatenbank!$A$4:$M$45,5,FALSE) -> 156.63 | X53: =VLOOKUP(V53,Stoffdatenbank!$A$4:$M$45,4,FALSE)/1000 -> 27.54 | Y53: 0.2754 | Z53: =VLOOKUP(V53,Stoffdatenbank!$A$4:$M$45,7,FALSE) -> 5.31e-06 | AA53: =VLOOKUP(V53,Stoffdatenbank!$A$4:$M$45,6,FALSE) -> 5.41e-10 | AB53: =VLOOKUP(V53,Stoffdatenbank!$A$4:$M$45,8,FALSE)*1000*(1*10^-6) -> 0.00012 | AC53: =VLOOKUP(V53,Stoffdatenbank!$A$4:$M$45,9,FALSE) -> 351 | AD53: =VLOOKUP(V53,Stoffdatenbank!$A$4:$M$45,12,FALSE)/1000 -> 0.128 | AE53: 0.006197662866 | AF53: =IF(Schadstoffbelastung!Y39<>"",Schadstoffbelastung!Y39/1000000,"") -> 4.767859705e-08 | AG53: =IF(Schadstoffbelastung!X39<>"",Schadstoffbelastung!X39/1000000,"") -> 8.653768885e-06 | AH53: =IF(Schadstoffbelastung!Z39<>"",Schadstoffbelastung!Z39/1000000,"") -> 0 | AI53: =IF(Schadstoffbelastung!U39<>"",Schadstoffbelastung!U39/1000000,"") -> 0.136067 | AJ53: =IF(Schadstoffbelastung!W39<>"",Schadstoffbelastung!W39/1000000,"") -> 2.071613053e-05 | AL53: 8180.205258 | AM53: 0.1222463213 | AN53: 4.3 | AO53: 11.20136372 | AP53: 0.9986362804 | AQ53: =IF(AN53<>"",Schadstoffbelastung!$K$4*Ergebnisse!AO53,"") -> 448.0545488 | AR53: =IF(AN53<>"",kf*Ergebnisse!AQ53*Ergebnisse!AM53,"") -> 0.0005477302031 | AS53: 1.222463213e-06 | AT53: 1.222463213e-05 | AU53: 3.368009255e-13 | AV53: -2.280530387e-13 | AW53: 0.002473137115 | AX53: 0.03086540465 | AZ53: 7.692996228e-06 | BA53: 0 | BB53: 0.002623756339 | BC53: 1.64257523e-10 | BD53: 0 | BE53: 7.69266318e-06 | BF53: 0 | BG53: 0.00262364275 | BH53: 8.837098731e-07 | BI53: 0 | BJ53: 2.932025916e-07 | BK53: 0 | BL53: 9.999902969e-05 | BM53: 5.098662127e-12 | BN53: 0 | BO53: 0.004794520548 | BP53: 0.002619852633 | BQ53: 7.681550352e-06 | BR53: 2619.852633 | BS53: 7.681550352 | BT53: 0.03695332006
V54: n-Decan | W54: =VLOOKUP(V54,Stoffdatenbank!$A$4:$M$45,5,FALSE) -> 140.3 | X54: =VLOOKUP(V54,Stoffdatenbank!$A$4:$M$45,4,FALSE)/1000 -> 218.78 | Y54: 2.1878 | Z54: =VLOOKUP(V54,Stoffdatenbank!$A$4:$M$45,7,FALSE) -> 5.05e-06 | AA54: =VLOOKUP(V54,Stoffdatenbank!$A$4:$M$45,6,FALSE) -> 5.13e-10 | AB54: =VLOOKUP(V54,Stoffdatenbank!$A$4:$M$45,8,FALSE)*1000*(1*10^-6) -> 5e-05 | AC54: =VLOOKUP(V54,Stoffdatenbank!$A$4:$M$45,9,FALSE) -> 118 | AD54: =VLOOKUP(V54,Stoffdatenbank!$A$4:$M$45,12,FALSE)/1000 -> 0.142 | AE54: 0 | AF54: =IF(Schadstoffbelastung!Y40<>"",Schadstoffbelastung!Y40/1000000,"") -> 0 | AG54: =IF(Schadstoffbelastung!X40<>"",Schadstoffbelastung!X40/1000000,"") -> 2.579317327e-05 | AH54: =IF(Schadstoffbelastung!Z40<>"",Schadstoffbelastung!Z40/1000000,"") -> 0 | AI54: =IF(Schadstoffbelastung!U40<>"",Schadstoffbelastung!U40/1000000,"") -> 0.136067 | AJ54: =IF(Schadstoffbelastung!W40<>"",Schadstoffbelastung!W40/1000000,"") -> 7.780706301e-06 | AL54: 8377.292713 | AM54: 0.1193703067 | AN54: 4.4 | AO54: 11.21358835 | AP54: 0.9864116483 | AQ54: =IF(AN54<>"",Schadstoffbelastung!$K$4*Ergebnisse!AO54,"") -> 448.5435341 | AR54: =IF(AN54<>"",kf*Ergebnisse!AQ54*Ergebnisse!AM54,"") -> 0.0005354277921 | AS54: 1.193703067e-06 | AT54: 1.193703067e-05 | AU54: 3.298966615e-13 | AV54: -2.233780563e-13 | AW54: 0.002414953127 | AX54: 0.03023267805 | AZ54: 7.692996228e-06 | BA54: 0 | BB54: 0.002623756339 | BC54: 1.64257523e-10 | BD54: 0 | BE54: 7.69266318e-06 | BF54: 0 | BG54: 0.00262364275 | BH54: 8.837098731e-07 | BI54: 0 | BJ54: 2.932025916e-07 | BK54: 0 | BL54: 9.999902969e-05 | BM54: 5.098662127e-12 | BN54: 0 | BO54: 0.004908675799 | BP54: 0.00261976026 | BQ54: 7.681279508e-06 | BR54: 2619.76026 | BS54: 7.681279508 | BT54: 0.03783316102
V55: Summe n-Alkane | W55: =SUM(IF($AE$49:$AE$54<>"",W49:W54*$AE$49:$AE$54,0)) -> 54.0586843 | X55: =SUMPRODUCT(X49:X54,AE49:AE54)*0.03 -> 0.2746191229 | Y55: =SUM(IF($AE$49:$AE$54<>"",Y49:Y54*$AE$49:$AE$54,0)) -> 0.09153970762 | Z55: =SUM(IF($AE$49:$AE$54<>"",Z49:Z54*$AE$49:$AE$54,0)) -> 6.226688745e-06 | AA55: =SUM(IF($AE$49:$AE$54<>"",AA49:AA54*$AE$49:$AE$54,0)) -> 6.341848417e-10 | AB55: =SUM(IF($AE$49:$AE$54<>"",AB49:AB54*$AE$49:$AE$54,0)) -> 0.01996727161 | AC55: =SUM(IF($AE$49:$AE$54<>"",AC49:AC54*$AE$49:$AE$54,0)) -> 23206.62289 | AD55: =SUM(IF($AE$49:$AE$54<>"",AD49:AD54*$AE$49:$AE$54,0)) -> 0.09324804845 | AE55: =IF(SUM(AE49:AE54)<>0,SUM(AE49:AE54),"") -> 1 | AF55: =IF(SUM(AF49:AF54)<>0,SUM(AF49:AF54),"") -> 7.692996228e-06 | AG55: =IF(SUM(AG49:AG54)<>0,SUM(AG49:AG54),"") -> 0.0001898465544 | AH55: =IF(SUM(AH49:AH54)<>0,SUM(AH49:AH54),0) -> 0 | AI55: =IF(SUM(AI49:AI54)<>0,SUM(AI49:AI54),"") -> 0.680335 | AJ55: =IF(SUM(AJ49:AJ54)<>0,SUM(AJ49:AJ54),"") -> 0.00321976251 | AL55: 8574.570634 | AM55: 0.1166239154 | AN55: 4.5 | AO55: 11.22552538 | AP55: 0.9744746176 | AQ55: =IF(AN55<>"",Schadstoffbelastung!$K$4*Ergebnisse!AO55,"") -> 449.0210153 | AR55: =IF(AN55<>"",kf*Ergebnisse!AQ55*Ergebnisse!AM55,"") -> 0.0005236658889 | AS55: 1.166239154e-06 | AT55: 1.166239154e-05 | AU55: 3.232833656e-13 | AV55: -2.189000929e-13 | AW55: 0.002359391519 | AX55: 0.02962661661 | AZ55: 7.692996228e-06 | BA55: 0 | BB55: 0.002623756339 | BC55: 1.64257523e-10 | BD55: 0 | BE55: 7.69266318e-06 | BF55: 0 | BG55: 0.00262364275 | BH55: 8.837098731e-07 | BI55: 0 | BJ55: 2.932025916e-07 | BK55: 0 | BL55: 9.999902969e-05 | BM55: 5.098662127e-12 | BN55: 0 | BO55: 0.00502283105 | BP55: 0.00261966789 | BQ55: 7.681008673e-06 | BR55: 2619.66789 | BS55: 7.681008673 | BT55: 0.03871300197
V56: Mittelwert | W56: =AVERAGE(W49:W54) -> 86.54833333 | X56: =AVERAGE(X49:X54) -> 45.31 | Y56: 0.4531 | Z56: 5.851666667e-06 | AA56: 5.963333333e-10 | AB56: 0.008845 | AC56: 10716 | AD56: 0.107 | AF56: =AVERAGE(AF49:AF54) -> 1.282166038e-06 | AL56: 8772.034673 | AM56: 0.1139986374 | AN56: 4.6 | AO56: 11.23718777 | AP56: 0.9628122261 | AQ56: =IF(AN56<>"",Schadstoffbelastung!$K$4*Ergebnisse!AO56,"") -> 449.487511 | AR56: =IF(AN56<>"",kf*Ergebnisse!AQ56*Ergebnisse!AM56,"") -> 0.0005124096378 | AS56: 1.139986374e-06 | AT56: 1.139986374e-05 | AU56: 3.169427602e-13 | AV56: -2.146067723e-13 | AW56: 0.002306280126 | AX56: 0.02904554531 | AZ56: 7.692996228e-06 | BA56: 0 | BB56: 0.002623756339 | BC56: 1.64257523e-10 | BD56: 0 | BE56: 7.69266318e-06 | BF56: 0 | BG56: 0.00262364275 | BH56: 8.837098731e-07 | BI56: 0 | BJ56: 2.932025916e-07 | BK56: 0 | BL56: 9.999902969e-05 | BM56: 5.098662127e-12 | BN56: 0 | BO56: 0.005136986301 | BP56: 0.002619575523 | BQ56: 7.680737849e-06 | BR56: 2619.575523 | BS56: 7.680737849 | BT56: 0.03959284292
AL57: 8969.680674 | AM57: 0.111486689 | AN57: 4.7 | AO57: 11.24858764 | AP57: 0.9514123623 | AQ57: =IF(AN57<>"",Schadstoffbelastung!$K$4*Ergebnisse!AO57,"") -> 449.9435055 | AR57: =IF(AN57<>"",kf*Ergebnisse!AQ57*Ergebnisse!AM57,"") -> 0.0005016271168 | AS57: 1.11486689e-06 | AT57: 1.11486689e-05 | AU57: 3.108580775e-13 | AV57: -2.10486741e-13 | AW57: 0.002255461478 | AX57: 0.02848792751 | AZ57: 7.692996228e-06 | BA57: 0 | BB57: 0.002623756339 | BC57: 1.64257523e-10 | BD57: 0 | BE57: 7.69266318e-06 | BF57: 0 | BG57: 0.00262364275 | BH57: 8.837098731e-07 | BI57: 0 | BJ57: 2.932025916e-07 | BK57: 0 | BL57: 9.999902969e-05 | BM57: 5.098662127e-12 | BN57: 0 | BO57: 0.005251141553 | BP57: 0.002619483159 | BQ57: 7.680467033e-06 | BR57: 2619.483159 | BS57: 7.680467033 | BT57: 0.04047268388
AL58: 9167.504655 | AM58: 0.1090809373 | AN58: 4.8 | AO58: 11.25973631 | AP58: 0.9402636934 | AQ58: =IF(AN58<>"",Schadstoffbelastung!$K$4*Ergebnisse!AO58,"") -> 450.3894523 | AR58: =IF(AN58<>"",kf*Ergebnisse!AQ58*Ergebnisse!AM58,"") -> 0.0004912890358 | AS58: 1.090809373e-06 | AT58: 1.090809373e-05 | AU58: 3.050139062e-13 | AV58: -2.065295636e-13 | AW58: 0.002206791269 | AX58: 0.02795235086 | AZ58: 7.692996228e-06 | BA58: 0 | BB58: 0.002623756339 | BC58: 1.64257523e-10 | BD58: 0 | BE58: 7.69266318e-06 | BF58: 0 | BG58: 0.00262364275 | BH58: 8.837098731e-07 | BI58: 0 | BJ58: 2.932025916e-07 | BK58: 0 | BL58: 9.999902969e-05 | BM58: 5.098662127e-12 | BN58: 0 | BO58: 0.005365296804 | BP58: 0.002619390799 | BQ58: 7.680196227e-06 | BR58: 2619.390799 | BS58: 7.680196227 | BT58: 0.04135252483
V59: MTBE (Methyl-tert-butylether) | W59: =VLOOKUP(V59,Stoffdatenbank!$A$4:$M$45,5,FALSE) -> 0.027 | X59: =VLOOKUP(V59,Stoffdatenbank!$A$4:$M$45,4,FALSE)/1000 -> 0.011 | Y59: =X59*foc -> 0.00011 | Z59: =VLOOKUP(V59,Stoffdatenbank!$A$4:$M$45,7,FALSE) -> 8.286e-06 | AA59: =VLOOKUP(V59,Stoffdatenbank!$A$4:$M$45,6,FALSE) -> 9.513e-10 | AB59: =VLOOKUP(V59,Stoffdatenbank!$A$4:$M$45,8,FALSE)*1000*(1*10^-6) -> 51.259 | AC59: =VLOOKUP(V59,Stoffdatenbank!$A$4:$M$45,9,FALSE) -> 33300 | AD59: =VLOOKUP(V59,Stoffdatenbank!$A$4:$M$45,12,FALSE)/1000 -> 0.088148 | AE59: =IF(AF59<>"",AF59/$AF$62,"") -> 0.9666697875 | AF59: =IF(Schadstoffbelastung!Y42<>"",Schadstoffbelastung!Y42/1000000,"") -> 3.757874157e-06 | AG59: =IF(Schadstoffbelastung!X42<>"",Schadstoffbelastung!X42/1000000,"") -> 0.01834376241 | AH59: =IF(Schadstoffbelastung!Z42<>"",Schadstoffbelastung!Z42/1000000,"") -> 0 | AI59: =IF(Schadstoffbelastung!U42<>"",Schadstoffbelastung!U42/1000000,"") -> 0.136067 | AJ59: =IF(Schadstoffbelastung!W42<>"",Schadstoffbelastung!W42/1000000,"") -> 27.51839545 | AL59: 9365.502803 | AM59: 0.1067748332 | AN59: 4.9 | AO59: 11.2706444 | AP59: 0.9293555997 | AQ59: =IF(AN59<>"",Schadstoffbelastung!$K$4*Ergebnisse!AO59,"") -> 450.825776 | AR59: =IF(AN59<>"",kf*Ergebnisse!AQ59*Ergebnisse!AM59,"") -> 0.0004813684705 | AS59: 1.067748332e-06 | AT59: 1.067748332e-05 | AU59: 2.993960566e-13 | AV59: -2.027256319e-13 | AW59: 0.002160137011 | AX59: 0.02743751497 | AZ59: 7.692996228e-06 | BA59: 0 | BB59: 0.002623756339 | BC59: 1.64257523e-10 | BD59: 0 | BE59: 7.69266318e-06 | BF59: 0 | BG59: 0.00262364275 | BH59: 8.837098731e-07 | BI59: 0 | BJ59: 2.932025916e-07 | BK59: 0 | BL59: 9.999902969e-05 | BM59: 5.098662127e-12 | BN59: 0 | BO59: 0.005479452055 | BP59: 0.002619298442 | BQ59: 7.679925431e-06 | BR59: 2619.298442 | BS59: 7.679925431 | BT59: 0.04223236579
V60: ETBE (Ethyl-tert-butylether) | W60: =VLOOKUP(V60,Stoffdatenbank!$A$4:$M$45,5,FALSE) -> 0.081 | X60: =VLOOKUP(V60,Stoffdatenbank!$A$4:$M$45,4,FALSE)/1000 -> 0.009 | Y60: =X60*foc -> 9e-05 | Z60: =VLOOKUP(V60,Stoffdatenbank!$A$4:$M$45,7,FALSE) -> 6.944444444e-06 | AA60: =VLOOKUP(V60,Stoffdatenbank!$A$4:$M$45,6,FALSE) -> 7.337962963e-10 | AB60: =VLOOKUP(V60,Stoffdatenbank!$A$4:$M$45,8,FALSE)*1000*(1*10^-6) -> 12 | AC60: =VLOOKUP(V60,Stoffdatenbank!$A$4:$M$45,9,FALSE) -> 16500 | AD60: =VLOOKUP(V60,Stoffdatenbank!$A$4:$M$45,12,FALSE)/1000 -> 0.1021748 | AE60: =IF(AF60<>"",AF60/$AF$62,"") -> 0.01226476922 | AF60: =IF(Schadstoffbelastung!Y43<>"",Schadstoffbelastung!Y43/1000000,"") -> 4.767859705e-08 | AG60: =IF(Schadstoffbelastung!X43<>"",Schadstoffbelastung!X43/1000000,"") -> 0.003536427947 | AH60: =IF(Schadstoffbelastung!Z43<>"",Schadstoffbelastung!Z43/1000000,"") -> 0 | AI60: =IF(Schadstoffbelastung!U43<>"",Schadstoffbelastung!U43/1000000,"") -> 0.136067 | AJ60: =IF(Schadstoffbelastung!W43<>"",Schadstoffbelastung!W43/1000000,"") -> 5.557799696 | AL60: 9563.671464 | AM60: 0.1045623539 | AN60: 5 | AO60: 11.28132188 | AP60: 0.9186781164 | AQ60: =IF(AN60<>"",Schadstoffbelastung!$K$4*Ergebnisse!AO60,"") -> 451.2528753 | AR60: =IF(AN60<>"",kf*Ergebnisse!AQ60*Ergebnisse!AM60,"") -> 0.0004718406284 | AS60: 1.045623539e-06 | AT60: 1.045623539e-05 | AU60: 2.93991441e-13 | AV60: -1.990660844e-13 | AW60: 0.002115376852 | AX60: 0.02694222047 | AZ60: 7.692996228e-06 | BA60: 0 | BB60: 0.002623756339 | BC60: 1.64257523e-10 | BD60: 0 | BE60: 7.69266318e-06 | BF60: 0 | BG60: 0.00262364275 | BH60: 8.837098731e-07 | BI60: 0 | BJ60: 2.932025916e-07 | BK60: 0 | BL60: 9.999902969e-05 | BM60: 5.098662127e-12 | BN60: 0 | BO60: 0.005593607306 | BP60: 0.002619206088 | BQ60: 7.679654645e-06 | BR60: 2619.206088 | BS60: 7.679654645 | BT60: 0.04311220674
V61: TBA (tert-Butylalkohol) | W61: =VLOOKUP(V61,Stoffdatenbank!$A$4:$M$45,5,FALSE) -> 0.00061 | X61: =VLOOKUP(V61,Stoffdatenbank!$A$4:$M$45,4,FALSE)/1000 -> 0.037 | Y61: =X61*foc -> 0.00037 | Z61: =VLOOKUP(V61,Stoffdatenbank!$A$4:$M$45,7,FALSE) -> 6.097130243e-06 | AA61: =VLOOKUP(V61,Stoffdatenbank!$A$4:$M$45,6,FALSE) -> 7e-10 | AB61: keine Angabe | AC61: =VLOOKUP(V61,Stoffdatenbank!$A$4:$M$45,9,FALSE) -> 5430 | AD61: =VLOOKUP(V61,Stoffdatenbank!$A$4:$M$45,12,FALSE)/1000 -> 0.0741216 | AE61: =IF(AF61<>"",AF61/$AF$62,"") -> 0.02106544331 | AF61: =IF(Schadstoffbelastung!Y44<>"",Schadstoffbelastung!Y44/1000000,"") -> 8.189072013e-08 | AG61: =IF(Schadstoffbelastung!X44<>"",Schadstoffbelastung!X44/1000000,"") ->  | AH61: =IF(Schadstoffbelastung!Z44<>"",Schadstoffbelastung!Z44/1000000,"") -> 0 | AI61: =IF(Schadstoffbelastung!U44<>"",Schadstoffbelastung!U44/1000000,"") ->  | AJ61: =IF(Schadstoffbelastung!W44<>"",Schadstoffbelastung!W44/1000000,"") ->  | AL61: 9762.007129 | AM61: 0.1024379502 | AN61: 5.1 | AO61: 11.29177812 | AP61: 0.908221881 | AQ61: =IF(AN61<>"",Schadstoffbelastung!$K$4*Ergebnisse!AO61,"") -> 451.6711248 | AR61: =IF(AN61<>"",kf*Ergebnisse!AQ61*Ergebnisse!AM61,"") -> 0.0004626826418 | AS61: 1.024379502e-06 | AT61: 1.024379502e-05 | AU61: 2.88787969e-13 | AV61: -1.955427342e-13 | AW61: 0.002072398531 | AX61: 0.02646535935 | AZ61: 7.692996228e-06 | BA61: 0 | BB61: 0.002623756339 | BC61: 1.64257523e-10 | BD61: 0 | BE61: 7.69266318e-06 | BF61: 0 | BG61: 0.00262364275 | BH61: 8.837098731e-07 | BI61: 0 | BJ61: 2.932025916e-07 | BK61: 0 | BL61: 9.999902969e-05 | BM61: 5.098662127e-12 | BN61: 0 | BO61: 0.005707762557 | BP61: 0.002619113737 | BQ61: 7.679383868e-06 | BR61: 2619.113737 | BS61: 7.679383868 | BT61: 0.04399204769
V62: Summe Oxigenate | W62: =SUM(IF($AE$59:$AE$61<>"",W59:W61*$AE$59:$AE$61,0)) -> 0.02710638049 | X62: =SUMPRODUCT(X59:X61,AE59:AE61)*15 -> 0.1728475798 | Y62: =SUM(IF($AE$59:$AE$61<>"",Y59:Y61*$AE$59:$AE$61,0)) -> 0.0001152317199 | Z62: =SUM(IF($AE$59:$AE$61<>"",Z59:Z61*$AE$59:$AE$61,0)) -> 8.223436619e-06 | AA62: =SUM(IF($AE$59:$AE$61<>"",AA59:AA61*$AE$59:$AE$61,0)) -> 9.433386214e-10 | AB62: =SUM(IF($AE$59:$AE$60<>"",AB59:AB60*$AE$59:$AE$60,0)) -> 49.69770387 | AC62: =SUM(IF($AE$59:$AE$61<>"",AC59:AC61*$AE$59:$AE$61,0)) -> 32506.85797 | AD62: =SUM(IF($AE$59:$AE$61<>"",AD59:AD61*$AE$59:$AE$61,0)) -> 0.08802456313 | AE62: =IF(SUM(AE59:AE61)<>0,SUM(AE59:AE61),"") -> 1 | AF62: =IF(SUM(AF59:AF61)<>0,SUM(AF59:AF61),"") -> 3.887443474e-06 | AG62: =IF(SUM(AG59:AG61)<>0,SUM(AG59:AG61),"") -> 0.02188019035 | AH62: =IF(SUM(AH59:AH61)<>0,SUM(AH59:AH61),0) -> 0 | AI62: =IF(SUM(AI59:AI61)<>0,SUM(AI59:AI61),"") -> 0.272134 | AJ62: =IF(SUM(AJ59:AJ61)<>0,SUM(AJ59:AJ61),"") -> 33.07619514 | AL62: 9960.506427 | AM62: 0.1003965017 | AN62: 5.2 | AO62: 11.30202191 | AP62: 0.897978086 | AQ62: =IF(AN62<>"",Schadstoffbelastung!$K$4*Ergebnisse!AO62,"") -> 452.0808766 | AR62: =IF(AN62<>"",kf*Ergebnisse!AQ62*Ergebnisse!AM62,"") -> 0.0004538733847 | AS62: 1.003965017e-06 | AT62: 1.003965017e-05 | AU62: 2.837744534e-13 | AV62: -1.921480064e-13 | AW62: 0.002031098457 | AX62: 0.02600590637 | AZ62: 7.692996228e-06 | BA62: 0 | BB62: 0.002623756339 | BC62: 1.64257523e-10 | BD62: 0 | BE62: 7.69266318e-06 | BF62: 0 | BG62: 0.00262364275 | BH62: 8.837098731e-07 | BI62: 0 | BJ62: 2.932025916e-07 | BK62: 0 | BL62: 9.999902969e-05 | BM62: 5.098662127e-12 | BN62: 0 | BO62: 0.005821917808 | BP62: 0.00261902139 | BQ62: 7.6791131e-06 | BR62: 2619.02139 | BS62: 7.6791131 | BT62: 0.04487188865
V63: Mittelwert | W63: =AVERAGE(W59:W61) -> 0.03620333333 | X63: =AVERAGE(X59:X61) -> 0.019 | Y63: 0.00019 | Z63: 7.109191562e-06 | AA63: 7.950320988e-10 | AB63: 31.6295 | AC63: 18410 | AD63: 0.08814813333 | AF63: =AVERAGE(AF59:AF61) -> 1.295814491e-06 | AL63: 10159.16612 | AM63: 0.09843327573 | AN63: 5.3 | AO63: 11.31206156 | AP63: 0.8879384358 | AQ63: =IF(AN63<>"",Schadstoffbelastung!$K$4*Ergebnisse!AO63,"") -> 452.4824626 | AR63: =IF(AN63<>"",kf*Ergebnisse!AQ63*Ergebnisse!AM63,"") -> 0.00044539331 | AS63: 9.843327573e-07 | AT63: 9.843327573e-06 | AU63: 2.789405272e-13 | AV63: -1.888748813e-13 | AW63: 0.001991380886 | AX63: 0.02556291148 | AZ63: 7.692996228e-06 | BA63: 0 | BB63: 0.002623756339 | BC63: 1.64257523e-10 | BD63: 0 | BE63: 7.69266318e-06 | BF63: 0 | BG63: 0.00262364275 | BH63: 8.837098731e-07 | BI63: 0 | BJ63: 2.932025916e-07 | BK63: 0 | BL63: 9.999902969e-05 | BM63: 5.098662127e-12 | BN63: 0 | BO63: 0.005936073059 | BP63: 0.002618929046 | BQ63: 7.678842342e-06 | BR63: 2618.929046 | BS63: 7.678842342 | BT63: 0.0457517296
AL64: 10357.98309 | AM64: 0.09654389189 | AN64: 5.4 | AO64: 11.32190489 | AP64: 0.8780951082 | AQ64: =IF(AN64<>"",Schadstoffbelastung!$K$4*Ergebnisse!AO64,"") -> 452.8761957 | AR64: =IF(AN64<>"",kf*Ergebnisse!AQ64*Ergebnisse!AM64,"") -> 0.0004372243047 | AS64: 9.654389189e-07 | AT64: 9.654389189e-06 | AU64: 2.742765696e-13 | AV64: -1.857168446e-13 | AW64: 0.001953157197 | AX64: 0.02513549301 | AZ64: 7.692996228e-06 | BA64: 0 | BB64: 0.002623756339 | BC64: 1.64257523e-10 | BD64: 0 | BE64: 7.69266318e-06 | BF64: 0 | BG64: 0.00262364275 | BH64: 8.837098731e-07 | BI64: 0 | BJ64: 2.932025916e-07 | BK64: 0 | BL64: 9.999902969e-05 | BM64: 5.098662127e-12 | BN64: 0 | BO64: 0.006050228311 | BP64: 0.002618836705 | BQ64: 7.678571593e-06 | BR64: 2618.836705 | BS64: 7.678571593 | BT64: 0.04663157056
AL65: 10556.95435 | AM65: 0.09472428951 | AN65: 5.5 | AO65: 11.33155928 | AP65: 0.868440719 | AQ65: =IF(AN65<>"",Schadstoffbelastung!$K$4*Ergebnisse!AO65,"") -> 453.2623712 | AR65: =IF(AN65<>"",kf*Ergebnisse!AQ65*Ergebnisse!AM65,"") -> 0.0004293495608 | AS65: 9.472428951e-07 | AT65: 9.472428951e-06 | AU65: 2.697736397e-13 | AV65: -1.826678421e-13 | AW65: 0.001916345242 | AX65: 0.02472283157 | AZ65: 7.692996228e-06 | BA65: 0 | BB65: 0.002623756339 | BC65: 1.64257523e-10 | BD65: 0 | BE65: 7.69266318e-06 | BF65: 0 | BG65: 0.00262364275 | BH65: 8.837098731e-07 | BI65: 0 | BJ65: 2.932025916e-07 | BK65: 0 | BL65: 9.999902969e-05 | BM65: 5.098662127e-12 | BN65: 0 | BO65: 0.006164383562 | BP65: 0.002618744367 | BQ65: 7.678300855e-06 | BR65: 2618.744367 | BS65: 7.678300855 | BT65: 0.04751141151
AL66: 10756.07699 | AM66: 0.09297069931 | AN66: 5.6 | AO66: 11.34103171 | AP66: 0.8589682901 | AQ66: =IF(AN66<>"",Schadstoffbelastung!$K$4*Ergebnisse!AO66,"") -> 453.6412684 | AR66: =IF(AN66<>"",kf*Ergebnisse!AQ66*Ergebnisse!AM66,"") -> 0.0004217534596 | AS66: 9.297069931e-07 | AT66: 9.297069931e-06 | AU66: 2.654234172e-13 | AV66: -1.797222402e-13 | AW66: 0.001880868763 | AX66: 0.02432416468 | AZ66: 7.692996228e-06 | BA66: 0 | BB66: 0.002623756339 | BC66: 1.64257523e-10 | BD66: 0 | BE66: 7.69266318e-06 | BF66: 0 | BG66: 0.00262364275 | BH66: 8.837098731e-07 | BI66: 0 | BO66: 0.006278538813 | BP66: 0.002618652033 | BQ66: 7.678030125e-06 | BR66: 2618.652033 | BS66: 7.678030125 | BT66: 0.04839125246
AL67: 10955.34825 | AM67: 0.09127961772 | AN67: 5.7 | AO67: 11.35032878 | AP67: 0.8496712202 | AQ67: =IF(AN67<>"",Schadstoffbelastung!$K$4*Ergebnisse!AO67,"") -> 454.0131512 | AR67: =IF(AN67<>"",kf*Ergebnisse!AQ67*Ergebnisse!AM67,"") -> 0.0004144214688 | AS67: 9.127961772e-07 | AT67: 9.127961772e-06 | AU67: 2.612181493e-13 | AV67: -1.768747892e-13 | AW67: 0.001846656882 | AX67: 0.02393878184 | AZ67: 7.692996228e-06 | BA67: 0 | BB67: 0.002623756339 | BC67: 1.64257523e-10 | BD67: 0 | BE67: 7.69266318e-06 | BF67: 0 | BG67: 0.00262364275 | BH67: 8.837098731e-07 | BI67: 0 | BO67: 0.006392694064 | BP67: 0.002618559702 | BQ67: 7.677759405e-06 | BR67: 2618.559702 | BS67: 7.677759405 | BT67: 0.04927109342
AL68: 11154.76542 | AM68: 0.08964778391 | AN68: 5.8 | AO68: 11.35945674 | AP68: 0.8405432584 | AQ68: =IF(AN68<>"",Schadstoffbelastung!$K$4*Ergebnisse!AO68,"") -> 454.3782697 | AR68: =IF(AN68<>"",kf*Ergebnisse!AQ68*Ergebnisse!AM68,"") -> 0.0004073400493 | AS68: 8.964778391e-07 | AT68: 8.964778391e-06 | AU68: 2.571506029e-13 | AV68: -1.741205916e-13 | AW68: 0.001813643628 | AX68: 0.02356602021 | AZ68: 7.692996228e-06 | BA68: 0 | BB68: 0.002623756339 | BC68: 1.64257523e-10 | BD68: 0 | BE68: 7.69266318e-06 | BF68: 0 | BG68: 0.00262364275 | BH68: 8.837098731e-07 | BI68: 0 | BO68: 0.006506849315 | BP68: 0.002618467374 | BQ68: 7.677488695e-06 | BR68: 2618.467374 | BS68: 7.677488695 | BT68: 0.05015093437
AL69: 11354.32592 | AM69: 0.08807215917 | AN69: 5.9 | AO69: 11.36842152 | AP69: 0.83157848 | AQ69: =IF(AN69<>"",Schadstoffbelastung!$K$4*Ergebnisse!AO69,"") -> 454.7368608 | AR69: =IF(AN69<>"",kf*Ergebnisse!AQ69*Ergebnisse!AM69,"") -> 0.0004004965718 | AS69: 8.807215917e-07 | AT69: 8.807215917e-06 | AU69: 2.532140218e-13 | AV69: -1.714550725e-13 | AW69: 0.001781767528 | AX69: 0.0232052606 | AZ69: 7.692996228e-06 | BA69: 0 | BB69: 0.002623756339 | BC69: 1.64257523e-10 | BD69: 0 | BE69: 7.69266318e-06 | BF69: 0 | BG69: 0.00262364275 | BH69: 8.837098731e-07 | BI69: 0 | BO69: 0.006621004566 | BP69: 0.002618375049 | BQ69: 7.677217994e-06 | BR69: 2618.375049 | BS69: 7.677217994 | BT69: 0.05103077532
AL70: 11554.02725 | AM70: 0.08654990838 | AN70: 6 | AO70: 11.37722874 | AP70: 0.8227712641 | AQ70: =IF(AN70<>"",Schadstoffbelastung!$K$4*Ergebnisse!AO70,"") -> 455.0891494 | AR70: =IF(AN70<>"",kf*Ergebnisse!AQ70*Ergebnisse!AM70,"") -> 0.0003938792419 | AS70: 8.654990838e-07 | AT70: 8.654990838e-06 | AU70: 2.494020874e-13 | AV70: -1.688739537e-13 | AW70: 0.001750971223 | AX70: 0.02285592398 | AZ70: 7.692996228e-06 | BA70: 0 | BB70: 0.002623756339 | BC70: 1.64257523e-10 | BD70: 0 | BE70: 7.69266318e-06 | BF70: 0 | BG70: 0.00262364275 | BH70: 8.837098731e-07 | BI70: 0 | BO70: 0.006735159817 | BP70: 0.002618282728 | BQ70: 7.676947303e-06 | BR70: 2618.282728 | BS70: 7.676947303 | BT70: 0.05191061628
AL71: 11753.86699 | AM71: 0.08507838325 | AN71: 6.1 | AO71: 11.38588373 | AP71: 0.8141162732 | AQ71: =IF(AN71<>"",Schadstoffbelastung!$K$4*Ergebnisse!AO71,"") -> 455.4353491 | AR71: =IF(AN71<>"",kf*Ergebnisse!AQ71*Ergebnisse!AM71,"") -> 0.0003874770317 | AS71: 8.507838325e-07 | AT71: 8.507838325e-06 | AU71: 2.457088843e-13 | AV71: -1.663732296e-13 | AW71: 0.001721201138 | AX71: 0.02251746823 | AZ71: 7.692996228e-06 | BA71: 0 | BB71: 0.002623756339 | BC71: 1.64257523e-10 | BD71: 0 | BE71: 7.69266318e-06 | BF71: 0 | BG71: 0.00262364275 | BH71: 8.837098731e-07 | BI71: 0 | BO71: 0.006849315068 | BP71: 0.00261819041 | BQ71: 7.676676621e-06 | BR71: 2618.19041 | BS71: 7.676676621 | BT71: 0.05279045723
AL72: 11953.84279 | AM72: 0.08365510723 | AN72: 6.2 | AO72: 11.39439157 | AP72: 0.8056084349 | AQ72: =IF(AN72<>"",Schadstoffbelastung!$K$4*Ergebnisse!AO72,"") -> 455.7756626 | AR72: =IF(AN72<>"",kf*Ergebnisse!AQ72*Ergebnisse!AM72,"") -> 0.0003812796193 | AS72: 8.365510723e-07 | AT72: 8.365510723e-06 | AU72: 2.42128868e-13 | AV72: -1.63949146e-13 | AW72: 0.001692407169 | AX72: 0.02218938525 | AZ72: 7.692996228e-06 | BA72: 0 | BB72: 0.002623756339 | BC72: 1.64257523e-10 | BD72: 0 | BE72: 7.69266318e-06 | BF72: 0 | BG72: 0.00262364275 | BH72: 8.837098731e-07 | BI72: 0 | BO72: 0.00696347032 | BP72: 0.002618098095 | BQ72: 7.676405949e-06 | BR72: 2618.098095 | BS72: 7.676405949 | BT72: 0.05367029819
AL73: 12153.95239 | AM73: 0.08227776182 | AN73: 6.3 | AO73: 11.40275708 | AP73: 0.7972429242 | AQ73: =IF(AN73<>"",Schadstoffbelastung!$K$4*Ergebnisse!AO73,"") -> 456.110283 | AR73: =IF(AN73<>"",kf*Ergebnisse!AQ73*Ergebnisse!AM73,"") -> 0.0003752773323 | AS73: 8.227776182e-07 | AT73: 8.227776182e-06 | AU73: 2.386568364e-13 | AV73: -1.615981805e-13 | AW73: 0.001664542412 | AX73: 0.0218711983 | AZ73: 7.692996228e-06 | BA73: 0 | BB73: 0.002623756339 | BC73: 1.64257523e-10 | BD73: 0 | BE73: 7.69266318e-06 | BF73: 0 | BG73: 0.00262364275 | BH73: 8.837098731e-07 | BI73: 0 | BO73: 0.007077625571 | BP73: 0.002618005783 | BQ73: 7.676135287e-06 | BR73: 2618.005783 | BS73: 7.676135287 | BT73: 0.05455013914
AL74: 12354.19361 | AM74: 0.08094417423 | AN74: 6.4 | AO74: 11.41098485 | AP74: 0.789015148 | AQ74: =IF(AN74<>"",Schadstoffbelastung!$K$4*Ergebnisse!AO74,"") -> 456.4393941 | AR74: =IF(AN74<>"",kf*Ergebnisse!AQ74*Ergebnisse!AM74,"") -> 0.0003694610984 | AS74: 8.094417423e-07 | AT74: 8.094417423e-06 | AU74: 2.352879038e-13 | AV74: -1.593170248e-13 | AW74: 0.001637562909 | AX74: 0.02156245963 | AZ74: 7.692996228e-06 | BA74: 0 | BB74: 0.002623756339 | BC74: 1.64257523e-10 | BD74: 0 | BE74: 7.69266318e-06 | BF74: 0 | BG74: 0.00262364275 | BH74: 8.837098731e-07 | BI74: 0 | BO74: 0.007191780822 | BP74: 0.002617913475 | BQ74: 7.675864634e-06 | BR74: 2617.913475 | BS74: 7.675864634 | BT74: 0.05542998009
AL75: 12554.56432 | AM75: 0.07965230607 | AN75: 6.5 | AO75: 11.41907927 | AP75: 0.7809207306 | AQ75: =IF(AN75<>"",Schadstoffbelastung!$K$4*Ergebnisse!AO75,"") -> 456.7631708 | AR75: =IF(AN75<>"",kf*Ergebnisse!AQ75*Ergebnisse!AM75,"") -> 0.0003638223988 | AS75: 7.965230607e-07 | AT75: 7.965230607e-06 | AU75: =IF(AN75<>"",(AX75*$S$36)/A0*(d_50*2)*1000000,"") -> 2.320174766e-13 | AV75: =IF(AU75<>"",AU75*($S$41-$S$40),"") -> -1.571025688e-13 | AW75: 0.001611427423 | AX75: 0.02126274829 | AZ75: =IF(AN75<>"",$S$37,"") -> 7.692996228e-06 | BA75: =IF(AN76<>"",IF($S$39<>0,$S$39,0),"") -> 0 | BB75: =IF(AN75<>"",IF(AZ75<Lw,(AZ75*pb)/(Kd*pb+Theta_w),(Sättigungskonz*pb)/(Kd*pb+Theta_w)),"") -> 0.002623756339 | BC75: =IF(AN75<>"",IF(BA75=0,n*$AO$4*((AZ75/$S$10)-BB75),0),"") -> 1.64257523e-10 | BD75: =IF(AN75<>"",IF(BA75<>0,IF(AU75*(Sättigungskonz-BB75)<0,AU75*((Sättigungskonz-BB75)*(-1)),AU75*(Sättigungskonz-BB75)),0),"") -> 0 | BE75: =IF(AN75<>"",IF(Sättigungskonz>=AZ75,IF(AZ75-(BC75+BD75)*$BC$4/pb>0,AZ75-(BC75+BD75)*$BC$4/pb,0),IF(AZ75-(BC75+BD75)*$BC$4/pb>Sättigungskonz,AZ75-(BC75+BD75)*$BC$4/pb,Sättigungskonz)),"") -> 7.69266318e-06 | BF75: 0 | BG75: =IF(AN75<>"",IF(BE75<Lw,(BE75*pb)/(Kd*pb+Theta_w),(Sättigungskonz*pb)/(Kd*pb+Theta_w)),"") -> 0.00262364275 | BH75: =IF(AN75<>"",IF(BF74=0,n*$AO$4*(BE75-(BG75/$S$10))*(-1),0),"") -> 8.837098731e-07 | BI75: =IF(AN75<>"",IF(BF75<>0,AU75*(Sättigungskonz-BG75),0),"") -> 0 | BO75: 0.007305936073 | BP75: 0.00261782117 | BQ75: 7.67559399e-06 | BR75: 2617.82117 | BS75: 7.67559399 | BT75: =IF(BO75<>"",BO75*(0.1*Retardation),"") -> 0.05630982105
AL76: =IF(AN76<>"",IF(((AN77-AN76)/AT76)<0,((AN77-AN76)/AT76)*(-1),((AN77-AN76)/AT76)),"") -> 12755.06247 | AM76: 0.0784002432 | AN76: =IF(AN75>=$AS$6+0.1,"",AN75+0.1) -> 6.6 | AO76: 11.4270445 | AP76: 0.7729555 | AQ76: =IF(AN76<>"",Schadstoffbelastung!$K$4*Ergebnisse!AO76,"") -> 457.08178 | AR76: =IF(AN76<>"",kf*Ergebnisse!AQ76*Ergebnisse!AM76,"") -> 0.0003583532272 | AS76: 7.84002432e-07 | AT76: 7.84002432e-06 | AU76: 2.288412324e-13 | AV76: -1.549518854e-13 | AW76: 0.001586097228 | AX76: 0.02097166814 | AZ76: 7.692996228e-06 | BA76: 0 | BB76: 0.002623756339 | BC76: 1.64257523e-10 | BD76: 0 | BE76: 7.69266318e-06 | BF76: =IF(AN76<>"",IF(BA76<>0,BA76-((BH76+BD76)*$BC$4),0),"") -> 0 | BG76: 0.00262364275 | BH76: 8.837098731e-07 | BI76: 0 | BO76: 0.007420091324 | BP76: 0.002617728868 | BQ76: 7.675323356e-06 | BR76: =IF(BP76<>"",BP76/(1*10^-6),"") -> 2617.728868 | BS76: =IF(BQ76<>"",BQ76/(1*10^-6),"") -> 7.675323356 | BT76: 0.057189662
AL77: 12955.68607 | AM77: 0.0771861864 | AN77: 6.7 | AO77: 11.43488452 | AP77: 0.7651154757 | AQ77: =IF(AN77<>"",Schadstoffbelastung!$K$4*Ergebnisse!AO77,"") -> 457.395381 | AR77: =IF(AN77<>"",kf*Ergebnisse!AQ77*Ergebnisse!AM77,"") -> 0.0003530460513 | AS77: 7.71861864e-07 | AT77: 7.71861864e-06 | AU77: 2.257550995e-13 | AV77: -1.528622178e-13 | AW77: 0.001561535925 | AX77: 0.02068884605 | AZ77: 7.692996228e-06 | BA77: 0 | BB77: 0.002623756339 | BC77: 1.64257523e-10 | BD77: 0 | BE77: 7.69266318e-06 | BF77: 0 | BG77: 0.00262364275 | BH77: 8.837098731e-07 | BI77: 0 | BO77: 0.007534246575 | BP77: 0.00261763657 | BQ77: 7.675052732e-06 | BR77: 2617.63657 | BS77: 7.675052732 | BT77: 0.05806950296
AL78: 13156.43318 | AM78: 0.07600844286 | AN78: 6.8 | AO78: 11.44260314 | AP78: 0.757396857 | AQ78: =IF(AN78<>"",Schadstoffbelastung!$K$4*Ergebnisse!AO78,"") -> 457.7041257 | AR78: =IF(AN78<>"",kf*Ergebnisse!AQ78*Ergebnisse!AM78,"") -> 0.0003478937789 | AS78: 7.600844286e-07 | AT78: 7.600844286e-06 | AU78: 2.227552396e-13 | AV78: -1.508309669e-13 | AW78: 0.001537709267 | AX78: 0.02041393027 | AZ78: 7.692996228e-06 | BA78: 0 | BB78: 0.002623756339 | BC78: 1.64257523e-10 | BD78: 0 | BE78: 7.69266318e-06 | BF78: 0 | BG78: 0.00262364275 | BH78: 8.837098731e-07 | BI78: 0 | BO78: 0.007648401826 | BP78: 0.002617544274 | BQ78: 7.674782117e-06 | BR78: 2617.544274 | BS78: 7.674782117 | BT78: 0.05894934391
AL79: 13357.30194 | AM79: 0.07486541852 | AN79: 6.9 | AO79: 11.45020399 | AP79: 0.7497960127 | AQ79: =IF(AN79<>"",Schadstoffbelastung!$K$4*Ergebnisse!AO79,"") -> 458.0081595 | AR79: =IF(AN79<>"",kf*Ergebnisse!AQ79*Ergebnisse!AM79,"") -> 0.0003428897255 | AS79: 7.486541852e-07 | AT79: 7.486541852e-06 | AU79: 2.198380305e-13 | AV79: -1.488556802e-13 | AW79: 0.001514585006 | AX79: 0.02014658885 | AZ79: 7.692996228e-06 | BA79: 0 | BB79: 0.002623756339 | BC79: 1.64257523e-10 | BD79: 0 | BE79: 7.69266318e-06 | BF79: 0 | BG79: 0.00262364275 | BH79: 8.837098731e-07 | BI79: 0 | BO79: 0.007762557078 | BP79: 0.002617451982 | BQ79: 7.674511512e-06 | BR79: 2617.451982 | BS79: 7.674511512 | BT79: 0.05982918486
AL80: 13558.29052 | AM80: 0.07375561092 | AN80: 7 | AO80: 11.45769053 | AP80: 0.7423094709 | AQ80: =IF(AN80<>"",Schadstoffbelastung!$K$4*Ergebnisse!AO80,"") -> 458.3076212 | AR80: =IF(AN80<>"",kf*Ergebnisse!AQ80*Ergebnisse!AM80,"") -> 0.0003380275859 | AS80: 7.375561092e-07 | AT80: 7.375561092e-06 | AU80: 2.170000518e-13 | AV80: -1.469340416e-13 | AW80: 0.001492132744 | AX80: 0.01988650832 | AZ80: 7.692996228e-06 | BA80: 0 | BB80: 0.002623756339 | BC80: 1.64257523e-10 | BD80: 0 | BE80: 7.69266318e-06 | BF80: 0 | BG80: 0.00262364275 | BH80: 8.837098731e-07 | BI80: 0 | BO80: 0.007876712329 | BP80: 0.002617359693 | BQ80: 7.674240916e-06 | BR80: 2617.359693 | BS80: 7.674240916 | BT80: 0.06070902582
AL81: 13759.39715 | AM81: 0.07267760276 | AN81: 7.1 | AO81: 11.46506609 | AP81: 0.7349339098 | AQ81: =IF(AN81<>"",Schadstoffbelastung!$K$4*Ergebnisse!AO81,"") -> 458.6026436 | AR81: =IF(AN81<>"",kf*Ergebnisse!AQ81*Ergebnisse!AM81,"") -> 0.0003333014075 | AS81: 7.267760276e-07 | AT81: 7.267760276e-06 | AU81: 2.142380703e-13 | AV81: -1.450638619e-13 | AW81: 0.00147032381 | AX81: 0.0196333924 | AZ81: 7.692996228e-06 | BA81: 0 | BB81: 0.002623756339 | BC81: 1.64257523e-10 | BD81: 0 | BE81: 7.69266318e-06 | BF81: 0 | BG81: 0.00262364275 | BH81: 8.837098731e-07 | BI81: 0 | BO81: 0.00799086758 | BP81: 0.002617267408 | BQ81: 7.67397033e-06 | BR81: 2617.267408 | BS81: 7.67397033 | BT81: 0.06158886677
AL82: 13960.62012 | AM82: 0.07163005594 | AN82: 7.2 | AO82: 11.47233385 | AP82: 0.7276661495 | AQ82: =IF(AN82<>"",Schadstoffbelastung!$K$4*Ergebnisse!AO82,"") -> 458.893354 | AR82: =IF(AN82<>"",kf*Ergebnisse!AQ82*Ergebnisse!AM82,"") -> 0.0003287055662 | AS82: 7.163005594e-07 | AT82: 7.163005594e-06 | AU82: 2.115490278e-13 | AV82: -1.432430702e-13 | AW82: 0.001449131132 | AX82: 0.01938696082 | AZ82: 7.692996228e-06 | BA82: 0 | BB82: 0.002623756339 | BC82: 1.64257523e-10 | BD82: 0 | BE82: 7.69266318e-06 | BF82: 0 | BG82: 0.00262364275 | BH82: 8.837098731e-07 | BI82: 0 | BO82: 0.008105022831 | BP82: 0.002617175126 | BQ82: 7.673699753e-06 | BR82: 2617.175126 | BS82: 7.673699753 | BT82: 0.06246870772
AL83: 14161.95776 | AM83: 0.07061170615 | AN83: 7.3 | AO83: 11.47949686 | AP83: 0.7205031439 | AQ83: =IF(AN83<>"",Schadstoffbelastung!$K$4*Ergebnisse!AO83,"") -> 459.1798742 | AR83: =IF(AN83<>"",kf*Ergebnisse!AQ83*Ergebnisse!AM83,"") -> 0.0003242347435 | AS83: 7.061170615e-07 | AT83: 7.061170615e-06 | AU83: 2.089300291e-13 | AV83: -1.414697063e-13 | AW83: 0.001428529132 | AX83: 0.01914694825 | AZ83: 7.692996228e-06 | BA83: 0 | BB83: 0.002623756339 | BC83: 1.64257523e-10 | BD83: 0 | BE83: 7.69266318e-06 | BF83: 0 | BG83: 0.00262364275 | BH83: 8.837098731e-07 | BI83: 0 | BO83: 0.008219178082 | BP83: 0.002617082847 | BQ83: 7.673429186e-06 | BR83: 2617.082847 | BS83: 7.673429186 | BT83: 0.06334854868
AL84: 14363.40845 | AM84: 0.06962135785 | AN84: 7.4 | AO84: 11.48655803 | AP84: 0.7134419733 | AQ84: =IF(AN84<>"",Schadstoffbelastung!$K$4*Ergebnisse!AO84,"") -> 459.4623211 | AR84: =IF(AN84<>"",kf*Ergebnisse!AQ84*Ergebnisse!AM84,"") -> 0.0003198839067 | AS84: 6.962135785e-07 | AT84: 6.962135785e-06 | AU84: 2.063783314e-13 | AV84: -1.397419129e-13 | AW84: 0.001408493624 | AX84: 0.01891310335 | AZ84: 7.692996228e-06 | BA84: 0 | BB84: 0.002623756339 | BC84: 1.64257523e-10 | BD84: 0 | BE84: 7.69266318e-06 | BF84: 0 | BG84: 0.00262364275 | BH84: 8.837098731e-07 | BI84: 0 | BO84: 0.008333333333 | BP84: 0.002616990571 | BQ84: 7.673158628e-06 | BR84: 2616.990571 | BS84: 7.673158628 | BT84: 0.06422838963
AL85: 14564.97062 | AM85: 0.06865787965 | AN85: 7.5 | AO85: 11.49352016 | AP85: 0.7064798375 | AQ85: =IF(AN85<>"",Schadstoffbelastung!$K$4*Ergebnisse!AO85,"") -> 459.7408065 | AR85: =IF(AN85<>"",kf*Ergebnisse!AQ85*Ergebnisse!AM85,"") -> 0.0003156482896 | AS85: 6.865787965e-07 | AT85: 6.865787965e-06 | AU85: 2.038913343e-13 | AV85: -1.380579293e-13 | AW85: 0.001389001719 | AX85: 0.01868518778 | AZ85: 7.692996228e-06 | BA85: 0 | BB85: 0.002623756339 | BC85: 1.64257523e-10 | BD85: 0 | BE85: 7.69266318e-06 | BF85: 0 | BG85: 0.00262364275 | BH85: 8.837098731e-07 | BI85: 0 | BO85: 0.008447488584 | BP85: 0.002616898298 | BQ85: 7.67288808e-06 | BR85: 2616.898298 | BS85: 7.67288808 | BT85: 0.06510823059
AL86: 14766.64273 | AM86: 0.06772020009 | AN86: 7.6 | AO86: 11.50038595 | AP86: 0.6996140496 | AQ86: =IF(AN86<>"",Schadstoffbelastung!$K$4*Ergebnisse!AO86,"") -> 460.015438 | AR86: =IF(AN86<>"",kf*Ergebnisse!AQ86*Ergebnisse!AM86,"") -> 0.0003115233751 | AS86: 6.772020009e-07 | AT86: 6.772020009e-06 | AU86: 2.014665705e-13 | AV86: -1.364160847e-13 | AW86: 0.00137003174 | AX86: 0.01846297546 | AZ86: 7.692996228e-06 | BA86: 0 | BB86: 0.002623756339 | BC86: 1.64257523e-10 | BD86: 0 | BE86: 7.69266318e-06 | BF86: 0 | BG86: 0.00262364275 | BH86: 8.837098731e-07 | BI86: 0 | BO86: 0.008561643836 | BP86: 0.002616806029 | BQ86: 7.672617542e-06 | BR86: 2616.806029 | BS86: 7.672617542 | BT86: 0.06598807154
AL87: 14968.42328 | AM87: 0.06680730372 | AN87: 7.7 | AO87: 11.50715797 | AP87: 0.6928420295 | AQ87: =IF(AN87<>"",Schadstoffbelastung!$K$4*Ergebnisse!AO87,"") -> 460.2863188 | AR87: =IF(AN87<>"",kf*Ergebnisse!AQ87*Ergebnisse!AM87,"") -> 0.000307504879 | AS87: 6.680730372e-07 | AT87: 6.680730372e-06 | AU87: 1.991016976e-13 | AV87: -1.348147932e-13 | AW87: 0.001351563144 | AX87: 0.01824625171 | AZ87: 7.692996228e-06 | BA87: 0 | BB87: 0.002623756339 | BC87: 1.64257523e-10 | BD87: 0 | BE87: 7.69266318e-06 | BF87: 0 | BG87: 0.00262364275 | BH87: 8.837098731e-07 | BI87: 0 | BO87: 0.008675799087 | BP87: 0.002616713763 | BQ87: 7.672347013e-06 | BR87: 2616.713763 | BS87: 7.672347013 | BT87: 0.06686791249
AL88: 15170.31082 | AM88: 0.06591822752 | AN88: 7.8 | AO88: 11.5138387 | AP88: 0.6861612992 | AQ88: =IF(AN88<>"",Schadstoffbelastung!$K$4*Ergebnisse!AO88,"") -> 460.553548 | AR88: =IF(AN88<>"",kf*Ergebnisse!AQ88*Ergebnisse!AM88,"") -> 0.0003035887357 | AS88: 6.591822752e-07 | AT88: 6.591822752e-06 | AU88: 1.9679449e-13 | AV88: -1.332525478e-13 | AW88: 0.001333576449 | AX88: 0.01803481258 | AZ88: 7.692996228e-06 | BA88: 0 | BB88: 0.002623756339 | BC88: 1.64257523e-10 | BD88: 0 | BE88: 7.69266318e-06 | BF88: 0 | BG88: 0.00262364275 | BH88: 8.837098731e-07 | BI88: 0 | BO88: 0.008789954338 | BP88: 0.0026166215 | BQ88: 7.672076493e-06 | BR88: 2616.6215 | BS88: 7.672076493 | BT88: 0.06774775345
AL89: 15372.30393 | AM89: 0.06505205755 | AN89: 7.9 | AO89: 11.52043052 | AP89: 0.6795694764 | AQ89: =IF(AN89<>"",Schadstoffbelastung!$K$4*Ergebnisse!AO89,"") -> 460.8172209 | AR89: =IF(AN89<>"",kf*Ergebnisse!AQ89*Ergebnisse!AM89,"") -> 0.0002997710838 | AS89: 6.505205755e-07 | AT89: 6.505205755e-06 | AU89: 1.945428321e-13 | AV89: -1.31727916e-13 | AW89: 0.001316053164 | AX89: 0.01782846418 | AZ89: 7.692996228e-06 | BA89: 0 | BB89: 0.002623756339 | BC89: 1.64257523e-10 | BD89: 0 | BE89: 7.69266318e-06 | BF89: 0 | BG89: 0.00262364275 | BH89: 8.837098731e-07 | BI89: 0 | BO89: 0.008904109589 | BP89: 0.002616529241 | BQ89: 7.671805984e-06 | BR89: 2616.529241 | BS89: 7.671805984 | BT89: 0.0686275944
AL90: 15574.40124 | AM90: 0.06420792585 | AN90: 8 | AO90: 11.52693573 | AP90: 0.6730642707 | AQ90: =IF(AN90<>"",Schadstoffbelastung!$K$4*Ergebnisse!AO90,"") -> 461.0774292 | AR90: =IF(AN90<>"",kf*Ergebnisse!AQ90*Ergebnisse!AM90,"") -> 0.0002960482538 | AS90: 6.420792585e-07 | AT90: 6.420792585e-06 | AU90: 1.92344711e-13 | AV90: -1.302395347e-13 | AW90: 0.001298975731 | AX90: 0.01762702204 | AZ90: 7.692996228e-06 | BA90: 0 | BB90: 0.002623756339 | BC90: 1.64257523e-10 | BD90: 0 | BE90: 7.69266318e-06 | BF90: 0 | BG90: 0.00262364275 | BH90: 8.837098731e-07 | BI90: 0 | BO90: 0.00901826484 | BP90: 0.002616436984 | BQ90: 7.671535483e-06 | BR90: 2616.436984 | BS90: 7.671535483 | BT90: 0.06950743536
AL91: 15776.6014 | AM91: 0.06338500763 | AN91: 8.1 | AO91: 11.53335652 | AP91: 0.6666434781 | AQ91: =IF(AN91<>"",Schadstoffbelastung!$K$4*Ergebnisse!AO91,"") -> 461.3342609 | AR91: =IF(AN91<>"",kf*Ergebnisse!AQ91*Ergebnisse!AM91,"") -> 0.0002924167565 | AS91: 6.338500763e-07 | AT91: 6.338500763e-06 | AU91: 1.901982108e-13 | AV91: -1.287861067e-13 | AW91: 0.001282327462 | AX91: 0.01743031059 | AZ91: 7.692996228e-06 | BA91: 0 | BB91: 0.002623756339 | BC91: 1.64257523e-10 | BD91: 0 | BE91: 7.69266318e-06 | BF91: 0 | BG91: 0.00262364275 | BH91: 8.837098731e-07 | BI91: 0 | BO91: 0.009132420091 | BP91: 0.002616344731 | BQ91: 7.671264992e-06 | BR91: 2616.344731 | BS91: 7.671264992 | BT91: 0.07038727631
AL92: 15978.90309 | AM92: 0.0625825186 | AN92: 8.2 | AO92: 11.53969502 | AP92: 0.6603049773 | AQ92: =IF(AN92<>"",Schadstoffbelastung!$K$4*Ergebnisse!AO92,"") -> 461.5878009 | AR92: =IF(AN92<>"",kf*Ergebnisse!AQ92*Ergebnisse!AM92,"") -> 0.0002888732714 | AS92: 6.25825186e-07 | AT92: 6.25825186e-06 | AU92: 1.881015064e-13 | AV92: -1.273663962e-13 | AW92: 0.001266092492 | AX92: 0.01723816258 | AZ92: 7.692996228e-06 | BA92: 0 | BB92: 0.002623756339 | BC92: 1.64257523e-10 | BD92: 0 | BE92: 7.69266318e-06 | BF92: 0 | BG92: 0.00262364275 | BH92: 8.837098731e-07 | BI92: 0 | BO92: 0.009246575342 | BP92: 0.002616252482 | BQ92: 7.670994511e-06 | BR92: 2616.252482 | BS92: 7.670994511 | BT92: 0.07126711726
AL93: 16181.30505 | AM93: 0.06179971252 | AN93: 8.3 | AO93: 11.54595327 | AP93: 0.6540467255 | AQ93: =IF(AN93<>"",Schadstoffbelastung!$K$4*Ergebnisse!AO93,"") -> 461.838131 | AR93: =IF(AN93<>"",kf*Ergebnisse!AQ93*Ergebnisse!AM93,"") -> 0.0002854146372 | AS93: 6.179971252e-07 | AT93: 6.179971252e-06 | AU93: 1.860528585e-13 | AV93: -1.259792255e-13 | AW93: 0.001250255722 | AX93: 0.0170504186 | AZ93: 7.692996228e-06 | BA93: 0 | BB93: 0.002623756339 | BC93: 1.64257523e-10 | BD93: 0 | BE93: 7.69266318e-06 | BF93: 0 | BG93: 0.00262364275 | BH93: 8.837098731e-07 | BI93: 0 | BO93: 0.009360730594 | BP93: 0.002616160235 | BQ93: 7.670724039e-06 | BR93: 2616.160235 | BS93: 7.670724039 | BT93: 0.07214695822
AL94: 16383.80601 | AM94: 0.06103587893 | AN94: 8.4 | AO94: 11.55213325 | AP94: 0.6478667542 | AQ94: =IF(AN94<>"",Schadstoffbelastung!$K$4*Ergebnisse!AO94,"") -> 462.0853298 | AR94: =IF(AN94<>"",kf*Ergebnisse!AQ94*Ergebnisse!AM94,"") -> 0.0002820378424 | AS94: 6.103587893e-07 | AT94: 6.103587893e-06 | AU94: 1.840506085e-13 | AV94: -1.246234715e-13 | AW94: 0.001234802781 | AX94: 0.01686692666 | AZ94: 7.692996228e-06 | BA94: 0 | BB94: 0.002623756339 | BC94: 1.64257523e-10 | BD94: 0 | BE94: 7.69266318e-06 | BF94: 0 | BG94: 0.00262364275 | BH94: 8.837098731e-07 | BI94: 0 | BO94: 0.009474885845 | BP94: 0.002616067992 | BQ94: 7.670453577e-06 | BR94: 2616.067992 | BS94: 7.670453577 | BT94: 0.07302679917
AL95: 16586.40477 | AM95: 0.06029034104 | AN95: 8.5 | AO95: 11.55823683 | AP95: 0.6417631663 | AQ95: =IF(AN95<>"",Schadstoffbelastung!$K$4*Ergebnisse!AO95,"") -> 462.3294733 | AR95: =IF(AN95<>"",kf*Ergebnisse!AQ95*Ergebnisse!AM95,"") -> 0.0002787400162 | AS95: 6.029034104e-07 | AT95: 6.029034104e-06 | AU95: 1.820931738e-13 | AV95: -1.232980626e-13 | AW95: 0.001219719976 | AX95: 0.01668754171 | AZ95: 7.692996228e-06 | BA95: 0 | BB95: 0.002623756339 | BC95: 1.64257523e-10 | BD95: 0 | BE95: 7.69266318e-06 | BF95: 0 | BG95: 0.00262364275 | BH95: 8.837098731e-07 | BI95: 0 | BO95: 0.009589041096 | BP95: 0.002615975752 | BQ95: 7.670183124e-06 | BR95: 2615.975752 | BS95: 7.670183124 | BT95: 0.07390664013
AL96: 16789.10013 | AM96: 0.05956245375 | AN96: 8.6 | AO96: 11.56426587 | AP96: 0.6357341322 | AQ96: =IF(AN96<>"",Schadstoffbelastung!$K$4*Ergebnisse!AO96,"") -> 462.5706347 | AR96: =IF(AN96<>"",kf*Ergebnisse!AQ96*Ergebnisse!AM96,"") -> 0.0002755184204 | AS96: 5.956245375e-07 | AT96: 5.956245375e-06 | AU96: 1.801790433e-13 | AV96: -1.220019757e-13 | AW96: 0.001204994257 | AX96: 0.01651212529 | AZ96: 7.692996228e-06 | BA96: 0 | BB96: 0.002623756339 | BC96: 1.64257523e-10 | BD96: 0 | BE96: 7.69266318e-06 | BF96: 0 | BG96: 0.00262364275 | BH96: 8.837098731e-07 | BI96: 0 | BO96: 0.009703196347 | BP96: 0.002615883515 | BQ96: 7.669912681e-06 | BR96: 2615.883515 | BS96: 7.669912681 | BT96: 0.07478648108
AL97: 16991.89093 | AM97: 0.05885160185 | AN97: 8.7 | AO97: 11.57022211 | AP97: 0.6297778868 | AQ97: =IF(AN97<>"",Schadstoffbelastung!$K$4*Ergebnisse!AO97,"") -> 462.8088845 | AR97: =IF(AN97<>"",kf*Ergebnisse!AQ97*Ergebnisse!AM97,"") -> 0.0002723704421 | AS97: 5.885160185e-07 | AT97: 5.885160185e-06 | AU97: 1.783067737e-13 | AV97: -1.207342334e-13 | AW97: 0.001190613176 | AX97: 0.01634054513 | AZ97: 7.692996228e-06 | BA97: 0 | BB97: 0.002623756339 | BC97: 1.64257523e-10 | BD97: 0 | BE97: 7.69266318e-06 | BF97: 0 | BG97: 0.00262364275 | BH97: 8.837098731e-07 | BI97: 0 | BO97: 0.009817351598 | BP97: 0.002615791282 | BQ97: 7.669642248e-06 | BR97: 2615.791282 | BS97: 7.669642248 | BT97: 0.07566632203
AL98: 17194.77605 | AM98: 0.05815719828 | AN98: 8.8 | AO98: 11.57610727 | AP98: 0.6238927267 | AQ98: =IF(AN98<>"",Schadstoffbelastung!$K$4*Ergebnisse!AO98,"") -> 463.0442909 | AR98: =IF(AN98<>"",kf*Ergebnisse!AQ98*Ergebnisse!AM98,"") -> 0.0002692935864 | AS98: 5.815719828e-07 | AT98: 5.815719828e-06 | AU98: 1.764749858e-13 | AV98: -1.194939019e-13 | AW98: 0.001176564857 | AX98: 0.01617267482 | AZ98: 7.692996228e-06 | BA98: 0 | BB98: 0.002623756339 | BC98: 1.64257523e-10 | BD98: 0 | BE98: 7.69266318e-06 | BF98: 0 | BG98: 0.00262364275 | BH98: 8.837098731e-07 | BI98: 0 | BO98: 0.009931506849 | BP98: 0.002615699051 | BQ98: 7.669371823e-06 | BR98: 2615.699051 | BS98: 7.669371823 | BT98: 0.07654616299
AL99: 17397.75437 | AM99: 0.05747868253 | AN99: 8.9 | AO99: 11.58192299 | AP99: 0.6180770068 | AQ99: =IF(AN99<>"",Schadstoffbelastung!$K$4*Ergebnisse!AO99,"") -> 463.2769197 | AR99: =IF(AN99<>"",kf*Ergebnisse!AQ99*Ergebnisse!AM99,"") -> 0.0002662854699 | AS99: 5.747868253e-07 | AT99: 5.747868253e-06 | AU99: 1.746823604e-13 | AV99: -1.182800879e-13 | AW99: 0.001162837962 | AX99: 0.01600839348 | AZ99: 7.692996228e-06 | BA99: 0 | BB99: 0.002623756339 | BC99: 1.64257523e-10 | BD99: 0 | BE99: 7.69266318e-06 | BF99: 0 | BG99: 0.00262364275 | BH99: 8.837098731e-07 | BI99: 0 | BO99: 0.0100456621 | BP99: 0.002615606824 | BQ99: 7.669101409e-06 | BR99: 2615.606824 | BS99: 7.669101409 | BT99: 0.07742600394
AL100: 17600.82481 | AM100: 0.05681551922 | AN100: 9 | AO100: =IF(AN100="","",SQRT(($S$29^2)+(($S$28^2)-($S$29^2))*(LN(AN100)-LN(Brunnenradius))/(LN(ReichweiteAbsenkung)-LN(Brunnenradius)))) -> 11.58767086 | AP100: 0.6123291386 | AQ100: =IF(AN100<>"",Schadstoffbelastung!$K$4*Ergebnisse!AO100,"") -> 463.5068345 | AR100: =IF(AN100<>"",kf*Ergebnisse!AQ100*Ergebnisse!AM100,"") -> 0.0002633438146 | AS100: 5.681551922e-07 | AT100: 5.681551922e-06 | AU100: 1.729276357e-13 | AV100: -1.170919371e-13 | AW100: =IF(AN100<>"",((d_50*2)*kf*AM100)/($S$13*neff),"") -> 0.001149421658 | AX100: =IF(AN100<>"",150*(AW100^0.87)*(0.016^0.79),"") -> 0.01584758546 | AZ100: 7.692996228e-06 | BA100: 0 | BB100: 0.002623756339 | BC100: 1.64257523e-10 | BD100: 0 | BE100: 7.69266318e-06 | BF100: 0 | BG100: 0.00262364275 | BH100: 8.837098731e-07 | BI100: 0 | BO100: 0.01015981735 | BP100: 0.002615514601 | BQ100: 7.668831004e-06 | BR100: 2615.514601 | BS100: 7.668831004 | BT100: 0.07830584489
AL101: 17803.98631 | AM101: =IF(AN101<>"",(AO102-AO101)/(AN102-AN101),"") -> 0.05616719665 | AN101: 9.1 | AO101: 11.59335241 | AP101: =IF(AN101<>"",$S$28-AO101,"") -> 0.6066475866 | AQ101: =IF(AN101<>"",Schadstoffbelastung!$K$4*Ergebnisse!AO101,"") -> 463.7340965 | AR101: =IF(AN101<>"",kf*Ergebnisse!AQ101*Ergebnisse!AM101,"") -> 0.0002604664419 | AS101: =IF(AN101<>"",AR101/AQ101,"") -> 5.616719665e-07 | AT101: =IF(AS101<>"",AS101/$S$30,"") -> 5.616719665e-06 | AU101: 1.712096038e-13 | AV101: -1.159286316e-13 | AW101: 0.001136305594 | AX101: 0.01569014009 | AZ101: 7.692996228e-06 | BA101: 0 | BB101: 0.002623756339 | BC101: 1.64257523e-10 | BD101: 0 | BE101: 7.69266318e-06 | BF101: 0 | BG101: 0.00262364275 | BH101: 8.837098731e-07 | BI101: 0 | BO101: 0.0102739726 | BP101: 0.00261542238 | BQ101: 7.668560608e-06 | BR101: 2615.42238 | BS101: 7.668560608 | BT101: 0.07918568585
AL102: 18007.23784 | AM102: 0.05553322553 | AN102: 9.2 | AO102: 11.59896913 | AP102: 0.601030867 | AQ102: =IF(AN102<>"",Schadstoffbelastung!$K$4*Ergebnisse!AO102,"") -> 463.9587653 | AR102: =IF(AN102<>"",kf*Ergebnisse!AQ102*Ergebnisse!AM102,"") -> 0.0002576512675 | AS102: 5.553322553e-07 | AT102: 5.553322553e-06 | AU102: 1.695271081e-13 | AV102: -1.147893881e-13 | AW102: 0.00112347987 | AX102: 0.01553595134 | AZ102: 7.692996228e-06 | BA102: 0 | BB102: 0.002623756339 | BC102: 1.64257523e-10 | BD102: 0 | BE102: 7.69266318e-06 | BF102: 0 | BG102: 0.00262364275 | BH102: 8.837098731e-07 | BI102: 0 | BO102: 0.01038812785 | BP102: 0.002615330163 | BQ102: 7.668290223e-06 | BR102: 2615.330163 | BS102: 7.668290223 | BT102: 0.0800655268
AL103: 18210.57838 | AM103: 0.05491313779 | AN103: 9.3 | AO103: 11.60452246 | AP103: 0.5954775444 | AQ103: =IF(AN103<>"",Schadstoffbelastung!$K$4*Ergebnisse!AO103,"") -> 464.1808982 | AR103: =IF(AN103<>"",kf*Ergebnisse!AQ103*Ergebnisse!AM103,"") -> 0.0002548962962 | AS103: 5.491313779e-07 | AT103: 5.491313779e-06 | AU103: 1.678790403e-13 | AV103: -1.136734562e-13 | AW103: 0.001110935018 | AX103: 0.01538491767 | AZ103: 7.692996228e-06 | BA103: 0 | BB103: 0.002623756339 | BC103: 1.64257523e-10 | BD103: 0 | BE103: 7.69266318e-06 | BF103: 0 | BG103: 0.00262364275 | BH103: 8.837098731e-07 | BI103: 0 | BO103: 0.01050228311 | BP103: 0.002615237949 | BQ103: 7.668019846e-06 | BR103: 2615.237949 | BS103: 7.668019846 | BT103: 0.08094536776
AL104: 18414.00696 | AM104: 0.05430648539 | AN104: 9.4 | AO104: 11.61001377 | AP104: 0.5899862307 | AQ104: =IF(AN104<>"",Schadstoffbelastung!$K$4*Ergebnisse!AO104,"") -> 464.4005508 | AR104: =IF(AN104<>"",kf*Ergebnisse!AQ104*Ergebnisse!AM104,"") -> 0.0002521996173 | AS104: 5.430648539e-07 | AT104: 5.430648539e-06 | AU104: 1.662643381e-13 | AV104: -1.125801168e-13 | AW104: 0.001098661974 | AX104: 0.01523694172 | AZ104: 7.692996228e-06 | BA104: 0 | BB104: 0.002623756339 | BC104: 1.64257523e-10 | BD104: 0 | BE104: 7.69266318e-06 | BF104: 0 | BG104: 0.00262364275 | BH104: 8.837098731e-07 | BI104: 0 | BO104: 0.01061643836 | BP104: 0.002615145738 | BQ104: 7.667749479e-06 | BR104: 2615.145738 | BS104: 7.667749479 | BT104: 0.08182520871
AL105: 18617.5226 | AM105: 0.05371283933 | AN105: 9.5 | AO105: 11.61544442 | AP105: 0.5845555821 | AQ105: =IF(AN105<>"",Schadstoffbelastung!$K$4*Ergebnisse!AO105,"") -> 464.6177767 | AR105: =IF(AN105<>"",kf*Ergebnisse!AQ105*Ergebnisse!AM105,"") -> 0.0002495593999 | AS105: 5.371283933e-07 | AT105: 5.371283933e-06 | AU105: 1.646819828e-13 | AV105: -1.115086799e-13 | AW105: 0.001086652057 | AX105: 0.01509193014 | AZ105: 7.692996228e-06 | BA105: 0 | BB105: 0.002623756339 | BC105: 1.64257523e-10 | BD105: 0 | BE105: 7.69266318e-06 | BF105: 0 | BG105: 0.00262364275 | BH105: 8.837098731e-07 | BI105: 0 | BO105: 0.01073059361 | BP105: 0.002615053531 | BQ105: 7.667479122e-06 | BR105: 2615.053531 | BS105: 7.667479122 | BT105: 0.08270504966
AL106: 18821.12435 | AM106: 0.0531317886 | AN106: 9.6 | AO106: 11.6208157 | AP106: 0.5791842982 | AQ106: =IF(AN106<>"",Schadstoffbelastung!$K$4*Ergebnisse!AO106,"") -> 464.8326281 | AR106: =IF(AN106<>"",kf*Ergebnisse!AQ106*Ergebnisse!AM106,"") -> 0.0002469738893 | AS106: 5.31317886e-07 | AT106: 5.31317886e-06 | AU106: 1.631309971e-13 | AV106: -1.104584838e-13 | AW106: 0.001074896954 | AX106: 0.01494979335 | AZ106: 7.692996228e-06 | BA106: 0 | BB106: 0.002623756339 | BC106: 1.64257523e-10 | BD106: 0 | BE106: 7.69266318e-06 | BF106: 0 | BG106: 0.00262364275 | BH106: 8.837098731e-07 | BI106: 0 | BO106: 0.01084474886 | BP106: 0.002614961327 | BQ106: 7.667208774e-06 | BR106: 2614.961327 | BS106: 7.667208774 | BT106: 0.08358489062
AL107: 19024.81128 | AM107: 0.05256293927 | AN107: 9.7 | AO107: 11.62612888 | AP107: 0.5738711193 | AQ107: =IF(AN107<>"",Schadstoffbelastung!$K$4*Ergebnisse!AO107,"") -> 465.0451552 | AR107: =IF(AN107<>"",kf*Ergebnisse!AQ107*Ergebnisse!AM107,"") -> 0.0002444414025 | AS107: 5.256293927e-07 | AT107: 5.256293927e-06 | AU107: 1.616104428e-13 | AV107: -1.094288934e-13 | AW107: 0.001063388695 | AX107: 0.01481044539 | AZ107: 7.692996228e-06 | BA107: 0 | BB107: 0.002623756339 | BC107: 1.64257523e-10 | BD107: 0 | BE107: 7.69266318e-06 | BF107: 0 | BG107: 0.00262364275 | BH107: 8.837098731e-07 | BI107: 0 | BO107: 0.01095890411 | BP107: 0.002614869126 | BQ107: 7.666938436e-06 | BR107: 2614.869126 | BS107: 7.666938436 | BT107: 0.08446473157
AL108: 19228.58249 | AM108: 0.05200591361 | AN108: 9.8 | AO108: 11.63138517 | AP108: 0.5686148254 | AQ108: =IF(AN108<>"",Schadstoffbelastung!$K$4*Ergebnisse!AO108,"") -> 465.255407 | AR108: =IF(AN108<>"",kf*Ergebnisse!AQ108*Ergebnisse!AM108,"") -> 0.000241960325 | AS108: 5.200591361e-07 | AT108: 5.200591361e-06 | AU108: 1.601194194e-13 | AV108: -1.084192987e-13 | AW108: 0.001052119637 | AX108: 0.01467380371 | AZ108: 7.692996228e-06 | BA108: 0 | BB108: 0.002623756339 | BC108: 1.64257523e-10 | BD108: 0 | BE108: 7.69266318e-06 | BF108: 0 | BG108: 0.00262364275 | BH108: 8.837098731e-07 | BI108: 0 | BO108: 0.01107305936 | BP108: 0.002614776928 | BQ108: 7.666668107e-06 | BR108: 2614.776928 | BS108: 7.666668107 | BT108: 0.08534457253
AL109: 19432.43709 | AM109: 0.05146034927 | AN109: 9.9 | AO109: 11.63658577 | AP109: 0.563414234 | AQ109: =IF(AN109<>"",Schadstoffbelastung!$K$4*Ergebnisse!AO109,"") -> 465.4634306 | AR109: =IF(AN109<>"",kf*Ergebnisse!AQ109*Ergebnisse!AM109,"") -> 0.0002395291071 | AS109: 5.146034927e-07 | AT109: 5.146034927e-06 | AU109: 1.586570613e-13 | AV109: -1.074291138e-13 | AW109: 0.001041082451 | AX109: 0.01453978902 | AZ109: 7.692996228e-06 | BA109: 0 | BB109: 0.002623756339 | BC109: 1.64257523e-10 | BD109: 0 | BE109: 7.69266318e-06 | BF109: 0 | BG109: 0.00262364275 | BH109: 8.837098731e-07 | BI109: 0 | BO109: 0.01118721461 | BP109: 0.002614684733 | BQ109: 7.666397788e-06 | BR109: 2614.684733 | BS109: 7.666397788 | BT109: 0.08622441348
AL110: 19636.37421 | AM110: 0.0509258985 | AN110: 10 | AO110: 11.6417318 | AP110: 0.5582681991 | AQ110: =IF(AN110<>"",Schadstoffbelastung!$K$4*Ergebnisse!AO110,"") -> 465.669272 | AR110: =IF(AN110<>"",kf*Ergebnisse!AQ110*Ergebnisse!AM110,"") -> 0.0002371462608 | AS110: 5.09258985e-07 | AT110: 5.09258985e-06 | AU110: 1.572225371e-13 | AV110: -1.064577756e-13 | AW110: 0.0010302701 | AX110: 0.0144083251 | AZ110: =IF(AN110<>"",$S$37,"") -> 7.692996228e-06 | BA110: =IF(AN111<>"",IF($S$39<>0,$S$39,0),"") -> 0 | BB110: 0.002623756339 | BC110: 1.64257523e-10 | BD110: 0 | BE110: 7.69266318e-06 | BF110: 0 | BG110: 0.00262364275 | BH110: 8.837098731e-07 | BI110: 0 | BO110: 0.01130136986 | BP110: 0.002614592542 | BQ110: 7.666127478e-06 | BR110: 2614.592542 | BS110: 7.666127478 | BT110: 0.08710425443
AL111: 19840.393 | AM111: 0.05040222742 | AN111: 10.1 | AO111: 11.64682439 | AP111: 0.5531756093 | AQ111: =IF(AN111<>"",Schadstoffbelastung!$K$4*Ergebnisse!AO111,"") -> 465.8729756 | AR111: =IF(AN111<>"",kf*Ergebnisse!AQ111*Ergebnisse!AM111,"") -> 0.0002348103567 | AS111: 5.040222742e-07 | AT111: 5.040222742e-06 | AU111: 1.558150474e-13 | AV111: -1.055047428e-13 | AW111: 0.001019675832 | AX111: 0.01427933869 | AZ111: 7.692996228e-06 | BA111: 0 | BB111: 0.002623756339 | BC111: 1.64257523e-10 | BD111: 0 | BE111: 7.69266318e-06 | BF111: 0 | BG111: 0.00262364275 | BH111: 8.837098731e-07 | BI111: 0 | BO111: 0.01141552511 | BP111: 0.002614500354 | BQ111: 7.665857178e-06 | BR111: 2614.500354 | BS111: 7.665857178 | BT111: 0.08798409539
AL112: 20044.49261 | AM112: 0.04988901537 | AN112: 10.2 | AO112: 11.65186461 | AP112: 0.5481353865 | AQ112: =IF(AN112<>"",Schadstoffbelastung!$K$4*Ergebnisse!AO112,"") -> 466.0745845 | AR112: =IF(AN112<>"",kf*Ergebnisse!AQ112*Ergebnisse!AM112,"") -> 0.0002325200211 | AS112: 4.988901537e-07 | AT112: 4.988901537e-06 | AU112: 1.54433823e-13 | AV112: -1.045694948e-13 | AW112: 0.001009293157 | AX112: 0.01415275933 | AZ112: 7.692996228e-06 | BA112: 0 | BB112: 0.002623756339 | BC112: 1.64257523e-10 | BD112: 0 | BE112: 7.69266318e-06 | BF112: 0 | BG112: 0.00262364275 | BH112: 8.837098731e-07 | BI112: 0 | BO112: 0.01152968037 | BP112: 0.00261440817 | BQ112: 7.665586887e-06 | BR112: 2614.40817 | BS112: 7.665586887 | BT112: 0.08886393634
AL113: 20248.67223 | AM113: 0.04938595422 | AN113: 10.3 | AO113: 11.65685352 | AP113: 0.543146485 | AQ113: =IF(AN113<>"",Schadstoffbelastung!$K$4*Ergebnisse!AO113,"") -> 466.2741406 | AR113: =IF(AN113<>"",kf*Ergebnisse!AQ113*Ergebnisse!AM113,"") -> 0.0002302739336 | AS113: 4.938595422e-07 | AT113: 4.938595422e-06 | AU113: 1.530781244e-13 | AV113: -1.036515305e-13 | AW113: 0.0009991158431 | AX113: 0.01402851921 | AZ113: 7.692996228e-06 | BA113: 0 | BB113: 0.002623756339 | BC113: 1.64257523e-10 | BD113: 0 | BE113: 7.69266318e-06 | BF113: 0 | BG113: 0.00262364275 | BH113: 8.837098731e-07 | BI113: 0 | BO113: 0.01164383562 | BP113: 0.002614315988 | BQ113: 7.665316606e-06 | BR113: 2614.315988 | BS113: 7.665316606 | BT113: 0.0897437773
AL114: 20452.93106 | AM114: 0.04889274779 | AN114: 10.4 | AO114: 11.66179211 | AP114: 0.5382078896 | AQ114: =IF(AN114<>"",Schadstoffbelastung!$K$4*Ergebnisse!AO114,"") -> 466.4716844 | AR114: =IF(AN114<>"",kf*Ergebnisse!AQ114*Ergebnisse!AM114,"") -> 0.0002280708242 | AS114: 4.889274779e-07 | AT114: 4.889274779e-06 | AU114: 1.517472393e-13 | AV114: -1.02750368e-13 | AW114: 0.0009891378975 | AX114: 0.01390655307 | AZ114: 7.692996228e-06 | BA114: 0 | BB114: 0.002623756339 | BC114: 1.64257523e-10 | BD114: 0 | BE114: 7.69266318e-06 | BF114: 0 | BG114: 0.00262364275 | BH114: 8.837098731e-07 | BI114: 0 | BO114: 0.01175799087 | BP114: 0.00261422381 | BQ114: 7.665046335e-06 | BR114: 2614.22381 | BS114: 7.665046335 | BT114: 0.09062361825
AL115: 20657.26831 | AM115: 0.04840911125 | AN115: 10.5 | AO115: 11.66668139 | AP115: 0.5333186148 | AQ115: =IF(AN115<>"",Schadstoffbelastung!$K$4*Ergebnisse!AO115,"") -> 466.6672554 | AR115: =IF(AN115<>"",kf*Ergebnisse!AQ115*Ergebnisse!AM115,"") -> 0.0002259094709 | AS115: 4.840911125e-07 | AT115: 4.840911125e-06 | AU115: 1.504404821e-13 | AV115: -1.018655428e-13 | AW115: 0.0009793535585 | AX115: 0.01378679809 | AZ115: 7.692996228e-06 | BA115: 0 | BB115: 0.002623756339 | BC115: 1.64257523e-10 | BD115: 0 | BE115: 7.69266318e-06 | BF115: 0 | BG115: 0.00262364275 | BH115: 8.837098731e-07 | BI115: 0 | BO115: 0.01187214612 | BP115: 0.002614131635 | BQ115: 7.664776073e-06 | BR115: 2614.131635 | BS115: 7.664776073 | BT115: 0.0915034592
AL116: 20861.68321 | AM116: 0.04793477065 | AN116: 10.6 | AO116: 11.6715223 | AP116: 0.5284777036 | AQ116: =IF(AN116<>"",Schadstoffbelastung!$K$4*Ergebnisse!AO116,"") -> 466.8608919 | AR116: =IF(AN116<>"",kf*Ergebnisse!AQ116*Ergebnisse!AM116,"") -> 0.0002237886978 | AS116: 4.793477065e-07 | AT116: 4.793477065e-06 | AU116: 1.491571924e-13 | AV116: -1.009966078e-13 | AW116: 0.0009697572831 | AX116: 0.01366919373 | AZ116: 7.692996228e-06 | BA116: 0 | BB116: 0.002623756339 | BC116: 1.64257523e-10 | BD116: 0 | BE116: 7.69266318e-06 | BF116: 0 | BG116: 0.00262364275 | BH116: 8.837098731e-07 | BI116: 0 | BO116: 0.01198630137 | BP116: 0.002614039463 | BQ116: 7.66450582e-06 | BR116: 2614.039463 | BS116: 7.66450582 | BT116: 0.09238330016
AL117: 21066.175 | AM117: 0.04746946231 | AN117: 10.7 | AO117: 11.67631577 | AP117: 0.5236842266 | AQ117: =IF(AN117<>"",Schadstoffbelastung!$K$4*Ergebnisse!AO117,"") -> 467.0526309 | AR117: =IF(AN117<>"",kf*Ergebnisse!AQ117*Ergebnisse!AM117,"") -> 0.0002217073726 | AS117: 4.746946231e-07 | AT117: 4.746946231e-06 | AU117: 1.478967338e-13 | AV117: -1.001431321e-13 | AW117: 0.0009603437375 | AX117: 0.01355368169 | AZ117: 7.692996228e-06 | BA117: 0 | BB117: 0.002623756339 | BC117: 1.64257523e-10 | BD117: 0 | BE117: 7.69266318e-06 | BF117: 0 | BG117: 0.00262364275 | BH117: 8.837098731e-07 | BI117: 0 | BO117: 0.01210045662 | BP117: 0.002613947295 | BQ117: 7.664235577e-06 | BR117: 2613.947295 | BS117: 7.664235577 | BT117: 0.09326314111
AL118: 21270.74293 | AM118: 0.04701293243 | AN118: 10.8 | AO118: 11.68106272 | AP118: 0.5189372804 | AQ118: =IF(AN118<>"",Schadstoffbelastung!$K$4*Ergebnisse!AO118,"") -> 467.2425088 | AR118: =IF(AN118<>"",kf*Ergebnisse!AQ118*Ergebnisse!AM118,"") -> 0.0002196644049 | AS118: 4.701293243e-07 | AT118: 4.701293243e-06 | AU118: 1.46658493e-13 | AV118: -9.930470032e-14 | AW118: 0.0009511077869 | AX118: 0.01344020574 | AZ118: 7.692996228e-06 | BA118: 0 | BB118: 0.002623756339 | BC118: 1.64257523e-10 | BD118: 0 | BE118: 7.69266318e-06 | BF118: 0 | BG118: 0.00262364275 | BH118: 8.837098731e-07 | BI118: 0 | BO118: 0.01221461187 | BP118: 0.002613855129 | BQ118: 7.663965344e-06 | BR118: 2613.855129 | BS118: 7.663965344 | BT118: 0.09414298206
AL119: 21475.38628 | AM119: 0.04656493658 | AN119: 10.9 | AO119: 11.68576401 | AP119: 0.5142359871 | AQ119: =IF(AN119<>"",Schadstoffbelastung!$K$4*Ergebnisse!AO119,"") -> 467.4305605 | AR119: =IF(AN119<>"",kf*Ergebnisse!AQ119*Ergebnisse!AM119,"") -> 0.0002176587441 | AS119: 4.656493658e-07 | AT119: 4.656493658e-06 | AU119: 1.454418784e-13 | AV119: -9.848091206e-14 | AW119: 0.0009420444862 | AX119: 0.01332871168 | AZ119: 7.692996228e-06 | BA119: 0 | BB119: 0.002623756339 | BC119: 1.64257523e-10 | BD119: 0 | BE119: 7.69266318e-06 | BF119: 0 | BG119: 0.00262364275 | BH119: 8.837098731e-07 | BI119: 0 | BO119: 0.01232876712 | BP119: 0.002613762967 | BQ119: 7.66369512e-06 | BR119: 2613.762967 | BS119: 7.66369512 | BT119: 0.09502282302
AL120: 21680.10433 | AM120: 0.04612523929 | AN120: 11 | AO120: 11.69042051 | AP120: 0.5095794935 | AQ120: =IF(AN120<>"",Schadstoffbelastung!$K$4*Ergebnisse!AO120,"") -> 467.6168203 | AR120: =IF(AN120<>"",kf*Ergebnisse!AQ120*Ergebnisse!AM120,"") -> 0.0002156893773 | AS120: 4.612523929e-07 | AT120: 4.612523929e-06 | AU120: 1.442463197e-13 | AV120: -9.7671381e-14 | AW120: 0.0009331490718 | AX120: 0.01321914724 | AZ120: 7.692996228e-06 | BA120: 0 | BB120: 0.002623756339 | BC120: 1.64257523e-10 | BD120: 0 | BE120: 7.69266318e-06 | BF120: 0 | BG120: 0.00262364275 | BH120: 8.837098731e-07 | BI120: 0 | BO120: 0.01244292237 | BP120: 0.002613670809 | BQ120: 7.663424905e-06 | BR120: 2613.670809 | BS120: 7.663424905 | BT120: 0.09590266397
AL121: 21884.89638 | AM121: 0.04569361365 | AN121: 11.1 | AO121: 11.69503303 | AP121: 0.5049669695 | AQ121: =IF(AN121<>"",Schadstoffbelastung!$K$4*Ergebnisse!AO121,"") -> 467.8013212 | AR121: =IF(AN121<>"",kf*Ergebnisse!AQ121*Ergebnisse!AM121,"") -> 0.0002137553284 | AS121: 4.569361365e-07 | AT121: 4.569361365e-06 | AU121: 1.430712663e-13 | AV121: -9.687573443e-14 | AW121: 0.0009244169532 | AX121: 0.01311146197 | AZ121: 7.692996228e-06 | BA121: 0 | BB121: 0.002623756339 | BC121: 1.64257523e-10 | BD121: 0 | BE121: 7.69266318e-06 | BF121: 0 | BG121: 0.00262364275 | BH121: 8.837098731e-07 | BI121: 0 | BO121: 0.01255707763 | BP121: 0.002613578653 | BQ121: 7.663154701e-06 | BR121: 2613.578653 | BS121: 7.663154701 | BT121: 0.09678250493
AL122: 22089.76174 | AM122: 0.04526984092 | AN122: 11.2 | AO122: 11.69960239 | AP122: 0.5003976082 | AQ122: =IF(AN122<>"",Schadstoffbelastung!$K$4*Ergebnisse!AO122,"") -> 467.9840957 | AR122: =IF(AN122<>"",kf*Ergebnisse!AQ122*Ergebnisse!AM122,"") -> 0.0002118556557 | AS122: 4.526984092e-07 | AT122: 4.526984092e-06 | AU122: 1.419161869e-13 | AV122: -9.609361261e-14 | AW122: 0.0009158437048 | AX122: 0.01300560718 | AZ122: 7.692996228e-06 | BA122: 0 | BB122: 0.002623756339 | BC122: 1.64257523e-10 | BD122: 0 | BE122: 7.69266318e-06 | BF122: 0 | BG122: 0.00262364275 | BH122: 8.837098731e-07 | BI122: 0 | BO122: 0.01267123288 | BP122: 0.002613486501 | BQ122: 7.662884505e-06 | BR122: 2613.486501 | BS122: 7.662884505 | BT122: 0.09766234588
AL123: 22294.69973 | AM123: 0.04485371016 | AN123: 11.3 | AO123: 11.70412938 | AP123: 0.4958706241 | AQ123: =IF(AN123<>"",Schadstoffbelastung!$K$4*Ergebnisse!AO123,"") -> 468.165175 | AR123: =IF(AN123<>"",kf*Ergebnisse!AQ123*Ergebnisse!AM123,"") -> 0.0002099894507 | AS123: 4.485371016e-07 | AT123: 4.485371016e-06 | AU123: 1.407805687e-13 | AV123: -9.53246682e-14 | AW123: 0.0009074250594 | AX123: 0.01290153586 | AZ123: 7.692996228e-06 | BA123: 0 | BB123: 0.002623756339 | BC123: 1.64257523e-10 | BD123: 0 | BE123: 7.69266318e-06 | BF123: 0 | BG123: 0.00262364275 | BH123: 8.837098731e-07 | BI123: 0 | BO123: 0.01278538813 | BP123: 0.002613394352 | BQ123: 7.662614319e-06 | BR123: 2613.394352 | BS123: 7.662614319 | BT123: 0.09854218683
AL124: 22499.7097 | AM124: 0.04444501789 | AN124: 11.4 | AO124: 11.70861475 | AP124: 0.491385253 | AQ124: =IF(AN124<>"",Schadstoffbelastung!$K$4*Ergebnisse!AO124,"") -> 468.3445899 | AR124: =IF(AN124<>"",kf*Ergebnisse!AQ124*Ergebnisse!AM124,"") -> 0.0002081558368 | AS124: 4.444501789e-07 | AT124: 4.444501789e-06 | AU124: 1.396639162e-13 | AV124: -9.456856578e-14 | AW124: 0.0008991569004 | AX124: 0.01279920262 | AZ124: 7.692996228e-06 | BA124: 0 | BB124: 0.002623756339 | BC124: 1.64257523e-10 | BD124: 0 | BE124: 7.69266318e-06 | BF124: 0 | BG124: 0.00262364275 | BH124: 8.837098731e-07 | BI124: 0 | BO124: 0.01289954338 | BP124: 0.002613302206 | BQ124: 7.662344143e-06 | BR124: 2613.302206 | BS124: 7.662344143 | BT124: 0.09942202779
AL125: 22704.79097 | AM125: 0.04404356777 | AN125: 11.5 | AO125: 11.71305925 | AP125: 0.4869407513 | AQ125: =IF(AN125<>"",Schadstoffbelastung!$K$4*Ergebnisse!AO125,"") -> 468.5223699 | AR125: =IF(AN125<>"",kf*Ergebnisse!AQ125*Ergebnisse!AM125,"") -> 0.0002063539675 | AS125: 4.404356777e-07 | AT125: 4.404356777e-06 | AU125: 1.385657508e-13 | AV125: -9.382498126e-14 | AW125: 0.0008910352556 | AX125: 0.01269856359 | AZ125: 7.692996228e-06 | BA125: 0 | BB125: 0.002623756339 | BC125: 1.64257523e-10 | BD125: 0 | BE125: 7.69266318e-06 | BF125: 0 | BG125: 0.00262364275 | BH125: 8.837098731e-07 | BI125: 0 | BO125: 0.01301369863 | BP125: 0.002613210064 | BQ125: 7.662073976e-06 | BR125: 2613.210064 | BS125: 7.662073976 | BT125: 0.1003018687
AL126: 22909.94293 | AM126: 0.04364917028 | AN126: 11.6 | AO126: 11.71746361 | AP126: 0.4825363945 | AQ126: =IF(AN126<>"",Schadstoffbelastung!$K$4*Ergebnisse!AO126,"") -> 468.6985442 | AR126: =IF(AN126<>"",kf*Ergebnisse!AQ126*Ergebnisse!AM126,"") -> 0.0002045830257 | AS126: 4.364917028e-07 | AT126: 4.364917028e-06 | AU126: 1.3748561e-13 | AV126: -9.309360147e-14 | AW126: 0.0008830562911 | AX126: 0.01259957638 | AZ126: 7.692996228e-06 | BA126: 0 | BB126: 0.002623756339 | BC126: 1.64257523e-10 | BD126: 0 | BE126: 7.69266318e-06 | BF126: 0 | BG126: 0.00262364275 | BH126: 8.837098731e-07 | BI126: 0 | BO126: 0.01312785388 | BP126: 0.002613117925 | BQ126: 7.661803819e-06 | BR126: 2613.117925 | BS126: 7.661803819 | BT126: 0.1011817097
AL127: 23115.16492 | AM127: 0.04326164245 | AN127: 11.7 | AO127: 11.72182852 | AP127: 0.4781714775 | AQ127: =IF(AN127<>"",Schadstoffbelastung!$K$4*Ergebnisse!AO127,"") -> 468.8731409 | AR127: =IF(AN127<>"",kf*Ergebnisse!AQ127*Ergebnisse!AM127,"") -> 0.0002028422217 | AS127: 4.326164245e-07 | AT127: 4.326164245e-06 | AU127: 1.364230467e-13 | AV127: -9.237412368e-14 | AW127: 0.0008752163049 | AX127: 0.01250220003 | AZ127: =IF(AN127<>"",$S$37,"") -> 7.692996228e-06 | BA127: =IF(AN128<>"",IF($S$39<>0,$S$39,0),"") -> 0 | BB127: 0.002623756339 | BC127: 1.64257523e-10 | BD127: 0 | BE127: 7.69266318e-06 | BF127: 0 | BG127: 0.00262364275 | BH127: 8.837098731e-07 | BI127: 0 | BO127: 0.01324200913 | BP127: 0.002613025789 | BQ127: 7.661533672e-06 | BR127: 2613.025789 | BS127: 7.661533672 | BT127: 0.1020615506
AL128: 23320.45634 | AM128: 0.04288080753 | AN128: 11.8 | AO128: 11.72615469 | AP128: 0.4738453132 | AQ128: =IF(AN128<>"",Schadstoffbelastung!$K$4*Ergebnisse!AO128,"") -> 469.0461875 | AR128: =IF(AN128<>"",kf*Ergebnisse!AQ128*Ergebnisse!AM128,"") -> 0.0002011307929 | AS128: 4.288080753e-07 | AT128: 4.288080753e-06 | AU128: 1.353776286e-13 | AV128: -9.166625516e-14 | AW128: 0.0008675117216 | AX128: 0.01240639491 | AZ128: 7.692996228e-06 | BA128: 0 | BB128: 0.002623756339 | BC128: 1.64257523e-10 | BD128: 0 | BE128: 7.69266318e-06 | BF128: 0 | BG128: 0.00262364275 | BH128: 8.837098731e-07 | BI128: 0 | BO128: 0.01335616438 | BP128: 0.002612933656 | BQ128: 7.661263533e-06 | BR128: 2612.933656 | BS128: 7.661263533 | BT128: 0.1029413916
AL129: 23525.81658 | AM129: 0.04250649479 | AN129: 11.9 | AO129: 11.73044277 | AP129: 0.4695572325 | AQ129: =IF(AN129<>"",Schadstoffbelastung!$K$4*Ergebnisse!AO129,"") -> 469.2177107 | AR129: =IF(AN129<>"",kf*Ergebnisse!AQ129*Ergebnisse!AM129,"") -> 0.0001994480018 | AS129: 4.250649479e-07 | AT129: 4.250649479e-06 | AU129: 1.343489376e-13 | AV129: -9.096971277e-14 | AW129: 0.0008599390869 | AX129: 0.01231212271 | AZ129: 7.692996228e-06 | BA129: 0 | BB129: 0.002623756339 | BC129: 1.64257523e-10 | BD129: 0 | BE129: 7.69266318e-06 | BF129: 0 | BG129: 0.00262364275 | BH129: 8.837098731e-07 | BI129: 0 | BO129: 0.01347031963 | BP129: 0.002612841526 | BQ129: 7.660993405e-06 | BR129: 2612.841526 | BS129: 7.660993405 | BT129: 0.1038212326
AL130: 23731.24504 | AM130: 0.04213853923 | AN130: 12 | AO130: 11.73469342 | AP130: 0.465306583 | AQ130: =IF(AN130<>"",Schadstoffbelastung!$K$4*Ergebnisse!AO130,"") -> 469.3877367 | AR130: =IF(AN130<>"",kf*Ergebnisse!AQ130*Ergebnisse!AM130,"") -> 0.0001977931356 | AS130: 4.213853923e-07 | AT130: 4.213853923e-06 | AU130: 1.33336569e-13 | AV130: -9.028422258e-14 | AW130: 0.0008524950629 | AX130: 0.01221934634 | AZ130: 7.692996228e-06 | BA130: 0 | BB130: 0.002623756339 | BC130: 1.64257523e-10 | BD130: 0 | BE130: 7.69266318e-06 | BF130: 0 | BG130: 0.00262364275 | BH130: 8.837098731e-07 | BI130: 0 | BO130: 0.01358447489 | BP130: 0.0026127494 | BQ130: 7.660723286e-06 | BR130: 2612.7494 | BS130: 7.660723286 | BT130: 0.1047010735
AL131: 23936.74112 | AM131: 0.04177678135 | AN131: 12.1 | AO131: 11.73890727 | AP131: 0.4610927291 | AQ131: =IF(AN131<>"",Schadstoffbelastung!$K$4*Ergebnisse!AO131,"") -> 469.5562908 | AR131: =IF(AN131<>"",kf*Ergebnisse!AQ131*Ergebnisse!AM131,"") -> 0.0001961655049 | AS131: 4.177678135e-07 | AT131: 4.177678135e-06 | AU131: 1.323401313e-13 | AV131: -8.960951947e-14 | AW131: 0.0008451764226 | AX131: 0.01212802993 | AZ131: 7.692996228e-06 | BA131: 0 | BB131: 0.002623756339 | BC131: 1.64257523e-10 | BD131: 0 | BE131: 7.69266318e-06 | BF131: 0 | BG131: 0.00262364275 | BH131: 8.837098731e-07 | BI131: 0 | BO131: 0.01369863014 | BP131: 0.002612657277 | BQ131: 7.660453176e-06 | BR131: 2612.657277 | BS131: 7.660453176 | BT131: 0.1055809145
AL132: 24142.30426 | AM132: 0.04142106691 | AN132: 12.2 | AO132: 11.74308495 | AP132: 0.4569150509 | AQ132: =IF(AN132<>"",Schadstoffbelastung!$K$4*Ergebnisse!AO132,"") -> 469.723398 | AR132: =IF(AN132<>"",kf*Ergebnisse!AQ132*Ergebnisse!AM132,"") -> 0.0001945644429 | AS132: 4.142106691e-07 | AT132: 4.142106691e-06 | AU132: 1.313592457e-13 | AV132: -8.894534682e-14 | AW132: 0.0008379800459 | AX132: 0.01203813875 | AZ132: 7.692996228e-06 | BA132: 0 | BB132: 0.002623756339 | BC132: 1.64257523e-10 | BD132: 0 | BE132: 7.69266318e-06 | BF132: 0 | BG132: 0.00262364275 | BH132: 8.837098731e-07 | BI132: 0 | BO132: 0.01381278539 | BP132: 0.002612565157 | BQ132: 7.660183076e-06 | BR132: 2612.565157 | BS132: 7.660183076 | BT132: 0.1064607554
AL133: 24347.93388 | AM133: 0.04107124674 | AN133: 12.3 | AO133: 11.74722706 | AP133: 0.4527729442 | AQ133: =IF(AN133<>"",Schadstoffbelastung!$K$4*Ergebnisse!AO133,"") -> 469.8890822 | AR133: =IF(AN133<>"",kf*Ergebnisse!AQ133*Ergebnisse!AM133,"") -> 0.0001929893044 | AS133: 4.107124674e-07 | AT133: 4.107124674e-06 | AU133: 1.303935449e-13 | AV133: -8.829145613e-14 | AW133: 0.0008309029148 | AX133: 0.01194963916 | AZ133: 7.692996228e-06 | BA133: 0 | BB133: 0.002623756339 | BC133: 1.64257523e-10 | BD133: 0 | BE133: 7.69266318e-06 | BF133: 0 | BG133: 0.00262364275 | BH133: 8.837098731e-07 | BI133: 0 | BO133: 0.01392694064 | BP133: 0.002612473041 | BQ133: 7.659912985e-06 | BR133: 2612.473041 | BS133: 7.659912985 | BT133: 0.1073405964
AL134: 24553.62943 | AM134: 0.04072717653 | AN134: 12.4 | AO134: 11.75133418 | AP134: 0.4486658196 | AQ134: =IF(AN134<>"",Schadstoffbelastung!$K$4*Ergebnisse!AO134,"") -> 470.0533672 | AR134: =IF(AN134<>"",kf*Ergebnisse!AQ134*Ergebnisse!AM134,"") -> 0.0001914394646 | AS134: 4.072717653e-07 | AT134: 4.072717653e-06 | AU134: 1.294426737e-13 | AV134: -8.764760674e-14 | AW134: 0.0008239421098 | AX134: 0.01186249859 | AZ134: 7.692996228e-06 | BA134: 0 | BB134: 0.002623756339 | BC134: 1.64257523e-10 | BD134: 0 | BE134: 7.69266318e-06 | BF134: 0 | BG134: 0.00262364275 | BH134: 8.837098731e-07 | BI134: 0 | BO134: 0.01404109589 | BP134: 0.002612380928 | BQ134: 7.659642904e-06 | BR134: 2612.380928 | BS134: 7.659642904 | BT134: 0.1082204373
AL135: 24759.39034 | AM135: 0.04038871661 | AN135: 12.5 | AO135: 11.7554069 | AP135: 0.4445931019 | AQ135: =IF(AN135<>"",Schadstoffbelastung!$K$4*Ergebnisse!AO135,"") -> 470.2162759 | AR135: =IF(AN135<>"",kf*Ergebnisse!AQ135*Ergebnisse!AM135,"") -> 0.0001899143191 | AS135: 4.038871661e-07 | AT135: 4.038871661e-06 | AU135: 1.285062876e-13 | AV135: -8.701356546e-14 | AW135: 0.0008170948052 | AX135: 0.01177668548 | AZ135: 7.692996228e-06 | BA135: 0 | BB135: 0.002623756339 | BC135: 1.64257523e-10 | BD135: 0 | BE135: 7.69266318e-06 | BF135: 0 | BG135: 0.00262364275 | BH135: 8.837098731e-07 | BI135: 0 | BO135: 0.01415525114 | BP135: 0.002612288818 | BQ135: 7.659372833e-06 | BR135: 2612.288818 | BS135: 7.659372833 | BT135: 0.1091002783
AL136: 24965.2161 | AM136: 0.04005573179 | AN136: 12.6 | AO136: 11.75944577 | AP136: 0.4405542302 | AQ136: =IF(AN136<>"",Schadstoffbelastung!$K$4*Ergebnisse!AO136,"") -> 470.3778308 | AR136: =IF(AN136<>"",kf*Ergebnisse!AQ136*Ergebnisse!AM136,"") -> 0.0001884132823 | AS136: 4.005573179e-07 | AT136: 4.005573179e-06 | AU136: 1.27584053e-13 | AV136: -8.638910637e-14 | AW136: 0.0008103582662 | AX136: 0.01169216925 | AZ136: 7.692996228e-06 | BA136: 0 | BB136: 0.002623756339 | BC136: 1.64257523e-10 | BD136: 0 | BE136: 7.69266318e-06 | BF136: 0 | BG136: 0.00262364275 | BH136: 8.837098731e-07 | BI136: 0 | BO136: 0.01426940639 | BP136: 0.002612196711 | BQ136: 7.659102771e-06 | BR136: 2612.196711 | BS136: 7.659102771 | BT136: 0.1099801192
AL137: 25171.10615 | AM137: 0.03972809117 | AN137: 12.7 | AO137: 11.76345134 | AP137: 0.4365486571 | AQ137: =IF(AN137<>"",Schadstoffbelastung!$K$4*Ergebnisse!AO137,"") -> 470.5380537 | AR137: =IF(AN137<>"",kf*Ergebnisse!AQ137*Ergebnisse!AM137,"") -> 0.000186935787 | AS137: 3.972809117e-07 | AT137: 3.972809117e-06 | AU137: 1.266756465e-13 | AV137: -8.577401043e-14 | AW137: 0.0008037298444 | AX137: 0.01160892026 | AZ137: 7.692996228e-06 | BA137: 0 | BB137: 0.002623756339 | BC137: 1.64257523e-10 | BD137: 0 | BE137: 7.69266318e-06 | BF137: 0 | BG137: 0.00262364275 | BH137: 8.837098731e-07 | BI137: 0 | BO137: 0.01438356164 | BP137: 0.002612104607 | BQ137: 7.658832718e-06 | BR137: 2612.104607 | BS137: 7.658832718 | BT137: 0.1108599602
AL138: 25377.05998 | AM138: 0.03940566798 | AN138: 12.8 | AO138: 11.76742415 | AP138: 0.4325758479 | AQ138: =IF(AN138<>"",Schadstoffbelastung!$K$4*Ergebnisse!AO138,"") -> 470.6969661 | AR138: =IF(AN138<>"",kf*Ergebnisse!AQ138*Ergebnisse!AM138,"") -> 0.0001854812837 | AS138: 3.940566798e-07 | AT138: 3.940566798e-06 | AU138: 1.257807543e-13 | AV138: -8.516806533e-14 | AW138: 0.0007972069753 | AX138: 0.01152690977 | AZ138: 7.692996228e-06 | BA138: 0 | BB138: 0.002623756339 | BC138: 1.64257523e-10 | BD138: 0 | BE138: 7.69266318e-06 | BF138: 0 | BG138: 0.00262364275 | BH138: 8.837098731e-07 | BI138: 0 | BO138: 0.01449771689 | BP138: 0.002612012507 | BQ138: 7.658562675e-06 | BR138: 2612.012507 | BS138: 7.658562675 | BT138: 0.1117398011
AL139: 25583.07707 | AM139: 0.03908833942 | AN139: 12.9 | AO139: 11.77136472 | AP139: 0.4286352811 | AQ139: =IF(AN139<>"",Schadstoffbelastung!$K$4*Ergebnisse!AO139,"") -> 470.8545888 | AR139: =IF(AN139<>"",kf*Ergebnisse!AQ139*Ergebnisse!AM139,"") -> 0.0001840492398 | AS139: 3.908833942e-07 | AT139: 3.908833942e-06 | AU139: =IF(AN139<>"",(AX139*$S$36)/A0*(d_50*2)*1000000,"") -> 1.248990725e-13 | AV139: =IF(AU139<>"",AU139*($S$41-$S$40),"") -> -8.457106514e-14 | AW139: 0.0007907871744 | AX139: 0.01144610992 | AZ139: 7.692996228e-06 | BA139: 0 | BB139: =IF(AN139<>"",IF(AZ139<Lw,(AZ139*pb)/(Kd*pb+Theta_w),(Sättigungskonz*pb)/(Kd*pb+Theta_w)),"") -> 0.002623756339 | BC139: =IF(AN139<>"",IF(BA139=0,n*$AO$4*((AZ139/$S$10)-BB139),0),"") -> 1.64257523e-10 | BD139: =IF(AN139<>"",IF(BA139<>0,IF(AU139*(Sättigungskonz-BB139)<0,AU139*((Sättigungskonz-BB139)*(-1)),AU139*(Sättigungskonz-BB139)),0),"") -> 0 | BE139: =IF(AN139<>"",IF(Sättigungskonz>=AZ139,IF(AZ139-(BC139+BD139)*$BC$4/pb>0,AZ139-(BC139+BD139)*$BC$4/pb,0),IF(AZ139-(BC139+BD139)*$BC$4/pb>Sättigungskonz,AZ139-(BC139+BD139)*$BC$4/pb,Sättigungskonz)),"") -> 7.69266318e-06 | BF139: 0 | BG139: =IF(AN139<>"",IF(BE139<Lw,(BE139*pb)/(Kd*pb+Theta_w),(Sättigungskonz*pb)/(Kd*pb+Theta_w)),"") -> 0.00262364275 | BH139: =IF(AN139<>"",IF(BF138=0,n*$AO$4*(BE139-(BG139/$S$10))*(-1),0),"") -> 8.837098731e-07 | BI139: =IF(AN139<>"",IF(BF139<>0,AU139*(Sättigungskonz-BG139),0),"") -> 0 | BO139: 0.01461187215 | BP139: 0.00261192041 | BQ139: 7.658292642e-06 | BR139: 2611.92041 | BS139: 7.658292642 | BT139: =IF(BO139<>"",BO139*(0.1*Retardation),"") -> 0.1126196421
AL140: =IF(AN140<>"",IF(((AN141-AN140)/AT140)<0,((AN141-AN140)/AT140)*(-1),((AN141-AN140)/AT140)),"") -> 25789.15692 | AM140: 0.03877598648 | AN140: =IF(AN139>=$AS$6+0.1,"",AN139+0.1) -> 13 | AO140: 11.77527355 | AP140: 0.4247264472 | AQ140: =IF(AN140<>"",Schadstoffbelastung!$K$4*Ergebnisse!AO140,"") -> 471.0109421 | AR140: =IF(AN140<>"",kf*Ergebnisse!AQ140*Ergebnisse!AM140,"") -> 0.0001826391392 | AS140: 3.877598648e-07 | AT140: 3.877598648e-06 | AU140: 1.24030306e-13 | AV140: -8.398281013e-14 | AW140: 0.0007844680341 | AX140: 0.01136649366 | AZ140: 7.692996228e-06 | BA140: 0 | BB140: 0.002623756339 | BC140: 1.64257523e-10 | BD140: 0 | BE140: 7.69266318e-06 | BF140: =IF(AN140<>"",IF(BA140<>0,BA140-((BH140+BD140)*$BC$4),0),"") -> 0 | BG140: 0.00262364275 | BH140: 8.837098731e-07 | BI140: 0 | BO140: 0.0147260274 | BP140: 0.002611828316 | BQ140: 7.658022618e-06 | BR140: =IF(BP140<>"",BP140/(1*10^-6),"") -> 2611.828316 | BS140: =IF(BQ140<>"",BQ140/(1*10^-6),"") -> 7.658022618 | BT140: 0.113499483
AL141: 25995.29902 | AM141: 0.03846849383 | AN141: 13.1 | AO141: 11.77915115 | AP141: 0.4208488486 | AQ141: =IF(AN141<>"",Schadstoffbelastung!$K$4*Ergebnisse!AO141,"") -> 471.1660461 | AR141: =IF(AN141<>"",kf*Ergebnisse!AQ141*Ergebnisse!AM141,"") -> 0.0001812504813 | AS141: 3.846849383e-07 | AT141: 3.846849383e-06 | AU141: 1.231741687e-13 | AV141: -8.340310652e-14 | AW141: 0.0007782472213 | AX141: 0.01128803478 | AZ141: 7.692996228e-06 | BA141: 0 | BB141: 0.002623756339 | BC141: 1.64257523e-10 | BD141: 0 | BE141: 7.69266318e-06 | BF141: 0 | BG141: 0.00262364275 | BH141: 8.837098731e-07 | BI141: 0 | BO141: 0.01484018265 | BP141: 0.002611736226 | BQ141: 7.657752604e-06 | BR141: 2611.736226 | BS141: 7.657752604 | BT141: 0.114379324
AL142: 26201.50289 | AM142: 0.03816574966 | AN142: 13.2 | AO142: 11.782998 | AP142: 0.4170019992 | AQ142: =IF(AN142<>"",Schadstoffbelastung!$K$4*Ergebnisse!AO142,"") -> 471.31992 | AR142: =IF(AN142<>"",kf*Ergebnisse!AQ142*Ergebnisse!AM142,"") -> 0.0001798827808 | AS142: 3.816574966e-07 | AT142: 3.816574966e-06 | AU142: 1.223303829e-13 | AV142: -8.283176624e-14 | AW142: 0.0007721224739 | AX142: 0.01121070782 | AZ142: 7.692996228e-06 | BA142: 0 | BB142: 0.002623756339 | BC142: 1.64257523e-10 | BD142: 0 | BE142: 7.69266318e-06 | BF142: 0 | BG142: 0.00262364275 | BH142: 8.837098731e-07 | BI142: 0 | BO142: 0.0149543379 | BP142: 0.002611644139 | BQ142: 7.657482599e-06 | BR142: 2611.644139 | BS142: 7.657482599 | BT142: 0.115259165
AL143: 26407.76803 | AM143: 0.03786764556 | AN143: 13.3 | AO143: 11.78681458 | AP143: 0.4131854242 | AQ143: =IF(AN143<>"",Schadstoffbelastung!$K$4*Ergebnisse!AO143,"") -> 471.472583 | AR143: =IF(AN143<>"",kf*Ergebnisse!AQ143*Ergebnisse!AM143,"") -> 0.0001785355667 | AS143: 3.786764556e-07 | AT143: 3.786764556e-06 | AU143: 1.214986788e-13 | AV143: -8.226860674e-14 | AW143: 0.0007660915987 | AX143: 0.01113448807 | AZ143: 7.692996228e-06 | BA143: 0 | BB143: 0.002623756339 | BC143: 1.64257523e-10 | BD143: 0 | BE143: 7.69266318e-06 | BF143: 0 | BG143: 0.00262364275 | BH143: 8.837098731e-07 | BI143: 0 | BO143: 0.01506849315 | BP143: 0.002611552055 | BQ143: 7.657212603e-06 | BR143: 2611.552055 | BS143: 7.657212603 | BT143: 0.1161390059
AL144: 26614.09398 | AM144: 0.03757407638 | AN144: 13.4 | AO144: 11.79060134 | AP144: 0.4093986597 | AQ144: =IF(AN144<>"",Schadstoffbelastung!$K$4*Ergebnisse!AO144,"") -> 471.6240536 | AR144: =IF(AN144<>"",kf*Ergebnisse!AQ144*Ergebnisse!AM144,"") -> 0.0001772083821 | AS144: 3.757407638e-07 | AT144: 3.757407638e-06 | AU144: 1.206787948e-13 | AV144: -8.171345081e-14 | AW144: 0.0007601524683 | AX144: 0.01105935154 | AZ144: 7.692996228e-06 | BA144: 0 | BB144: 0.002623756339 | BC144: 1.64257523e-10 | BD144: 0 | BE144: 7.69266318e-06 | BF144: 0 | BG144: 0.00262364275 | BH144: 8.837098731e-07 | BI144: 0 | BO144: 0.0151826484 | BP144: 0.002611459974 | BQ144: 7.656942618e-06 | BR144: 2611.459974 | BS144: 7.656942618 | BT144: 0.1170188469
AL145: 26820.48026 | AM145: 0.0372849401 | AN145: 13.5 | AO145: 11.79435875 | AP145: 0.405641252 | AQ145: =IF(AN145<>"",Schadstoffbelastung!$K$4*Ergebnisse!AO145,"") -> 471.7743499 | AR145: =IF(AN145<>"",kf*Ergebnisse!AQ145*Ergebnisse!AM145,"") -> 0.0001759007838 | AS145: 3.72849401e-07 | AT145: 3.72849401e-06 | AU145: 1.198704767e-13 | AV145: -8.116612632e-14 | AW145: 0.000754303019 | AX145: 0.01098527495 | AZ145: 7.692996228e-06 | BA145: 0 | BB145: 0.002623756339 | BC145: 1.64257523e-10 | BD145: 0 | BE145: 7.69266318e-06 | BF145: 0 | BG145: 0.00262364275 | BH145: 8.837098731e-07 | BI145: 0 | BO145: 0.01529680365 | BP145: 0.002611367896 | BQ145: 7.656672641e-06 | BR145: 2611.367896 | BS145: 7.656672641 | BT145: 0.1178986878
AL146: 27026.92641 | AM146: 0.03700013774 | AN146: 13.6 | AO146: 11.79808724 | AP146: 0.401912758 | AQ146: =IF(AN146<>"",Schadstoffbelastung!$K$4*Ergebnisse!AO146,"") -> 471.9234897 | AR146: =IF(AN146<>"",kf*Ergebnisse!AQ146*Ergebnisse!AM146,"") -> 0.0001746123412 | AS146: 3.700013774e-07 | AT146: 3.700013774e-06 | AU146: 1.190734777e-13 | AV146: -8.06264661e-14 | AW146: 0.0007485412482 | AX146: 0.01091223566 | AZ146: 7.692996228e-06 | BA146: 0 | BB146: 0.002623756339 | BC146: 1.64257523e-10 | BD146: 0 | BE146: 7.69266318e-06 | BF146: 0 | BG146: 0.00262364275 | BH146: 8.837098731e-07 | BI146: 0 | BO146: 0.0154109589 | BP146: 0.002611275822 | BQ146: 7.656402675e-06 | BR146: 2611.275822 | BS146: 7.656402675 | BT146: 0.1187785288
AL147: 27233.43198 | AM147: 0.03671957324 | AN147: 13.7 | AO147: 11.80178726 | AP147: 0.3982127442 | AQ147: =IF(AN147<>"",Schadstoffbelastung!$K$4*Ergebnisse!AO147,"") -> 472.0714902 | AR147: =IF(AN147<>"",kf*Ergebnisse!AQ147*Ergebnisse!AM147,"") -> 0.0001733426366 | AS147: 3.671957324e-07 | AT147: 3.671957324e-06 | AU147: 1.182875577e-13 | AV147: -8.009430775e-14 | AW147: 0.0007428652124 | AX147: 0.0108402117 | AZ147: 7.692996228e-06 | BA147: 0 | BB147: 0.002623756339 | BC147: 1.64257523e-10 | BD147: 0 | BE147: 7.69266318e-06 | BF147: 0 | BG147: 0.00262364275 | BH147: 8.837098731e-07 | BI147: 0 | BO147: 0.01552511416 | BP147: 0.002611183751 | BQ147: 7.656132717e-06 | BR147: 2611.183751 | BS147: 7.656132717 | BT147: 0.1196583697
AL148: 27439.99651 | AM148: 0.03644315332 | AN148: 13.8 | AO148: 11.80545921 | AP148: 0.3945407869 | AQ148: =IF(AN148<>"",Schadstoffbelastung!$K$4*Ergebnisse!AO148,"") -> 472.2183685 | AR148: =IF(AN148<>"",kf*Ergebnisse!AQ148*Ergebnisse!AM148,"") -> 0.0001720912641 | AS148: 3.644315332e-07 | AT148: 3.644315332e-06 | AU148: 1.175124839e-13 | AV148: -7.956949344e-14 | AW148: 0.0007372730249 | AX148: 0.01076918171 | AZ148: 7.692996228e-06 | BA148: 0 | BB148: 0.002623756339 | BC148: 1.64257523e-10 | BD148: 0 | BE148: 7.69266318e-06 | BF148: 0 | BG148: 0.00262364275 | BH148: 8.837098731e-07 | BI148: 0 | BO148: 0.01563926941 | BP148: 0.002611091683 | BQ148: 7.65586277e-06 | BR148: 2611.091683 | BS148: 7.65586277 | BT148: 0.1205382107
AL149: 27646.61957 | AM149: 0.03617078744 | AN149: 13.9 | AO149: 11.80910353 | AP149: 0.3908964716 | AQ149: =IF(AN149<>"",Schadstoffbelastung!$K$4*Ergebnisse!AO149,"") -> 472.3641411 | AR149: =IF(AN149<>"",kf*Ergebnisse!AQ149*Ergebnisse!AM149,"") -> 0.0001708578295 | AS149: 3.617078744e-07 | AT149: 3.617078744e-06 | AU149: 1.167480296e-13 | AV149: -7.905186979e-14 | AW149: 0.0007317628537 | AX149: 0.01069912492 | AZ149: 7.692996228e-06 | BA149: 0 | BB149: 0.002623756339 | BC149: 1.64257523e-10 | BD149: 0 | BE149: 7.69266318e-06 | BF149: 0 | BG149: 0.00262364275 | BH149: 8.837098731e-07 | BI149: 0 | BO149: 0.01575342466 | BP149: 0.002610999619 | BQ149: 7.655592831e-06 | BR149: 2610.999619 | BS149: 7.655592831 | BT149: 0.1214180516
AL150: 27853.30072 | AM150: 0.03590238766 | AN150: 14 | AO150: 11.81272061 | AP150: 0.3872793928 | AQ150: =IF(AN150<>"",Schadstoffbelastung!$K$4*Ergebnisse!AO150,"") -> 472.5088243 | AR150: =IF(AN150<>"",kf*Ergebnisse!AQ150*Ergebnisse!AM150,"") -> 0.0001696419498 | AS150: 3.590238766e-07 | AT150: 3.590238766e-06 | AU150: 1.159939746e-13 | AV150: -7.854128767e-14 | AW150: 0.0007263329197 | AX150: 0.01063002116 | AZ150: 7.692996228e-06 | BA150: 0 | BB150: 0.002623756339 | BC150: 1.64257523e-10 | BD150: 0 | BE150: 7.69266318e-06 | BF150: 0 | BG150: 0.00262364275 | BH150: 8.837098731e-07 | BI150: 0 | BO150: 0.01586757991 | BP150: 0.002610907557 | BQ150: 7.655322903e-06 | BR150: 2610.907557 | BS150: 7.655322903 | BT150: 0.1222978926
AL151: 28060.03952 | AM151: 0.03563786855 | AN151: 14.1 | AO151: 11.81631085 | AP151: 0.3836891541 | AQ151: =IF(AN151<>"",Schadstoffbelastung!$K$4*Ergebnisse!AO151,"") -> 472.6524338 | AR151: =IF(AN151<>"",kf*Ergebnisse!AQ151*Ergebnisse!AM151,"") -> 0.0001684432531 | AS151: 3.563786855e-07 | AT151: 3.563786855e-06 | AU151: 1.152501048e-13 | AV151: -7.80376021e-14 | AW151: 0.0007209814945 | AX151: 0.01056185079 | AZ151: 7.692996228e-06 | BA151: 0 | BB151: 0.002623756339 | BC151: 1.64257523e-10 | BD151: 0 | BE151: 7.69266318e-06 | BF151: 0 | BG151: 0.00262364275 | BH151: 8.837098731e-07 | BI151: 0 | BO151: 0.01598173516 | BP151: 0.002610815499 | BQ151: 7.655052983e-06 | BR151: 2610.815499 | BS151: 7.655052983 | BT151: 0.1231777335
AL152: 28266.83556 | AM152: 0.03537714711 | AN152: 14.2 | AO152: 11.81987463 | AP152: 0.3801253672 | AQ152: =IF(AN152<>"",Schadstoffbelastung!$K$4*Ergebnisse!AO152,"") -> 472.7949853 | AR152: =IF(AN152<>"",kf*Ergebnisse!AQ152*Ergebnisse!AM152,"") -> 0.0001672613775 | AS152: 3.537714711e-07 | AT152: 3.537714711e-06 | AU152: 1.14516212e-13 | AV152: -7.754067207e-14 | AW152: 0.0007157068992 | AX152: 0.01049459474 | AZ152: 7.692996228e-06 | BA152: 0 | BB152: 0.002623756339 | BC152: 1.64257523e-10 | BD152: 0 | BE152: 7.69266318e-06 | BF152: 0 | BG152: 0.00262364275 | BH152: 8.837098731e-07 | BI152: 0 | BO152: 0.01609589041 | BP152: 0.002610723445 | BQ152: 7.654783074e-06 | BR152: 2610.723445 | BS152: 7.654783074 | BT152: 0.1240575745
AL153: 28473.68843 | AM153: 0.03512014267 | AN153: 14.3 | AO153: 11.82341235 | AP153: 0.3765876525 | AQ153: =IF(AN153<>"",Schadstoffbelastung!$K$4*Ergebnisse!AO153,"") -> 472.9364939 | AR153: =IF(AN153<>"",kf*Ergebnisse!AQ153*Ergebnisse!AM153,"") -> 0.0001660959714 | AS153: 3.512014267e-07 | AT153: 3.512014267e-06 | AU153: 1.137920935e-13 | AV153: -7.705036042e-14 | AW153: 0.0007105075018 | AX153: 0.01042823444 | AZ153: 7.692996228e-06 | BA153: 0 | BB153: 0.002623756339 | BC153: 1.64257523e-10 | BD153: 0 | BE153: 7.69266318e-06 | BF153: 0 | BG153: 0.00262364275 | BH153: 8.837098731e-07 | BI153: 0 | BO153: 0.01621004566 | BP153: 0.002610631393 | BQ153: 7.654513174e-06 | BR153: 2610.631393 | BS153: 7.654513174 | BT153: 0.1249374154
AL154: 28680.5977 | AM154: 0.03486677686 | AN154: 14.4 | AO154: 11.82692436 | AP154: 0.3730756382 | AQ154: =IF(AN154<>"",Schadstoffbelastung!$K$4*Ergebnisse!AO154,"") -> 473.0769745 | AR154: =IF(AN154<>"",kf*Ergebnisse!AQ154*Ergebnisse!AM154,"") -> 0.0001649466931 | AS154: 3.486677686e-07 | AT154: 3.486677686e-06 | AU154: 1.130775523e-13 | AV154: -7.656653371e-14 | AW154: 0.0007053817164 | AX154: 0.01036275184 | AZ154: 7.692996228e-06 | BA154: 0 | BB154: 0.002623756339 | BC154: 1.64257523e-10 | BD154: 0 | BE154: 7.69266318e-06 | BF154: 0 | BG154: 0.00262364275 | BH154: 8.837098731e-07 | BI154: 0 | BO154: 0.01632420091 | BP154: 0.002610539345 | BQ154: 7.654243283e-06 | BR154: 2610.539345 | BS154: 7.654243283 | BT154: 0.1258172564
AL155: 28887.56297 | AM155: 0.03461697344 | AN155: 14.5 | AO155: 11.83041104 | AP155: 0.3695889605 | AQ155: =IF(AN155<>"",Schadstoffbelastung!$K$4*Ergebnisse!AO155,"") -> 473.2164416 | AR155: =IF(AN155<>"",kf*Ergebnisse!AQ155*Ergebnisse!AM155,"") -> 0.0001638132099 | AS155: 3.461697344e-07 | AT155: 3.461697344e-06 | AU155: 1.123723967e-13 | AV155: -7.608906209e-14 | AW155: 0.0007003280011 | AX155: 0.01029812935 | AZ155: 7.692996228e-06 | BA155: 0 | BB155: 0.002623756339 | BC155: 1.64257523e-10 | BD155: 0 | BE155: 7.69266318e-06 | BF155: 0 | BG155: 0.00262364275 | BH155: 8.837098731e-07 | BI155: 0 | BO155: 0.01643835616 | BP155: 0.0026104473 | BQ155: 7.653973402e-06 | BR155: 2610.4473 | BS155: 7.653973402 | BT155: 0.1266970974
AL156: 29094.58385 | AM156: 0.03437065831 | AN156: 14.6 | AO156: 11.83387274 | AP156: 0.3661272632 | AQ156: =IF(AN156<>"",Schadstoffbelastung!$K$4*Ergebnisse!AO156,"") -> 473.3549095 | AR156: =IF(AN156<>"",kf*Ergebnisse!AQ156*Ergebnisse!AM156,"") -> 0.0001626951985 | AS156: 3.437065831e-07 | AT156: 3.437065831e-06 | AU156: 1.1167644e-13 | AV156: -7.561781918e-14 | AW156: 0.0006953448566 | AX156: 0.01023434988 | AZ156: 7.692996228e-06 | BA156: 0 | BB156: 0.002623756339 | BC156: 1.64257523e-10 | BD156: 0 | BE156: 7.69266318e-06 | BF156: 0 | BG156: 0.00262364275 | BH156: 8.837098731e-07 | BI156: 0 | BO156: 0.01655251142 | BP156: 0.002610355258 | BQ156: 7.65370353e-06 | BR156: 2610.355258 | BS156: 7.65370353 | BT156: 0.1275769383
AL157: 29301.65993 | AM157: 0.03412775939 | AN157: 14.7 | AO157: 11.8373098 | AP157: 0.3626901974 | AQ157: =IF(AN157<>"",Schadstoffbelastung!$K$4*Ergebnisse!AO157,"") -> 473.4923921 | AR157: =IF(AN157<>"",kf*Ergebnisse!AQ157*Ergebnisse!AM157,"") -> 0.0001615923443 | AS157: 3.412775939e-07 | AT157: 3.412775939e-06 | AU157: 1.109895004e-13 | AV157: -7.515268194e-14 | AW157: 0.0006904308247 | AX157: 0.01017139676 | AZ157: 7.692996228e-06 | BA157: 0 | BB157: 0.002623756339 | BC157: 1.64257523e-10 | BD157: 0 | BE157: 7.69266318e-06 | BF157: 0 | BG157: 0.00262364275 | BH157: 8.837098731e-07 | BI157: 0 | BO157: 0.01666666667 | BP157: 0.002610263219 | BQ157: 7.653433668e-06 | BR157: 2610.263219 | BS157: 7.653433668 | BT157: 0.1284567793
AL158: 29508.79084 | AM158: 0.03388820659 | AN158: 14.8 | AO158: 11.84072258 | AP158: 0.3592774214 | AQ158: =IF(AN158<>"",Schadstoffbelastung!$K$4*Ergebnisse!AO158,"") -> 473.6289031 | AR158: =IF(AN158<>"",kf*Ergebnisse!AQ158*Ergebnisse!AM158,"") -> 0.0001605043411 | AS158: 3.388820659e-07 | AT158: 3.388820659e-06 | AU158: 1.103114012e-13 | AV158: -7.46935306e-14 | AW158: 0.0006855844871 | AX158: 0.0101092538 | AZ158: 7.692996228e-06 | BA158: 0 | BB158: 0.002623756339 | BC158: 1.64257523e-10 | BD158: 0 | BE158: 7.69266318e-06 | BF158: 0 | BG158: 0.00262364275 | BH158: 8.837098731e-07 | BI158: 0 | BO158: 0.01678082192 | BP158: 0.002610171184 | BQ158: 7.653163815e-06 | BR158: 2610.171184 | BS158: 7.653163815 | BT158: 0.1293366202
AL159: 29715.97618 | AM159: 0.03365193167 | AN159: 14.9 | AO159: 11.8441114 | AP159: 0.3558886008 | AQ159: =IF(AN159<>"",Schadstoffbelastung!$K$4*Ergebnisse!AO159,"") -> 473.764456 | AR159: =IF(AN159<>"",kf*Ergebnisse!AQ159*Ergebnisse!AM159,"") -> 0.000159430891 | AS159: 3.365193167e-07 | AT159: 3.365193167e-06 | AU159: 1.096419699e-13 | AV159: -7.424024851e-14 | AW159: 0.0006808044638 | AX159: 0.01004790519 | AZ159: 7.692996228e-06 | BA159: 0 | BB159: 0.002623756339 | BC159: 1.64257523e-10 | BD159: 0 | BE159: 7.69266318e-06 | BF159: 0 | BG159: 0.00262364275 | BH159: 8.837098731e-07 | BI159: 0 | BO159: 0.01689497717 | BP159: 0.002610079152 | BQ159: 7.652893972e-06 | BR159: 2610.079152 | BS159: 7.652893972 | BT159: 0.1302164612
AL160: 29923.21558 | AM160: 0.03341886828 | AN160: 15 | AO160: 11.84747659 | AP160: 0.3525234076 | AQ160: =IF(AN160<>"",Schadstoffbelastung!$K$4*Ergebnisse!AO160,"") -> 473.8990637 | AR160: =IF(AN160<>"",kf*Ergebnisse!AQ160*Ergebnisse!AM160,"") -> 0.0001583717039 | AS160: 3.341886828e-07 | AT160: 3.341886828e-06 | AU160: 1.089810389e-13 | AV160: -7.379272205e-14 | AW160: 0.0006760894121 | AX160: 0.009987335577 | AZ160: 7.692996228e-06 | BA160: 0 | BB160: 0.002623756339 | BC160: 1.64257523e-10 | BD160: 0 | BE160: 7.69266318e-06 | BF160: 0 | BG160: 0.00262364275 | BH160: 8.837098731e-07 | BI160: 0 | BO160: 0.01700913242 | BP160: 0.002609987123 | BQ160: 7.652624139e-06 | BR160: 2609.987123 | BS160: 7.652624139 | BT160: 0.1310963021
AL161: 30130.50867 | AM161: 0.0331889518 | AN161: 15.1 | AO161: 11.85081848 | AP161: 0.3491815208 | AQ161: =IF(AN161<>"",Schadstoffbelastung!$K$4*Ergebnisse!AO161,"") -> 474.0327392 | AR161: =IF(AN161<>"",kf*Ergebnisse!AQ161*Ergebnisse!AM161,"") -> 0.0001573264973 | AS161: 3.31889518e-07 | AT161: 3.31889518e-06 | AU161: 1.083284447e-13 | AV161: -7.335084056e-14 | AW161: 0.0006714380248 | AX161: 0.009927529967 | AZ161: 7.692996228e-06 | BA161: 0 | BB161: 0.002623756339 | BC161: 1.64257523e-10 | BD161: 0 | BE161: 7.69266318e-06 | BF161: 0 | BG161: 0.00262364275 | BH161: 8.837098731e-07 | BI161: 0 | BO161: 0.01712328767 | BP161: 0.002609895097 | BQ161: 7.652354315e-06 | BR161: 2609.895097 | BS161: 7.652354315 | BT161: 0.1319761431
AL162: 30337.85508 | AM162: 0.03296211935 | AN162: 15.2 | AO162: 11.85413737 | AP162: 0.3458626256 | AQ162: =IF(AN162<>"",Schadstoffbelastung!$K$4*Ergebnisse!AO162,"") -> 474.165495 | AR162: =IF(AN162<>"",kf*Ergebnisse!AQ162*Ergebnisse!AM162,"") -> 0.0001562949964 | AS162: 3.296211935e-07 | AT162: 3.296211935e-06 | AU162: 1.07684028e-13 | AV162: -7.291449618e-14 | AW162: 0.0006668490299 | AX162: 0.009868473768 | AZ162: 7.692996228e-06 | BA162: 0 | BB162: 0.002623756339 | BC162: 1.64257523e-10 | BD162: 0 | BE162: 7.69266318e-06 | BF162: 0 | BG162: 0.00262364275 | BH162: 8.837098731e-07 | BI162: 0 | BO162: 0.01723744292 | BP162: 0.002609803075 | BQ162: 7.6520845e-06 | BR162: 2609.803075 | BS162: 7.6520845 | BT162: 0.132855984
AL163: 30545.25444 | AM163: 0.03273830971 | AN163: 15.3 | AO163: 11.85743359 | AP163: 0.3425664137 | AQ163: =IF(AN163<>"",Schadstoffbelastung!$K$4*Ergebnisse!AO163,"") -> 474.2973435 | AR163: =IF(AN163<>"",kf*Ergebnisse!AQ163*Ergebnisse!AM163,"") -> 0.0001552769332 | AS163: 3.273830971e-07 | AT163: 3.273830971e-06 | AU163: 1.070476336e-13 | AV163: -7.248358385e-14 | AW163: 0.0006623211887 | AX163: 0.009810152757 | AZ163: 7.692996228e-06 | BA163: 0 | BB163: 0.002623756339 | BC163: 1.64257523e-10 | BD163: 0 | BE163: 7.69266318e-06 | BF163: 0 | BG163: 0.00262364275 | BH163: 8.837098731e-07 | BI163: 0 | BO163: 0.01735159817 | BP163: 0.002609711056 | BQ163: 7.651814695e-06 | BR163: 2609.711056 | BS163: 7.651814695 | BT163: 0.133735825
AL164: 30752.7064 | AM164: 0.03251746324 | AN164: 15.4 | AO164: =IF(AN164="","",SQRT(($S$29^2)+(($S$28^2)-($S$29^2))*(LN(AN164)-LN(Brunnenradius))/(LN(ReichweiteAbsenkung)-LN(Brunnenradius)))) -> 11.86070742 | AP164: 0.3392925827 | AQ164: =IF(AN164<>"",Schadstoffbelastung!$K$4*Ergebnisse!AO164,"") -> 474.4282967 | AR164: =IF(AN164<>"",kf*Ergebnisse!AQ164*Ergebnisse!AM164,"") -> 0.000154272047 | AS164: 3.251746324e-07 | AT164: 3.251746324e-06 | AU164: 1.064191103e-13 | AV164: -7.205800113e-14 | AW164: =IF(AN164<>"",((d_50*2)*kf*AM164)/($S$13*neff),"") -> 0.0006578532948 | AX164: =IF(AN164<>"",150*(AW164^0.87)*(0.016^0.79),"") -> 0.009752553074 | AZ164: 7.692996228e-06 | BA164: 0 | BB164: 0.002623756339 | BC164: 1.64257523e-10 | BD164: 0 | BE164: 7.69266318e-06 | BF164: 0 | BG164: 0.00262364275 | BH164: 8.837098731e-07 | BI164: 0 | BO164: 0.01746575342 | BP164: 0.00260961904 | BQ164: 7.6515449e-06 | BR164: 2609.61904 | BS164: 7.6515449 | BT164: 0.1346156659
AL165: 30960.21061 | AM165: =IF(AN165<>"",(AO166-AO165)/(AN166-AN165),"") -> 0.03229952188 | AN165: 15.5 | AO165: 11.86395916 | AP165: =IF(AN165<>"",$S$28-AO165,"") -> 0.3360408364 | AQ165: =IF(AN165<>"",Schadstoffbelastung!$K$4*Ergebnisse!AO165,"") -> 474.5583665 | AR165: =IF(AN165<>"",kf*Ergebnisse!AQ165*Ergebnisse!AM165,"") -> 0.0001532800834 | AS165: =IF(AN165<>"",AR165/AQ165,"") -> 3.229952188e-07 | AT165: =IF(AS165<>"",AS165/$S$30,"") -> 3.229952188e-06 | AU165: 1.057983106e-13 | AV165: -7.163764819e-14 | AW165: 0.0006534441735 | AX165: 0.009695661205 | AZ165: 7.692996228e-06 | BA165: 0 | BB165: 0.002623756339 | BC165: 1.64257523e-10 | BD165: 0 | BE165: 7.69266318e-06 | BF165: 0 | BG165: 0.00262364275 | BH165: 8.837098731e-07 | BI165: 0 | BO165: 0.01757990868 | BP165: 0.002609527028 | BQ165: 7.651275114e-06 | BR165: 2609.527028 | BS165: 7.651275114 | BT165: 0.1354955069
AL166: 31167.76671 | AM166: 0.03208442906 | AN166: 15.6 | AO166: 11.86718912 | AP166: 0.3328108842 | AQ166: =IF(AN166<>"",Schadstoffbelastung!$K$4*Ergebnisse!AO166,"") -> 474.6875646 | AR166: =IF(AN166<>"",kf*Ergebnisse!AQ166*Ergebnisse!AM166,"") -> 0.000152300795 | AS166: 3.208442906e-07 | AT166: 3.208442906e-06 | AU166: 1.051850907e-13 | AV166: -7.122242767e-14 | AW166: 0.0006490926803 | AX166: 0.009639463973 | AZ166: 7.692996228e-06 | BA166: 0 | BB166: 0.002623756339 | BC166: 1.64257523e-10 | BD166: 0 | BE166: 7.69266318e-06 | BF166: 0 | BG166: 0.00262364275 | BH166: 8.837098731e-07 | BI166: 0 | BO166: 0.01769406393 | BP166: 0.002609435018 | BQ166: 7.651005337e-06 | BR166: 2609.435018 | BS166: 7.651005337 | BT166: 0.1363753479
AL167: 31375.37436 | AM167: 0.03187212967 | AN167: 15.7 | AO167: 11.87039756 | AP167: 0.3296024413 | AQ167: =IF(AN167<>"",Schadstoffbelastung!$K$4*Ergebnisse!AO167,"") -> 474.8159023 | AR167: =IF(AN167<>"",kf*Ergebnisse!AQ167*Ergebnisse!AM167,"") -> 0.0001513339401 | AS167: 3.187212967e-07 | AT167: 3.187212967e-06 | AU167: 1.045793105e-13 | AV167: -7.081224465e-14 | AW167: 0.0006447977003 | AX167: 0.009583948533 | AZ167: 7.692996228e-06 | BA167: 0 | BB167: 0.002623756339 | BC167: 1.64257523e-10 | BD167: 0 | BE167: 7.69266318e-06 | BF167: 0 | BG167: 0.00262364275 | BH167: 8.837098731e-07 | BI167: 0 | BO167: 0.01780821918 | BP167: 0.002609343012 | BQ167: 7.65073557e-06 | BR167: 2609.343012 | BS167: 7.65073557 | BT167: 0.1372551888
AL168: 31583.03322 | AM168: 0.03166257 | AN168: 15.8 | AO168: 11.87358477 | AP168: 0.3264152283 | AQ168: =IF(AN168<>"",Schadstoffbelastung!$K$4*Ergebnisse!AO168,"") -> 474.9433909 | AR168: =IF(AN168<>"",kf*Ergebnisse!AQ168*Ergebnisse!AM168,"") -> 0.0001503792836 | AS168: 3.166257e-07 | AT168: 3.166257e-06 | AU168: 1.039808332e-13 | AV168: -7.040700655e-14 | AW168: 0.0006405581469 | AX168: 0.009529102353 | AZ168: 7.692996228e-06 | BA168: 0 | BB168: 0.002623756339 | BC168: 1.64257523e-10 | BD168: 0 | BE168: 7.69266318e-06 | BF168: 0 | BG168: 0.00262364275 | BH168: 8.837098731e-07 | BI168: 0 | BO168: 0.01792237443 | BP168: 0.002609251009 | BQ168: 7.650465813e-06 | BR168: 2609.251009 | BS168: 7.650465813 | BT168: 0.1381350298
AL169: 31790.74295 | AM169: 0.0314556977 | AN169: 15.9 | AO169: 11.87675103 | AP169: 0.3232489713 | AQ169: =IF(AN169<>"",Schadstoffbelastung!$K$4*Ergebnisse!AO169,"") -> 475.0700411 | AR169: =IF(AN169<>"",kf*Ergebnisse!AQ169*Ergebnisse!AM169,"") -> 0.000149436596 | AS169: 3.14556977e-07 | AT169: 3.14556977e-06 | AU169: 1.033895254e-13 | AV169: -7.000662305e-14 | AW169: 0.0006363729611 | AX169: 0.009474913211 | AZ169: 7.692996228e-06 | BA169: 0 | BB169: 0.002623756339 | BC169: 1.64257523e-10 | BD169: 0 | BE169: 7.69266318e-06 | BF169: 0 | BG169: 0.00262364275 | BH169: 8.837098731e-07 | BI169: 0 | BO169: 0.01803652968 | BP169: 0.00260915901 | BQ169: 7.650196065e-06 | BR169: 2609.15901 | BS169: 7.650196065 | BT169: 0.1390148707
AL170: 31998.50324 | AM170: 0.03125146175 | AN170: 16 | AO170: 11.8798966 | AP170: 0.3201034015 | AQ170: =IF(AN170<>"",Schadstoffbelastung!$K$4*Ergebnisse!AO170,"") -> 475.1958639 | AR170: =IF(AN170<>"",kf*Ergebnisse!AQ170*Ergebnisse!AM170,"") -> 0.0001485056537 | AS170: 3.125146175e-07 | AT170: 3.125146175e-06 | AU170: 1.028052571e-13 | AV170: -6.961100606e-14 | AW170: 0.0006322411108 | AX170: 0.009421369181 | AZ170: 7.692996228e-06 | BA170: 0 | BB170: 0.002623756339 | BC170: 1.64257523e-10 | BD170: 0 | BE170: 7.69266318e-06 | BF170: 0 | BG170: 0.00262364275 | BH170: 8.837098731e-07 | BI170: 0 | BO170: 0.01815068493 | BP170: 0.002609067013 | BQ170: 7.649926327e-06 | BR170: 2609.067013 | BS170: 7.649926327 | BT170: 0.1398947117
AL171: 32206.31373 | AM171: 0.03104981241 | AN171: 16.1 | AO171: 11.88302174 | AP171: 0.3169782554 | AQ171: =IF(AN171<>"",Schadstoffbelastung!$K$4*Ergebnisse!AO171,"") -> 475.3208698 | AR171: =IF(AN171<>"",kf*Ergebnisse!AQ171*Ergebnisse!AM171,"") -> 0.0001475862384 | AS171: 3.104981241e-07 | AT171: 3.104981241e-06 | AU171: 1.022279012e-13 | AV171: -6.922006959e-14 | AW171: 0.0006281615896 | AX171: 0.009368458629 | AZ171: 7.692996228e-06 | BA171: 0 | BB171: 0.002623756339 | BC171: 1.64257523e-10 | BD171: 0 | BE171: 7.69266318e-06 | BF171: 0 | BG171: 0.00262364275 | BH171: 8.837098731e-07 | BI171: 0 | BO171: 0.01826484018 | BP171: 0.00260897502 | BQ171: 7.649656598e-06 | BR171: 2608.97502 | BS171: 7.649656598 | BT171: 0.1407745526
AL172: 32414.17413 | AM172: 0.03085070118 | AN172: 16.2 | AO172: 11.88612673 | AP172: 0.3138732741 | AQ172: =IF(AN172<>"",Schadstoffbelastung!$K$4*Ergebnisse!AO172,"") -> 475.445069 | AR172: =IF(AN172<>"",kf*Ergebnisse!AQ172*Ergebnisse!AM172,"") -> 0.0001466781375 | AS172: 3.085070118e-07 | AT172: 3.085070118e-06 | AU172: 1.016573339e-13 | AV172: -6.883372976e-14 | AW172: 0.0006241334162 | AX172: 0.009316170199 | AZ172: 7.692996228e-06 | BA172: 0 | BB172: 0.002623756339 | BC172: 1.64257523e-10 | BD172: 0 | BE172: 7.69266318e-06 | BF172: 0 | BG172: 0.00262364275 | BH172: 8.837098731e-07 | BI172: 0 | BO172: 0.01837899543 | BP172: 0.00260888303 | BQ172: 7.649386878e-06 | BR172: 2608.88303 | BS172: 7.649386878 | BT172: 0.1416543936
AL173: 32622.0841 | AM173: 0.03065408075 | AN173: 16.3 | AO173: 11.8892118 | AP173: 0.310788204 | AQ173: =IF(AN173<>"",Schadstoffbelastung!$K$4*Ergebnisse!AO173,"") -> 475.5684718 | AR173: =IF(AN173<>"",kf*Ergebnisse!AQ173*Ergebnisse!AM173,"") -> 0.0001457811434 | AS173: 3.065408075e-07 | AT173: 3.065408075e-06 | AU173: 1.010934341e-13 | AV173: -6.845190465e-14 | AW173: 0.0006201556335 | AX173: 0.009264492807 | AZ173: 7.692996228e-06 | BA173: 0 | BB173: 0.002623756339 | BC173: 1.64257523e-10 | BD173: 0 | BE173: 7.69266318e-06 | BF173: 0 | BG173: 0.00262364275 | BH173: 8.837098731e-07 | BI173: 0 | BO173: 0.01849315068 | BP173: 0.002608791043 | BQ173: 7.649117168e-06 | BR173: 2608.791043 | BS173: 7.649117168 | BT173: 0.1425342345
AL174: 32830.04333 | AM174: 0.03045990497 | AN174: 16.4 | AO174: 11.8922772 | AP174: 0.3077227959 | AQ174: =IF(AN174<>"",Schadstoffbelastung!$K$4*Ergebnisse!AO174,"") -> 475.6910882 | AR174: =IF(AN174<>"",kf*Ergebnisse!AQ174*Ergebnisse!AM174,"") -> 0.0001448950534 | AS174: 3.045990497e-07 | AT174: 3.045990497e-06 | AU174: 1.005360839e-13 | AV174: -6.807451435e-14 | AW174: 0.0006162273083 | AX174: 0.009213415634 | AZ174: 7.692996228e-06 | BA174: 0 | BB174: 0.002623756339 | BC174: 1.64257523e-10 | BD174: 0 | BE174: 7.69266318e-06 | BF174: 0 | BG174: 0.00262364275 | BH174: 8.837098731e-07 | BI174: 0 | BO174: 0.01860730594 | BP174: 0.00260869906 | BQ174: 7.648847468e-06 | BR174: 2608.69906 | BS174: 7.648847468 | BT174: 0.1434140755
AL175: 33038.05151 | AM175: 0.03026812885 | AN175: 16.5 | AO175: 11.89532319 | AP175: 0.3046768054 | AQ175: =IF(AN175<>"",Schadstoffbelastung!$K$4*Ergebnisse!AO175,"") -> 475.8129278 | AR175: =IF(AN175<>"",kf*Ergebnisse!AQ175*Ergebnisse!AM175,"") -> 0.0001440196701 | AS175: 3.026812885e-07 | AT175: 3.026812885e-06 | AU175: 9.998516801e-14 | AV175: -6.770148078e-14 | AW175: 0.0006123475298 | AX175: 0.009162928115 | AZ175: 7.692996228e-06 | BA175: 0 | BB175: 0.002623756339 | BC175: 1.64257523e-10 | BD175: 0 | BE175: 7.69266318e-06 | BF175: 0 | BG175: 0.00262364275 | BH175: 8.837098731e-07 | BI175: 0 | BO175: 0.01872146119 | BP175: 0.00260860708 | BQ175: 7.648577777e-06 | BR175: 2608.60708 | BS175: 7.648577777 | BT175: 0.1442939164
AL176: 33246.10833 | AM176: 0.03007870846 | AN176: 16.6 | AO176: 11.89835001 | AP176: 0.3016499925 | AQ176: =IF(AN176<>"",Schadstoffbelastung!$K$4*Ergebnisse!AO176,"") -> 475.9340003 | AR176: =IF(AN176<>"",kf*Ergebnisse!AQ176*Ergebnisse!AM176,"") -> 0.0001431548004 | AS176: 3.007870846e-07 | AT176: 3.007870846e-06 | AU176: 9.944057379e-14 | AV176: -6.733272774e-14 | AW176: 0.0006085154096 | AX176: 0.009113019936 | AZ176: 7.692996228e-06 | BA176: 0 | BB176: 0.002623756339 | BC176: 1.64257523e-10 | BD176: 0 | BE176: 7.69266318e-06 | BF176: 0 | BG176: 0.00262364275 | BH176: 8.837098731e-07 | BI176: 0 | BO176: 0.01883561644 | BP176: 0.002608515103 | BQ176: 7.648308096e-06 | BR176: 2608.515103 | BS176: 7.648308096 | BT176: 0.1451737574
AL177: 33454.2135 | AM177: 0.02989160095 | AN177: 16.7 | AO177: 11.90135788 | AP177: 0.2986421217 | AQ177: =IF(AN177<>"",Schadstoffbelastung!$K$4*Ergebnisse!AO177,"") -> 476.0543151 | AR177: =IF(AN177<>"",kf*Ergebnisse!AQ177*Ergebnisse!AM177,"") -> 0.0001423002562 | AS177: 2.989160095e-07 | AT177: 2.989160095e-06 | AU177: 9.890219135e-14 | AV177: -6.696818078e-14 | AW177: 0.0006047300808 | AX177: 0.009063681022 | AZ177: 7.692996228e-06 | BA177: 0 | BB177: 0.002623756339 | BC177: 1.64257523e-10 | BD177: 0 | BE177: 7.69266318e-06 | BF177: 0 | BG177: 0.00262364275 | BH177: 8.837098731e-07 | BI177: 0 | BO177: 0.01894977169 | BP177: 0.002608423129 | BQ177: 7.648038424e-06 | BR177: 2608.423129 | BS177: 7.648038424 | BT177: 0.1460535983
AL178: 33662.3667 | AM178: 0.02970676449 | AN178: 16.8 | AO178: 11.90434704 | AP178: 0.2956529616 | AQ178: =IF(AN178<>"",Schadstoffbelastung!$K$4*Ergebnisse!AO178,"") -> 476.1738815 | AR178: =IF(AN178<>"",kf*Ergebnisse!AQ178*Ergebnisse!AM178,"") -> 0.0001414558536 | AS178: 2.970676449e-07 | AT178: 2.970676449e-06 | AU178: 9.83699133e-14 | AV178: -6.660776721e-14 | AW178: 0.0006009906971 | AX178: 0.009014901532 | AZ178: 7.692996228e-06 | BA178: 0 | BB178: 0.002623756339 | BC178: 1.64257523e-10 | BD178: 0 | BE178: 7.69266318e-06 | BF178: 0 | BG178: 0.00262364275 | BH178: 8.837098731e-07 | BI178: 0 | BO178: 0.01906392694 | BP178: 0.002608331159 | BQ178: 7.647768762e-06 | BR178: 2608.331159 | BS178: 7.647768762 | BT178: 0.1469334393
AL179: 33870.56765 | AM179: 0.02952415827 | AN179: 16.9 | AO179: 11.90731771 | AP179: 0.2926822852 | AQ179: =IF(AN179<>"",Schadstoffbelastung!$K$4*Ergebnisse!AO179,"") -> 476.2927086 | AR179: =IF(AN179<>"",kf*Ergebnisse!AQ179*Ergebnisse!AM179,"") -> 0.0001406214131 | AS179: 2.952415827e-07 | AT179: 2.952415827e-06 | AU179: 9.784363476e-14 | AV179: -6.625141598e-14 | AW179: 0.0005972964326 | AX179: 0.008966671854 | AZ179: 7.692996228e-06 | BA179: 0 | BB179: 0.002623756339 | BC179: 1.64257523e-10 | BD179: 0 | BE179: 7.69266318e-06 | BF179: 0 | BG179: 0.00262364275 | BH179: 8.837098731e-07 | BI179: 0 | BO179: 0.01917808219 | BP179: 0.002608239192 | BQ179: 7.647499109e-06 | BR179: 2608.239192 | BS179: 7.647499109 | BT179: 0.1478132803
AL180: 34078.81606 | AM180: 0.02934374241 | AN180: 17 | AO180: 11.91027013 | AP180: 0.2897298693 | AQ180: =IF(AN180<>"",Schadstoffbelastung!$K$4*Ergebnisse!AO180,"") -> 476.4108052 | AR180: =IF(AN180<>"",kf*Ergebnisse!AQ180*Ergebnisse!AM180,"") -> 0.0001397967595 | AS180: 2.934374241e-07 | AT180: 2.934374241e-06 | AU180: 9.732325322e-14 | AV180: -6.589905772e-14 | AW180: 0.000593646481 | AX180: 0.008918982595 | AZ180: 7.692996228e-06 | BA180: 0 | BB180: 0.002623756339 | BC180: 1.64257523e-10 | BD180: 0 | BE180: 7.69266318e-06 | BF180: 0 | BG180: 0.00262364275 | BH180: 8.837098731e-07 | BI180: 0 | BO180: 0.01929223744 | BP180: 0.002608147228 | BQ180: 7.647229465e-06 | BR180: 2608.147228 | BS180: 7.647229465 | BT180: 0.1486931212
AL181: 34287.11162 | AM181: 0.02916547801 | AN181: 17.1 | AO181: 11.9132045 | AP181: 0.2867954951 | AQ181: =IF(AN181<>"",Schadstoffbelastung!$K$4*Ergebnisse!AO181,"") -> 476.5281802 | AR181: =IF(AN181<>"",kf*Ergebnisse!AQ181*Ergebnisse!AM181,"") -> 0.0001389817216 | AS181: 2.916547801e-07 | AT181: 2.916547801e-06 | AU181: 9.680866855e-14 | AV181: -6.555062459e-14 | AW181: 0.0005900400551 | AX181: 0.008871824577 | AZ181: 7.692996228e-06 | BA181: 0 | BB181: 0.002623756339 | BC181: 1.64257523e-10 | BD181: 0 | BE181: 7.69266318e-06 | BF181: 0 | BG181: 0.00262364275 | BH181: 8.837098731e-07 | BI181: 0 | BO181: 0.01940639269 | BP181: 0.002608055267 | BQ181: 7.646959832e-06 | BR181: 2608.055267 | BS181: 7.646959832 | BT181: 0.1495729622
AL182: 34495.45407 | AM182: 0.02898932706 | AN182: 17.2 | AO182: 11.91612105 | AP182: 0.2838789473 | AQ182: =IF(AN182<>"",Schadstoffbelastung!$K$4*Ergebnisse!AO182,"") -> 476.6448421 | AR182: =IF(AN182<>"",kf*Ergebnisse!AQ182*Ergebnisse!AM182,"") -> 0.0001381761322 | AS182: 2.898932706e-07 | AT182: 2.898932706e-06 | AU182: 9.629978286e-14 | AV182: -6.520605034e-14 | AW182: 0.0005864763859 | AX182: 0.00882518883 | AZ182: 7.692996228e-06 | BA182: 0 | BB182: 0.002623756339 | BC182: 1.64257523e-10 | BD182: 0 | BE182: 7.69266318e-06 | BF182: 0 | BG182: 0.00262364275 | BH182: 8.837098731e-07 | BI182: 0 | BO182: 0.01952054795 | BP182: 0.002607963309 | BQ182: 7.646690207e-06 | BR182: 2607.963309 | BS182: 7.646690207 | BT182: 0.1504528031
AL183: 34703.84311 | AM183: 0.02881525245 | AN183: 17.3 | AO183: 11.91901999 | AP183: 0.2809800146 | AQ183: =IF(AN183<>"",Schadstoffbelastung!$K$4*Ergebnisse!AO183,"") -> 476.7607994 | AR183: =IF(AN183<>"",kf*Ergebnisse!AQ183*Ergebnisse!AM183,"") -> 0.0001373798279 | AS183: 2.881525245e-07 | AT183: 2.881525245e-06 | AU183: 9.579650048e-14 | AV183: -6.486527017e-14 | AW183: 0.0005829547226 | AX183: 0.008779066586 | AZ183: 7.692996228e-06 | BA183: 0 | BB183: 0.002623756339 | BC183: 1.64257523e-10 | BD183: 0 | BE183: 7.69266318e-06 | BF183: 0 | BG183: 0.00262364275 | BH183: 8.837098731e-07 | BI183: 0 | BO183: 0.0196347032 | BP183: 0.002607871355 | BQ183: 7.646420592e-06 | BR183: 2607.871355 | BS183: 7.646420592 | BT183: 0.1513326441
AL184: 34912.27847 | AM184: 0.02864321792 | AN184: 17.4 | AO184: 11.92190151 | AP184: 0.2780984893 | AQ184: =IF(AN184<>"",Schadstoffbelastung!$K$4*Ergebnisse!AO184,"") -> 476.8760604 | AR184: =IF(AN184<>"",kf*Ergebnisse!AQ184*Ergebnisse!AM184,"") -> 0.0001365926492 | AS184: 2.864321792e-07 | AT184: 2.864321792e-06 | AU184: 9.529872789e-14 | AV184: -6.452822077e-14 | AW184: 0.0005794743317 | AX184: 0.008733449276 | AZ184: 7.692996228e-06 | BA184: 0 | BB184: 0.002623756339 | BC184: 1.64257523e-10 | BD184: 0 | BE184: 7.69266318e-06 | BF184: 0 | BG184: 0.00262364275 | BH184: 8.837098731e-07 | BI184: 0 | BO184: 0.01974885845 | BP184: 0.002607779404 | BQ184: 7.646150987e-06 | BR184: 2607.779404 | BS184: 7.646150987 | BT184: 0.152212485
AL185: 35120.75986 | AM185: 0.02847318805 | AN185: 17.5 | AO185: 11.92476583 | AP185: 0.2752341675 | AQ185: =IF(AN185<>"",Schadstoffbelastung!$K$4*Ergebnisse!AO185,"") -> 476.9906333 | AR185: =IF(AN185<>"",kf*Ergebnisse!AQ185*Ergebnisse!AM185,"") -> 0.00013581444 | AS185: 2.847318805e-07 | AT185: 2.847318805e-06 | AU185: 9.480637365e-14 | AV185: -6.419484021e-14 | AW185: 0.0005760344967 | AX185: 0.008688328519 | AZ185: 7.692996228e-06 | BA185: 0 | BB185: 0.002623756339 | BC185: 1.64257523e-10 | BD185: 0 | BE185: 7.69266318e-06 | BF185: 0 | BG185: 0.00262364275 | BH185: 8.837098731e-07 | BI185: 0 | BO185: 0.0198630137 | BP185: 0.002607687456 | BQ185: 7.645881391e-06 | BR185: 2607.687456 | BS185: 7.645881391 | BT185: 0.153092326
AL186: 35329.28703 | AM186: 0.02830512824 | AN186: 17.6 | AO186: 11.92761315 | AP186: 0.2723868487 | AQ186: =IF(AN186<>"",Schadstoffbelastung!$K$4*Ergebnisse!AO186,"") -> 477.1045261 | AR186: =IF(AN186<>"",kf*Ergebnisse!AQ186*Ergebnisse!AM186,"") -> 0.0001350450479 | AS186: 2.830512824e-07 | AT186: 2.830512824e-06 | AU186: 9.431934835e-14 | AV186: -6.386506796e-14 | AW186: 0.0005726345174 | AX186: 0.008643696121 | AZ186: 7.692996228e-06 | BA186: 0 | BB186: 0.002623756339 | BC186: 1.64257523e-10 | BD186: 0 | BE186: 7.69266318e-06 | BF186: 0 | BG186: 0.00262364275 | BH186: 8.837098731e-07 | BI186: 0 | BO186: 0.01997716895 | BP186: 0.002607595512 | BQ186: 7.645611805e-06 | BR186: 2607.595512 | BS186: 7.645611805 | BT186: 0.1539721669
AL187: 35537.8597 | AM187: 0.02813900467 | AN187: 17.7 | AO187: 11.93044366 | AP187: 0.2695563359 | AQ187: =IF(AN187<>"",Schadstoffbelastung!$K$4*Ergebnisse!AO187,"") -> 477.2177466 | AR187: =IF(AN187<>"",kf*Ergebnisse!AQ187*Ergebnisse!AM187,"") -> 0.000134284324 | AS187: 2.813900467e-07 | AT187: 2.813900467e-06 | AU187: 9.383756456e-14 | AV187: -6.353884481e-14 | AW187: 0.0005692737098 | AX187: 0.00859954407 | AZ187: 7.692996228e-06 | BA187: 0 | BB187: 0.002623756339 | BC187: 1.64257523e-10 | BD187: 0 | BE187: 7.69266318e-06 | BF187: 0 | BG187: 0.00262364275 | BH187: 8.837098731e-07 | BI187: 0 | BO187: 0.0200913242 | BP187: 0.002607503571 | BQ187: 7.645342228e-06 | BR187: 2607.503571 | BS187: 7.645342228 | BT187: 0.1548520079
AL188: 35746.4776 | AM188: 0.02797478429 | AN188: 17.8 | AO188: 11.93325756 | AP188: 0.2667424355 | AQ188: =IF(AN188<>"",Schadstoffbelastung!$K$4*Ergebnisse!AO188,"") -> 477.3303026 | AR188: =IF(AN188<>"",kf*Ergebnisse!AQ188*Ergebnisse!AM188,"") -> 0.0001335321225 | AS188: 2.797478429e-07 | AT188: 2.797478429e-06 | AU188: 9.336093675e-14 | AV188: -6.321611286e-14 | AW188: 0.0005659514052 | AX188: 0.008555864527 | AZ188: 7.692996228e-06 | BA188: 0 | BB188: 0.002623756339 | BC188: 1.64257523e-10 | BD188: 0 | BE188: 7.69266318e-06 | BF188: 0 | BG188: 0.00262364275 | BH188: 8.837098731e-07 | BI188: 0 | BO188: 0.02020547945 | BP188: 0.002607411633 | BQ188: 7.645072661e-06 | BR188: 2607.411633 | BS188: 7.645072661 | BT188: 0.1557318488
AL189: 35955.14048 | AM189: 0.02781243479 | AN189: 17.9 | AO189: 11.93605504 | AP189: 0.263944957 | AQ189: =IF(AN189<>"",Schadstoffbelastung!$K$4*Ergebnisse!AO189,"") -> 477.4422017 | AR189: =IF(AN189<>"",kf*Ergebnisse!AQ189*Ergebnisse!AM189,"") -> 0.000132788301 | AS189: 2.781243479e-07 | AT189: 2.781243479e-06 | AU189: 9.288938126e-14 | AV189: -6.289681545e-14 | AW189: 0.00056266695 | AX189: 0.008512649827 | AZ189: 7.692996228e-06 | BA189: 0 | BB189: 0.002623756339 | BC189: 1.64257523e-10 | BD189: 0 | BE189: 7.69266318e-06 | BF189: 0 | BG189: 0.00262364275 | BH189: 8.837098731e-07 | BI189: 0 | BO189: 0.0203196347 | BP189: 0.002607319698 | BQ189: 7.644803103e-06 | BR189: 2607.319698 | BS189: 7.644803103 | BT189: 0.1566116898
AL190: 36163.84806 | AM190: 0.0276519246 | AN190: 18 | AO190: 11.93883629 | AP190: 0.2611637135 | AQ190: =IF(AN190<>"",Schadstoffbelastung!$K$4*Ergebnisse!AO190,"") -> 477.5534515 | AR190: =IF(AN190<>"",kf*Ergebnisse!AQ190*Ergebnisse!AM190,"") -> 0.0001320527203 | AS190: 2.76519246e-07 | AT190: 2.76519246e-06 | AU190: 9.242281626e-14 | AV190: -6.258089718e-14 | AW190: 0.0005594197054 | AX190: 0.00846989247 | AZ190: 7.692996228e-06 | BA190: 0 | BB190: 0.002623756339 | BC190: 1.64257523e-10 | BD190: 0 | BE190: 7.69266318e-06 | BF190: 0 | BG190: 0.00262364275 | BH190: 8.837098731e-07 | BI190: 0 | BO190: 0.02043378995 | BP190: 0.002607227766 | BQ190: 7.644533555e-06 | BR190: 2607.227766 | BS190: 7.644533555 | BT190: 0.1574915307
AL191: 36372.6001 | AM191: 0.02749322284 | AN191: 18.1 | AO191: 11.94160148 | AP191: 0.2583985211 | AQ191: =IF(AN191<>"",Schadstoffbelastung!$K$4*Ergebnisse!AO191,"") -> 477.6640592 | AR191: =IF(AN191<>"",kf*Ergebnisse!AQ191*Ergebnisse!AM191,"") -> 0.0001313252442 | AS191: 2.749322284e-07 | AT191: 2.749322284e-06 | AU191: 9.196116166e-14 | AV191: -6.226830382e-14 | AW191: 0.0005562090467 | AX191: 0.008427585116 | AZ191: =IF(AN191<>"",$S$37,"") -> 7.692996228e-06 | BA191: =IF(AN192<>"",IF($S$39<>0,$S$39,0),"") -> 0 | BB191: 0.002623756339 | BC191: 1.64257523e-10 | BD191: 0 | BE191: 7.69266318e-06 | BF191: 0 | BG191: 0.00262364275 | BH191: 8.837098731e-07 | BI191: 0 | BO191: 0.02054794521 | BP191: 0.002607135838 | BQ191: 7.644264016e-06 | BR191: 2607.135838 | BS191: 7.644264016 | BT191: 0.1583713717
AL192: 36581.39634 | AM192: 0.02733629932 | AN192: 18.2 | AO192: 11.9443508 | AP192: 0.2556491988 | AQ192: =IF(AN192<>"",Schadstoffbelastung!$K$4*Ergebnisse!AO192,"") -> 477.774032 | AR192: =IF(AN192<>"",kf*Ergebnisse!AQ192*Ergebnisse!AM192,"") -> 0.0001306057395 | AS192: 2.733629932e-07 | AT192: 2.733629932e-06 | AU192: 9.15043391e-14 | AV192: -6.19589823e-14 | AW192: 0.0005530343632 | AX192: 0.008385720584 | AZ192: 7.692996228e-06 | BA192: 0 | BB192: 0.002623756339 | BC192: 1.64257523e-10 | BD192: 0 | BE192: 7.69266318e-06 | BF192: 0 | BG192: 0.00262364275 | BH192: 8.837098731e-07 | BI192: 0 | BO192: 0.02066210046 | BP192: 0.002607043913 | BQ192: 7.643994487e-06 | BR192: 2607.043913 | BS192: 7.643994487 | BT192: 0.1592512127
AL193: 36790.23653 | AM193: 0.02718112451 | AN193: 18.3 | AO193: 11.94708443 | AP193: 0.2529155689 | AQ193: =IF(AN193<>"",Schadstoffbelastung!$K$4*Ergebnisse!AO193,"") -> 477.8833772 | AR193: =IF(AN193<>"",kf*Ergebnisse!AQ193*Ergebnisse!AM193,"") -> 0.0001298940758 | AS193: 2.718112451e-07 | AT193: 2.718112451e-06 | AU193: 9.105227191e-14 | AV193: -6.165288072e-14 | AW193: 0.0005498950574 | AX193: 0.008344291847 | AZ193: 7.692996228e-06 | BA193: 0 | BB193: 0.002623756339 | BC193: 1.64257523e-10 | BD193: 0 | BE193: 7.69266318e-06 | BF193: 0 | BG193: 0.00262364275 | BH193: 8.837098731e-07 | BI193: 0 | BO193: 0.02077625571 | BP193: 0.002606951991 | BQ193: 7.643724967e-06 | BR193: 2606.951991 | BS193: 7.643724967 | BT193: 0.1601310536
AL194: 36999.12042 | AM194: 0.02702766954 | AN194: 18.4 | AO194: 11.94980254 | AP194: 0.2501974564 | AQ194: =IF(AN194<>"",Schadstoffbelastung!$K$4*Ergebnisse!AO194,"") -> 477.9921017 | AR194: =IF(AN194<>"",kf*Ergebnisse!AQ194*Ergebnisse!AM194,"") -> 0.0001291901257 | AS194: 2.702766954e-07 | AT194: 2.702766954e-06 | AU194: 9.0604885e-14 | AV194: -6.134994823e-14 | AW194: 0.0005467905453 | AX194: 0.008303292026 | AZ194: 7.692996228e-06 | BA194: 0 | BB194: 0.002623756339 | BC194: 1.64257523e-10 | BD194: 0 | BE194: 7.69266318e-06 | BF194: 0 | BG194: 0.00262364275 | BH194: 8.837098731e-07 | BI194: 0 | BO194: 0.02089041096 | BP194: 0.002606860073 | BQ194: 7.643455457e-06 | BR194: 2606.860073 | BS194: 7.643455457 | BT194: 0.1610108946
AL195: 37208.04776 | AM195: 0.02687590616 | AN195: 18.5 | AO195: 11.95250531 | AP195: 0.2474946895 | AQ195: =IF(AN195<>"",Schadstoffbelastung!$K$4*Ergebnisse!AO195,"") -> 478.1002124 | AR195: =IF(AN195<>"",kf*Ergebnisse!AQ195*Ergebnisse!AM195,"") -> 0.0001284937644 | AS195: 2.687590616e-07 | AT195: 2.687590616e-06 | AU195: 9.016210492e-14 | AV195: -6.105013508e-14 | AW195: 0.0005437202553 | AX195: 0.008262714386 | AZ195: 7.692996228e-06 | BA195: 0 | BB195: 0.002623756339 | BC195: 1.64257523e-10 | BD195: 0 | BE195: 7.69266318e-06 | BF195: 0 | BG195: 0.00262364275 | BH195: 8.837098731e-07 | BI195: 0 | BO195: 0.02100456621 | BP195: 0.002606768157 | BQ195: 7.643185956e-06 | BR195: 2606.768157 | BS195: 7.643185956 | BT195: 0.1618907355
AL196: 37417.01832 | AM196: 0.02672580673 | AN196: 18.6 | AO196: 11.9551929 | AP196: 0.2448070988 | AQ196: =IF(AN196<>"",Schadstoffbelastung!$K$4*Ergebnisse!AO196,"") -> 478.207716 | AR196: =IF(AN196<>"",kf*Ergebnisse!AQ196*Ergebnisse!AM196,"") -> 0.00012780487 | AS196: 2.672580673e-07 | AT196: 2.672580673e-06 | AU196: 8.972385971e-14 | AV196: -6.075339258e-14 | AW196: 0.0005406836285 | AX196: 0.008222552336 | AZ196: 7.692996228e-06 | BA196: 0 | BB196: 0.002623756339 | BC196: 1.64257523e-10 | BD196: 0 | BE196: 7.69266318e-06 | BF196: 0 | BG196: 0.00262364275 | BH196: 8.837098731e-07 | BI196: 0 | BO196: 0.02111872146 | BP196: 0.002606676245 | BQ196: 7.642916465e-06 | BR196: 2606.676245 | BS196: 7.642916465 | BT196: 0.1627705765
AL197: 37626.03184 | AM197: 0.02657734422 | AN197: 18.7 | AO197: 11.95786548 | AP197: 0.2421345182 | AQ197: =IF(AN197<>"",Schadstoffbelastung!$K$4*Ergebnisse!AO197,"") -> 478.3146193 | AR197: =IF(AN197<>"",kf*Ergebnisse!AQ197*Ergebnisse!AM197,"") -> 0.0001271233228 | AS197: 2.657734422e-07 | AT197: 2.657734422e-06 | AU197: 8.929007895e-14 | AV197: -6.045967302e-14 | AW197: 0.0005376801177 | AX197: 0.008182799421 | AZ197: 7.692996228e-06 | BA197: 0 | BB197: 0.002623756339 | BC197: 1.64257523e-10 | BD197: 0 | BE197: 7.69266318e-06 | BF197: 0 | BG197: 0.00262364275 | BH197: 8.837098731e-07 | BI197: 0 | BO197: 0.02123287671 | BP197: 0.002606584336 | BQ197: 7.642646983e-06 | BR197: 2606.584336 | BS197: 7.642646983 | BT197: 0.1636504174
AL198: 37835.0881 | AM198: 0.02643049218 | AN198: 18.8 | AO198: 11.96052322 | AP198: 0.2394767837 | AQ198: =IF(AN198<>"",Schadstoffbelastung!$K$4*Ergebnisse!AO198,"") -> 478.4209287 | AR198: =IF(AN198<>"",kf*Ergebnisse!AQ198*Ergebnisse!AM198,"") -> 0.0001264490061 | AS198: 2.643049218e-07 | AT198: 2.643049218e-06 | AU198: 8.886069367e-14 | AV198: -6.01689297e-14 | AW198: 0.0005347091879 | AX198: 0.008143449319 | AZ198: 7.692996228e-06 | BA198: 0 | BB198: 0.002623756339 | BC198: 1.64257523e-10 | BD198: 0 | BE198: 7.69266318e-06 | BF198: 0 | BG198: 0.00262364275 | BH198: 8.837098731e-07 | BI198: 0 | BO198: 0.02134703196 | BP198: 0.002606492431 | BQ198: 7.642377511e-06 | BR198: 2606.492431 | BS198: 7.642377511 | BT198: 0.1645302584
AL199: 38044.18686 | AM199: 0.0262852247 | AN199: 18.9 | AO199: 11.96316627 | AP199: 0.2368337345 | AQ199: =IF(AN199<>"",Schadstoffbelastung!$K$4*Ergebnisse!AO199,"") -> 478.5266506 | AR199: =IF(AN199<>"",kf*Ergebnisse!AQ199*Ergebnisse!AM199,"") -> 0.0001257818054 | AS199: 2.62852247e-07 | AT199: 2.62852247e-06 | AU199: 8.843563631e-14 | AV199: -5.988111688e-14 | AW199: 0.0005317703151 | AX199: 0.008104495841 | AZ199: 7.692996228e-06 | BA199: 0 | BB199: 0.002623756339 | BC199: 1.64257523e-10 | BD199: 0 | BE199: 7.69266318e-06 | BF199: 0 | BG199: 0.00262364275 | BH199: 8.837098731e-07 | BI199: 0 | BO199: 0.02146118721 | BP199: 0.002606400528 | BQ199: 7.642108048e-06 | BR199: 2606.400528 | BS199: 7.642108048 | BT199: 0.1654100993
AL200: 38253.32788 | AM200: 0.02614151645 | AN200: 19 | AO200: 11.96579479 | AP200: 0.2342052121 | AQ200: =IF(AN200<>"",Schadstoffbelastung!$K$4*Ergebnisse!AO200,"") -> 478.6317915 | AR200: =IF(AN200<>"",kf*Ergebnisse!AQ200*Ergebnisse!AM200,"") -> 0.0001251216085 | AS200: 2.614151645e-07 | AT200: 2.614151645e-06 | AU200: 8.801484071e-14 | AV200: -5.959618977e-14 | AW200: 0.0005288629867 | AX200: 0.008065932924 | AZ200: 7.692996228e-06 | BA200: 0 | BB200: 0.002623756339 | BC200: 1.64257523e-10 | BD200: 0 | BE200: 7.69266318e-06 | BF200: 0 | BG200: 0.00262364275 | BH200: 8.837098731e-07 | BI200: 0 | BO200: 0.02157534247 | BP200: 0.002606308629 | BQ200: 7.641838595e-06 | BR200: 2606.308629 | BS200: 7.641838595 | BT200: 0.1662899403
... 580 more rows
